Workbook

Sheet Développement
C1: 2010-09-13T14:30:00 | D1: Protection débutant | F1: en jaune : ajustements | I1: EVOLUTION DU STOCK | O1: démarrage le lundi 23 | V1: COUT CONSTRUCTION | AD1: ACHAT/VENTE MP | AL1: GAINS (COMBATS, RANGS, DONS) | AT1: PRODUCTION journalière | BA1: COUT ACHAT | BH1: RECETTE VENTE
E2: Heure | F2: Temps (h)
C3: Action (coût) | O3: Dom. | P3: Rich. | Q3: Honn. | R3: Dispo or
C5: Départ | E5: 2010-09-13T14:30:00 | G5: 3800 | H5: 4 | I5: 4 | J5: 0 | K5: 0 | L5: 0 | M5: 0 | R5: =FLOOR(H5,1)*BF5+FLOOR(I5,1)*BG5+FLOOR(J5,1)*BH5+FLOOR(K5,1)*BI5+FLOOR(L5,1)*BJ5+FLOOR(M5,1)*BK5+G5 -> 7800 | AQ5: 2000 | AR5: 0 | AS5: 0 | AT5: 0 | AU5: 0 | AV5: 0 | AW5: 0 | AY5: 2000 | AZ5: 2000 | BA5: 4000 | BB5: 4000 | BC5: 4000 | BD5: 4000 | BF5: 500 | BG5: 500 | BH5: 1000 | BI5: 1000 | BJ5: 1000 | BK5: 1000
E6: 2010-09-17T12:00:01 | G6: 3075 | H6: 6.25 | I6: 6 | J6: =J5-W6+AD6+AT6*$F6/24+AL6 -> 0 | K6: 0 | L6: 2.67 | M6: 0 | R6: 11535 | AQ6: 17098 | AR6: 11.13 | AS6: 11.13 | AT6: 0 | AU6: 0 | AV6: 5.25 | AW6: 0 | AY6: 1600 | AZ6: 2400 | BA6: 3320 | BB6: 4800 | BC6: 4920 | BD6: 4000 | BF6: 400 | BG6: 600 | BH6: 830 | BI6: 1200 | BJ6: 1230 | BK6: 1000 | BM6: -0.2 | BN6: 0.2 | BO6: -0.17 | BP6: 0.2 | BQ6: 0.23 | BR6: 0
C7: Scierie 6 (amel.) + achat bois/minerais | D7: Fin | E7: 2010-09-17T18:06:08.990 | F7: =(E7-E6)*24 -> 6.102219444 | G7: =G6-T7-(IF(AB7>0,AB7*AY7,0)+IF(AC7>0,AC7*AZ7,0)+IF(AD7>0,AD7*BA7,0)+IF(AD7>0,AD7*BA7,0)+IF(AE7>0,AE7*BB7,0)+IF(AF7>0,AF7*BC7,0)+IF(AG7>0,AG7*BD7,0))-(IF(AB7<0,AB7*BF7,0)+IF(AC7<0,AC7*BG7,0)+IF(AD7<0,AD7*BH7,0)+IF(AE7<0,AE7*BI7,0)+IF(AF7<0,AF7*BJ7,0)+IF(AG7<0,AG7*BK7,0))+AQ7*$F7/24+AI7 -> 2387.322836 | H7: =H6-U7+AB7+AR7*$F7/24+AJ7 -> 12.07990427 | I7: =I6-V7+AC7+AS7*$F7/24+AK7 -> 10.82990427 | J7: 0 | K7: 0 | L7: =L6-Y7+AF7+AV7*$F7/24+AN7 -> 4.004860503 | M7: 0 | R7: 18107.32284 | AI7: -5035 | AJ7: 3 | AK7: 2 | AQ7: =AQ6 -> 17098 | AR7: =AR6 -> 11.13 | AS7: =AS6 -> 11.13 | AT7: =AT6 -> 0 | AU7: =AU6 -> 0 | AV7: =AV6 -> 5.25 | AW7: =AW6 -> 0 | AY7: =AY6 -> 1600 | AZ7: =AZ6 -> 2400 | BA7: =BA6 -> 3320 | BB7: =BB6 -> 4800 | BC7: =BC6 -> 4920 | BD7: =BD6 -> 4000 | BF7: =BF6 -> 400 | BG7: =BG6 -> 600 | BH7: =BH6 -> 830 | BI7: =BI6 -> 1200 | BJ7: =BJ6 -> 1230 | BK7: =BK6 -> 1000
E8: 2010-09-17T18:06:08.990 | F8: 0 | G8: =G7-T8-(IF(AB8>0,AB8*AY8,0)+IF(AC8>0,AC8*AZ8,0)+IF(AD8>0,AD8*BA8,0)+IF(AD8>0,AD8*BA8,0)+IF(AE8>0,AE8*BB8,0)+IF(AF8>0,AF8*BC8,0)+IF(AG8>0,AG8*BD8,0))-(IF(AB8<0,AB8*BF8,0)+IF(AC8<0,AC8*BG8,0)+IF(AD8<0,AD8*BH8,0)+IF(AE8<0,AE8*BI8,0)+IF(AF8<0,AF8*BJ8,0)+IF(AG8<0,AG8*BK8,0))+AQ8*$F8/24+AI8 -> 6077.322836 | H8: =H7-U8+AB8+AR8*$F8/24+AJ8 -> 12.07990427 | I8: =I7-V8+AC8+AS8*$F8/24+AK8 -> 10.82990427 | J8: 0 | K8: 0 | L8: =L7-Y8+AF8+AV8*$F8/24+AN8 -> 1.004860503 | M8: 0 | R8: 18107.32284 | AF8: -3 | AQ8: 17098 | AR8: 13.356 | AS8: 11.13 | AT8: 0 | AU8: 0 | AV8: 5.25 | AW8: 0 | AY8: 1600 | AZ8: 2400 | BA8: 3320 | BB8: 4800 | BC8: 4920 | BD8: 4000 | BF8: 400 | BG8: 600 | BH8: 830 | BI8: 1200 | BJ8: 1230 | BK8: 1000
C9: Chenils | D9: Fin | E9: 2010-09-17T20:04:00 | F9: =(E9-E8)*24 -> 1.964169444 | G9: =G8-T9-(IF(AB9>0,AB9*AY9,0)+IF(AC9>0,AC9*AZ9,0)+IF(AD9>0,AD9*BA9,0)+IF(AD9>0,AD9*BA9,0)+IF(AE9>0,AE9*BB9,0)+IF(AF9>0,AF9*BC9,0)+IF(AG9>0,AG9*BD9,0))-(IF(AB9<0,AB9*BF9,0)+IF(AC9<0,AC9*BG9,0)+IF(AD9<0,AD9*BH9,0)+IF(AE9<0,AE9*BI9,0)+IF(AF9<0,AF9*BJ9,0)+IF(AG9<0,AG9*BK9,0))+AQ9*$F9/24+AI9 -> 7476.629884 | H9: =H8-U9+AB9+AR9*$F9/24+AJ9 -> 13.17296456 | I9: =I8-V9+AC9+AS9*$F9/24+AK9 -> 11.74078785 | J9: =J8-W9+AD9+AT9*$F9/24+AL9 -> 0 | K9: =K8-X9+AE9+AU9*$F9/24+AM9 -> 0 | L9: =L8-Y9+AF9+AV9*$F9/24+AN9 -> 1.434522569 | M9: =M8-Z9+AG9+AW9*$F9/24+AO9 -> 0 | R9: 21676.62988 | AQ9: 17098 | AR9: 13.356 | AS9: 11.13 | AT9: 0 | AU9: 0 | AV9: 5.25 | AW9: 0 | AY9: 1600 | AZ9: 2400 | BA9: 3320 | BB9: 4800 | BC9: 4920 | BD9: 4000 | BF9: 445 | BG9: 645 | BH9: 920 | BI9: 1290 | BJ9: 1320 | BK9: 1090
C10: Guilde des Mages niv 1 | D10: Début | E10: 2010-09-17T21:04:00 | F10: 1 | G10: =G9-T10-(IF(AB10>0,AB10*AY10,0)+IF(AC10>0,AC10*AZ10,0)+IF(AD10>0,AD10*BA10,0)+IF(AD10>0,AD10*BA10,0)+IF(AE10>0,AE10*BB10,0)+IF(AF10>0,AF10*BC10,0)+IF(AG10>0,AG10*BD10,0))-(IF(AB10<0,AB10*BF10,0)+IF(AC10<0,AC10*BG10,0)+IF(AD10<0,AD10*BH10,0)+IF(AE10<0,AE10*BI10,0)+IF(AF10<0,AF10*BJ10,0)+IF(AG10<0,AG10*BK10,0))+AQ10*$F10/24+AI10 -> 2789.046551 | H10: =H9-U10+AB10+AR10*$F10/24+AJ10 -> 1.729464563 | I10: =I9-V10+AC10+AS10*$F10/24+AK10 -> 1.204537847 | J10: =J9-W10+AD10+AT10*$F10/24+AL10 -> 0 | K10: =K9-X10+AE10+AU10*$F10/24+AM10 -> 0 | L10: =L9-Y10+AF10+AV10*$F10/24+AN10 -> 1.653272569 | M10: =M9-Z10+AG10+AW10*$F10/24+AO10 -> 0 | R10: 5199.046551 | T10: 5400 | U10: 12 | V10: 11 | AQ10: 17098 | AR10: 13.356 | AS10: 11.13 | AT10: 0 | AU10: 0 | AV10: 5.25 | AW10: 0 | AY10: 1600 | AZ10: 2400 | BA10: 3320 | BB10: 4800 | BC10: 4920 | BD10: 4000 | BF10: 445 | BG10: 645 | BH10: 920 | BI10: 1290 | BJ10: 1320 | BK10: 1090
C11: Minerais 6 (amel.) | D11: Début | E11: 2010-09-17T23:30:00 | F11: 2.433333333 | G11: 692.5937731 | H11: 3.083614563 | I11: 2.33299618 | J11: 0 | K11: 0 | L11: 0.1855642361 | M11: 0 | R11: =FLOOR(H11,1)*BF11+FLOOR(I11,1)*BG11+FLOOR(J11,1)*BH11+FLOOR(K11,1)*BI11+FLOOR(L11,1)*BJ11+FLOOR(M11,1)*BK11+G11 -> 3317.593773 | T11: 6470 | AF11: -2 | AQ11: 17098 | AR11: 13.356 | AS11: 11.13 | AT11: 0 | AU11: 0 | AV11: 5.25 | AW11: 0 | AY11: 1600 | AZ11: 2400 | BA11: 3320 | BB11: 4800 | BC11: 4920 | BD11: 4000 | BF11: 445 | BG11: 645 | BH11: 920 | BI11: 1290 | BJ11: 1320 | BK11: 1090
E12: =NOW() -> 2010-09-29T23:41:22.700 | F12: 288.1896389 | G12: =G11-T12-(IF(AB12>0,AB12*AY12,0)+IF(AC12>0,AC12*AZ12,0)+IF(AD12>0,AD12*BA12,0)+IF(AD12>0,AD12*BA12,0)+IF(AE12>0,AE12*BB12,0)+IF(AF12>0,AF12*BC12,0)+IF(AG12>0,AG12*BD12,0))-(IF(AB12<0,AB12*BF12,0)+IF(AC12<0,AC12*BG12,0)+IF(AD12<0,AD12*BH12,0)+IF(AE12<0,AE12*BI12,0)+IF(AF12<0,AF12*BJ12,0)+IF(AG12<0,AG12*BK12,0))+AQ12*$F12/24+AI12 -> 204193.6957 | H12: 163.4611486 | I12: 135.9809412 | J12: 0 | K12: 0 | L12: 63.22704774 | M12: 0 | R12: =FLOOR(H12,1)*BF12+FLOOR(I12,1)*BG12+FLOOR(J12,1)*BH12+FLOOR(K12,1)*BI12+FLOOR(L12,1)*BJ12+FLOOR(M12,1)*BK12+G12 -> 446963.6957 | T12: 1810 | AQ12: 17098 | AR12: 13.356 | AS12: 11.13 | AT12: 0 | AU12: 0 | AV12: 5.25 | AW12: 0 | AY12: 1600 | AZ12: 2400 | BA12: 3320 | BB12: 4800 | BC12: 4920 | BD12: 4000 | BF12: 445 | BG12: 645 | BH12: 920 | BI12: 1290 | BJ12: 1320 | BK12: 1090
E13: 2010-09-18T04:47:30.470 | F13: -282.8978417 | G13: 2652.558311 | H13: 6.028499717 | I13: 4.787067142 | J13: 0 | K13: 0 | L13: 1.343144878 | M13: 0 | R13: 9222.558311 | AQ13: 17098 | AR13: 13.356 | AS13: 11.13 | AT13: 0 | AU13: 0 | AV13: 5.25 | AW13: 0 | AY13: 1600 | AZ13: 2400 | BA13: 3320 | BB13: 4800 | BC13: 4920 | BD13: 4000 | BF13: 445 | BG13: 645 | BH13: 920 | BI13: 1290 | BJ13: 1320 | BK13: 1090
E14: =E13+2/24 -> 2010-09-18T06:47:30.470 | F14: 2 | G14: 4077.391644 | H14: 7.141499717 | I14: 5.714567142 | J14: 0 | K14: 0 | L14: 1.780644878 | M14: 0 | R14: 11737.39164 | AQ14: 17098 | AR14: 13.356 | AS14: 11.13 | AT14: 0 | AU14: 0 | AV14: 5.25 | AW14: 0 | AY14: 1600 | AZ14: 2400 | BA14: 3320 | BB14: 4800 | BC14: 4920 | BD14: 4000 | BF14: 445 | BG14: 645 | BH14: 920 | BI14: 1290 | BJ14: 1320 | BK14: 1090
E15: 2010-09-18T08:47:30.470 | F15: 2 | G15: 5502.224978 | H15: 8.254499717 | I15: 6.642067142 | J15: 0 | K15: 0 | L15: 2.218144878 | M15: 0 | R15: 15572.22498 | AQ15: 17098 | AR15: 13.356 | AS15: 11.13 | AT15: 0 | AU15: 0 | AV15: 5.25 | AW15: 0 | AY15: 1600 | AZ15: 2400 | BA15: 3320 | BB15: 4800 | BC15: 4920 | BD15: 4000 | BF15: 445 | BG15: 645 | BH15: 920 | BI15: 1290 | BJ15: 1320 | BK15: 1090
E16: 2010-09-18T10:47:30.470 | F16: 2 | G16: 6927.058311 | H16: 9.367499717 | I16: 7.569567142 | J16: 0 | K16: 0 | L16: 2.655644878 | M16: 0 | R16: 18087.05831 | AQ16: 17098 | AR16: 13.356 | AS16: 11.13 | AT16: 0 | AU16: 0 | AV16: 5.25 | AW16: 0 | AY16: 1600 | AZ16: 2400 | BA16: 3320 | BB16: 4800 | BC16: 4920 | BD16: 4000 | BF16: 445 | BG16: 645 | BH16: 920 | BI16: 1290 | BJ16: 1320 | BK16: 1090
E17: 2010-09-18T12:47:30.470 | F17: =(E17-E16)*24 -> 2 | G17: 8351.891644 | H17: 10.48049972 | I17: 8.497067142 | J17: 0 | K17: 0 | L17: 3.093144879 | M17: 0 | R17: 21921.89164 | AQ17: 17098 | AR17: 13.356 | AS17: 11.13 | AT17: 0 | AU17: 0 | AV17: 5.25 | AW17: 0 | AY17: 1600 | AZ17: 2400 | BA17: 3320 | BB17: 4800 | BC17: 4920 | BD17: 4000 | BF17: 445 | BG17: 645 | BH17: 920 | BI17: 1290 | BJ17: 1320 | BK17: 1090
E18: 2010-09-29T21:40:18.050 | F18: =(E18-E17)*24 -> 272.8798833 | G18: =12960+6706+32988 -> 52654 | H18: =22+5+5 -> 32 | I18: =28+5+5 -> 38 | J18: 4 | K18: 6 | L18: 2 | M18: 0 | R18: 105464 | AQ18: 97246.8 | AR18: 51.949 | AS18: 51.186 | AT18: 7.931 | AU18: 0 | AV18: 7.35 | AW18: 0 | AY18: 1600 | AZ18: 2400 | BA18: 3320 | BB18: 4800 | BC18: 4920 | BD18: 4000 | BF18: 445 | BG18: 645 | BH18: 920 | BI18: 1290 | BJ18: 1320 | BK18: 1090
E19: =E18+5/24 -> 2010-09-30T02:40:18.050 | F19: =(E19-E18)*24 -> 5 | G19: =G18-T19-(IF(AB19>0,AB19*AY19,0)+IF(AC19>0,AC19*AZ19,0)+IF(AD19>0,AD19*BA19,0)+IF(AD19>0,AD19*BA19,0)+IF(AE19>0,AE19*BB19,0)+IF(AF19>0,AF19*BC19,0)+IF(AG19>0,AG19*BD19,0))-(IF(AB19<0,AB19*BF19,0)+IF(AC19<0,AC19*BG19,0)+IF(AD19<0,AD19*BH19,0)+IF(AE19<0,AE19*BI19,0)+IF(AF19<0,AF19*BJ19,0)+IF(AG19<0,AG19*BK19,0))+AQ19*$F19/24+AI19 -> 72913.75 | H19: =H18-U19+AB19+AR19*$F19/24+AJ19 -> 42.82270833 | I19: =I18-V19+AC19+AS19*$F19/24+AK19 -> 48.66375 | J19: =J18-W19+AD19+AT19*$F19/24+AL19 -> 5.652291667 | K19: =K18-X19+AE19+AU19*$F19/24+AM19 -> 6 | L19: =L18-Y19+AF19+AV19*$F19/24+AN19 -> 3.53125 | M19: =M18-Z19+AG19+AW19*$F19/24+AO19 -> 0 | R19: 138863.75 | AQ19: 97246.8 | AR19: 51.949 | AS19: 51.186 | AT19: 7.931 | AU19: 0 | AV19: 7.35 | AW19: 0 | AY19: 1600 | AZ19: 2400 | BA19: 3320 | BB19: 4800 | BC19: 4920 | BD19: 4000 | BF19: 445 | BG19: 645 | BH19: 920 | BI19: 1290 | BJ19: 1320 | BK19: 1090
B20: u | C20: 2mines 8> | D20: (perdu 1) | E20: =E19+5/24 -> 2010-09-30T07:40:18.050 | F20: =(E20-E19)*24 -> 5 | G20: 60978.5 | H20: 36.64541667 | I20: 35.3275 | J20: -3.695416667 | K20: 6 | L20: 3.0625 | M20: 0 | R20: 107593.5 | T20: =34000*2 -> 68000 | AB20: -17 | AC20: -24 | AD20: -11 | AF20: -2 | AQ20: 97246.8 | AR20: 51.949 | AS20: 51.186 | AT20: 7.931 | AU20: 0 | AV20: 7.35 | AW20: 0 | AY20: 1600 | AZ20: 2400 | BA20: 3320 | BB20: 4800 | BC20: 4920 | BD20: 4000 | BF20: 445 | BG20: 645 | BH20: 920 | BI20: 1290 | BJ20: 1320 | BK20: 1090
C21: 8 ateliers niv 1 | E21: 2010-09-30T12:40:18.050 | F21: 5 | G21: 57238.25 | H21: 41.468125 | I21: 39.99125 | J21: -3.043125 | K21: 6 | L21: 10.59375 | M21: 0 | R21: 117898.25 | T21: 24000 | U21: 6 | V21: 6 | W21: 1 | Y21: 1 | AN21: 7 | AQ21: 97246.8 | AR21: 51.949 | AS21: 51.186 | AT21: 7.931 | AU21: 0 | AV21: 7.35 | AW21: 0 | AY21: 1600 | AZ21: 2400 | BA21: 3320 | BB21: 4800 | BC21: 4920 | BD21: 4000 | BF21: 445 | BG21: 645 | BH21: 920 | BI21: 1290 | BJ21: 1320 | BK21: 1090
E22: 2010-09-30T17:40:18.050 | F22: 5 | G22: 77498 | H22: 52.29083333 | I22: 50.655 | J22: -1.390833333 | K22: 6 | L22: 12.125 | M22: 0 | R22: 154628 | AQ22: 97246.8 | AR22: 51.949 | AS22: 51.186 | AT22: 7.931 | AU22: 0 | AV22: 7.35 | AW22: 0 | AY22: 1600 | AZ22: 2400 | BA22: 3320 | BB22: 4800 | BC22: 4920 | BD22: 4000 | BF22: 445 | BG22: 645 | BH22: 920 | BI22: 1290 | BJ22: 1320 | BK22: 1090
E23: 2010-09-30T22:40:18.050 | F23: 5 | G23: 97757.75 | H23: 63.11354167 | I23: 61.31875 | J23: 0.2614583334 | K23: 6 | L23: 13.65625 | M23: 0 | R23: 190037.75 | AQ23: 97246.8 | AR23: 51.949 | AS23: 51.186 | AT23: 7.931 | AU23: 0 | AV23: 7.35 | AW23: 0 | AY23: 1600 | AZ23: 2400 | BA23: 3320 | BB23: 4800 | BC23: 4920 | BD23: 4000 | BF23: 445 | BG23: 645 | BH23: 920 | BI23: 1290 | BJ23: 1320 | BK23: 1090
C24: Achat de troupes | E24: 2010-10-01T03:40:18.050 | F24: 5 | G24: 58017.5 | H24: 73.93625 | I24: 71.9825 | J24: 1.91375 | K24: 6 | L24: 15.1875 | M24: 0 | R24: 164757.5 | T24: 60000 | AQ24: 97246.8 | AR24: 51.949 | AS24: 51.186 | AT24: 7.931 | AU24: 0 | AV24: 7.35 | AW24: 0 | AY24: 1600 | AZ24: 2400 | BA24: 3320 | BB24: 4800 | BC24: 4920 | BD24: 4000 | BF24: 445 | BG24: 645 | BH24: 920 | BI24: 1290 | BJ24: 1320 | BK24: 1090
C25: Pallier richesse 4 | D25: Attente | E25: =MIN(Stratégie!D44:E44) -> 2010-10-01T17:57:11.342 | F25: 14.28146992 | G25: -16314.69797 | H25: 34.8490867 | I25: 25.44130497 | J25: 6.633180746 | K25: 6 | L25: 19.56120016 | M25: 0 | R25: 53280.30203 | T25: 90000 | U25: 90 | V25: 90 | AB25: 20 | AC25: 13 | AI25: 21000 | AQ25: 97246.8 | AR25: 51.949 | AS25: 51.186 | AT25: 7.931 | AU25: 0 | AV25: 7.35 | AW25: 0 | AY25: 1600 | AZ25: 2400 | BA25: 3320 | BB25: 4800 | BC25: 4920 | BD25: 4000 | BF25: 445 | BG25: 645 | BH25: 920 | BI25: 1290 | BJ25: 1320 | BK25: 1090
E26: 2010-10-01T19:57:11.342 | F26: 2 | G26: -8210.79797 | H26: 39.17817003 | I26: 29.70680497 | J26: 7.294097413 | K26: 6 | L26: 20.17370016 | M26: 0 | R26: 68429.20203 | AQ26: 97246.8 | AR26: 51.949 | AS26: 51.186 | AT26: 7.931 | AU26: 0 | AV26: 7.35 | AW26: 0 | AY26: 1600 | AZ26: 2400 | BA26: 3320 | BB26: 4800 | BC26: 4920 | BD26: 4000 | BF26: 445 | BG26: 645 | BH26: 920 | BI26: 1290 | BJ26: 1320 | BK26: 1090
E27: 2010-10-01T21:57:11.342 | F27: 2 | G27: -106.8979696 | H27: 43.50725336 | I27: 33.97230497 | J27: 7.95501408 | K27: 6 | L27: 20.78620016 | M27: 0 | R27: 80893.10203 | AQ27: 97246.8 | AR27: 51.949 | AS27: 51.186 | AT27: 7.931 | AU27: 0 | AV27: 7.35 | AW27: 0 | AY27: 1600 | AZ27: 2400 | BA27: 3320 | BB27: 4800 | BC27: 4920 | BD27: 4000 | BF27: 445 | BG27: 645 | BH27: 920 | BI27: 1290 | BJ27: 1320 | BK27: 1090
E28: 2010-10-01T23:57:11.342 | F28: 2 | G28: 7997.002031 | H28: 47.8363367 | I28: 38.23780497 | J28: 8.615930746 | K28: 6 | L28: 21.39870016 | M28: 0 | R28: 96242.00203 | AQ28: 97246.8 | AR28: 51.949 | AS28: 51.186 | AT28: 7.931 | AU28: 0 | AV28: 7.35 | AW28: 0 | AY28: 1600 | AZ28: 2400 | BA28: 3320 | BB28: 4800 | BC28: 4920 | BD28: 4000 | BF28: 445 | BG28: 645 | BH28: 920 | BI28: 1290 | BJ28: 1320 | BK28: 1090
E29: 2010-10-02T01:57:11.342 | F29: 2 | G29: 16100.90203 | H29: 52.16542003 | I29: 42.50330497 | J29: 9.276847413 | K29: 6 | L29: 22.01120016 | M29: 0 | R29: 111390.902 | AQ29: 97246.8 | AR29: 51.949 | AS29: 51.186 | AT29: 7.931 | AU29: 0 | AV29: 7.35 | AW29: 0 | AY29: 1600 | AZ29: 2400 | BA29: 3320 | BB29: 4800 | BC29: 4920 | BD29: 4000 | BF29: 445 | BG29: 645 | BH29: 920 | BI29: 1290 | BJ29: 1320 | BK29: 1090
E30: 2010-10-02T03:57:11.342 | F30: 2 | G30: 24204.80203 | H30: 56.49450336 | I30: 46.76880497 | J30: 9.93776408 | K30: 6 | L30: 22.62370016 | M30: 0 | R30: 123854.802 | AQ30: 97246.8 | AR30: 51.949 | AS30: 51.186 | AT30: 7.931 | AU30: 0 | AV30: 7.35 | AW30: 0 | AY30: 1600 | AZ30: 2400 | BA30: 3320 | BB30: 4800 | BC30: 4920 | BD30: 4000 | BF30: 445 | BG30: 645 | BH30: 920 | BI30: 1290 | BJ30: 1320 | BK30: 1090
E31: 2010-10-02T05:57:11.342 | F31: 2 | G31: 32308.70203 | H31: 60.8235867 | I31: 51.03430497 | J31: 10.59868075 | K31: 6 | L31: 23.23620016 | M31: 0 | R31: 139203.702 | AQ31: 97246.8 | AR31: 51.949 | AS31: 51.186 | AT31: 7.931 | AU31: 0 | AV31: 7.35 | AW31: 0 | AY31: 1600 | AZ31: 2400 | BA31: 3320 | BB31: 4800 | BC31: 4920 | BD31: 4000 | BF31: 445 | BG31: 645 | BH31: 920 | BI31: 1290 | BJ31: 1320 | BK31: 1090
E32: 2010-10-02T07:57:11.342 | F32: 2 | G32: 40412.60203 | H32: 65.15267003 | I32: 55.29980497 | J32: 11.25959741 | K32: 6 | L32: 23.84870016 | M32: 0 | R32: 153032.602 | AQ32: 97246.8 | AR32: 51.949 | AS32: 51.186 | AT32: 7.931 | AU32: 0 | AV32: 7.35 | AW32: 0 | AY32: 1600 | AZ32: 2400 | BA32: 3320 | BB32: 4800 | BC32: 4920 | BD32: 4000 | BF32: 445 | BG32: 645 | BH32: 920 | BI32: 1290 | BJ32: 1320 | BK32: 1090
E33: 2010-10-02T09:57:11.342 | F33: 2 | G33: 48516.50203 | H33: 69.48175336 | I33: 59.56530497 | J33: 11.92051408 | K33: 6 | L33: 24.46120016 | M33: 0 | R33: 166816.502 | AQ33: 97246.8 | AR33: 51.949 | AS33: 51.186 | AT33: 7.931 | AU33: 0 | AV33: 7.35 | AW33: 0 | AY33: 1600 | AZ33: 2400 | BA33: 3320 | BB33: 4800 | BC33: 4920 | BD33: 4000 | BF33: 445 | BG33: 645 | BH33: 920 | BI33: 1290 | BJ33: 1320 | BK33: 1090
E34: 2010-10-02T11:57:11.342 | F34: 2 | G34: 56620.40203 | H34: 73.8108367 | I34: 63.83080497 | J34: 12.58143075 | K34: 6 | L34: 25.07370016 | M34: 0 | R34: 181520.402 | AQ34: 97246.8 | AR34: 51.949 | AS34: 51.186 | AT34: 7.931 | AU34: 0 | AV34: 7.35 | AW34: 0 | AY34: 1600 | AZ34: 2400 | BA34: 3320 | BB34: 4800 | BC34: 4920 | BD34: 4000 | BF34: 445 | BG34: 645 | BH34: 920 | BI34: 1290 | BJ34: 1320 | BK34: 1090
T35: OU 90K ?
C36: Ecuries infernales | E36: =NOW()+2+6/24 -> 2010-10-02T05:41:22.700 | I36: Pente actu | T36: NE PAS VENDRE BOIS ET MINERAIS
G37: or et bois ! | R37: Ecuries infernales | T37: 27600 | U37: 33 | V37: 35 | W37: 6 | Y37: 5 | AQ37: Produciton des villes:
D38: Scierie 9 | E38: 27200 | F38: 37.36666667 | G38: Plus tard | M38: (passer niv 3. dom)
D39: Minerai 8 | E39: 16800 | F39: 27.76666667 | AQ39: =Villes!E9 -> 100044 | AR39: =Villes!F9 -> 53.461 | AS39: =Villes!G9 -> 53.314 | AT39: =Villes!H9 -> 9.328 | AU39: =Villes!I9 -> 0 | AV39: =Villes!J9 -> 7.35 | AW39: =Villes!K9 -> 0
C40: 2600 | D40: Or 8 | E40: 16800 | F40: 27.76666667 | G40: 10 heures | M40: 4 | N40: 3 | X40: =6*4800 -> 28800
E41: 44800 | T41: =75/5 -> 15
G42: bâtisseur tenancier meneur
C43: Hôtel de ville | D43: Nécropole | E43: administration | G43: architecte marchand et espion | T43: =1000000/3365 -> 297.1768202
C44: Mercure 7 (amel.) | D44: Debut | G44: barbare pilleur chevalier et combattant | T44: =T43/4 -> 74.29420505
C45: Or 8 (perf.) | D45: Debut
T46: =15*4*5 -> 300
C47: =NOW() -> 2010-09-29T23:41:22.700 | D47: 13 | E47: =D47*500 -> 6500
C48: 2010-09-26T09:00:00 | D48: 21 | E48: =D48*500 -> 10500 | F48: =10355+E47+E48 -> 27355 | O48: =P48*(4*2000+2500) -> 829500 | P48: =13+35+31 -> 79 | Q48: 3365 | R48: =Q48*P48 -> 265835
C49: =C47+1+9/24+0.5/24 -> 2010-10-01T09:11:22.700 | D49: 29000
C51: Combat (azkran) | K51: 171 | L51: 172 | M51: 62 | N51: 135 | P51: 81 | Q51: =SUM(K51:P51) -> 621 | R51: =Q51*70 -> 43470
C52: Hôtel de ville | D52: Fin | K52: 100 | L52: 103 | M52: 17 | N52: 85 | P52: 13 | Q52: =SUM(K52:P52) -> 318 | R52: =Q52*134 -> 42612
D53: Attente | K53: 57 | L53: 77 | M53: 13 | N53: 46 | Q53: 193 | R53: =Q53*303 -> 58479
C54: Silo à ressources niv 3 | D54: Debut
C55: Recrutement (tout) | D55: Attente
C56: Minerais 8 (amel.) | D56: Fin | R56: =SUM(R47:R53) -> 410396
C57: Pallier richesse 2 | D57: Attente | R57: 594615
C58: Mercure 8 (amel.) | D58: Fin | R58: =R56+R57 -> 1005011
D60: Attente
C63: Achat de troupes
C66: Pallier richesse 3 | D66: Attente
C70: Pallier richesse 4 | D70: Attente
C72: Manoir de vampires | D72: Debut
G79: Le gain net par jour est de 3502
C80: Paliers | G80: Le cout est 44800+21600*1,04 = 67264 | M80: (perte d'or)
B81: http://wiki.of-might-and-magic.com/index.php/Rang
G82: Deuxième ville: il faudra des troupes pour déblayer rapidement les mines
B84: Niveaux | C84: Domination | D84: Richesse | E84: Honneur | G84: Jours d'attente à partir de Fantomes
B85: 1 | C85: 34000 | D85: 320000 | E85: 15000 | G85: =(68000-#REF!-Villes!#REF!)/I85 ->  | I85: 5027 | K85: =L85+G85 ->  | L85: 2010-08-31T16:10:00
B86: 2 | C86: 68000 | D86: 640000 | E86: 30000 | G86: Jour d'attente à partir de Manoir:
B87: 3 | C87: 136000 | D87: 1280000 | E87: 80000 | G87: =(68000-#REF!-Villes!#REF!)/I87 ->  | I87: 8782
B88: 4 | C88: 272000 | D88: 2560000 | E88: 160000
B89: 5 | C89: 544000 | D89: 5120000 | E89: 320000 | G89: Booster la richesse
B90: 6 | C90: 1088000 | D90: 10240000 | E90: 640000 | G90: Jour d'attente à partir de Manoir:
B91: 7 | C91: 2176000 | D91: 20480000 | E91: ?? | G91: =(68000-#REF!-Villes!#REF!)/I91 ->  | I91: 8782
B92: 8 | C92: 4352000 | D92: 40960000 | E92: ??
B93: 9 | C93: 8704000 | D93: 81920000 | E93: 7680000 | G93: Booster la richesse
B94: 10 | C94: ?? | D94: 163840000 | E94: ?? | H94: >> Trouver une victoire écrasante | L94: 11 fantomes dans 33 heures
H95: >> Hôtel de ville | N95: 27 | P95: avec kaz
H96: >> libérer la région
C97: 2010-08-31T09:27:00 | H97: >> augmenter les mines
H99: un combat augmente t-il la dom ?
H100: non
H103: En faisant que des perfectionnements
H104: En faisant que des améliorations
H105: combien de temps pour arriver au niveau suivant ?

Sheet Simu
V1: Crédit supplémentaires par mine | AK1: Crédit supplémentaires par mine | AZ1: Crédit supplémentaires par mine | BO1: Crédit supplémentaires par mine | CD1: Crédit supplémentaires par mine | CS1: Crédit supplémentaires par mine
V2: Capital T0 | W2: Jours | X2: Perf. | Y2: N. | Z2: Revenus | AK2: Capital T0 | AL2: Jours | AM2: Perf. | AN2: N. | AO2: Revenus | BA2: Jours | BB2: Perf. | BC2: N. | BD2: Revenus | BP2: Jours | BQ2: Perf. | BR2: N. | BS2: Revenus | CE2: Jours | CF2: Perf. | CG2: N. | CH2: Revenus | CT2: Jours | CU2: Perf. | CV2: N. | CW2: Revenus
V3: 0 | W3: =MIN(W21:AF30) -> 7.057207034 | X3: 0.05 | Y3: 8 | Z3: =Y3*2000*(1+X3) -> 16800 | AK3: 0 | AL3: =MIN(AL21:AU30) -> 6.918876676 | AM3: 0.05 | AN3: 8 | AO3: =AN3*2000*(1+AM3) -> 16800 | AZ3: 0 | BA3: =MIN(BA21:BJ30) -> 6.529815159 | BB3: 0.05 | BC3: 8 | BD3: =BC3*2000*(1+BB3) -> 16800 | BO3: 0 | BP3: =MIN(BP21:BY30) -> 6.382771079 | BQ3: 0.05 | BR3: 8 | BS3: =BR3*2000*(1+BQ3) -> 16800 | CD3: 0 | CE3: =MIN(CE21:CN30) -> 3.665802024 | CF3: 0.05 | CG3: 7 | CH3: =CG3*2000*(1+CF3) -> 14700 | CS3: 0 | CT3: =MIN(CT21:DC30) -> 6.026023796 | CU3: 0.05 | CV3: 8 | CW3: =CV3*2000*(1+CU3) -> 16800
B4: Calculs réalisés pour 1 mine d'or pour laquelle un héros serait en permanence disponible | V4: 10000 | W4: =MIN(W36:AF45) -> 6.023883652 | X4: 0.1 | Y4: 8 | Z4: 17600 | AK4: 10000 | AL4: =MIN(AL36:AU45) -> 5.864627369 | AM4: 0.1 | AN4: 8 | AO4: =AN4*2000*(1+AM4) -> 17600 | AZ4: 10000 | BA4: =MIN(BA36:BJ45) -> 5.589896996 | BB4: 0.1 | BC4: 8 | BD4: =BC4*2000*(1+BB4) -> 17600 | BO4: 10000 | BP4: =MIN(BP36:BY45) -> 5.420608821 | BQ4: 0.1 | BR4: 8 | BS4: =BR4*2000*(1+BQ4) -> 17600 | CD4: 10000 | CE4: =MIN(CE36:CN45) -> 3.471160344 | CF4: 0.05 | CG4: 7 | CH4: =CG4*2000*(1+CF4) -> 14700 | CS4: 10000 | CT4: =MIN(CT36:DC45) -> 5.764924396 | CU4: 0.1 | CV4: 9 | CW4: =CV4*2000*(1+CU4) -> 19800
V5: 20000 | W5: =MIN(W51:AF60) -> 5.759524961 | X5: 0.1 | Y5: 8 | Z5: 17600 | AK5: 20000 | AL5: =MIN(AL51:AU60) -> 5.564485546 | AM5: 0.1 | AN5: 8 | AO5: 17600 | AZ5: 20000 | BA5: =MIN(BA51:BJ60) -> 5.366518885 | BB5: 0.1 | BC5: 8 | BD5: 17600 | BO5: 20000 | BP5: =MIN(BP51:BY60) -> 5.151565121 | BQ5: 0.1 | BR5: 8 | BS5: 17600 | CD5: 20000 | CE5: =MIN(CE51:CN60) -> 3.410835887 | CF5: 0.1 | CG5: 8 | CH5: 17600 | CS5: 20000 | CT5: =MIN(CT51:DC60) -> 5.687648555 | CU5: 0.15 | CV5: 9 | CW5: 20700
M6: Temps dep du héros pour atteindre la mine (15 minutes / case) | N6: =(15*SQRT(2)*2)/60 -> 0.7071067812 | O6: (heure) | V6: 30000 | W6: =MIN(W65:AF74) -> 5.612924082 | X6: 0.15 | Y6: 8 | Z6: 18400 | AK6: 30000 | AL6: =MIN(AL65:AU74) -> 5.39054809 | AM6: 0.15 | AN6: 8 | AO6: 18400 | AZ6: 30000 | BA6: =MIN(BA65:BJ74) -> 5.238951301 | BB6: 0.15 | BC6: 8 | BD6: 18400 | BO6: 30000 | BP6: =MIN(BP65:BY74) -> 5.002567372 | BQ6: 0.15 | BR6: 8 | BS6: 18400 | CD6: 30000 | CE6: =MIN(CE65:CN74) -> 3.385411998 | CF6: 0.15 | CG6: 8 | CH6: 18400 | CS6: 30000 | CT6: =MIN(CT65:DC74) -> 5.633674761 | CU6: 0.15 | CV6: 9 | CW6: 20700
M7: Richesse à produire par mine pour atteindre le palier | N7: =(N50-N47)/4 -> 160000 | S7: Palier (1 mine) | T7: 80000 | V7: 40000 | W7: =MIN(W79:AF88) -> 5.596913003 | X7: 0.15 | Y7: 8 | Z7: 18400 | AH7: Palier (1 mine) | AI7: 80000 | AK7: 40000 | AL7: =MIN(AL79:AU88) -> 5.329885574 | AM7: 0.1 | AN7: 9 | AO7: 19800 | AW7: Palier (1 mine) | AX7: 80000 | AZ7: 40000 | BA7: =MIN(BA79:BJ88) -> 5.238050401 | BB7: 0.1 | BC7: 9 | BD7: 19800 | BL7: Palier (1 mine) | BM7: 80000 | BO7: 40000 | BP7: =MIN(BP79:BY88) -> 4.964558648 | BQ7: 0.1 | BR7: 9 | BS7: 19800 | CA7: Palier (1 mine) | CB7: 160000 | CD7: 40000 | CE7: =MIN(CE79:CN88) -> 3.385411998 | CF7: 0.15 | CG7: 8 | CH7: 18400 | CP7: Palier (1 mine) | CQ7: =(N52-N51)/4 -> 320000 | CS7: 40000 | CT7: =MIN(CT79:DC88) -> 5.619078895 | CU7: 0.2 | CV7: 9 | CW7: 21600
O8: * | V8: 50000 | W8: =MIN(W93:AF102) -> 5.529354768 | X8: 0.15 | Y8: 9 | Z8: 20700 | AK8: 50000 | AL8: =MIN(AL93:AU102) -> 5.191762176 | AM8: 0.15 | AN8: 9 | AO8: 20700 | AZ8: 50000 | BA8: =MIN(BA93:BJ102) -> 5.210365788 | BB8: 0.15 | BC8: 9 | BD8: 20700 | BO8: 50000 | BP8: =MIN(BP93:BY102) -> 4.851507521 | BQ8: 0.15 | BR8: 9 | BS8: 20700 | CD8: 50000 | CE8: =MIN(CE93:CN102) -> 3.385411998 | CF8: 0.15 | CG8: 8 | CH8: 18400 | CS8: 50000 | CT8: =MIN(CT93:DC102) -> 5.594382659 | CU8: 0.2 | CV8: 9 | CW8: 21600
M9: Richesse initiale | N9: 0 | S9: Richesse initiale | T9: 0 | V9: 60000 | W9: =MIN(W107:AF116) -> 5.513480164 | X9: 0.2 | Y9: 9 | Z9: 21600 | AH9: Richesse initiale | AI9: 0 | AK9: 60000 | AL9: =MIN(AL107:AU116) -> 5.153537098 | AM9: 0.2 | AN9: 9 | AO9: 21600 | AW9: Richesse initiale | AX9: 0 | AZ9: 60000 | BA9: =MIN(BA107:BJ116) -> 5.207782392 | BB9: 0.2 | BC9: 9 | BD9: 21600 | BL9: Richesse initiale | BM9: 0 | BO9: 60000 | BP9: =MIN(BP107:BY116) -> 4.81519709 | BQ9: 0.2 | BR9: 9 | BS9: 21600 | CA9: Richesse initiale | CB9: 0 | CD9: 60000 | CE9: =MIN(CE107:CN116) -> 3.385411998 | CF9: 0.15 | CG9: 8 | CH9: 18400 | CP9: Richesse initiale | CQ9: 0 | CS9: 60000 | CT9: =MIN(CT107:DC116) -> 5.593627079 | CU9: 0.2 | CV9: 9 | CW9: 21600
V10: 70000 | W10: =MIN(W121:AF130) -> 0 | Z10: 0 | AK10: 70000 | AL10: =MIN(AL121:AU130) -> 5.144159176 | AM10: 0.2 | AN10: 9 | AO10: 21600 | AZ10: 70000 | BA10: =MIN(BA121:BJ130) -> 5.207782392 | BB10: 0.2 | BC10: 9 | BD10: 21600 | BO10: 70000 | BP10: =MIN(BP121:BY130) -> 4.81519709 | BQ10: 0.2 | BR10: 9 | BS10: 21600 | CD10: 70000 | CE10: =MIN(CE121:CN130) -> 3.385411998 | CF10: 0.15 | CG10: 8 | CH10: 18400 | CS10: 70000 | CT10: =MIN(CT121:DC130) -> 5.590765182 | CU10: 0.2 | CV10: 10 | CW10: 24000
M11: Contremaitre | N11: 0.09 | O11: (0, 9, 18, 27) | S11: Contremaitre | T11: 0 | AH11: Contremaitre | AI11: 0.27 | AW11: Contremaitre | AX11: 0 | BL11: Contremaitre | BM11: 0.27 | CA11: Contremaitre | CB11: 0.27 | CP11: Contremaitre | CQ11: 0.27
M12: Chercheur d'or | N12: 0.03 | O12: (0, 3,6,9) | S12: Chercheur d'or | T12: 0 | V12: =1600*4 -> 6400 | AH12: Chercheur d'or | AI12: 0 | AW12: Chercheur d'or | AX12: 0.09 | BL12: Chercheur d'or | BM12: 0.09 | CA12: Chercheur d'or | CB12: 0.09 | CP12: Chercheur d'or | CQ12: 0.09 | CS12: VILLE 3
M13: Revenus externes quotidiens mobilisés pour la mine | N13: 0 | O13: 0.6 | S13: Revenus externes quotidiens mobilisable par mine | T13: 0 | AH13: Revenus quotidiens | AI13: 0 | AW13: Revenus quotidiens | AX13: 0 | BL13: Revenus quotidiens | CA13: Revenus externes quotidiens mobilisable par mine | CB13: 5000 | CP13: Revenus externes quotidiens mobilisable par mine | CQ13: 5000
CB14: 7697.732
M15: Richesse quotidienne produite par l'ensemble des autres villes | N15: 0 | W15: EXEMPLE : PREMIERE VILLE, PASSAGE AU RANG 2 | CA15: Richesse quotidienne produite par la ville 1 | CB15: 84918 | CP15: Richesse quotidienne produite par les villes 1 et 2 | CQ15: =84918+18400*4 -> 158518
M16: Exemple de valeur calculée (1 ville externe produit) | N16: =(Villes!E17+Villes!F17*1000+Villes!G17*1000+Villes!H17*2000) -> 16008 | O16: (0, 9, 18, 27) | CB16: 8002.5 | CD16: EXEMPLE : DEUXIEME VILLE, PASSAGE AU RANG 3 | CS16: EXEMPLE : TROISIEME VILLE, PASSAGE AU RANG 4
M17: Marchand | N17: 0 | CB17: 0.18
CB18: Capital initial | CQ18: Capital initial
M19: Capital immobilisé pour la mine (initial) | N19: 2000 | T19: 0 | W19: niv. | AI19: 0 | AL19: niv. | AX19: 0 | BA19: niv. | BM19: 0 | BP19: niv. | CB19: 0 | CE19: niv. | CQ19: 0 | CT19: niv.
B20: Résultats en jours pour atteindre le palier | T20: revenus /J | V20: Perf. | W20: 1 | X20: 2 | Y20: 3 | Z20: 4 | AA20: 5 | AB20: 6 | AC20: 7 | AD20: 8 | AE20: 9 | AF20: 10 | AI20: revenus /J | AK20: Perf. | AL20: 1 | AM20: 2 | AN20: 3 | AO20: 4 | AP20: 5 | AQ20: 6 | AR20: 7 | AS20: 8 | AT20: 9 | AU20: 10 | AX20: revenus /J | AZ20: Perf. | BA20: 1 | BB20: 2 | BC20: 3 | BD20: 4 | BE20: 5 | BF20: 6 | BG20: 7 | BH20: 8 | BI20: 9 | BJ20: 10 | BM20: revenus /J | BO20: Perf. | BP20: 1 | BQ20: 2 | BR20: 3 | BS20: 4 | BT20: 5 | BU20: 6 | BV20: 7 | BW20: 8 | BX20: 9 | BY20: 10 | CB20: revenus /J | CD20: Perf. | CE20: 1 | CF20: 2 | CG20: 3 | CH20: 4 | CI20: 5 | CJ20: 6 | CK20: 7 | CL20: 8 | CM20: 9 | CN20: 10 | CQ20: revenus /J | CS20: Perf. | CT20: 1 | CU20: 2 | CV20: 3 | CW20: 4 | CX20: 5 | CY20: 6 | CZ20: 7 | DA20: 8 | DB20: 9 | DC20: 10
D21: niv. | T21: 16800 | U21: 1 | V21: 0 | W21: 40 | X21: 20.07847222 | Y21: 13.66412037 | Z21: 10.58668981 | AA21: 8.878078704 | AB21: 7.890902778 | AC21: 7.36094246 | AD21: 7.16984623 | AE21: N/A | AF21: N/A | AI21: 16800 | AJ21: 1 | AK21: 0 | AL21: 40 | AM21: 20.06277778 | AN21: 13.63796296 | AO21: 10.54935185 | AP21: 8.826462963 | AQ21: 7.820722222 | AR21: 7.267230159 | AS21: 7.047210317 | AT21: N/A | AU21: N/A | AX21: 16800 | AY21: 1 | AZ21: 0 | BA21: 36.69724771 | BB21: 18.42709608 | BC21: 12.54668918 | BD21: 9.727974218 | BE21: 8.166335584 | BF21: 7.26833397 | BG21: 6.791846785 | BH21: 6.628470083 | BI21: N/A | BJ21: N/A | BM21: 16800 | BN21: 1 | BO21: 0 | BP21: 36.69724771 | BQ21: 18.410413 | BR21: 12.51888406 | BS21: 9.688284258 | BT21: 8.111468458 | BU21: 7.193732592 | BV21: 6.692231347 | BW21: 6.498109074 | BX21: N/A | BY21: N/A | CB21: 16800 | CC21: 1 | CD21: 0 | CE21: 4.548038658 | CF21: 4.289866186 | CG21: 4.093917596 | CH21: 3.927647152 | CI21: 3.79771581 | CJ21: 3.711579916 | CK21: 3.673150352 | CL21: N/A | CM21: N/A | CN21: N/A | CQ21: 16800 | CR21: 1 | CS21: 0 | CT21: 7.653762901 | CU21: 7.280587429 | CV21: 6.97156135 | CW21: 6.698341021 | CX21: 6.465920384 | CY21: 6.280264516 | CZ21: 6.144458157 | DA21: 6.066211997 | DB21: N/A | DC21: N/A | DJ21: Voir l''évolution en cumul avec plusieurs villes (voir quel niveau de production en sortie)
C22: Perf. | D22: 1 | E22: 2 | F22: 3 | G22: 4 | H22: 5 | I22: 6 | J22: 7 | K22: 8 | L22: 9 | M22: 10 | O22: 15% et niv. 9 | U22: 2 | V22: 0.05 | X22: 19.18281715 | Y22: 13.13989387 | Z22: 10.2434157 | AA22: 8.63861411 | AB22: 7.715565168 | AC22: 7.225514148 | AD22: 7.057207034 | AE22: N/A | AF22: N/A | AJ22: 2 | AK22: 0.05 | AM22: 19.15142826 | AN22: 13.09804202 | AO22: 10.19038329 | AP22: 8.571303925 | AQ22: 7.629690168 | AR22: 7.116107402 | AS22: 6.918876676 | AT22: N/A | AU22: N/A | AY22: 2 | AZ22: 0.05 | BB22: 17.61007797 | BC22: 12.07043122 | BD22: 9.417727624 | BE22: 7.951327085 | BF22: 7.112157567 | BG22: 6.672284416 | BH22: 6.529815159 | BI22: N/A | BJ22: N/A | BN22: 2 | BO22: 0.05 | BQ22: 17.57671182 | BR22: 12.02594304 | BS22: 9.361354593 | BT22: 7.879776888 | BU22: 7.020873118 | BV22: 6.555985906 | BW22: 6.382771079 | BX22: N/A | BY22: N/A | CC22: 2 | CD22: 0.05 | CF22: 4.270216263 | CG22: 4.078113498 | CH22: 3.916432848 | CI22: 3.785898645 | CJ22: 3.70223206 | CK22: 3.665802024 | CL22: N/A | CM22: N/A | CN22: N/A | CR22: 2 | CS22: 0.05 | CU22: 7.249136159 | CV22: 6.937772753 | CW22: 6.66388872 | CX22: 6.427165519 | CY22: 6.240597282 | CZ22: 6.104103367 | DA22: 6.026023796 | DB22: N/A | DC22: N/A | DJ22: Voir l'influence d'un héros qui augmente la tune
B23: 1 | C23: 0 | D23: =AK178 -> 77.66990291 | E23: =AK180 -> 38.90694432 | F23: =AK182 -> 26.0423182 | G23: =AK184 -> 19.73438186 | H23: =AK186 -> 16.08142965 | I23: =AK188 -> 13.79118482 | J23: =AK190 -> 12.32261451 | K23: =AK192 -> 11.41853711 | L23: =AK194 -> 10.9542697 | M23: =AK196 -> 10.87886492 | O23: 5% et niv. 8 | U23: 3 | V23: 0.1 | Y23: 12.94336131 | Z23: 10.30229439 | AA23: 8.846410554 | AB23: 8.018022507 | AC23: 7.590226692 | AD23: 7.462117475 | AE23: N/A | AF23: N/A | AJ23: 3 | AK23: 0.1 | AN23: 12.88058353 | AO23: 10.22833606 | AP23: 8.758174443 | AQ23: 7.911221581 | AR23: 7.45989402 | AS23: 7.302861191 | AT23: N/A | AU23: N/A | AY23: 3 | AZ23: 0.1 | BC23: 11.89677487 | BD23: 9.478393523 | BE23: 8.148614772 | BF23: 7.396290111 | BG23: 7.013531827 | BH23: 6.907941375 | BI23: N/A | BJ23: N/A | BN23: 3 | BO23: 0.1 | BR23: 11.83004259 | BS23: 9.399776397 | BT23: 8.054820481 | BU23: 7.282761568 | BV23: 6.874989223 | BW23: 6.7386532 | BX23: N/A | BY23: N/A | CC23: 3 | CD23: 0.1 | CG23: 4.107710762 | CH23: 3.977753127 | CI23: 3.876629797 | CJ23: 3.807932478 | CK23: 3.788482289 | CL23: N/A | CM23: N/A | CN23: N/A | CR23: 3 | CS23: 0.1 | CV23: 6.943208568 | CW23: 6.692613211 | CX23: 6.478357492 | CY23: 6.302592757 | CZ23: 6.179390048 | DA23: 6.113321202 | DB23: N/A | DC23: N/A | DJ23: Voir l'influence d'un héros qui augmente la vitesse de minage
B24: 2 | C24: 0.05 | E24: =AK207 -> 37.10790744 | F24: =AK209 -> 24.91981084 | G24: =AK211 -> 18.94551604 | H24: =AK213 -> 15.48812555 | I24: =AK215 -> 13.32332378 | J24: =AK217 -> 11.93863168 | K24: =AK219 -> 11.09052813 | L24: =AK221 -> 10.6610632 | M24: =AK223 -> 10.60219924 | U24: 4 | V24: 0.15 | Z24: 10.4012249 | AA24: 9.168265965 | AB24: 8.484278444 | AC24: 8.154732206 | AD24: N/A | AE24: N/A | AF24: N/A | AJ24: 4 | AK24: 0.15 | AO24: 10.2937249 | AP24: 9.046488187 | AQ24: 8.343935852 | AR24: 7.990857867 | AS24: N/A | AT24: N/A | AU24: N/A | AY24: 4 | AZ24: 0.15 | BD24: 9.581493196 | BE24: 8.456232703 | BF24: 7.83638559 | BG24: 7.543764532 | BH24: N/A | BI24: N/A | BJ24: N/A | BN24: 4 | BO24: 0.15 | BS24: 9.467221542 | BT24: 8.326783884 | BU24: 7.687202519 | BV24: 7.3695674 | BW24: N/A | BX24: N/A | BY24: N/A | CC24: 4 | CD24: 0.15 | CH24: 3.99697781 | CI24: 3.916057637 | CJ24: 3.873995337 | CK24: N/A | CL24: N/A | CM24: N/A | CN24: N/A | CR24: 4 | CS24: 0.15 | CW24: 6.68543445 | CX24: 6.485592395 | CY24: 6.330802776 | CZ24: 6.226113404 | DA24: 6.177888317 | DB24: N/A | DC24: N/A | DF24: Crédit initial par mine | DJ24: Et avec 1,2 ou 3 héros seulement ?
B25: 3 | C25: 0.1 | F25: =AK236 -> 24.1483101 | G25: =AK238 -> 18.56558705 | H25: =AK240 -> 15.3389367 | I25: =AK242 -> 13.32347857 | J25: =AK244 -> 12.04025689 | K25: =AK246 -> 11.26195178 | L25: =AK248 -> 10.87883569 | M25: =AK250 -> 10.84677699 | U25: 5 | V25: 0.2 | AA25: 9.514752584 | AB25: 9.02979888 | AC25: 8.837933801 | AD25: N/A | AE25: N/A | AF25: N/A | AJ25: 5 | AK25: 0.2 | AP25: 9.335863695 | AQ25: 8.832345176 | AR25: 8.616948351 | AS25: N/A | AT25: N/A | AU25: N/A | AY25: 5 | AZ25: 0.2 | BE25: 8.795539426 | BF25: 8.358292145 | BG25: 8.191984077 | BH25: N/A | BI25: N/A | BJ25: N/A | BN25: 5 | BO25: 0.2 | BT25: 8.605381946 | BU25: 8.148400412 | BV25: 7.957078284 | BW25: N/A | BX25: N/A | BY25: N/A | CC25: 5 | CD25: 0.2 | CI25: 4.032665633 | CJ25: N/A | CK25: N/A | CL25: N/A | CM25: N/A | CN25: N/A | CR25: 5 | CS25: 0.2 | CX25: 6.560965905 | CY25: 6.447552657 | CZ25: 6.378152286 | DA25: 6.363373784 | DB25: N/A | DC25: N/A
B26: 4 | C26: 0.15 | G26: =AK265 -> 18.25880256 | H26: =AK267 -> 15.32725179 | I26: =AK269 -> 13.50443344 | J26: =AK271 -> 12.35406048 | K26: =AK273 -> 11.66963575 | L26: =AK275 -> 11.35228921 | M26: =AK277 -> N/A | U26: 6 | V26: 0.25 | AB26: 9.645180524 | AC26: N/A | AD26: N/A | AE26: N/A | AF26: N/A | AJ26: 6 | AK26: 0.25 | AQ26: 9.354902746 | AR26: N/A | AS26: N/A | AT26: N/A | AU26: N/A | AY26: 6 | AZ26: 0.25 | BF26: 8.958994889 | BG26: N/A | BH26: N/A | BI26: N/A | BJ26: N/A | BN26: 6 | BO26: 0.25 | BU26: 8.650431897 | BV26: N/A | BW26: N/A | BX26: N/A | BY26: N/A | CC26: 6 | CD26: 0.25 | CJ26: N/A | CK26: N/A | CL26: N/A | CM26: N/A | CN26: N/A | CR26: 6 | CS26: 0.25 | CY26: 6.586600493 | CZ26: 6.567659273 | DA26: N/A | DB26: N/A | DC26: N/A
B27: 5 | C27: 0.2 | H27: =AK294 -> 15.35917971 | I27: =AK296 -> 13.77767274 | J27: =AK298 -> 12.79530986 | K27: =AK300 -> 12.23161619 | L27: =AK302 -> 12.00152713 | M27: =AK304 -> N/A | U27: 7 | V27: 0.3 | AC27: N/A | AD27: N/A | AE27: N/A | AF27: N/A | AJ27: 7 | AK27: 0.3 | AR27: N/A | AS27: N/A | AT27: N/A | AU27: N/A | AY27: 7 | AZ27: 0.3 | BG27: N/A | BH27: N/A | BI27: N/A | BJ27: N/A | BN27: 7 | BO27: 0.3 | BV27: N/A | BW27: N/A | BX27: N/A | BY27: N/A | CC27: 7 | CD27: 0.3 | CK27: N/A | CL27: N/A | CM27: N/A | CN27: N/A | CR27: 7 | CS27: 0.3 | CZ27: N/A | DA27: N/A | DB27: N/A | DC27: N/A
B28: 6 | C28: 0.25 | I28: =AK322 -> 14.12841105 | J28: =AK324 -> 13.35239737 | K28: =AK326 -> 12.93861124 | L28: =AK328 -> 12.81900403 | M28: =AK330 -> N/A | U28: 8 | V28: 0.35 | AD28: N/A | AE28: N/A | AF28: N/A | AJ28: 8 | AK28: 0.35 | AS28: N/A | AT28: N/A | AU28: N/A | AY28: 8 | AZ28: 0.35 | BH28: N/A | BI28: N/A | BJ28: N/A | BN28: 8 | BO28: 0.35 | BW28: N/A | BX28: N/A | BY28: N/A | CC28: 8 | CD28: 0.35 | CL28: N/A | CM28: N/A | CN28: N/A | CR28: 8 | CS28: 0.35 | DA28: N/A | DB28: N/A | DC28: N/A | DG28: AMELIORATION
B29: 7 | C29: 0.3 | J29: =AK350 -> 12.88350264 | K29: =AK350 -> 12.88350264 | L29: =AK354 -> N/A | M29: =AK356 -> N/A | U29: 9 | V29: 0.4 | AE29: N/A | AF29: N/A | AJ29: 9 | AK29: 0.4 | AT29: N/A | AU29: N/A | AY29: 9 | AZ29: 0.4 | BI29: N/A | BJ29: N/A | BN29: 9 | BO29: 0.4 | BX29: N/A | BY29: N/A | CC29: 9 | CD29: 0.4 | CM29: N/A | CN29: N/A | CR29: 9 | CS29: 0.4 | DB29: N/A | DC29: N/A
B30: 8 | C30: 0.35 | K30: =AK380 -> 14.83652057 | L30: =AK382 -> N/A | M30: =AK384 -> N/A | U30: 10 | V30: 0.45 | AF30: N/A | AJ30: 10 | AK30: 0.45 | AU30: N/A | AY30: 10 | AZ30: 0.45 | BJ30: N/A | BN30: 10 | BO30: 0.45 | BY30: N/A | CC30: 10 | CD30: 0.45 | CN30: N/A | CR30: 10 | CS30: 0.45 | DC30: N/A | DI30: Cout passer au niv. | DN30: Cout1 | DO30: Revenus1 | DQ30: Revenus1
B31: 9 | C31: 0.4 | L31: =AK409 -> N/A | M31: =AK411 -> N/A | DF31: niv | DG31: Heures | DH31: T max | DI31: T med | DJ31: T min | DK31: Heures | DN31: Cumul | DO31: (ressource) | DQ31: (or)
B32: 10 | C32: 0.45 | M32: =AK170 -> N/A | DF32: 1 | DI32: 0 | DN32: 0 | DO32: 2 | DQ32: 2000
CH33: plus de capital initial = plus long ??? | DF33: 2 | DG33: =0.4*DF33^2-2*DF33+137/30 -> 2.166666667 | DH33: =7/5*DI33 -> 1400 | DI33: 1000 | DJ33: =0.8*DI33 -> 800 | DK33: =0.8*DF33^2-4*DF33+257/30 -> 3.766666667 | DN33: =DN32+DI33 -> 1000 | DO33: 4 | DQ33: 4000
T34: 10000 | W34: niv. | AI34: 10000 | AL34: niv. | AX34: 10000 | BA34: niv. | BM34: 10000 | BP34: niv. | CB34: 10000 | CE34: niv. | CQ34: 10000 | CT34: niv. | DF34: 3 | DG34: 2.166666667 | DH34: 2800 | DI34: 2000 | DJ34: =0.8*DI34 -> 1600 | DK34: =0.8*DF34^2-4*DF34+257/30 -> 3.766666667 | DN34: 3000 | DO34: 6 | DQ34: 6000
C35: Perf. \ niv. | D35: 1 | E35: 2 | F35: 3 | G35: 4 | H35: 5 | I35: 6 | J35: 7 | K35: 8 | L35: 9 | M35: 10 | T35: revenus /J | V35: Perf. | W35: 1 | X35: 2 | Y35: 3 | Z35: 4 | AA35: 5 | AB35: 6 | AC35: 7 | AD35: 8 | AE35: 9 | AF35: 10 | AI35: revenus /J | AK35: Perf. | AL35: 1 | AM35: 2 | AN35: 3 | AO35: 4 | AP35: 5 | AQ35: 6 | AR35: 7 | AS35: 8 | AT35: 9 | AU35: 10 | AX35: revenus /J | AZ35: Perf. | BA35: 1 | BB35: 2 | BC35: 3 | BD35: 4 | BE35: 5 | BF35: 6 | BG35: 7 | BH35: 8 | BI35: 9 | BJ35: 10 | BM35: revenus /J | BO35: Perf. | BP35: 1 | BQ35: 2 | BR35: 3 | BS35: 4 | BT35: 5 | BU35: 6 | BV35: 7 | BW35: 8 | BX35: 9 | BY35: 10 | CB35: revenus /J | CD35: Perf. | CE35: 1 | CF35: 2 | CG35: 3 | CH35: 4 | CI35: 5 | CJ35: 6 | CK35: 7 | CL35: 8 | CM35: 9 | CN35: 10 | CQ35: revenus /J | CS35: Perf. | CT35: 1 | CU35: 2 | CV35: 3 | CW35: 4 | CX35: 5 | CY35: 6 | CZ35: 7 | DA35: 8 | DB35: 9 | DC35: 10 | DF35: 4 | DG35: 2.966666667 | DH35: 4200 | DI35: 3000 | DJ35: 2400 | DK35: 5.366666667 | DN35: 6000 | DO35: 8 | DQ35: 8000
C36: 0 | D36: =2000*D$35*(1+$C36) -> 2000 | E36: 4000 | F36: 6000 | G36: 8000 | H36: 10000 | I36: 12000 | J36: 14000 | K36: 16000 | L36: 18000 | M36: 20000 | T36: 17600 | U36: 1 | V36: 0 | W36: 40 | X36: 20.07847222 | Y36: 13.49027778 | Z36: 10.25208333 | AA36: 8.380555556 | AB36: 7.226712963 | AC36: 6.577705026 | AD36: 6.297323082 | AE36: N/A | AF36: N/A | AI36: 17600 | AJ36: 1 | AK36: 0 | AL36: 40 | AM36: 20.06277778 | AN36: 13.45888889 | AO36: 10.20166667 | AP36: 8.304444444 | AQ36: 7.132037037 | AR36: 6.459497354 | AS36: 6.150191799 | AT36: N/A | AU36: N/A | AX36: 17600 | AY36: 1 | AZ36: 0 | BA36: 36.69724771 | BB36: 18.42709608 | BC36: 12.38936035 | BD36: 9.42639526 | BE36: 7.720005097 | BF36: 6.675235729 | BG36: 6.089530545 | BH36: 5.844240343 | BI36: N/A | BJ36: N/A | BM36: 17600 | BN36: 1 | BO36: 0 | BP36: 36.69724771 | BQ36: 18.410413 | BR36: 12.3559942 | BS36: 9.37280274 | BT36: 7.639099585 | BU36: 6.56845852 | BV36: 5.957739275 | BW36: 5.681703503 | BX36: N/A | BY36: N/A | CB36: 17600 | CC36: 1 | CD36: 0 | CE36: 4.548038658 | CF36: 4.289866186 | CG36: 4.066975268 | CH36: 3.876578137 | CI36: 3.719047505 | CJ36: 3.597168966 | CK36: 3.525569597 | CL36: N/A | CM36: N/A | CN36: N/A | CQ36: 17600 | CR36: 1 | CS36: 0 | CT36: 7.653762901 | CU36: 7.280587429 | CV36: 6.948487683 | CW36: 6.654274396 | CX36: 6.397573407 | CY36: 6.180243522 | CZ36: 6.014702061 | DA36: 5.909174347 | DB36: 5.874263276 | DC36: N/A | DF36: 5 | DG36: 4.566666667 | DH36: 7000 | DI36: 5000 | DJ36: 4000 | DK36: =0.8*DF36^2-4*DF36+257/30 -> 8.566666667 | DN36: 11000 | DO36: 10 | DQ36: 10000
C37: 0.05 | E37: =2000*E$35*(1+$C37) -> 4200 | F37: 6300 | G37: 8400 | H37: 10500 | I37: 12600 | J37: 14700 | K37: 16800 | L37: 18900 | M37: 21000 | U37: 2 | V37: 0.05 | X37: 19.18281715 | Y37: 12.8931744 | Z37: 9.804255799 | AA37: 8.022293528 | AB37: 6.940514427 | AC37: 6.337084722 | AD37: 6.083743594 | AE37: N/A | AF37: N/A | AJ37: 2 | AK37: 0.05 | AM37: 19.15142826 | AN37: 12.85132255 | AO37: 9.74599191 | AP37: 7.939904639 | AQ37: 6.839560723 | AR37: 6.212599272 | AS37: 5.930334533 | AT37: N/A | AU37: N/A | AY37: 2 | AZ37: 0.05 | BB37: 17.61007797 | BC37: 11.84468161 | BD37: 9.017886205 | BE37: 7.393197853 | BF37: 6.408404335 | BG37: 5.864514042 | BH37: 5.644031929 | BI37: N/A | BJ37: N/A | BN37: 2 | BO37: 0.05 | BQ37: 17.57671182 | BR37: 11.80019342 | BS37: 8.95595215 | BT37: 7.305619113 | BU37: 6.301091343 | BV37: 5.732186989 | BW37: 5.480959306 | BX37: N/A | BY37: N/A | CC37: 2 | CD37: 0.05 | CF37: 4.270216263 | CG37: 4.03922864 | CH37: 3.842885897 | CI37: 3.681242226 | CJ37: 3.556912296 | CK37: 3.486072568 | CL37: N/A | CM37: N/A | CN37: N/A | CR37: 2 | CS37: 0.05 | CU37: 7.249136159 | CV37: 6.904432123 | CW37: 6.600336122 | CX37: 6.336093564 | CY37: 6.113331008 | CZ37: 5.945783846 | DA37: 5.838456052 | DB37: 5.802416274 | DC37: N/A | DF37: 6 | DG37: 6.966666667 | DH37: =7/5*DI37 -> 11200 | DI37: 8000 | DJ37: 6400 | DK37: 13.36666667 | DN37: 19000 | DO37: 12 | DQ37: 12000
C38: 0.1 | F38: =2000*F$35*(1+$C38) -> 6600 | G38: 8800 | H38: 11000 | I38: 13200 | J38: 15400 | K38: 17600 | L38: 19800 | M38: 22000 | U38: 3 | V38: 0.1 | Y38: 12.39715652 | Z38: 9.432242388 | AA38: 7.749085822 | AB38: 6.769182624 | AC38: 6.2331617 | AD38: 6.023883652 | AE38: N/A | AF38: N/A | AJ38: 3 | AK38: 0.1 | AN38: 12.33437874 | AO38: 9.358284055 | AP38: 7.660849711 | AQ38: 6.662381698 | AR38: 6.102829028 | AS38: 5.864627369 | AT38: N/A | AU38: N/A | AY38: 3 | AZ38: 0.1 | BC38: 11.39632249 | BD38: 8.681616867 | BE38: 7.143331027 | BF38: 6.25200164 | BG38: 5.769954265 | BH38: 5.589896996 | BI38: N/A | BJ38: N/A | BN38: 3 | BO38: 0.1 | BR38: 11.32959021 | BS38: 8.602999741 | BT38: 7.049536735 | BU38: 6.138473096 | BV38: 5.631411661 | BW38: 5.420608821 | BX38: N/A | BY38: N/A | CC38: 3 | CD38: 0.1 | CG38: 4.018138825 | CH38: 3.815739423 | CI38: 3.650033334 | CJ38: 3.53515288 | CK38: 3.471160344 | CL38: N/A | CM38: N/A | CN38: N/A | CR38: 3 | CS38: 0.1 | CV38: 6.866318663 | CW38: 6.55242066 | CX38: 6.280862846 | CY38: 6.063291057 | CZ38: 5.899357249 | DA38: 5.796586821 | DB38: 5.764924396 | DC38: N/A | DF38: 7 | DG38: 10.16666667 | DH38: 18200 | DI38: 13000 | DJ38: 10400 | DK38: 19.76666667 | DN38: 32000 | DO38: 14 | DQ38: 14000
C39: 0.15 | G39: =2000*G$35*(1+$C39) -> 9200 | H39: 11500 | I39: 13800 | J39: 16100 | K39: 18400 | L39: 20700 | M39: 23000 | U39: 4 | V39: 0.15 | Z39: 9.426825114 | AA39: 7.976474872 | AB39: 7.147559816 | AC39: 6.714493909 | AD39: 6.576503268 | AE39: N/A | AF39: N/A | AJ39: 4 | AK39: 0.15 | AO39: 9.319325114 | AP39: 7.854697095 | AQ39: 7.007217224 | AR39: 6.55061957 | AS39: 6.383705319 | AT39: N/A | AU39: N/A | AY39: 4 | AZ39: 0.15 | BD39: 8.687990747 | BE39: 7.36328869 | BF39: 6.610480535 | BG39: 6.222887304 | BH39: 6.108231327 | BI39: N/A | BJ39: N/A | BN39: 4 | BO39: 0.15 | BS39: 8.573719093 | BT39: 7.233839872 | BU39: 6.461297464 | BV39: 6.048690172 | BW39: 5.903288624 | BX39: N/A | BY39: N/A | CC39: 4 | CD39: 0.15 | CH39: 3.851767297 | CI39: 3.717599015 | CJ39: 3.629796252 | CK39: 3.591403763 | CL39: N/A | CM39: N/A | CN39: N/A | CR39: 4 | CS39: 0.15 | CW39: 6.559610195 | CX39: 6.312355551 | CY39: 6.116215424 | CZ39: 5.973256885 | DA39: 5.890126184 | DB39: N/A | DC39: N/A | DF39: 8 | DG39: 14.16666667 | DH39: =7/5*DI39 -> 29400 | DI39: 21000 | DJ39: 16800 | DK39: 27.76666667 | DN39: 53000 | DO39: 16 | DQ39: 16000
C40: 0.2 | H40: =2000*H$35*(1+$C40) -> 12000 | I40: 14400 | J40: 16800 | K40: 19200 | L40: 21600 | M40: 24000 | U40: 5 | V40: 0.2 | AA40: 8.286729608 | AB40: 7.662887015 | AC40: 7.371815587 | AD40: N/A | AE40: N/A | AF40: N/A | AJ40: 5 | AK40: 0.2 | AP40: 8.107840719 | AQ40: 7.465433311 | AR40: 7.150830137 | AS40: N/A | AT40: N/A | AU40: N/A | AY40: 5 | AZ40: 0.2 | BE40: 7.669355153 | BF40: 7.104686872 | BG40: 6.847363805 | BH40: N/A | BI40: N/A | BJ40: N/A | BN40: 5 | BO40: 0.2 | BT40: 7.479197673 | BU40: 6.89479514 | BV40: 6.612458012 | BW40: N/A | BX40: N/A | BY40: N/A | CC40: 5 | CD40: 0.2 | CI40: 3.820594902 | CJ40: 3.776926173 | CK40: N/A | CL40: N/A | CM40: N/A | CN40: N/A | CR40: 5 | CS40: 0.2 | CX40: 6.37556822 | CY40: 6.21632334 | CZ40: 6.108406901 | DA40: 6.057610005 | DB40: N/A | DC40: N/A | DF40: 9 | DG40: 18.96666667 | DH40: 47600 | DI40: 34000 | DJ40: =0.8*DI40 -> 27200 | DK40: 37.36666667 | DN40: 87000 | DO40: 18 | DQ40: 18000
C41: 0.25 | I41: =2000*I$35*(1+$C41) -> 15000 | J41: =2000*J$35*(1+$C41) -> 17500 | K41: =2000*K$35*(1+$C41) -> 20000 | L41: =2000*L$35*(1+$C41) -> 22500 | M41: =2000*M$35*(1+$C41) -> 25000 | U41: 6 | V41: 0.25 | AB41: 8.250490881 | AC41: 8.143387707 | AD41: N/A | AE41: N/A | AF41: N/A | AJ41: 6 | AK41: 0.25 | AQ41: 7.960213103 | AR41: 7.829578183 | AS41: N/A | AT41: N/A | AU41: N/A | AY41: 6 | AZ41: 0.25 | BF41: 7.679905417 | BG41: 7.591360565 | BH41: N/A | BI41: N/A | BJ41: N/A | BN41: 6 | BO41: 0.25 | BU41: 7.371342425 | BV41: 7.257783512 | BW41: N/A | BX41: N/A | BY41: N/A | CC41: 6 | CD41: 0.25 | CJ41: N/A | CK41: N/A | CL41: N/A | CM41: N/A | CN41: N/A | CR41: 6 | CS41: 0.25 | CY41: 6.34951519 | CZ41: 6.290700954 | DA41: N/A | DB41: N/A | DC41: N/A | DF41: 10 | DG41: 24.56666667 | DH41: 77000 | DI41: 55000 | DJ41: 44000 | DK41: 48.56666667 | DN41: 142000 | DO41: 20 | DQ41: 20000
C42: 0.3 | J42: =2000*J$35*(1+$C42) -> 18200 | K42: =2000*K$35*(1+$C42) -> 20800 | L42: =2000*L$35*(1+$C42) -> 23400 | M42: =2000*M$35*(1+$C42) -> 26000 | U42: 7 | V42: 0.3 | AC42: N/A | AD42: N/A | AE42: N/A | AF42: N/A | AJ42: 7 | AK42: 0.3 | AR42: N/A | AS42: N/A | AT42: N/A | AU42: N/A | AY42: 7 | AZ42: 0.3 | BG42: N/A | BH42: N/A | BI42: N/A | BJ42: N/A | BN42: 7 | BO42: 0.3 | BV42: N/A | BW42: N/A | BX42: N/A | BY42: N/A | CC42: 7 | CD42: 0.3 | CK42: N/A | CL42: N/A | CM42: N/A | CN42: N/A | CR42: 7 | CS42: 0.3 | CZ42: N/A | DA42: N/A | DB42: N/A | DC42: N/A
C43: 0.35 | K43: =2000*K$35*(1+$C43) -> 21600 | L43: =2000*L$35*(1+$C43) -> 24300 | M43: =2000*M$35*(1+$C43) -> 27000 | U43: 8 | V43: 0.35 | AD43: N/A | AE43: N/A | AF43: N/A | AJ43: 8 | AK43: 0.35 | AS43: N/A | AT43: N/A | AU43: N/A | AY43: 8 | AZ43: 0.35 | BH43: N/A | BI43: N/A | BJ43: N/A | BN43: 8 | BO43: 0.35 | BW43: N/A | BX43: N/A | BY43: N/A | CC43: 8 | CD43: 0.35 | CL43: N/A | CM43: N/A | CN43: N/A | CR43: 8 | CS43: 0.35 | DA43: N/A | DB43: N/A | DC43: N/A | DG43: PERFECTIONNEMENT
C44: 0.4 | L44: =2000*L$35*(1+$C44) -> 25200 | M44: =2000*M$35*(1+$C44) -> 28000 | U44: 9 | V44: 0.4 | AE44: N/A | AF44: N/A | AJ44: 9 | AK44: 0.4 | AT44: N/A | AU44: N/A | AY44: 9 | AZ44: 0.4 | BI44: N/A | BJ44: N/A | BN44: 9 | BO44: 0.4 | BX44: N/A | BY44: N/A | CC44: 9 | CD44: 0.4 | CM44: N/A | CN44: N/A | CR44: 9 | CS44: 0.4 | DB44: N/A | DC44: N/A | DI44: Cout passer au niv. | DN44: Cout2 | DO44: Revenus2 | DQ44: Revenus2
C45: 0.45 | M45: =2000*M$35*(1+$C45) -> 29000 | U45: 10 | V45: 0.45 | AF45: N/A | AJ45: 10 | AK45: 0.45 | AU45: N/A | AY45: 10 | AZ45: 0.45 | BJ45: N/A | BN45: 10 | BO45: 0.45 | BY45: N/A | CC45: 10 | CD45: 0.45 | CN45: N/A | CR45: 10 | CS45: 0.45 | DC45: N/A | DG45: Heures | DH45: T max | DI45: T med | DJ45: T min | DK45: Heures | DM45: xp | DN45: Cumul | DO45: (ressource) | DQ45: (or)
DF46: 1 | DI46: =1000*DF32^2-1000*DF32 -> 0 | DM46: =80*DF46^2-80*DF46 -> 0 | DN46: 0 | DO46: 2 | DQ46: =DL46*DQ32+DQ32 -> 2000
DF47: 2 | DG47: =0.4*DF47^2-2*DF47+137/30 -> 2.166666667 | DH47: =1400*DF47^2-1400*DF47 -> 2800 | DI47: 2000 | DJ47: =800*DF47^2-800*DF47 -> 1600 | DK47: =0.8*DF47^2-4*DF47+257/30 -> 3.766666667 | DL47: 0.05 | DM47: =80*DF47^2-80*DF47 -> 160 | DN47: =DN46+DI47 -> 2000 | DO47: =DL47*DO33+DO33 -> 4.2 | DQ47: 4200
N48: PALIERS | DF48: 3 | DG48: 2.166666667 | DH48: =1400*DF48^2-1400*DF48 -> 8400 | DI48: 6000 | DJ48: 4800 | DK48: =0.8*DF48^2-4*DF48+257/30 -> 3.766666667 | DL48: 0.1 | DM48: 480 | DN48: 8000 | DO48: 6.6 | DQ48: 6600
M49: 1 | N49: 320000 | T49: 20000 | W49: niv. | AI49: 20000 | AL49: niv. | AX49: 20000 | BA49: niv. | BM49: 20000 | BP49: niv. | CB49: 20000 | CE49: niv. | CQ49: 20000 | CT49: niv. | DF49: 4 | DG49: 2.966666667 | DH49: 16800 | DI49: 12000 | DJ49: 9600 | DK49: 5.366666667 | DL49: 0.15 | DM49: 960 | DN49: 20000 | DO49: 9.2 | DQ49: 9200
M50: 2 | N50: 640000 | T50: revenus /J | V50: Perf. | W50: 1 | X50: 2 | Y50: 3 | Z50: 4 | AA50: 5 | AB50: 6 | AC50: 7 | AD50: 8 | AE50: 9 | AF50: 10 | AI50: revenus /J | AK50: Perf. | AL50: 1 | AM50: 2 | AN50: 3 | AO50: 4 | AP50: 5 | AQ50: 6 | AR50: 7 | AS50: 8 | AT50: 9 | AU50: 10 | AX50: revenus /J | AZ50: Perf. | BA50: 1 | BB50: 2 | BC50: 3 | BD50: 4 | BE50: 5 | BF50: 6 | BG50: 7 | BH50: 8 | BI50: 9 | BJ50: 10 | BM50: revenus /J | BO50: Perf. | BP50: 1 | BQ50: 2 | BR50: 3 | BS50: 4 | BT50: 5 | BU50: 6 | BV50: 7 | BW50: 8 | BX50: 9 | BY50: 10 | CB50: revenus /J | CD50: Perf. | CE50: 1 | CF50: 2 | CG50: 3 | CH50: 4 | CI50: 5 | CJ50: 6 | CK50: 7 | CL50: 8 | CM50: 9 | CN50: 10 | CQ50: revenus /J | CS50: Perf. | CT50: 1 | CU50: 2 | CV50: 3 | CW50: 4 | CX50: 5 | CY50: 6 | CZ50: 7 | DA50: 8 | DB50: 9 | DC50: 10 | DF50: 5 | DG50: 4.566666667 | DH50: 28000 | DI50: 20000 | DJ50: 16000 | DK50: 8.566666667 | DL50: 0.2 | DM50: 1600 | DN50: 40000 | DO50: 12 | DQ50: 12000
M51: 3 | N51: 1280000 | T51: 17600 | U51: 1 | V51: 0 | W51: 40 | X51: 20.07847222 | Y51: 13.49027778 | Z51: 10.25208333 | AA51: 8.380555556 | AB51: 7.225694444 | AC51: 6.518452381 | AD51: 6.148784722 | AE51: N/A | AF51: N/A | AI51: 17600 | AJ51: 1 | AK51: 0 | AL51: 40 | AM51: 20.06277778 | AN51: 13.45888889 | AO51: 10.20166667 | AP51: 8.304444444 | AQ51: 7.113888889 | AR51: 6.357619048 | AS51: 5.959027778 | AT51: N/A | AU51: N/A | AX51: 17600 | AY51: 1 | AZ51: 0 | BA51: 36.69724771 | BB51: 18.42709608 | BC51: 12.38936035 | BD51: 9.42639526 | BE51: 7.720005097 | BF51: 6.675235729 | BG51: 6.046630625 | BH51: 5.719794852 | BI51: N/A | BJ51: N/A | BM51: 17600 | BN51: 1 | BO51: 0 | BP51: 36.69724771 | BQ51: 18.410413 | BR51: 12.3559942 | BS51: 9.37280274 | BT51: 7.639099585 | BU51: 6.556387304 | BV51: 5.875666058 | BW51: 5.517716786 | BX51: N/A | BY51: N/A | CB51: 17600 | CC51: 1 | CD51: 0 | CE51: 4.548038658 | CF51: 4.289866186 | CG51: 4.066975268 | CH51: 3.876578137 | CI51: 3.719047505 | CJ51: 3.597168966 | CK51: 3.515596022 | CL51: 3.480446437 | CM51: N/A | CN51: N/A | CQ51: 17600 | CR51: 1 | CS51: 0 | CT51: 7.653762901 | CU51: 7.280587429 | CV51: 6.948487683 | CW51: 6.654274396 | CX51: 6.397573407 | CY51: 6.180243522 | CZ51: 6.005933085 | DA51: 5.879738184 | DB51: 5.827068528 | DC51: N/A | DF51: 6 | DG51: 6.966666667 | DH51: 42000 | DI51: 30000 | DJ51: 24000 | DK51: 13.36666667 | DL51: 0.25 | DM51: 2400 | DN51: 70000 | DO51: 15 | DQ51: 15000
M52: 4 | N52: 2560000 | U52: 2 | V52: 0.05 | X52: 19.18281715 | Y52: 12.8931744 | Z52: 9.804255799 | AA52: 8.022293528 | AB52: 6.927142755 | AC52: 6.262550932 | AD52: 5.924175791 | AE52: N/A | AF52: N/A | AJ52: 2 | AK52: 0.05 | AM52: 19.15142826 | AN52: 12.85132255 | AO52: 9.74599191 | AP52: 7.939904639 | AQ52: 6.810105718 | AR52: 6.097233472 | AS52: 5.729934719 | AT52: N/A | AU52: N/A | AY52: 2 | AZ52: 0.05 | BB52: 17.61007797 | BC52: 11.84468161 | BD52: 9.017886205 | BE52: 7.393197853 | BF52: 6.402896359 | BG52: 5.813196879 | BH52: 5.515540325 | BI52: N/A | BJ52: N/A | BN52: 2 | BO52: 0.05 | BQ52: 17.57671182 | BR52: 11.80019342 | BS52: 8.95595215 | BT52: 7.305619113 | BU52: 6.27848691 | BV52: 5.63746572 | BW52: 5.30822518 | BX52: N/A | BY52: N/A | CC52: 2 | CD52: 0.05 | CF52: 4.270216263 | CG52: 4.03922864 | CH52: 3.842885897 | CI52: 3.681242226 | CJ52: 3.556912296 | CK52: 3.474473476 | CL52: 3.440028067 | CM52: N/A | CN52: N/A | CR52: 2 | CS52: 0.05 | CU52: 7.249136159 | CV52: 6.904432123 | CW52: 6.600336122 | CX52: 6.336093564 | CY52: 6.113331008 | CZ52: 5.935566475 | DA52: 5.807835838 | DB52: 5.753989282 | DC52: N/A | DF52: 7 | DG52: 10.16666667 | DH52: 58800 | DI52: 42000 | DJ52: 33600 | DK52: 19.76666667 | DL52: 0.3 | DM52: 3360 | DN52: 112000 | DO52: 18.2 | DQ52: 18200
M53: 5 | N53: 5120000 | U53: 3 | V53: 0.1 | Y53: 12.39715652 | Z53: 9.432242388 | AA53: 7.724682799 | AB53: 6.679133814 | AC53: 6.049971841 | AD53: 5.759524961 | AE53: N/A | AF53: N/A | AJ53: 3 | AK53: 0.1 | AN53: 12.33437874 | AO53: 9.358284055 | AP53: 7.629738355 | AQ53: 6.551633814 | AR53: 5.883856036 | AS53: 5.564485546 | AT53: N/A | AU53: N/A | AY53: 3 | AZ53: 0.1 | BC53: 11.39632249 | BD53: 8.681616867 | BE53: 7.124182382 | BF53: 6.1787168 | BG53: 5.621042972 | BH53: 5.366518885 | BI53: N/A | BJ53: N/A | BN53: 3 | BO53: 0.1 | BR53: 11.32959021 | BS53: 8.602999741 | BT53: 7.023257185 | BU53: 6.043185304 | BV53: 5.436834779 | BW53: 5.151565121 | BX53: N/A | BY53: N/A | CC53: 3 | CD53: 0.1 | CG53: 4.018138825 | CH53: 3.815739423 | CI53: 3.649896725 | CJ53: 3.523030095 | CK53: 3.43962118 | CL53: 3.410835887 | CM53: N/A | CN53: N/A | CR53: 3 | CS53: 0.1 | CV53: 6.866318663 | CW53: 6.55242066 | CX53: 6.280743782 | CY53: 6.052656087 | CZ53: 5.871524316 | DA53: 5.746827853 | DB53: 5.696492543 | DC53: N/A | DF53: 8 | DG53: 14.16666667 | DH53: 78400 | DI53: 56000 | DJ53: 44800 | DK53: =0.8*DF53^2-4*DF53+257/30 -> 27.76666667 | DL53: 0.35 | DM53: 4480 | DN53: 168000 | DO53: 21.6 | DQ53: 21600
M54: 6 | N54: 10240000 | U54: 4 | V54: 0.15 | Z54: 9.180631562 | AA54: 7.523394138 | AB54: 6.549551546 | AC54: 6.012965969 | AD54: 5.797335578 | AE54: N/A | AF54: N/A | AJ54: 4 | AK54: 0.15 | AO54: 9.073131562 | AP54: 7.40161636 | AQ54: 6.409208953 | AR54: 5.849091631 | AS54: 5.604537628 | AT54: N/A | AU54: N/A | AY54: 4 | AZ54: 0.15 | BD54: 8.462906357 | BE54: 6.949213975 | BF54: 6.063444777 | BG54: 5.580879372 | BH54: 5.394994265 | BI54: N/A | BJ54: N/A | BN54: 4 | BO54: 0.15 | BS54: 8.348634704 | BT54: 6.819765156 | BU54: 5.914261706 | BV54: 5.406682241 | BW54: 5.190051563 | BX54: N/A | BY54: N/A | CC54: 4 | CD54: 0.15 | CH54: 3.804966738 | CI54: 3.634254007 | CJ54: 3.50816153 | CK54: 3.437033595 | CL54: N/A | CM54: N/A | CN54: N/A | CR54: 4 | CS54: 0.15 | CW54: 6.519057722 | CX54: 6.239602723 | CY54: 6.009330204 | CZ54: 5.836785001 | DA54: 5.72612933 | DB54: 5.687648555 | DC54: N/A | DF54: 9 | DG54: 18.96666667 | DH54: 100800 | DI54: 72000 | DJ54: 57600 | DK54: 37.36666667 | DL54: 0.4 | DM54: 5760 | DN54: 240000 | DO54: 25.2 | DQ54: 25200
M55: 7 | N55: 20480000 | U55: 5 | V55: 0.2 | AA55: 7.786912867 | AB55: 7.024181385 | AC55: 6.633903608 | AD55: 6.522569282 | AE55: N/A | AF55: N/A | AJ55: 5 | AK55: 0.2 | AP55: 7.608023978 | AQ55: 6.826727682 | AR55: 6.412918158 | AS55: 6.272660221 | AT55: N/A | AU55: N/A | AY55: 5 | AZ55: 0.2 | BE55: 7.211588939 | BF55: 6.519499659 | BG55: 6.171161593 | BH55: 6.080960951 | BI55: N/A | BJ55: N/A | BN55: 5 | BO55: 0.2 | BT55: 7.021431459 | BU55: 6.309607927 | BV55: 5.9362558 | BW55: 5.815309587 | BX55: N/A | BY55: N/A | CC55: 5 | CD55: 0.2 | CI55: 3.721011623 | CJ55: 3.637668151 | CK55: 3.606378526 | CL55: N/A | CM55: N/A | CN55: N/A | CR55: 5 | CS55: 0.2 | CX55: 6.288509957 | CY55: 6.093752217 | CZ55: 5.955152955 | DA55: 5.87590006 | DB55: N/A | DC55: N/A | DF55: 10 | DG55: 24.56666667 | DH55: 126000 | DI55: 90000 | DJ55: 72000 | DK55: 48.56666667 | DL55: 0.45 | DM55: 7200 | DN55: 330000 | DO55: 29 | DQ55: 29000
M56: 8 | N56: 40960000 | U56: 6 | V56: 0.25 | AB56: 7.584007474 | AC56: 7.381666204 | AD56: N/A | AE56: N/A | AF56: N/A | AJ56: 6 | AK56: 0.25 | AQ56: 7.293729696 | AR56: 7.06785668 | AS56: N/A | AT56: N/A | AU56: N/A | AY56: 6 | AZ56: 0.25 | BF56: 7.069234004 | BG56: 6.893314753 | BH56: N/A | BI56: N/A | BJ56: N/A | BN56: 6 | BO56: 0.25 | BU56: 6.760671012 | BV56: 6.5597377 | BW56: N/A | BX56: N/A | BY56: N/A | CC56: 6 | CD56: 0.25 | CJ56: 3.814819673 | CK56: N/A | CL56: N/A | CM56: N/A | CN56: N/A | CR56: 6 | CS56: 0.25 | CY56: 6.221230108 | CZ56: 6.130846034 | DA56: 6.09691959 | DB56: N/A | DC56: N/A
M57: 9 | N57: 81920000 | U57: 7 | V57: 0.3 | AC57: N/A | AD57: N/A | AE57: N/A | AF57: N/A | AJ57: 7 | AK57: 0.3 | AR57: N/A | AS57: N/A | AT57: N/A | AU57: N/A | AY57: 7 | AZ57: 0.3 | BG57: N/A | BH57: N/A | BI57: N/A | BJ57: N/A | BN57: 7 | BO57: 0.3 | BV57: N/A | BW57: N/A | BX57: N/A | BY57: N/A | CC57: 7 | CD57: 0.3 | CK57: N/A | CL57: N/A | CM57: N/A | CN57: N/A | CR57: 7 | CS57: 0.3 | CZ57: N/A | DA57: N/A | DB57: N/A | DC57: N/A
M58: 10 | N58: 163840000 | U58: 8 | V58: 0.35 | AD58: N/A | AE58: N/A | AF58: N/A | AJ58: 8 | AK58: 0.35 | AS58: N/A | AT58: N/A | AU58: N/A | AY58: 8 | AZ58: 0.35 | BH58: N/A | BI58: N/A | BJ58: N/A | BN58: 8 | BO58: 0.35 | BW58: N/A | BX58: N/A | BY58: N/A | CC58: 8 | CD58: 0.35 | CL58: N/A | CM58: N/A | CN58: N/A | CR58: 8 | CS58: 0.35 | DA58: N/A | DB58: N/A | DC58: N/A
U59: 9 | V59: 0.4 | AE59: N/A | AF59: N/A | AJ59: 9 | AK59: 0.4 | AT59: N/A | AU59: N/A | AY59: 9 | AZ59: 0.4 | BI59: N/A | BJ59: N/A | BN59: 9 | BO59: 0.4 | BX59: N/A | BY59: N/A | CC59: 9 | CD59: 0.4 | CM59: N/A | CN59: N/A | CR59: 9 | CS59: 0.4 | DB59: N/A | DC59: N/A | DK59: =DK52/125% -> 15.81333333
U60: 10 | V60: 0.45 | AF60: N/A | AJ60: 10 | AK60: 0.45 | AU60: N/A | AY60: 10 | AZ60: 0.45 | BJ60: N/A | BN60: 10 | BO60: 0.45 | BY60: N/A | CC60: 10 | CD60: 0.45 | CN60: N/A | CR60: 10 | CS60: 0.45 | DC60: N/A
T63: 30000 | W63: niv. | AI63: 30000 | AL63: niv. | AX63: 30000 | BA63: niv. | BM63: 30000 | BP63: niv. | CB63: 30000 | CE63: niv. | CQ63: 30000 | CT63: niv. | DG63: 21600
T64: revenus /J | V64: Perf. | W64: 1 | X64: 2 | Y64: 3 | Z64: 4 | AA64: 5 | AB64: 6 | AC64: 7 | AD64: 8 | AE64: 9 | AF64: 10 | AI64: revenus /J | AK64: Perf. | AL64: 1 | AM64: 2 | AN64: 3 | AO64: 4 | AP64: 5 | AQ64: 6 | AR64: 7 | AS64: 8 | AT64: 9 | AU64: 10 | AX64: revenus /J | AZ64: Perf. | BA64: 1 | BB64: 2 | BC64: 3 | BD64: 4 | BE64: 5 | BF64: 6 | BG64: 7 | BH64: 8 | BI64: 9 | BJ64: 10 | BM64: revenus /J | BO64: Perf. | BP64: 1 | BQ64: 2 | BR64: 3 | BS64: 4 | BT64: 5 | BU64: 6 | BV64: 7 | BW64: 8 | BX64: 9 | BY64: 10 | CB64: revenus /J | CD64: Perf. | CE64: 1 | CF64: 2 | CG64: 3 | CH64: 4 | CI64: 5 | CJ64: 6 | CK64: 7 | CL64: 8 | CM64: 9 | CN64: 10 | CQ64: revenus /J | CS64: Perf. | CT64: 1 | CU64: 2 | CV64: 3 | CW64: 4 | CX64: 5 | CY64: 6 | CZ64: 7 | DA64: 8 | DB64: 9 | DC64: 10
T65: 17600 | U65: 1 | V65: 0 | W65: 40 | X65: 20.07847222 | Y65: 13.49027778 | Z65: 10.25208333 | AA65: 8.380555556 | AB65: 7.225694444 | AC65: 6.518452381 | AD65: 6.132638889 | AE65: N/A | AF65: N/A | AI65: 17600 | AJ65: 1 | AK65: 0 | AL65: 40 | AM65: 20.06277778 | AN65: 13.45888889 | AO65: 10.20166667 | AP65: 8.304444444 | AQ65: 7.113888889 | AR65: 6.357619048 | AS65: 5.906111111 | AT65: N/A | AU65: N/A | AX65: 17600 | AY65: 1 | AZ65: 0 | BA65: 36.69724771 | BB65: 18.42709608 | BC65: 12.38936035 | BD65: 9.42639526 | BE65: 7.720005097 | BF65: 6.675235729 | BG65: 6.046630625 | BH65: 5.719794852 | BI65: N/A | BJ65: N/A | BM65: 17600 | BN65: 1 | BO65: 0 | BP65: 36.69724771 | BQ65: 18.410413 | BR65: 12.3559942 | BS65: 9.37280274 | BT65: 7.639099585 | BU65: 6.556387304 | BV65: 5.875666058 | BW65: 5.478997608 | BX65: N/A | BY65: N/A | CB65: 17600 | CC65: 1 | CD65: 0 | CE65: 4.548038658 | CF65: 4.289866186 | CG65: 4.066975268 | CH65: 3.876578137 | CI65: 3.719047505 | CJ65: 3.597168966 | CK65: 3.515596022 | CL65: 3.480446437 | CM65: N/A | CN65: N/A | CQ65: 17600 | CR65: 1 | CS65: 0 | CT65: 7.653762901 | CU65: 7.280587429 | CV65: 6.948487683 | CW65: 6.654274396 | CX65: 6.397573407 | CY65: 6.180243522 | CZ65: 6.005933085 | DA65: 5.879738184 | DB65: 5.807936317 | DC65: N/A
U66: 2 | V66: 0.05 | X66: 19.18281715 | Y66: 12.8931744 | Z66: 9.804255799 | AA66: 8.022293528 | AB66: 6.927142755 | AC66: 6.262550932 | AD66: 5.908725121 | AE66: N/A | AF66: N/A | AJ66: 2 | AK66: 0.05 | AM66: 19.15142826 | AN66: 12.85132255 | AO66: 9.74599191 | AP66: 7.939904639 | AQ66: 6.810105718 | AR66: 6.097233472 | AS66: 5.678273733 | AT66: N/A | AU66: N/A | AY66: 2 | AZ66: 0.05 | BB66: 17.61007797 | BC66: 11.84468161 | BD66: 9.017886205 | BE66: 7.393197853 | BF66: 6.402896359 | BG66: 5.813196879 | BH66: 5.515540325 | BI66: N/A | BJ66: N/A | BN66: 2 | BO66: 0.05 | BQ66: 17.57671182 | BR66: 11.80019342 | BS66: 8.95595215 | BT66: 7.305619113 | BU66: 6.27848691 | BV66: 5.63746572 | BW66: 5.270572313 | BX66: N/A | BY66: N/A | CC66: 2 | CD66: 0.05 | CF66: 4.270216263 | CG66: 4.03922864 | CH66: 3.842885897 | CI66: 3.681242226 | CJ66: 3.556912296 | CK66: 3.474473476 | CL66: 3.440028067 | CM66: N/A | CN66: N/A | CR66: 2 | CS66: 0.05 | CU66: 7.249136159 | CV66: 6.904432123 | CW66: 6.600336122 | CX66: 6.336093564 | CY66: 6.113331008 | CZ66: 5.935566475 | DA66: 5.807835838 | DB66: 5.736404396 | DC66: N/A
U67: 3 | V67: 0.1 | Y67: 12.39715652 | Z67: 9.432242388 | AA67: 7.724682799 | AB67: 6.679133814 | AC67: 6.049971841 | AD67: 5.722718416 | AE67: N/A | AF67: N/A | AJ67: 3 | AK67: 0.1 | AN67: 12.33437874 | AO67: 9.358284055 | AP67: 7.629738355 | AQ67: 6.551633814 | AR67: 5.875686127 | AS67: 5.484419805 | AT67: N/A | AU67: N/A | AY67: 3 | AZ67: 0.1 | BC67: 11.39632249 | BD67: 8.681616867 | BE67: 7.124182382 | BF67: 6.1787168 | BG67: 5.621042972 | BH67: 5.347405656 | BI67: N/A | BJ67: N/A | BN67: 3 | BO67: 0.1 | BR67: 11.32959021 | BS67: 8.602999741 | BT67: 7.023257185 | BU67: 6.043185304 | BV67: 5.43577863 | BW67: 5.094096108 | BX67: N/A | BY67: N/A | CC67: 3 | CD67: 0.1 | CG67: 4.018138825 | CH67: 3.815739423 | CI67: 3.649896725 | CJ67: 3.523030095 | CK67: 3.43962118 | CL67: 3.405740069 | CM67: N/A | CN67: N/A | CR67: 3 | CS67: 0.1 | CV67: 6.866318663 | CW67: 6.55242066 | CX67: 6.280743782 | CY67: 6.052656087 | CZ67: 5.871524316 | DA67: 5.742306439 | DB67: 5.672316492 | DC67: N/A
U68: 4 | V68: 0.15 | Z68: 9.180631562 | AA68: 7.523394138 | AB68: 6.511393263 | AC68: 5.906194226 | AD68: 5.612924082 | AE68: N/A | AF68: N/A | AJ68: 4 | AK68: 0.15 | AO68: 9.073131562 | AP68: 7.40161636 | AQ68: 6.361532152 | AR68: 5.712741845 | AS68: 5.39054809 | AT68: N/A | AU68: N/A | AY68: 4 | AZ68: 0.15 | BD68: 8.462906357 | BE68: 6.949213975 | BF68: 6.032909794 | BG68: 5.496065537 | BH68: 5.238951301 | BI68: N/A | BJ68: N/A | BN68: 4 | BO68: 0.15 | BS68: 8.348634704 | BT68: 6.819765156 | BU68: 5.873608613 | BV68: 5.29042718 | BW68: 5.002567372 | BX68: N/A | BY68: N/A | CC68: 4 | CD68: 0.15 | CH68: 3.804966738 | CI68: 3.634254007 | CJ68: 3.504242553 | CK68: 3.419290324 | CL68: 3.385411998 | CM68: N/A | CN68: N/A | CR68: 4 | CS68: 0.15 | CW68: 6.519057722 | CX68: 6.239602723 | CY68: 6.005886444 | CZ68: 5.821098955 | DA68: 5.690099253 | DB68: 5.633674761 | DC68: N/A
U69: 5 | V69: 0.2 | AA69: 7.533289679 | AB69: 6.631669308 | AC69: 6.142185181 | AD69: 5.956446094 | AE69: N/A | AF69: N/A | AJ69: 5 | AK69: 0.2 | AP69: 7.35440079 | AQ69: 6.434215604 | AR69: 5.921199731 | AS69: 5.706537033 | AT69: N/A | AU69: N/A | AY69: 5 | AZ69: 0.2 | BE69: 6.978907115 | BF69: 6.159396836 | BG69: 5.720043771 | BH69: 5.561581879 | BI69: N/A | BJ69: N/A | BN69: 5 | BO69: 0.2 | BT69: 6.788749634 | BU69: 5.949505104 | BV69: 5.485137978 | BW69: 5.295930515 | BX69: N/A | BY69: N/A | CC69: 5 | CD69: 0.2 | CI69: 3.653377505 | CJ69: 3.51850805 | CK69: 3.430453105 | CL69: 3.403360597 | CM69: N/A | CN69: N/A | CR69: 5 | CS69: 0.2 | CX69: 6.230769355 | CY69: 6.009614413 | CZ69: 5.841519083 | DA69: 5.736750796 | DB69: 5.703656819 | DC69: N/A
U70: 6 | V70: 0.25 | AB70: 7.163717619 | AC70: 6.866138254 | AD70: N/A | AE70: N/A | AF70: N/A | AJ70: 6 | AK70: 0.25 | AQ70: 6.873439841 | AR70: 6.55232873 | AS70: N/A | AT70: N/A | AU70: N/A | AY70: 6 | AZ70: 0.25 | BF70: 6.683646981 | BG70: 6.420353331 | BH70: N/A | BI70: N/A | BJ70: N/A | BN70: 6 | BO70: 0.25 | BU70: 6.375083989 | BV70: 6.086776278 | BW70: N/A | BX70: N/A | BY70: N/A | CC70: 6 | CD70: 0.25 | CJ70: 3.660427064 | CK70: 3.626178378 | CL70: N/A | CM70: N/A | CN70: N/A | CR70: 6 | CS70: 0.25 | CY70: 6.130878496 | CZ70: 6.010968536 | DA70: 5.951185376 | DB70: N/A | DC70: N/A
U71: 7 | V71: 0.3 | AC71: N/A | AD71: N/A | AE71: N/A | AF71: N/A | AJ71: 7 | AK71: 0.3 | AR71: N/A | AS71: N/A | AT71: N/A | AU71: N/A | AY71: 7 | AZ71: 0.3 | BG71: N/A | BH71: N/A | BI71: N/A | BJ71: N/A | BN71: 7 | BO71: 0.3 | BV71: N/A | BW71: N/A | BX71: N/A | BY71: N/A | CC71: 7 | CD71: 0.3 | CK71: N/A | CL71: N/A | CM71: N/A | CN71: N/A | CR71: 7 | CS71: 0.3 | CZ71: N/A | DA71: N/A | DB71: N/A | DC71: N/A
U72: 8 | V72: 0.35 | AD72: N/A | AE72: N/A | AF72: N/A | AJ72: 8 | AK72: 0.35 | AS72: N/A | AT72: N/A | AU72: N/A | AY72: 8 | AZ72: 0.35 | BH72: N/A | BI72: N/A | BJ72: N/A | BN72: 8 | BO72: 0.35 | BW72: N/A | BX72: N/A | BY72: N/A | CC72: 8 | CD72: 0.35 | CL72: N/A | CM72: N/A | CN72: N/A | CR72: 8 | CS72: 0.35 | DA72: N/A | DB72: N/A | DC72: N/A
U73: 9 | V73: 0.4 | AE73: N/A | AF73: N/A | AJ73: 9 | AK73: 0.4 | AT73: N/A | AU73: N/A | AY73: 9 | AZ73: 0.4 | BI73: N/A | BJ73: N/A | BN73: 9 | BO73: 0.4 | BX73: N/A | BY73: N/A | CC73: 9 | CD73: 0.4 | CM73: N/A | CN73: N/A | CR73: 9 | CS73: 0.4 | DB73: N/A | DC73: N/A
U74: 10 | V74: 0.45 | AF74: N/A | AJ74: 10 | AK74: 0.45 | AU74: N/A | AY74: 10 | AZ74: 0.45 | BJ74: N/A | BN74: 10 | BO74: 0.45 | BY74: N/A | CC74: 10 | CD74: 0.45 | CN74: N/A | CR74: 10 | CS74: 0.45 | DC74: N/A
T77: 40000 | W77: niv. | AI77: 40000 | AL77: niv. | AX77: 40000 | BA77: niv. | BM77: 40000 | BP77: niv. | CB77: 40000 | CE77: niv. | CQ77: 40000 | CT77: niv.
V78: Perf. | W78: 1 | X78: 2 | Y78: 3 | Z78: 4 | AA78: 5 | AB78: 6 | AC78: 7 | AD78: 8 | AE78: 9 | AF78: 10 | AK78: Perf. | AL78: 1 | AM78: 2 | AN78: 3 | AO78: 4 | AP78: 5 | AQ78: 6 | AR78: 7 | AS78: 8 | AT78: 9 | AU78: 10 | AZ78: Perf. | BA78: 1 | BB78: 2 | BC78: 3 | BD78: 4 | BE78: 5 | BF78: 6 | BG78: 7 | BH78: 8 | BI78: 9 | BJ78: 10 | BO78: Perf. | BP78: 1 | BQ78: 2 | BR78: 3 | BS78: 4 | BT78: 5 | BU78: 6 | BV78: 7 | BW78: 8 | BX78: 9 | BY78: 10 | CD78: Perf. | CE78: 1 | CF78: 2 | CG78: 3 | CH78: 4 | CI78: 5 | CJ78: 6 | CK78: 7 | CL78: 8 | CM78: 9 | CN78: 10 | CS78: Perf. | CT78: 1 | CU78: 2 | CV78: 3 | CW78: 4 | CX78: 5 | CY78: 6 | CZ78: 7 | DA78: 8 | DB78: 9 | DC78: 10
T79: revenus /J | U79: 1 | V79: 0 | W79: 40 | X79: 20.07847222 | Y79: 13.49027778 | Z79: 10.25208333 | AA79: 8.380555556 | AB79: 7.225694444 | AC79: 6.518452381 | AD79: 6.132638889 | AE79: 6.005555556 | AF79: N/A | AI79: revenus /J | AJ79: 1 | AK79: 0 | AL79: 40 | AM79: 20.06277778 | AN79: 13.45888889 | AO79: 10.20166667 | AP79: 8.304444444 | AQ79: 7.113888889 | AR79: 6.357619048 | AS79: 5.906111111 | AT79: 5.694506173 | AU79: N/A | AX79: revenus /J | AY79: 1 | AZ79: 0 | BA79: 36.69724771 | BB79: 18.42709608 | BC79: 12.38936035 | BD79: 9.42639526 | BE79: 7.720005097 | BF79: 6.675235729 | BG79: 6.046630625 | BH79: 5.719794852 | BI79: 5.638583078 | BJ79: N/A | BM79: revenus /J | BN79: 1 | BO79: 0 | BP79: 36.69724771 | BQ79: 18.410413 | BR79: 12.3559942 | BS79: 9.37280274 | BT79: 7.639099585 | BU79: 6.556387304 | BV79: 5.875666058 | BW79: 5.478997608 | BX79: 5.306693315 | BY79: N/A | CB79: revenus /J | CC79: 1 | CD79: 0 | CE79: 4.548038658 | CF79: 4.289866186 | CG79: 4.066975268 | CH79: 3.876578137 | CI79: 3.719047505 | CJ79: 3.597168966 | CK79: 3.515596022 | CL79: 3.480446437 | CM79: N/A | CN79: N/A | CQ79: revenus /J | CR79: 1 | CS79: 0 | CT79: 7.653762901 | CU79: 7.280587429 | CV79: 6.948487683 | CW79: 6.654274396 | CX79: 6.397573407 | CY79: 6.180243522 | CZ79: 6.005933085 | DA79: 5.879738184 | DB79: 5.807936317 | DC79: N/A
T80: 20700 | U80: 2 | V80: 0.05 | X80: 19.18281715 | Y80: 12.8931744 | Z80: 9.804255799 | AA80: 8.022293528 | AB80: 6.927142755 | AC80: 6.262550932 | AD80: 5.908725121 | AE80: 5.806521096 | AF80: N/A | AI80: 20700 | AJ80: 2 | AK80: 0.05 | AM80: 19.15142826 | AN80: 12.85132255 | AO80: 9.74599191 | AP80: 7.939904639 | AQ80: 6.810105718 | AR80: 6.097233472 | AS80: 5.678273733 | AT80: 5.490811219 | AU80: N/A | AX80: 20700 | AY80: 2 | AZ80: 0.05 | BB80: 17.61007797 | BC80: 11.84468161 | BD80: 9.017886205 | BE80: 7.393197853 | BF80: 6.402896359 | BG80: 5.813196879 | BH80: 5.515540325 | BI80: 5.457023498 | BJ80: N/A | BM80: 20700 | BN80: 2 | BO80: 0.05 | BQ80: 17.57671182 | BR80: 11.80019342 | BS80: 8.95595215 | BT80: 7.305619113 | BU80: 6.27848691 | BV80: 5.63746572 | BW80: 5.270572313 | BX80: 5.121426386 | BY80: N/A | CB80: 20700 | CC80: 2 | CD80: 0.05 | CF80: 4.270216263 | CG80: 4.03922864 | CH80: 3.842885897 | CI80: 3.681242226 | CJ80: 3.556912296 | CK80: 3.474473476 | CL80: 3.440028067 | CM80: N/A | CN80: N/A | CQ80: 20700 | CR80: 2 | CS80: 0.05 | CU80: 7.249136159 | CV80: 6.904432123 | CW80: 6.600336122 | CX80: 6.336093564 | CY80: 6.113331008 | CZ80: 5.935566475 | DA80: 5.807835838 | DB80: 5.736404396 | DC80: N/A
U81: 3 | V81: 0.1 | Y81: 12.39715652 | Z81: 9.432242388 | AA81: 7.724682799 | AB81: 6.679133814 | AC81: 6.049971841 | AD81: 5.722718416 | AE81: 5.641181802 | AF81: N/A | AJ81: 3 | AK81: 0.1 | AN81: 12.33437874 | AO81: 9.358284055 | AP81: 7.629738355 | AQ81: 6.551633814 | AR81: 5.875686127 | AS81: 5.484419805 | AT81: 5.329885574 | AU81: N/A | AY81: 3 | AZ81: 0.1 | BC81: 11.39632249 | BD81: 8.681616867 | BE81: 7.124182382 | BF81: 6.1787168 | BG81: 5.621042972 | BH81: 5.347405656 | BI81: 5.307570459 | BJ81: N/A | BN81: 3 | BO81: 0.1 | BR81: 11.32959021 | BS81: 8.602999741 | BT81: 7.023257185 | BU81: 6.043185304 | BV81: 5.43577863 | BW81: 5.094096108 | BX81: 4.964558648 | BY81: N/A | CC81: 3 | CD81: 0.1 | CG81: 4.018138825 | CH81: 3.815739423 | CI81: 3.649896725 | CJ81: 3.523030095 | CK81: 3.43962118 | CL81: 3.405740069 | CM81: N/A | CN81: N/A | CR81: 3 | CS81: 0.1 | CV81: 6.866318663 | CW81: 6.55242066 | CX81: 6.280743782 | CY81: 6.052656087 | CZ81: 5.871524316 | DA81: 5.742306439 | DB81: 5.671239959 | DC81: N/A
U82: 4 | V82: 0.15 | Z82: 9.180631562 | AA82: 7.523394138 | AB82: 6.511393263 | AC82: 5.906194226 | AD82: 5.596913003 | AE82: N/A | AF82: N/A | AJ82: 4 | AK82: 0.15 | AO82: 9.073131562 | AP82: 7.40161636 | AQ82: 6.361532152 | AR82: 5.712741845 | AS82: 5.341843559 | AT82: N/A | AU82: N/A | AY82: 4 | AZ82: 0.15 | BD82: 8.462906357 | BE82: 6.949213975 | BF82: 6.032909794 | BG82: 5.496065537 | BH82: 5.238050401 | BI82: N/A | BJ82: N/A | BN82: 4 | BO82: 0.15 | BS82: 8.348634704 | BT82: 6.819765156 | BU82: 5.873608613 | BV82: 5.29042718 | BW82: 4.96691359 | BX82: N/A | BY82: N/A | CC82: 4 | CD82: 0.15 | CH82: 3.804966738 | CI82: 3.634254007 | CJ82: 3.504242553 | CK82: 3.419290324 | CL82: 3.385411998 | CM82: N/A | CN82: N/A | CR82: 4 | CS82: 0.15 | CW82: 6.519057722 | CX82: 6.239602723 | CY82: 6.005886444 | CZ82: 5.821098955 | DA82: 5.690099253 | DB82: 5.619078895 | DC82: N/A
U83: 5 | V83: 0.2 | AA83: 7.49481985 | AB83: 6.487581357 | AC83: 5.898890881 | AD83: 5.638747031 | AE83: N/A | AF83: N/A | AJ83: 5 | AK83: 0.2 | AP83: 7.315930961 | AQ83: 6.290127653 | AR83: 5.677905431 | AS83: 5.388837971 | AT83: N/A | AU83: N/A | AY83: 5 | AZ83: 0.2 | BE83: 6.94456386 | BF83: 6.029034698 | BG83: 5.498666634 | BH83: 5.271943492 | BI83: N/A | BJ83: N/A | BN83: 5 | BO83: 0.2 | BT83: 6.75440638 | BU83: 5.819142966 | BV83: 5.263760841 | BW83: 5.006292128 | BX83: N/A | BY83: N/A | CC83: 5 | CD83: 0.2 | CI83: 3.653377505 | CJ83: 3.51850805 | CK83: 3.430453105 | CL83: 3.403360597 | CM83: N/A | CN83: N/A | CR83: 5 | CS83: 0.2 | CX83: 6.229382473 | CY83: 5.988870738 | CZ83: 5.799356415 | DA83: 5.672896508 | DB83: 5.62039365 | DC83: N/A
U84: 6 | V84: 0.25 | AB84: 6.958581124 | AC84: 6.565763664 | AD84: 6.447524576 | AE84: N/A | AF84: N/A | AJ84: 6 | AK84: 0.25 | AQ84: 6.668303346 | AR84: 6.25195414 | AS84: 6.104791441 | AT84: N/A | AU84: N/A | AY84: 6 | AZ84: 0.25 | BF84: 6.496398528 | BG84: 6.145730478 | BH84: 6.049195192 | BI84: N/A | BJ84: N/A | BN84: 6 | BO84: 0.25 | BU84: 6.187835536 | BV84: 5.812153425 | BW84: 5.684872568 | BX84: N/A | BY84: N/A | CC84: 6 | CD84: 0.25 | CJ84: 3.660427064 | CK84: 3.626178378 | CL84: N/A | CM84: N/A | CN84: N/A | CR84: 6 | CS84: 0.25 | CY84: 6.085121796 | CZ84: 5.942189083 | DA84: 5.859110872 | DB84: N/A | DC84: N/A
U85: 7 | V85: 0.3 | AC85: N/A | AD85: N/A | AE85: N/A | AF85: N/A | AJ85: 7 | AK85: 0.3 | AR85: N/A | AS85: N/A | AT85: N/A | AU85: N/A | AY85: 7 | AZ85: 0.3 | BG85: N/A | BH85: N/A | BI85: N/A | BJ85: N/A | BN85: 7 | BO85: 0.3 | BV85: N/A | BW85: N/A | BX85: N/A | BY85: N/A | CC85: 7 | CD85: 0.3 | CK85: N/A | CL85: N/A | CM85: N/A | CN85: N/A | CR85: 7 | CS85: 0.3 | CZ85: N/A | DA85: N/A | DB85: N/A | DC85: N/A
U86: 8 | V86: 0.35 | AD86: N/A | AE86: N/A | AF86: N/A | AJ86: 8 | AK86: 0.35 | AS86: N/A | AT86: N/A | AU86: N/A | AY86: 8 | AZ86: 0.35 | BH86: N/A | BI86: N/A | BJ86: N/A | BN86: 8 | BO86: 0.35 | BW86: N/A | BX86: N/A | BY86: N/A | CC86: 8 | CD86: 0.35 | CL86: N/A | CM86: N/A | CN86: N/A | CR86: 8 | CS86: 0.35 | DA86: N/A | DB86: N/A | DC86: N/A
U87: 9 | V87: 0.4 | AE87: N/A | AF87: N/A | AJ87: 9 | AK87: 0.4 | AT87: N/A | AU87: N/A | AY87: 9 | AZ87: 0.4 | BI87: N/A | BJ87: N/A | BN87: 9 | BO87: 0.4 | BX87: N/A | BY87: N/A | CC87: 9 | CD87: 0.4 | CM87: N/A | CN87: N/A | CR87: 9 | CS87: 0.4 | DB87: N/A | DC87: N/A
U88: 10 | V88: 0.45 | AF88: N/A | AJ88: 10 | AK88: 0.45 | AU88: N/A | AY88: 10 | AZ88: 0.45 | BJ88: N/A | BN88: 10 | BO88: 0.45 | BY88: N/A | CC88: 10 | CD88: 0.45 | CN88: N/A | CR88: 10 | CS88: 0.45 | DC88: N/A
T91: 50000 | W91: niv. | AI91: 50000 | AL91: niv. | AX91: 50000 | BA91: niv. | BM91: 50000 | BP91: niv. | CB91: 50000 | CE91: niv. | CQ91: 50000 | CT91: niv.
V92: Perf. | W92: 1 | X92: 2 | Y92: 3 | Z92: 4 | AA92: 5 | AB92: 6 | AC92: 7 | AD92: 8 | AE92: 9 | AF92: 10 | AK92: Perf. | AL92: 1 | AM92: 2 | AN92: 3 | AO92: 4 | AP92: 5 | AQ92: 6 | AR92: 7 | AS92: 8 | AT92: 9 | AU92: 10 | AZ92: Perf. | BA92: 1 | BB92: 2 | BC92: 3 | BD92: 4 | BE92: 5 | BF92: 6 | BG92: 7 | BH92: 8 | BI92: 9 | BJ92: 10 | BO92: Perf. | BP92: 1 | BQ92: 2 | BR92: 3 | BS92: 4 | BT92: 5 | BU92: 6 | BV92: 7 | BW92: 8 | BX92: 9 | BY92: 10 | CD92: Perf. | CE92: 1 | CF92: 2 | CG92: 3 | CH92: 4 | CI92: 5 | CJ92: 6 | CK92: 7 | CL92: 8 | CM92: 9 | CN92: 10 | CS92: Perf. | CT92: 1 | CU92: 2 | CV92: 3 | CW92: 4 | CX92: 5 | CY92: 6 | CZ92: 7 | DA92: 8 | DB92: 9 | DC92: 10
T93: revenus /J | U93: 1 | V93: 0 | W93: 40 | X93: 20.07847222 | Y93: 13.49027778 | Z93: 10.25208333 | AA93: 8.380555556 | AB93: 7.225694444 | AC93: 6.518452381 | AD93: 6.132638889 | AE93: 6.005555556 | AF93: N/A | AI93: revenus /J | AJ93: 1 | AK93: 0 | AL93: 40 | AM93: 20.06277778 | AN93: 13.45888889 | AO93: 10.20166667 | AP93: 8.304444444 | AQ93: 7.113888889 | AR93: 6.357619048 | AS93: 5.906111111 | AT93: 5.693333333 | AU93: N/A | AX93: revenus /J | AY93: 1 | AZ93: 0 | BA93: 36.69724771 | BB93: 18.42709608 | BC93: 12.38936035 | BD93: 9.42639526 | BE93: 7.720005097 | BF93: 6.675235729 | BG93: 6.046630625 | BH93: 5.719794852 | BI93: 5.638583078 | BJ93: N/A | BM93: revenus /J | BN93: 1 | BO93: 0 | BP93: 36.69724771 | BQ93: 18.410413 | BR93: 12.3559942 | BS93: 9.37280274 | BT93: 7.639099585 | BU93: 6.556387304 | BV93: 5.875666058 | BW93: 5.478997608 | BX93: 5.306693315 | BY93: N/A | CB93: revenus /J | CC93: 1 | CD93: 0 | CE93: 4.548038658 | CF93: 4.289866186 | CG93: 4.066975268 | CH93: 3.876578137 | CI93: 3.719047505 | CJ93: 3.597168966 | CK93: 3.515596022 | CL93: 3.480446437 | CM93: N/A | CN93: N/A | CQ93: revenus /J | CR93: 1 | CS93: 0 | CT93: 7.653762901 | CU93: 7.280587429 | CV93: 6.948487683 | CW93: 6.654274396 | CX93: 6.397573407 | CY93: 6.180243522 | CZ93: 6.005933085 | DA93: 5.879738184 | DB93: 5.807936317 | DC93: 5.797776761
T94: 20700 | U94: 2 | V94: 0.05 | X94: 19.18281715 | Y94: 12.8931744 | Z94: 9.804255799 | AA94: 8.022293528 | AB94: 6.927142755 | AC94: 6.262550932 | AD94: 5.908725121 | AE94: 5.806521096 | AF94: N/A | AI94: 20700 | AJ94: 2 | AK94: 0.05 | AM94: 19.15142826 | AN94: 12.85132255 | AO94: 9.74599191 | AP94: 7.939904639 | AQ94: 6.810105718 | AR94: 6.097233472 | AS94: 5.678273733 | AT94: 5.490811219 | AU94: N/A | AX94: 20700 | AY94: 2 | AZ94: 0.05 | BB94: 17.61007797 | BC94: 11.84468161 | BD94: 9.017886205 | BE94: 7.393197853 | BF94: 6.402896359 | BG94: 5.813196879 | BH94: 5.515540325 | BI94: 5.457023498 | BJ94: N/A | BM94: 20700 | BN94: 2 | BO94: 0.05 | BQ94: 17.57671182 | BR94: 11.80019342 | BS94: 8.95595215 | BT94: 7.305619113 | BU94: 6.27848691 | BV94: 5.63746572 | BW94: 5.270572313 | BX94: 5.121426386 | BY94: N/A | CB94: 20700 | CC94: 2 | CD94: 0.05 | CF94: 4.270216263 | CG94: 4.03922864 | CH94: 3.842885897 | CI94: 3.681242226 | CJ94: 3.556912296 | CK94: 3.474473476 | CL94: 3.440028067 | CM94: N/A | CN94: N/A | CQ94: 20700 | CR94: 2 | CS94: 0.05 | CU94: 7.249136159 | CV94: 6.904432123 | CW94: 6.600336122 | CX94: 6.336093564 | CY94: 6.113331008 | CZ94: 5.935566475 | DA94: 5.807835838 | DB94: 5.736404396 | DC94: 5.728541814
U95: 3 | V95: 0.1 | Y95: 12.39715652 | Z95: 9.432242388 | AA95: 7.724682799 | AB95: 6.679133814 | AC95: 6.049971841 | AD95: 5.722718416 | AE95: 5.641181802 | AF95: N/A | AJ95: 3 | AK95: 0.1 | AN95: 12.33437874 | AO95: 9.358284055 | AP95: 7.629738355 | AQ95: 6.551633814 | AR95: 5.875686127 | AS95: 5.484419805 | AT95: 5.318496617 | AU95: N/A | AY95: 3 | AZ95: 0.1 | BC95: 11.39632249 | BD95: 8.681616867 | BE95: 7.124182382 | BF95: 6.1787168 | BG95: 5.621042972 | BH95: 5.347405656 | BI95: 5.307570459 | BJ95: N/A | BN95: 3 | BO95: 0.1 | BR95: 11.32959021 | BS95: 8.602999741 | BT95: 7.023257185 | BU95: 6.043185304 | BV95: 5.43577863 | BW95: 5.094096108 | BX95: 4.964558648 | BY95: N/A | CC95: 3 | CD95: 0.1 | CG95: 4.018138825 | CH95: 3.815739423 | CI95: 3.649896725 | CJ95: 3.523030095 | CK95: 3.43962118 | CL95: 3.405740069 | CM95: N/A | CN95: N/A | CR95: 3 | CS95: 0.1 | CV95: 6.866318663 | CW95: 6.55242066 | CX95: 6.280743782 | CY95: 6.052656087 | CZ95: 5.871524316 | DA95: 5.742306439 | DB95: 5.671239959 | DC95: 5.665600735
U96: 4 | V96: 0.15 | Z96: 9.180631562 | AA96: 7.523394138 | AB96: 6.511393263 | AC96: 5.906194226 | AD96: 5.596913003 | AE96: 5.529354768 | AF96: N/A | AJ96: 4 | AK96: 0.15 | AO96: 9.073131562 | AP96: 7.40161636 | AQ96: 6.361532152 | AR96: 5.712741845 | AS96: 5.341843559 | AT96: 5.191762176 | AU96: N/A | AY96: 4 | AZ96: 0.15 | BD96: 8.462906357 | BE96: 6.949213975 | BF96: 6.032909794 | BG96: 5.496065537 | BH96: 5.238050401 | BI96: 5.210365788 | BJ96: N/A | BN96: 4 | BO96: 0.15 | BS96: 8.348634704 | BT96: 6.819765156 | BU96: 5.873608613 | BV96: 5.29042718 | BW96: 4.96691359 | BX96: 4.851507521 | BY96: N/A | CC96: 4 | CD96: 0.15 | CH96: 3.804966738 | CI96: 3.634254007 | CJ96: 3.504242553 | CK96: 3.419290324 | CL96: 3.385411998 | CM96: N/A | CN96: N/A | CR96: 4 | CS96: 0.15 | CW96: 6.519057722 | CX96: 6.239602723 | CY96: 6.005886444 | CZ96: 5.821098955 | DA96: 5.690099253 | DB96: 5.619078895 | DC96: 5.618944009
U97: 5 | V97: 0.2 | AA97: 7.49481985 | AB97: 6.487581357 | AC97: 5.88578402 | AD97: 5.579054073 | AE97: N/A | AF97: N/A | AJ97: 5 | AK97: 0.2 | AP97: 7.315930961 | AQ97: 6.290127653 | AR97: 5.651537988 | AS97: 5.288290184 | AT97: N/A | AU97: N/A | AY97: 5 | AZ97: 0.2 | BE97: 6.94456386 | BF97: 6.029034698 | BG97: 5.492744027 | BH97: 5.235144079 | BI97: N/A | BJ97: N/A | BN97: 5 | BO97: 0.2 | BT97: 6.75440638 | BU97: 5.819142966 | BV97: 5.24374234 | BW97: 4.926064355 | BX97: N/A | BY97: N/A | CC97: 5 | CD97: 0.2 | CI97: 3.653377505 | CJ97: 3.51850805 | CK97: 3.430453105 | CL97: 3.395131932 | CM97: N/A | CN97: N/A | CR97: 5 | CS97: 0.2 | CX97: 6.229382473 | CY97: 5.988870738 | CZ97: 5.799356415 | DA97: 5.665568671 | DB97: 5.594382659 | DC97: N/A
U98: 6 | V98: 0.25 | AB98: 6.791914457 | AC98: 6.303858902 | AD98: 6.114191243 | AE98: N/A | AF98: N/A | AJ98: 6 | AK98: 0.25 | AQ98: 6.501636679 | AR98: 5.990049378 | AS98: 5.771458108 | AT98: N/A | AU98: N/A | AY98: 6 | AZ98: 0.25 | BF98: 6.34349333 | BG98: 5.90545088 | BH98: 5.743384794 | BI98: N/A | BJ98: N/A | BN98: 6 | BO98: 0.25 | BU98: 6.034930337 | BV98: 5.571873827 | BW98: 5.37906217 | BX98: N/A | BY98: N/A | CC98: 6 | CD98: 0.25 | CJ98: 3.609768502 | CK98: 3.550398669 | CL98: N/A | CM98: N/A | CN98: N/A | CR98: 6 | CS98: 0.25 | CY98: 6.04046259 | CZ98: 5.874967178 | DA98: 5.768609457 | DB98: 5.735292915 | DC98: N/A
U99: 7 | V99: 0.3 | AC99: N/A | AD99: N/A | AE99: N/A | AF99: N/A | AJ99: 7 | AK99: 0.3 | AR99: N/A | AS99: N/A | AT99: N/A | AU99: N/A | AY99: 7 | AZ99: 0.3 | BG99: N/A | BH99: N/A | BI99: N/A | BJ99: N/A | BN99: 7 | BO99: 0.3 | BV99: N/A | BW99: N/A | BX99: N/A | BY99: N/A | CC99: 7 | CD99: 0.3 | CK99: N/A | CL99: N/A | CM99: N/A | CN99: N/A | CR99: 7 | CS99: 0.3 | CZ99: N/A | DA99: N/A | DB99: N/A | DC99: N/A
U100: 8 | V100: 0.35 | AD100: N/A | AE100: N/A | AF100: N/A | AJ100: 8 | AK100: 0.35 | AS100: N/A | AT100: N/A | AU100: N/A | AY100: 8 | AZ100: 0.35 | BH100: N/A | BI100: N/A | BJ100: N/A | BN100: 8 | BO100: 0.35 | BW100: N/A | BX100: N/A | BY100: N/A | CC100: 8 | CD100: 0.35 | CL100: N/A | CM100: N/A | CN100: N/A | CR100: 8 | CS100: 0.35 | DA100: N/A | DB100: N/A | DC100: N/A
U101: 9 | V101: 0.4 | AE101: N/A | AF101: N/A | AJ101: 9 | AK101: 0.4 | AT101: N/A | AU101: N/A | AY101: 9 | AZ101: 0.4 | BI101: N/A | BJ101: N/A | BN101: 9 | BO101: 0.4 | BX101: N/A | BY101: N/A | CC101: 9 | CD101: 0.4 | CM101: N/A | CN101: N/A | CR101: 9 | CS101: 0.4 | DB101: N/A | DC101: N/A
U102: 10 | V102: 0.45 | AF102: N/A | AJ102: 10 | AK102: 0.45 | AU102: N/A | AY102: 10 | AZ102: 0.45 | BJ102: N/A | BN102: 10 | BO102: 0.45 | BY102: N/A | CC102: 10 | CD102: 0.45 | CN102: N/A | CR102: 10 | CS102: 0.45 | DC102: N/A
T105: 60000 | W105: niv. | AI105: 60000 | AL105: niv. | AX105: 60000 | BA105: niv. | BM105: 60000 | BP105: niv. | CB105: 60000 | CE105: niv. | CQ105: 60000 | CT105: niv.
V106: Perf. | W106: 1 | X106: 2 | Y106: 3 | Z106: 4 | AA106: 5 | AB106: 6 | AC106: 7 | AD106: 8 | AE106: 9 | AF106: 10 | AK106: Perf. | AL106: 1 | AM106: 2 | AN106: 3 | AO106: 4 | AP106: 5 | AQ106: 6 | AR106: 7 | AS106: 8 | AT106: 9 | AU106: 10 | AZ106: Perf. | BA106: 1 | BB106: 2 | BC106: 3 | BD106: 4 | BE106: 5 | BF106: 6 | BG106: 7 | BH106: 8 | BI106: 9 | BJ106: 10 | BO106: Perf. | BP106: 1 | BQ106: 2 | BR106: 3 | BS106: 4 | BT106: 5 | BU106: 6 | BV106: 7 | BW106: 8 | BX106: 9 | BY106: 10 | CD106: Perf. | CE106: 1 | CF106: 2 | CG106: 3 | CH106: 4 | CI106: 5 | CJ106: 6 | CK106: 7 | CL106: 8 | CM106: 9 | CN106: 10 | CS106: Perf. | CT106: 1 | CU106: 2 | CV106: 3 | CW106: 4 | CX106: 5 | CY106: 6 | CZ106: 7 | DA106: 8 | DB106: 9 | DC106: 10
T107: revenus /J | U107: 1 | V107: 0 | W107: 40 | X107: 20.07847222 | Y107: 13.49027778 | Z107: 10.25208333 | AA107: 8.380555556 | AB107: 7.225694444 | AC107: 6.518452381 | AD107: 6.132638889 | AE107: 6.005555556 | AF107: N/A | AI107: revenus /J | AJ107: 1 | AK107: 0 | AL107: 40 | AM107: 20.06277778 | AN107: 13.45888889 | AO107: 10.20166667 | AP107: 8.304444444 | AQ107: 7.113888889 | AR107: 6.357619048 | AS107: 5.906111111 | AT107: 5.693333333 | AU107: N/A | AX107: revenus /J | AY107: 1 | AZ107: 0 | BA107: 36.69724771 | BB107: 18.42709608 | BC107: 12.38936035 | BD107: 9.42639526 | BE107: 7.720005097 | BF107: 6.675235729 | BG107: 6.046630625 | BH107: 5.719794852 | BI107: 5.638583078 | BJ107: N/A | BM107: revenus /J | BN107: 1 | BO107: 0 | BP107: 36.69724771 | BQ107: 18.410413 | BR107: 12.3559942 | BS107: 9.37280274 | BT107: 7.639099585 | BU107: 6.556387304 | BV107: 5.875666058 | BW107: 5.478997608 | BX107: 5.306693315 | BY107: N/A | CB107: revenus /J | CC107: 1 | CD107: 0 | CE107: 4.548038658 | CF107: 4.289866186 | CG107: 4.066975268 | CH107: 3.876578137 | CI107: 3.719047505 | CJ107: 3.597168966 | CK107: 3.515596022 | CL107: 3.480446437 | CM107: N/A | CN107: N/A | CQ107: revenus /J | CR107: 1 | CS107: 0 | CT107: 7.653762901 | CU107: 7.280587429 | CV107: 6.948487683 | CW107: 6.654274396 | CX107: 6.397573407 | CY107: 6.180243522 | CZ107: 6.005933085 | DA107: 5.879738184 | DB107: 5.807936317 | DC107: 5.797776761
T108: 21600 | U108: 2 | V108: 0.05 | X108: 19.18281715 | Y108: 12.8931744 | Z108: 9.804255799 | AA108: 8.022293528 | AB108: 6.927142755 | AC108: 6.262550932 | AD108: 5.908725121 | AE108: 5.806521096 | AF108: N/A | AI108: 21600 | AJ108: 2 | AK108: 0.05 | AM108: 19.15142826 | AN108: 12.85132255 | AO108: 9.74599191 | AP108: 7.939904639 | AQ108: 6.810105718 | AR108: 6.097233472 | AS108: 5.678273733 | AT108: 5.490811219 | AU108: N/A | AX108: 21600 | AY108: 2 | AZ108: 0.05 | BB108: 17.61007797 | BC108: 11.84468161 | BD108: 9.017886205 | BE108: 7.393197853 | BF108: 6.402896359 | BG108: 5.813196879 | BH108: 5.515540325 | BI108: 5.457023498 | BJ108: N/A | BM108: 21600 | BN108: 2 | BO108: 0.05 | BQ108: 17.57671182 | BR108: 11.80019342 | BS108: 8.95595215 | BT108: 7.305619113 | BU108: 6.27848691 | BV108: 5.63746572 | BW108: 5.270572313 | BX108: 5.121426386 | BY108: N/A | CB108: 21600 | CC108: 2 | CD108: 0.05 | CF108: 4.270216263 | CG108: 4.03922864 | CH108: 3.842885897 | CI108: 3.681242226 | CJ108: 3.556912296 | CK108: 3.474473476 | CL108: 3.440028067 | CM108: N/A | CN108: N/A | CQ108: 21600 | CR108: 2 | CS108: 0.05 | CU108: 7.249136159 | CV108: 6.904432123 | CW108: 6.600336122 | CX108: 6.336093564 | CY108: 6.113331008 | CZ108: 5.935566475 | DA108: 5.807835838 | DB108: 5.736404396 | DC108: 5.728541814
U109: 3 | V109: 0.1 | Y109: 12.39715652 | Z109: 9.432242388 | AA109: 7.724682799 | AB109: 6.679133814 | AC109: 6.049971841 | AD109: 5.722718416 | AE109: 5.641181802 | AF109: N/A | AJ109: 3 | AK109: 0.1 | AN109: 12.33437874 | AO109: 9.358284055 | AP109: 7.629738355 | AQ109: 6.551633814 | AR109: 5.875686127 | AS109: 5.484419805 | AT109: 5.318496617 | AU109: N/A | AY109: 3 | AZ109: 0.1 | BC109: 11.39632249 | BD109: 8.681616867 | BE109: 7.124182382 | BF109: 6.1787168 | BG109: 5.621042972 | BH109: 5.347405656 | BI109: 5.307570459 | BJ109: N/A | BN109: 3 | BO109: 0.1 | BR109: 11.32959021 | BS109: 8.602999741 | BT109: 7.023257185 | BU109: 6.043185304 | BV109: 5.43577863 | BW109: 5.094096108 | BX109: 4.964558648 | BY109: N/A | CC109: 3 | CD109: 0.1 | CG109: 4.018138825 | CH109: 3.815739423 | CI109: 3.649896725 | CJ109: 3.523030095 | CK109: 3.43962118 | CL109: 3.405740069 | CM109: N/A | CN109: N/A | CR109: 3 | CS109: 0.1 | CV109: 6.866318663 | CW109: 6.55242066 | CX109: 6.280743782 | CY109: 6.052656087 | CZ109: 5.871524316 | DA109: 5.742306439 | DB109: 5.671239959 | DC109: 5.665600735
U110: 4 | V110: 0.15 | Z110: 9.180631562 | AA110: 7.523394138 | AB110: 6.511393263 | AC110: 5.906194226 | AD110: 5.596913003 | AE110: 5.529354768 | AF110: N/A | AJ110: 4 | AK110: 0.15 | AO110: 9.073131562 | AP110: 7.40161636 | AQ110: 6.361532152 | AR110: 5.712741845 | AS110: 5.341843559 | AT110: 5.191762176 | AU110: N/A | AY110: 4 | AZ110: 0.15 | BD110: 8.462906357 | BE110: 6.949213975 | BF110: 6.032909794 | BG110: 5.496065537 | BH110: 5.238050401 | BI110: 5.210365788 | BJ110: N/A | BN110: 4 | BO110: 0.15 | BS110: 8.348634704 | BT110: 6.819765156 | BU110: 5.873608613 | BV110: 5.29042718 | BW110: 4.96691359 | BX110: 4.851507521 | BY110: N/A | CC110: 4 | CD110: 0.15 | CH110: 3.804966738 | CI110: 3.634254007 | CJ110: 3.504242553 | CK110: 3.419290324 | CL110: 3.385411998 | CM110: N/A | CN110: N/A | CR110: 4 | CS110: 0.15 | CW110: 6.519057722 | CX110: 6.239602723 | CY110: 6.005886444 | CZ110: 5.821098955 | DA110: 5.690099253 | DB110: 5.619078895 | DC110: 5.615303822
U111: 5 | V111: 0.2 | AA111: 7.49481985 | AB111: 6.487581357 | AC111: 5.88578402 | AD111: 5.579054073 | AE111: 5.513480164 | AF111: N/A | AJ111: 5 | AK111: 0.2 | AP111: 7.315930961 | AQ111: 6.290127653 | AR111: 5.651537988 | AS111: 5.288290184 | AT111: 5.153537098 | AU111: N/A | AY111: 5 | AZ111: 0.2 | BE111: 6.94456386 | BF111: 6.029034698 | BG111: 5.492744027 | BH111: 5.235144079 | BI111: 5.207782392 | BJ111: N/A | BN111: 5 | BO111: 0.2 | BT111: 6.75440638 | BU111: 5.819142966 | BV111: 5.24374234 | BW111: 4.926064355 | BX111: 4.81519709 | BY111: N/A | CC111: 5 | CD111: 0.2 | CI111: 3.653377505 | CJ111: 3.51850805 | CK111: 3.430453105 | CL111: 3.395131932 | CM111: N/A | CN111: N/A | CR111: 5 | CS111: 0.2 | CX111: 6.229382473 | CY111: 5.988870738 | CZ111: 5.799356415 | DA111: 5.665568671 | DB111: 5.593627079 | DC111: N/A
U112: 6 | V112: 0.25 | AB112: 6.705172709 | AC112: 6.121879059 | AD112: 5.860782828 | AE112: N/A | AF112: N/A | AJ112: 6 | AK112: 0.25 | AQ112: 6.414894932 | AR112: 5.808069535 | AS112: 5.518049693 | AT112: N/A | AU112: N/A | AY112: 6 | AZ112: 0.25 | BF112: 6.264967917 | BG112: 5.739551069 | BH112: 5.511954183 | BI112: N/A | BJ112: N/A | BN112: 6 | BO112: 0.25 | BU112: 5.956404925 | BV112: 5.405974016 | BW112: 5.147631559 | BX112: N/A | BY112: N/A | CC112: 6 | CD112: 0.25 | CJ112: 3.594472554 | CK112: 3.50517616 | CL112: 3.479238377 | CM112: N/A | CN112: N/A | CR112: 6 | CS112: 0.25 | CY112: 6.0269781 | CZ112: 5.834851648 | DA112: 5.708369156 | DB112: 5.655727473 | DC112: N/A
U113: 7 | V113: 0.3 | AC113: 11.78979345 | AD113: 11.78979345 | AE113: N/A | AF113: N/A | AJ113: 7 | AK113: 0.3 | AR113: 11.78979345 | AS113: 11.78979345 | AT113: N/A | AU113: N/A | AY113: 7 | AZ113: 0.3 | BG113: 11.56336021 | BH113: 11.56336021 | BI113: N/A | BJ113: N/A | BN113: 7 | BO113: 0.3 | BV113: 11.56336021 | BW113: 11.56336021 | BX113: N/A | BY113: N/A | CC113: 7 | CD113: 0.3 | CK113: N/A | CL113: N/A | CM113: N/A | CN113: N/A | CR113: 7 | CS113: 0.3 | CZ113: 11.77798166 | DA113: 11.77798166 | DB113: N/A | DC113: N/A
U114: 8 | V114: 0.35 | AD114: N/A | AE114: N/A | AF114: N/A | AJ114: 8 | AK114: 0.35 | AS114: N/A | AT114: N/A | AU114: N/A | AY114: 8 | AZ114: 0.35 | BH114: N/A | BI114: N/A | BJ114: N/A | BN114: 8 | BO114: 0.35 | BW114: N/A | BX114: N/A | BY114: N/A | CC114: 8 | CD114: 0.35 | CL114: N/A | CM114: N/A | CN114: N/A | CR114: 8 | CS114: 0.35 | DA114: N/A | DB114: N/A | DC114: N/A
U115: 9 | V115: 0.4 | AE115: N/A | AF115: N/A | AJ115: 9 | AK115: 0.4 | AT115: N/A | AU115: N/A | AY115: 9 | AZ115: 0.4 | BI115: N/A | BJ115: N/A | BN115: 9 | BO115: 0.4 | BX115: N/A | BY115: N/A | CC115: 9 | CD115: 0.4 | CM115: N/A | CN115: N/A | CR115: 9 | CS115: 0.4 | DB115: N/A | DC115: N/A
U116: 10 | V116: 0.45 | AF116: N/A | AJ116: 10 | AK116: 0.45 | AU116: N/A | AY116: 10 | AZ116: 0.45 | BJ116: N/A | BN116: 10 | BO116: 0.45 | BY116: N/A | CC116: 10 | CD116: 0.45 | CN116: N/A | CR116: 10 | CS116: 0.45 | DC116: N/A
AI119: 70000 | AL119: niv. | AX119: 70000 | BA119: niv. | BM119: 70000 | BP119: niv. | CB119: 70000 | CE119: niv. | CQ119: 70000 | CT119: niv.
AK120: Perf. | AL120: 1 | AM120: 2 | AN120: 3 | AO120: 4 | AP120: 5 | AQ120: 6 | AR120: 7 | AS120: 8 | AT120: 9 | AU120: 10 | AZ120: Perf. | BA120: 1 | BB120: 2 | BC120: 3 | BD120: 4 | BE120: 5 | BF120: 6 | BG120: 7 | BH120: 8 | BI120: 9 | BJ120: 10 | BO120: Perf. | BP120: 1 | BQ120: 2 | BR120: 3 | BS120: 4 | BT120: 5 | BU120: 6 | BV120: 7 | BW120: 8 | BX120: 9 | BY120: 10 | CD120: Perf. | CE120: 1 | CF120: 2 | CG120: 3 | CH120: 4 | CI120: 5 | CJ120: 6 | CK120: 7 | CL120: 8 | CM120: 9 | CN120: 10 | CS120: Perf. | CT120: 1 | CU120: 2 | CV120: 3 | CW120: 4 | CX120: 5 | CY120: 6 | CZ120: 7 | DA120: 8 | DB120: 9 | DC120: 10
AI121: revenus /J | AJ121: 1 | AK121: 0 | AL121: 40 | AM121: 20.06277778 | AN121: 13.45888889 | AO121: 10.20166667 | AP121: 8.304444444 | AQ121: 7.113888889 | AR121: 6.357619048 | AS121: 5.906111111 | AT121: 5.693333333 | AU121: 5.685 | AX121: revenus /J | AY121: 1 | AZ121: 0 | BA121: 36.69724771 | BB121: 18.42709608 | BC121: 12.38936035 | BD121: 9.42639526 | BE121: 7.720005097 | BF121: 6.675235729 | BG121: 6.046630625 | BH121: 5.719794852 | BI121: 5.638583078 | BJ121: N/A | BM121: revenus /J | BN121: 1 | BO121: 0 | BP121: 36.69724771 | BQ121: 18.410413 | BR121: 12.3559942 | BS121: 9.37280274 | BT121: 7.639099585 | BU121: 6.556387304 | BV121: 5.875666058 | BW121: 5.478997608 | BX121: 5.306693315 | BY121: N/A | CB121: revenus /J | CC121: 1 | CD121: 0 | CE121: 4.548038658 | CF121: 4.289866186 | CG121: 4.066975268 | CH121: 3.876578137 | CI121: 3.719047505 | CJ121: 3.597168966 | CK121: 3.515596022 | CL121: 3.480446437 | CM121: N/A | CN121: N/A | CQ121: revenus /J | CR121: 1 | CS121: 0 | CT121: 7.653762901 | CU121: 7.280587429 | CV121: 6.948487683 | CW121: 6.654274396 | CX121: 6.397573407 | CY121: 6.180243522 | CZ121: 6.005933085 | DA121: 5.879738184 | DB121: 5.807936317 | DC121: 5.797776761
AI122: 21600 | AJ122: 2 | AK122: 0.05 | AM122: 19.15142826 | AN122: 12.85132255 | AO122: 9.74599191 | AP122: 7.939904639 | AQ122: 6.810105718 | AR122: 6.097233472 | AS122: 5.678273733 | AT122: 5.490811219 | AU122: N/A | AX122: 21600 | AY122: 2 | AZ122: 0.05 | BB122: 17.61007797 | BC122: 11.84468161 | BD122: 9.017886205 | BE122: 7.393197853 | BF122: 6.402896359 | BG122: 5.813196879 | BH122: 5.515540325 | BI122: 5.457023498 | BJ122: N/A | BM122: 21600 | BN122: 2 | BO122: 0.05 | BQ122: 17.57671182 | BR122: 11.80019342 | BS122: 8.95595215 | BT122: 7.305619113 | BU122: 6.27848691 | BV122: 5.63746572 | BW122: 5.270572313 | BX122: 5.121426386 | BY122: N/A | CB122: 21600 | CC122: 2 | CD122: 0.05 | CF122: 4.270216263 | CG122: 4.03922864 | CH122: 3.842885897 | CI122: 3.681242226 | CJ122: 3.556912296 | CK122: 3.474473476 | CL122: 3.440028067 | CM122: N/A | CN122: N/A | CQ122: 21600 | CR122: 2 | CS122: 0.05 | CU122: 7.249136159 | CV122: 6.904432123 | CW122: 6.600336122 | CX122: 6.336093564 | CY122: 6.113331008 | CZ122: 5.935566475 | DA122: 5.807835838 | DB122: 5.736404396 | DC122: 5.728541814
AJ123: 3 | AK123: 0.1 | AN123: 12.33437874 | AO123: 9.358284055 | AP123: 7.629738355 | AQ123: 6.551633814 | AR123: 5.875686127 | AS123: 5.484419805 | AT123: 5.318496617 | AU123: N/A | AY123: 3 | AZ123: 0.1 | BC123: 11.39632249 | BD123: 8.681616867 | BE123: 7.124182382 | BF123: 6.1787168 | BG123: 5.621042972 | BH123: 5.347405656 | BI123: 5.307570459 | BJ123: N/A | BN123: 3 | BO123: 0.1 | BR123: 11.32959021 | BS123: 8.602999741 | BT123: 7.023257185 | BU123: 6.043185304 | BV123: 5.43577863 | BW123: 5.094096108 | BX123: 4.964558648 | BY123: N/A | CC123: 3 | CD123: 0.1 | CG123: 4.018138825 | CH123: 3.815739423 | CI123: 3.649896725 | CJ123: 3.523030095 | CK123: 3.43962118 | CL123: 3.405740069 | CM123: N/A | CN123: N/A | CR123: 3 | CS123: 0.1 | CV123: 6.866318663 | CW123: 6.55242066 | CX123: 6.280743782 | CY123: 6.052656087 | CZ123: 5.871524316 | DA123: 5.742306439 | DB123: 5.671239959 | DC123: 5.665600735
AJ124: 4 | AK124: 0.15 | AO124: 9.073131562 | AP124: 7.40161636 | AQ124: 6.361532152 | AR124: 5.712741845 | AS124: 5.341843559 | AT124: 5.191762176 | AU124: N/A | AY124: 4 | AZ124: 0.15 | BD124: 8.462906357 | BE124: 6.949213975 | BF124: 6.032909794 | BG124: 5.496065537 | BH124: 5.238050401 | BI124: 5.210365788 | BJ124: N/A | BN124: 4 | BO124: 0.15 | BS124: 8.348634704 | BT124: 6.819765156 | BU124: 5.873608613 | BV124: 5.29042718 | BW124: 4.96691359 | BX124: 4.851507521 | BY124: N/A | CC124: 4 | CD124: 0.15 | CH124: 3.804966738 | CI124: 3.634254007 | CJ124: 3.504242553 | CK124: 3.419290324 | CL124: 3.385411998 | CM124: N/A | CN124: N/A | CR124: 4 | CS124: 0.15 | CW124: 6.519057722 | CX124: 6.239602723 | CY124: 6.005886444 | CZ124: 5.821098955 | DA124: 5.690099253 | DB124: 5.619078895 | DC124: 5.615303822
AJ125: 5 | AK125: 0.2 | AP125: 7.315930961 | AQ125: 6.290127653 | AR125: 5.651537988 | AS125: 5.288290184 | AT125: 5.144159176 | AU125: N/A | AY125: 5 | AZ125: 0.2 | BE125: 6.94456386 | BF125: 6.029034698 | BG125: 5.492744027 | BH125: 5.235144079 | BI125: 5.207782392 | BJ125: N/A | BN125: 5 | BO125: 0.2 | BT125: 6.75440638 | BU125: 5.819142966 | BV125: 5.24374234 | BW125: 4.926064355 | BX125: 4.81519709 | BY125: N/A | CC125: 5 | CD125: 0.2 | CI125: 3.653377505 | CJ125: 3.51850805 | CK125: 3.430453105 | CL125: 3.395131932 | CM125: N/A | CN125: N/A | CR125: 5 | CS125: 0.2 | CX125: 6.229382473 | CY125: 5.988870738 | CZ125: 5.799356415 | DA125: 5.665568671 | DB125: 5.593627079 | DC125: 5.590765182
AJ126: 6 | AK126: 0.25 | AQ126: 6.414894932 | AR126: 5.75848137 | AS126: 5.397032957 | AT126: N/A | AU126: N/A | AY126: 6 | AZ126: 0.25 | BF126: 6.264967917 | BG126: 5.694972501 | BH126: 5.412093994 | BI126: N/A | BJ126: N/A | BN126: 6 | BO126: 0.25 | BU126: 5.956404925 | BV126: 5.361395448 | BW126: 5.037522192 | BX126: N/A | BY126: N/A | CC126: 6 | CD126: 0.25 | CJ126: 3.594472554 | CK126: 3.500117488 | CL126: 3.460445912 | CM126: N/A | CN126: N/A | CR126: 6 | CS126: 0.25 | CY126: 6.0269781 | CZ126: 5.830364251 | DA126: 5.691604782 | DB126: 5.620924358 | DC126: N/A
AJ127: 7 | AK127: 0.3 | AR127: 12.339244 | AS127: 12.339244 | AT127: N/A | AU127: N/A | AY127: 7 | AZ127: 0.3 | BG127: 12.06744328 | BH127: 12.06744328 | BI127: N/A | BJ127: N/A | BN127: 7 | BO127: 0.3 | BV127: 12.06744328 | BW127: 12.06744328 | BX127: N/A | BY127: N/A | CC127: 7 | CD127: 0.3 | CK127: N/A | CL127: N/A | CM127: N/A | CN127: N/A | CR127: 7 | CS127: 0.3 | CZ127: 12.35372852 | DA127: 12.35372852 | DB127: N/A | DC127: N/A
AJ128: 8 | AK128: 0.35 | AS128: N/A | AT128: N/A | AU128: N/A | AY128: 8 | AZ128: 0.35 | BH128: N/A | BI128: N/A | BJ128: N/A | BN128: 8 | BO128: 0.35 | BW128: N/A | BX128: N/A | BY128: N/A | CC128: 8 | CD128: 0.35 | CL128: N/A | CM128: N/A | CN128: N/A | CR128: 8 | CS128: 0.35 | DA128: 6.268111843 | DB128: N/A | DC128: N/A
AJ129: 9 | AK129: 0.4 | AT129: N/A | AU129: N/A | AY129: 9 | AZ129: 0.4 | BI129: N/A | BJ129: N/A | BN129: 9 | BO129: 0.4 | BX129: N/A | BY129: N/A | CC129: 9 | CD129: 0.4 | CM129: N/A | CN129: N/A | CR129: 9 | CS129: 0.4 | DB129: N/A | DC129: N/A
AJ130: 10 | AK130: 0.45 | AU130: N/A | AY130: 10 | AZ130: 0.45 | BJ130: N/A | BN130: 10 | BO130: 0.45 | BY130: N/A | CC130: 10 | CD130: 0.45 | CN130: N/A | CR130: 10 | CS130: 0.45 | DC130: N/A
V147: Diagonale | AB147: * (n'est pas comptabilisé dans la richesse)
V148: PERF.
AA149: Cumul | AB149: Cumul | AF149: Revenus | AG149: Rich. | AK149: Jours pour
V150: Cout (min) du niv | W150: Revenus (après) | Z150: Heures | AA150: Heure | AB150: Jours | AC150: Débit | AD150: Manque | AE150: Crédit | AF150: externes | AG150: externe | AH150: Capital | AI150: Richesse | AK150: rang
W151: 2000 | X151: =W151*($N$12+1) -> 2060 | AA151: 0 | AB151: =AA151/24 -> 0 | AE151: =$N$19 -> 2000 | AI151: =$N$9 -> 0
AJ152: 1 | AK152: =IF(AI152<$N$7,($N$7-AI151)/(X151+$N$15/4)+AB151,"N/A") -> 77.66990291
V153: 1600 | W153: 4200 | X153: =W153*($N$12+1) -> 4326 | Y153: P2 | Z153: =$DK$47/(1+$N$11) -> 3.455657492 | AA153: =Z153+AA152 -> 3.455657492 | AB153: =AA153/24 -> 0.1439857288 | AC153: =V153 -> 1600 | AE153: =$N$6/24*(X151+X153)/2 -> 94.07466468 | AF153: =$N$13/24*Z153 -> 0 | AG153: =$N$15/24*Z153/4 -> 0 | AH153: =AE151-AC153+AE153 -> 494.0746647 | AI153: =AI151+AE153+AG153 -> 94.07466468
Z154: =AE154/X153*24 -> 23.88862877 | AA154: =Z154+AA153 -> 27.34428626 | AB154: 1.139345261 | AD154: =IF(V155-AH153>0,V155-AH153,0) -> 4305.925335 | AE154: =AD154 -> 4305.925335 | AF154: =$N$13/24*Z154 -> 0 | AG154: =$N$15/24*Z154/4 -> 0 | AH154: =AH153-AC154+AE154+AF153 -> 4800 | AI154: =AI153+AE154+AG154 -> 4400 | AJ154: 2 | AK154: =IF(AI154<$N$7,($N$7-AI153)/(X153+$N$15/4)+AB153,"N/A") -> 37.10790744
V155: 4800 | W155: 6600 | X155: =W155*($N$12+1) -> 6798 | Y155: P3 | Z155: =$DK$48/(1+$N$11) -> 3.455657492 | AA155: 30.79994375 | AB155: 1.28333099 | AC155: =V155 -> 4800 | AE155: =$N$6/24*(X153+X155)/2 -> 163.8719965 | AF155: 0 | AG155: =$N$15/24*Z155/4 -> 0 | AH155: 163.8719965 | AI155: =AI154+AE155+AG155 -> 4563.871997
Z156: =AE156/X155*24 -> 33.31377936 | AA156: 64.11372311 | AB156: 2.67140513 | AD156: =IF(V157-AH155>0,V157-AH155,0) -> 9436.128003 | AE156: =AD156 -> 9436.128003 | AF156: 0 | AG156: 0 | AH156: 9600 | AI156: 14000 | AJ156: 3 | AK156: =IF(AI156<$N$7,($N$7-AI155)/(X155+$N$15/4)+AB155,"N/A") -> 24.1483101
V157: 9600 | W157: 9200 | X157: =W157*($N$12+1) -> 9476 | Y157: P4 | Z157: =$DK$49/(1+$N$11) -> 4.923547401 | AA157: 69.03727051 | AB157: 2.876552938 | AC157: =V157 -> 9600 | AE157: =$N$6/24*(X155+X157)/2 -> 239.7386616 | AF157: 0 | AG157: 0 | AH157: 239.7386616 | AI157: 14239.73866
Z158: =AE158/X157*24 -> 39.91623809 | AA158: 108.9535086 | AB158: 4.539729525 | AD158: =IF(V159-AH157>0,V159-AH157,0) -> 15760.26134 | AE158: =AD158 -> 15760.26134 | AF158: 0 | AG158: 0 | AH158: 16000 | AI158: 30000 | AJ158: 4 | AK158: =IF(AI158<$N$7,($N$7-AI157)/(X157+$N$15/4)+AB157,"N/A") -> 18.25859825
V159: 16000 | W159: 12000 | X159: =W159*($N$12+1) -> 12360 | Y159: P5 | Z159: =$DK$50/(1+$N$11) -> 7.859327217 | AA159: 116.8128358 | AB159: 4.867201492 | AC159: =V159 -> 16000 | AE159: =$N$6/24*(X157+X159)/2 -> 321.6746599 | AF159: 0 | AG159: 0 | AH159: 321.6746599 | AI159: 30321.67466
Z160: =AE160/X159*24 -> 45.97733076 | AA160: 162.7901666 | AB160: =AA160/24 -> 6.782923607 | AD160: =IF(V161-AH159>0,V161-AH159,0) -> 23678.32534 | AE160: =AD160 -> 23678.32534 | AF160: 0 | AG160: 0 | AH160: 24000 | AI160: 54000 | AJ160: 5 | AK160: =IF(AI160<$N$7,($N$7-AI159)/(X159+$N$15/4)+AB159,"N/A") -> 15.35897539
V161: 24000 | W161: 15000 | X161: =W161*($N$12+1) -> 15450 | Y161: P6 | Z161: =$DK$51/(1+$N$11) -> 12.26299694 | AA161: 175.0531635 | AB161: =AA161/24 -> 7.293881813 | AC161: =V161 -> 24000 | AE161: =$N$6/24*(X159+X161)/2 -> 409.6799913 | AF161: 0 | AG161: 0 | AH161: 409.6799913 | AI161: 54409.67999
Z162: =AE162/X161*24 -> 51.55777865 | AA162: 226.6109422 | AB162: 9.44212259 | AD162: =IF(V163-AH161>0,V163-AH161,0) -> 33190.32001 | AE162: =AD162 -> 33190.32001 | AF162: 0 | AG162: 0 | AH162: 33600 | AI162: 87600 | AJ162: 6 | AK162: =IF(AI162<$N$7,($N$7-AI161)/(X161+$N$15/4)+AB161,"N/A") -> 14.12820673
V163: 33600 | W163: 18200 | X163: =W163*($N$12+1) -> 18746 | Y163: P7 | Z163: =$DK$52/(1+$N$11) -> 18.13455657 | AA163: 244.7454987 | AB163: 10.19772911 | AC163: =V163 -> 33600 | AE163: =$N$6/24*(X161+X163)/2 -> 503.754656 | AF163: 0 | AG163: 0 | AH163: 503.754656 | AI163: 88103.75466
Z164: =AE164/X163*24 -> 56.71129245 | AA164: 301.4567912 | AB164: 12.56069963 | AD164: =IF(V165-AH163>0,V165-AH163,0) -> 44296.24534 | AE164: =AD164 -> 44296.24534 | AF164: 0 | AG164: 0 | AH164: 44800 | AI164: 132400 | AJ164: 7 | AK164: =IF(AI164<$N$7,($N$7-AI163)/(X163+$N$15/4)+AB163,"N/A") -> 14.03301373
V165: 44800 | W165: 21600 | X165: =W165*($N$12+1) -> 22248 | Y165: P8 | Z165: =$DK$53/(1+$N$11) -> 25.47400612 | AA165: 326.9307973 | AB165: 13.62211655 | AC165: 44800 | AE165: =$N$6/24*(X163+X165)/2 -> 603.8986539 | AF165: 0 | AG165: 0 | AH165: 603.8986539 | AI165: 133003.8987
Z166: =AE166/X165*24 -> 61.48446747 | AA166: 388.4152648 | AB166: 16.18396937 | AD166: =IF(V167-AH165>0,V167-AH165,0) -> 56996.10135 | AE166: =AD166 -> 56996.10135 | AF166: 0 | AG166: 0 | AH166: 57600 | AI166: 190000 | AJ166: 8 | AK166: =IF(AI166<$N$7,($N$7-AI165)/(X165+$N$15/4)+AB165,"N/A") -> N/A
V167: 57600 | W167: 25200 | X167: =W167*($N$12+1) -> 25956 | Y167: P9 | Z167: =$DK$54/(1+$N$11) -> 34.28134557 | AA167: 422.6966103 | AB167: 17.61235876 | AC167: 57600 | AE167: =$N$6/24*(X165+X167)/2 -> 710.111985 | AF167: 0 | AG167: 0 | AH167: 710.111985 | AI167: 190710.112
Z168: =AE168/X167*24 -> 65.91760334 | AA168: 488.6142137 | AB168: 20.35892557 | AD168: =IF(V169-AH167>0,V169-AH167,0) -> 71289.88801 | AE168: =AD168 -> 71289.88801 | AF168: 0 | AG168: 0 | AH168: 72000 | AI168: 262000 | AJ168: 9 | AK168: =IF(AI168<$N$7,($N$7-AI167)/(X167+$N$15/4)+AB167,"N/A") -> N/A
V169: 72000 | W169: 29000 | X169: =W169*($N$12+1) -> 29870 | Y169: P10 | Z169: =$DK$55/(1+$N$11) -> 44.55657492 | AA169: 533.1707886 | AB169: 22.21544953 | AC169: 72000 | AE169: =$N$6/24*(X167+X169)/2 -> 822.3946493 | AF169: 0 | AG169: 0 | AH169: 822.3946493 | AI169: 262822.3946
AI170: 262822.3946 | AJ170: 10 | AK170: =IF(AI170<$N$7,($N$7-AI169)/(X169+$N$15/4)+AB169,"N/A") -> N/A
V172: POUR UNE MINE D'OR | AJ172: min | AK172: =MIN(AK152:AK170) -> 14.03301373
V173: Ligne 1
V174: PERF 0%
AA175: Cumul | AB175: Cumul | AF175: Revenus | AG175: Rich. | AK175: Jours pour
V176: Cout (min) du niv | W176: Revenus (après) | X176: Revenus (après) | Z176: Heures | AA176: Heure | AB176: Jours | AC176: Débit | AD176: Manque | AE176: Crédit | AF176: externes | AG176: externe | AH176: Capital | AI176: Richesse | AJ176: niv | AK176: rang
W177: 2000 | X177: =W177*($N$12+1) -> 2060 | AA177: 0 | AB177: =AA177/24 -> 0 | AE177: =$N$19 -> 2000 | AI177: =$N$9 -> 0
AJ178: 1 | AK178: =IF(AI178<$N$7,($N$7-AI177)/(X177+$N$15/4)+AB177,"N/A") -> 77.66990291
V179: 800 | W179: 4000 | X179: =W179*($N$12+1) -> 4120 | Y179: A2 | Z179: =$DK$47/(1+$N$11) -> 3.455657492 | AA179: =Z179+AA178 -> 3.455657492 | AB179: =AA179/24 -> 0.1439857288 | AC179: =V179 -> 800 | AE179: =Z179/24*X177 -> 296.6106014 | AF179: =$N$13/24*Z179 -> 0 | AG179: =$N$15/24*Z179/4 -> 0 | AH179: =AE177-AC179+AE179 -> 1496.610601 | AI179: =AI177+AE179+AG179 -> 296.6106014
Z180: =AE180/X179*24 -> 0.6022683412 | AA180: =Z180+AA179 -> 4.057925834 | AB180: =AA180/24 -> 0.1690802431 | AD180: =IF(V181-AH179>0,V181-AH179,0) -> 103.3893986 | AE180: =AD180 -> 103.3893986 | AF180: 0 | AG180: =$N$15/24*Z180/4 -> 0 | AH180: =AH179-AC180+AE180+AF179 -> 1600 | AI180: =AI179+AE180+AG180 -> 400 | AJ180: 2 | AK180: =IF(AI180<$N$7,($N$7-AI179)/(X179+$N$15/4)+AB179,"N/A") -> 38.90694432
V181: 1600 | W181: 6000 | X181: =W181*($N$12+1) -> 6180 | Y181: A3 | Z181: =$DK$48/(1+$N$11) -> 3.455657492 | AA181: 7.513583326 | AB181: 0.3130659719 | AC181: =V181 -> 1600 | AE181: =Z181/24*X179 -> 593.2212029 | AF181: 0 | AG181: =$N$15/24*Z181/4 -> 0 | AH181: 593.2212029 | AI181: =AI180+AE181+AG181 -> 993.2212029
Z182: =AE182/X181*24 -> 7.016616688 | AA182: 14.53020001 | AB182: =AA182/24 -> 0.6054250006 | AD182: =IF(V183-AH181>0,V183-AH181,0) -> 1806.778797 | AE182: =AD182 -> 1806.778797 | AF182: 0 | AG182: 0 | AH182: 2400 | AI182: 2800 | AJ182: 3 | AK182: =IF(AI182<$N$7,($N$7-AI181)/(X181+$N$15/4)+AB181,"N/A") -> 26.0423182 | AM182: la richesse n'augemente car, seulement 0,25 jours écoulés
V183: 2400 | W183: 8000 | X183: =W183*($N$12+1) -> 8240 | Y183: A4 | Z183: =$DK$49/(1+$N$11) -> 4.923547401 | AA183: 19.45374741 | AB183: 0.8105728089 | AC183: =V183 -> 2400 | AE183: =Z183/24*X181 -> 1267.813456 | AF183: 0 | AG183: 0 | AH183: 1267.813456 | AI183: 4067.813456
Z184: =AE184/X183*24 -> 7.957824886 | AA184: 27.4115723 | AB184: =AA184/24 -> 1.142148846 | AD184: =IF(V185-AH183>0,V185-AH183,0) -> 2732.186544 | AE184: =AD184 -> 2732.186544 | AF184: 0 | AG184: 0 | AH184: 4000 | AI184: 6800 | AJ184: 4 | AK184: =IF(AI184<$N$7,($N$7-AI183)/(X183+$N$15/4)+AB183,"N/A") -> 19.73438186
V185: 4000 | W185: 10000 | X185: =W185*($N$12+1) -> 10300 | Y185: A5 | Z185: =$DK$50/(1+$N$11) -> 7.859327217 | AA185: 35.27089952 | AB185: 1.469620813 | AC185: =V185 -> 4000 | AE185: =Z185/24*X183 -> 2698.369011 | AF185: 0 | AG185: 0 | AH185: 2698.369011 | AI185: 9498.369011
Z186: =AE186/X185*24 -> 8.625159586 | AA186: 43.8960591 | AB186: =AA186/24 -> 1.829002463 | AD186: =IF(V187-AH185>0,V187-AH185,0) -> 3701.630989 | AE186: =AD186 -> 3701.630989 | AF186: 0 | AG186: 0 | AH186: 6400 | AI186: 13200 | AJ186: 5 | AK186: =IF(AI186<$N$7,($N$7-AI185)/(X185+$N$15/4)+AB185,"N/A") -> 16.08142965
V187: 6400 | W187: 12000 | X187: =W187*($N$12+1) -> 12360 | Y187: A6 | Z187: =$DK$51/(1+$N$11) -> 12.26299694 | AA187: 56.15905605 | AB187: 2.339960669 | AC187: =V187 -> 6400 | AE187: =Z187/24*X185 -> 5262.869521 | AF187: 0 | AG187: 0 | AH187: 5262.869521 | AI187: 18462.86952
Z188: =AE188/X187*24 -> 9.975010639 | AA188: 66.13406668 | AB188: =AA188/24 -> 2.755586112 | AD188: =IF(V189-AH187>0,V189-AH187,0) -> 5137.130479 | AE188: =AD188 -> 5137.130479 | AF188: 0 | AG188: 0 | AH188: 10400 | AI188: 23600 | AJ188: 6 | AK188: =IF(AI188<$N$7,($N$7-AI187)/(X187+$N$15/4)+AB187,"N/A") -> 13.79118482
V189: 10400 | W189: 14000 | X189: =W189*($N$12+1) -> 14420 | Y189: A7 | Z189: =$DK$52/(1+$N$11) -> 18.13455657 | AA189: 84.26862326 | AB189: 3.511192636 | AC189: =V189 -> 10400 | AE189: =Z189/24*X187 -> 9339.296636 | AF189: 0 | AG189: 0 | AH189: 9339.296636 | AI189: 32939.29664
Z190: =AE190/X189*24 -> 12.41725941 | AA190: 96.68588267 | AB190: 4.028578445 | AD190: =IF(V191-AH189>0,V191-AH189,0) -> 7460.703364 | AE190: =AD190 -> 7460.703364 | AF190: 0 | AG190: 0 | AH190: 16800 | AI190: 40400 | AJ190: 7 | AK190: =IF(AI190<$N$7,($N$7-AI189)/(X189+$N$15/4)+AB189,"N/A") -> 12.32261451
V191: 16800 | W191: 16000 | X191: =W191*($N$12+1) -> 16480 | Y191: A8 | Z191: =$DK$53/(1+$N$11) -> 25.47400612 | AA191: 122.1598888 | AB191: 5.089995366 | AC191: =V191 -> 16800 | AE191: =Z191/24*X189 -> 15305.63201 | AF191: 0 | AG191: 0 | AH191: 15305.63201 | AI191: 55705.63201
Z192: =AE192/X191*24 -> 17.32189513 | AA192: 139.4817839 | AB192: 5.811740997 | AD192: =IF(V193-AH191>0,V193-AH191,0) -> 11894.36799 | AE192: =AD192 -> 11894.36799 | AF192: 0 | AG192: 0 | AH192: 27200 | AI192: 67600 | AJ192: 8 | AK192: =IF(AI192<$N$7,($N$7-AI191)/(X191+$N$15/4)+AB191,"N/A") -> 11.41853711
V193: 27200 | W193: 18000 | X193: =W193*($N$12+1) -> 18540 | Y193: A9 | Z193: =$DK$54/(1+$N$11) -> 34.28134557 | AA193: 173.7631295 | AB193: 7.240130395 | AC193: =V193 -> 27200 | AE193: =Z193/24*X191 -> 23539.85729 | AF193: 0 | AG193: 0 | AH193: 23539.85729 | AI193: 91139.85729
Z194: =AE194/X193*24 -> 26.48562163 | AA194: 200.2487511 | AB194: 8.343697963 | AD194: =IF(V195-AH193>0,V195-AH193,0) -> 20460.14271 | AE194: =AD194 -> 20460.14271 | AF194: 0 | AG194: 0 | AH194: 44000 | AI194: 111600 | AJ194: 9 | AK194: =IF(AI194<$N$7,($N$7-AI193)/(X193+$N$15/4)+AB193,"N/A") -> 10.9542697
V195: 44000 | W195: 20000 | X195: =W195*($N$12+1) -> 20600 | Y195: A10 | Z195: =$DK$55/(1+$N$11) -> 44.55657492 | AA195: 244.805326 | AB195: 10.20022192 | AC195: =V195 -> 44000 | AE195: =Z195/24*X193 -> 34419.95413 | AF195: 0 | AG195: 0 | AH195: 34419.95413 | AI195: 146019.9541
AI196: 146019.9541 | AJ196: 10 | AK196: =IF(AI196<$N$7,($N$7-AI195)/(X195+$N$15/4)+AB195,"N/A") -> 10.87886492
AJ198: min | AK198: =MIN(AK178:AK196) -> 10.87886492
V200: Ligne 2
V201: PERF 5%
AA202: Cumul | AB202: Cumul | AF202: Revenus | AG202: Rich. | AK202: Jours pour
V203: Cout (min) du niv | W203: Revenus (après) | X203: Revenus (après) | Z203: Heures | AA203: Heure | AB203: Jours | AC203: Débit | AD203: Manque | AE203: Crédit | AF203: externes | AG203: externe | AH203: Capital | AI203: Richesse | AJ203: niv | AK203: rang
U204: 1 | W204: 2000 | X204: =W204*($N$12+1) -> 2060 | AA204: 0 | AB204: =AA204/24 -> 0 | AE204: =$N$19 -> 2000 | AI204: =$N$9 -> 0
AJ205: 1 | AK205: =IF(AI205<$N$7,($N$7-AI204)/(X204+$N$15/4)+AB204,"N/A") -> 77.66990291
U206: 2 | V206: 1600 | W206: 4200 | X206: =W206*($N$12+1) -> 4326 | Y206: P2 | Z206: =$DK$47/(1+$N$11) -> 3.455657492 | AA206: =Z206+AA205 -> 3.455657492 | AB206: =AA206/24 -> 0.1439857288 | AC206: =V206 -> 1600 | AE206: =$N$6/24*(X204+X206)/2 -> 94.07466468 | AF206: =$N$13/24*Z206 -> 0 | AG206: =$N$15/24*Z206/4 -> 0 | AH206: =AE204-AC206+AE206 -> 494.0746647 | AI206: =AI204+AE206+AG206 -> 94.07466468
Z207: =AE207/X206*24 -> 6.135508102 | AA207: =Z207+AA206 -> 9.591165594 | AB207: =AA207/24 -> 0.3996318997 | AD207: =IF(V208-AH206>0,V208-AH206,0) -> 1105.925335 | AE207: =AD207 -> 1105.925335 | AF207: 0 | AG207: =$N$15/24*Z207/4 -> 0 | AH207: =AH206-AC207+AE207+AF206 -> 1600 | AI207: =AI206+AE207+AG207 -> 1200 | AJ207: 2 | AK207: =IF(AI207<$N$7,($N$7-AI206)/(X206+$N$15/4)+AB206,"N/A") -> 37.10790744
U208: 3 | V208: 1600 | W208: 6300 | X208: =W208*($N$12+1) -> 6489 | Y208: A3 | Z208: =$DK$48/(1+$N$11) -> 3.455657492 | AA208: 13.04682309 | AB208: =AA208/24 -> 0.5436176286 | AC208: =V208 -> 1600 | AE208: =Z208/24*X206 -> 622.882263 | AF208: 0 | AG208: =$N$15/24*Z208/4 -> 0 | AH208: 622.882263 | AI208: =AI207+AE208+AG208 -> 1822.882263
Z209: =AE209/X208*24 -> 6.572788671 | AA209: 19.61961176 | AB209: 0.8174838232 | AD209: =IF(V210-AH208>0,V210-AH208,0) -> 1777.117737 | AE209: =AD209 -> 1777.117737 | AF209: 0 | AG209: 0 | AH209: 2400 | AI209: 3600 | AJ209: 3 | AK209: =IF(AI209<$N$7,($N$7-AI208)/(X208+$N$15/4)+AB208,"N/A") -> 24.91981084
U210: 4 | V210: 2400 | W210: 8400 | X210: =W210*($N$12+1) -> 8652 | Y210: A4 | Z210: =$DK$49/(1+$N$11) -> 4.923547401 | AA210: 24.54315916 | AB210: 1.022631632 | AC210: =V210 -> 2400 | AE210: =Z210/24*X208 -> 1331.204128 | AF210: 0 | AG210: 0 | AH210: 1331.204128 | AI210: 4931.204128
Z211: =AE211/X210*24 -> 7.403039866 | AA211: 31.94619902 | AB211: =AA211/24 -> 1.331091626 | AD211: =IF(V212-AH210>0,V212-AH210,0) -> 2668.795872 | AE211: =AD211 -> 2668.795872 | AF211: 0 | AG211: 0 | AH211: 4000 | AI211: 7600 | AJ211: 4 | AK211: =IF(AI211<$N$7,($N$7-AI210)/(X210+$N$15/4)+AB210,"N/A") -> 18.94551604
U212: 5 | V212: 4000 | W212: 10500 | X212: =W212*($N$12+1) -> 10815 | Y212: A5 | Z212: =$DK$50/(1+$N$11) -> 7.859327217 | AA212: 39.80552624 | AB212: =AA212/24 -> 1.658563593 | AC212: =V212 -> 4000 | AE212: =Z212/24*X210 -> 2833.287462 | AF212: 0 | AG212: 0 | AH212: 2833.287462 | AI212: 10433.28746
Z213: =AE213/X212*24 -> 7.915034759 | AA213: 47.720561 | AB213: 1.988356708 | AD213: =IF(V214-AH212>0,V214-AH212,0) -> 3566.712538 | AE213: =AD213 -> 3566.712538 | AF213: 0 | AG213: 0 | AH213: 6400 | AI213: 14000 | AJ213: 5 | AK213: =IF(AI213<$N$7,($N$7-AI212)/(X212+$N$15/4)+AB212,"N/A") -> 15.48812555
U214: 6 | V214: 6400 | W214: 12600 | X214: =W214*($N$12+1) -> 12978 | Y214: A6 | Z214: =$DK$51/(1+$N$11) -> 12.26299694 | AA214: 59.98355794 | AB214: 2.499314914 | AC214: =V214 -> 6400 | AE214: =Z214/24*X212 -> 5526.012997 | AF214: 0 | AG214: 0 | AH214: 5526.012997 | AI214: 19526.013
Z215: =AE215/X214*24 -> 9.01338327 | AA215: 68.99694121 | AB215: 2.87487255 | AD215: =IF(V216-AH214>0,V216-AH214,0) -> 4873.987003 | AE215: =AD215 -> 4873.987003 | AF215: 0 | AG215: 0 | AH215: 10400 | AI215: 24400 | AJ215: 6 | AK215: =IF(AI215<$N$7,($N$7-AI214)/(X214+$N$15/4)+AB214,"N/A") -> 13.32332378
U216: 7 | V216: 10400 | W216: 14700 | X216: =W216*($N$12+1) -> 15141 | Y216: A7 | Z216: =$DK$52/(1+$N$11) -> 18.13455657 | AA216: 87.13149779 | AB216: 3.630479074 | AC216: =V216 -> 10400 | AE216: =Z216/24*X214 -> 9806.261468 | AF216: 0 | AG216: 0 | AH216: 9806.261468 | AI216: 34206.26147
Z217: =AE217/X216*24 -> 11.08577536 | AA217: 98.21727315 | AB217: 4.092386381 | AD217: =IF(V218-AH216>0,V218-AH216,0) -> 6993.738532 | AE217: =AD217 -> 6993.738532 | AF217: 0 | AG217: 0 | AH217: 16800 | AI217: 41200 | AJ217: 7 | AK217: =IF(AI217<$N$7,($N$7-AI216)/(X216+$N$15/4)+AB216,"N/A") -> 11.93863168
U218: 8 | V218: 16800 | W218: 16800 | X218: =W218*($N$12+1) -> 17304 | Y218: A8 | Z218: =$DK$53/(1+$N$11) -> 25.47400612 | AA218: 123.6912793 | AB218: 5.153803303 | AC218: =V218 -> 16800 | AE218: =Z218/24*X216 -> 16070.91361 | AF218: 0 | AG218: 0 | AH218: 16070.91361 | AI218: 57270.91361
Z219: =AE219/X218*24 -> 15.43562606 | AA219: 139.1269053 | AB219: 5.796954389 | AD219: =IF(V220-AH218>0,V220-AH218,0) -> 11129.08639 | AE219: =AD219 -> 11129.08639 | AF219: 0 | AG219: 0 | AH219: 27200 | AI219: 68400 | AJ219: 8 | AK219: =IF(AI219<$N$7,($N$7-AI218)/(X218+$N$15/4)+AB218,"N/A") -> 11.09052813
U220: 9 | V220: 27200 | W220: 18900 | X220: =W220*($N$12+1) -> 19467 | Y220: A9 | Z220: =$DK$54/(1+$N$11) -> 34.28134557 | AA220: 173.4082509 | AB220: 7.225343787 | AC220: =V220 -> 27200 | AE220: =Z220/24*X218 -> 24716.85015 | AF220: 0 | AG220: 0 | AH220: 24716.85015 | AI220: 93116.85015
Z221: =AE221/X220*24 -> 23.77333931 | AA221: 197.1815902 | AB221: 8.215899592 | AD221: =IF(V222-AH220>0,V222-AH220,0) -> 19283.14985 | AE221: =AD221 -> 19283.14985 | AF221: 0 | AG221: 0 | AH221: 44000 | AI221: 112400 | AJ221: 9 | AK221: =IF(AI221<$N$7,($N$7-AI220)/(X220+$N$15/4)+AB220,"N/A") -> 10.6610632
U222: 10 | V222: 44000 | W222: 21000 | X222: =W222*($N$12+1) -> 21630 | Y222: A10 | Z222: =$DK$55/(1+$N$11) -> 44.55657492 | AA222: 241.7381651 | AB222: 10.07242355 | AC222: =V222 -> 44000 | AE222: =Z222/24*X220 -> 36140.95183 | AF222: 0 | AG222: 0 | AH222: 36140.95183 | AI222: 148540.9518
AI223: 148540.9518 | AJ223: 10 | AK223: =IF(AI223<$N$7,($N$7-AI222)/(X222+$N$15/4)+AB222,"N/A") -> 10.60219924
AJ225: min | AK225: =MIN(AK205:AK223) -> 10.60219924
V227: Ligne 3
V228: PERF 10%
AA229: Cumul | AB229: Cumul | AF229: Revenus | AG229: Rich. | AK229: Jours pour
V230: Cout (min) du niv | W230: Revenus (après) | X230: Revenus (après) | Z230: Temps | AA230: Heure | AB230: Jours | AC230: Débit | AD230: Manque | AE230: Crédit | AF230: externes | AG230: externe | AH230: Capital | AI230: Richesse | AJ230: niv | AK230: rang
U231: 1 | W231: 2000 | X231: =W231*($N$12+1) -> 2060 | AA231: 0 | AB231: =AA231/24 -> 0 | AE231: =$N$19 -> 2000 | AI231: =$N$9 -> 0
... 170 more rows

Sheet Domination
AN2: Eriyn
B3: Créatures | AN3: 52000
B4: Nom | C4: Puissance | D4: Cout or | E4: Cout rares | F4: ratio | G4: Actuel | H4: Domination | I4: Réserves | J4: Domination | K4: Coût | L4: Croissance base | M4: L? | N4: Tot. Croissance | O4: DomxJ | P4: Colonne1 | Q4: L1 | R4: L2 | S4: L3 | T4: L4 | AF4: (inferno)
A5: T1 | B5: Squelette | C5: 87 | D5: 209 | F5: =C5/(D5+E5*1000) -> 0.4162679426 | G5: 5 | H5: =C5*G5 -> 435 | I5: 41 | J5: =I5*C5 -> 3567 | K5: =I5*D5 -> 8569 | L5: 15 | M5: 1 | N5: =L5+M5*R5+$Q$22 -> 15 | O5: =N5*C5 -> 1305 | P5: T1 | Q5: 3
A6: T1+ | B6: Archer squelette | C6: 70 | D6: 205 | F6: 0.3414634146 | G6: 51 | H6: =C6*G6 -> 3570 | J6: 0 | L6: 15 | M6: 1 | N6: 15 | O6: 1050 | P6: T1+ | Q6: 3 | AG6: J1 | AH6: J2 | AI6: J3 | AJ6: J4 | AK6: J5 | AL6: J6 | AM6: J7 | AN6: J8 | AO6: J9
A7: T2 | B7: Zombie | C7: 134 | D7: 361 | F7: 0.3711911357 | G7: 41 | H7: 5494 | I7: 22 | J7: 2948 | K7: =I7*D7 -> 7942 | L7: 10 | M7: 0 | N7: 10 | O7: 1340 | P7: T2 | V7: Objectif | Z7: 630 | AD7: Cimetière | AE7: 1566 | AG7: =AG15 -> 1 | AH7: =AH15 -> 1 | AI7: 1 | AJ7: 1 | AK7: 1 | AL7: 1 | AM7: 1 | AN7: 1 | AO7: 1 | AQ7: enroleur 3 ?
A8: T2+ | B8: Zombie pestilentiel | C8: 160 | D8: 433 | F8: 0.3695150115 | H8: 0 | J8: 0 | L8: 10 | M8: 0 | N8: 10 | O8: 1600 | P8: T2+ | Z8: 3600 | AA8: 11 | AB8: 8 | AD8: Crypte | AE8: 1340 | AG8: =AG20 -> 0 | AH8: =AH20 -> 0 | AI8: 0 | AJ8: 1 | AK8: 1 | AL8: 1 | AM8: 1 | AN8: 1 | AO8: 1
A9: T3 | B9: Fantôme | C9: 303 | D9: 760 | F9: 0.3986842105 | G9: 26 | H9: 7878 | I9: 16 | J9: 4848 | L9: 7 | M9: 0 | N9: 7 | O9: 2121 | P9: T3 | Z9: 5760 | AA9: 20 | AB9: 16 | AC9: 5 | AD9: Tour en ruine | AE9: 2121 | AG9: 0 | AH9: 0 | AI9: 0 | AJ9: 0 | AK9: 1 | AL9: 1 | AM9: 1 | AN9: 1 | AO9: 1
A10: T3+ | B10: Spectre | C10: 364 | D10: 912 | F10: 0.399122807 | H10: 0 | J10: 0 | L10: 7 | M10: 0 | N10: 7 | O10: 2548 | P10: T3+ | AE10: =SUM(AE7:AE9) -> 5027
A11: T4 | B11: Vampire | C11: 751 | D11: 1672 | F11: 0.4491626794 | G11: 2 | H11: 1502 | J11: 0 | L11: 5 | M11: 0 | N11: 5 | O11: 3755 | P11: T4 | AE11: Total troupes | AG11: =$L$5*$C$5*AG7+$L$7*$C$7*AG8+$L$9*$C$9*AG9+AF11 -> 1305 | AH11: =$L$5*$C$5*AH7+$L$7*$C$7*AH8+$L$9*$C$9*AH9+AG11 -> 2610 | AI11: 3915 | AJ11: 6560 | AK11: 11326 | AL11: 16092 | AM11: 20858 | AN11: 25624 | AO11: 30390
A12: T4+ | B12: Seigneur vampire | C12: 902 | D12: 2006 | F12: 0.4496510469 | G12: 3 | H12: 2706 | J12: 0 | L12: 5 | M12: 0 | N12: 5 | O12: 4510 | P12: T4+
A13: T5 | B13: Liche | C13: 1430 | D13: 1000 | E13: 2 | F13: 0.4766666667 | H13: 0 | J13: 0 | L13: 3 | M13: 0 | N13: 3 | O13: 4290 | P13: T5 | AE13: Total héros
A14: T5+ | B14: Archiliche | C14: 2144 | D14: 1500 | E14: 3 | F14: =C14/(D14+E14*1000) -> 0.4764444444 | H14: 0 | J14: 0 | L14: 3 | M14: 0 | N14: 3 | O14: 6432 | P14: T5+ | AD14: Taverne | AE14: 100 | AG14: 1 | AH14: 1 | AI14: 1 | AJ14: 1 | AK14: 1 | AL14: 1 | AM14: 1 | AN14: 1 | AO14: 1
A15: T6 | B15: Revenant | C15: 2578 | D15: 2000 | E15: 3 | F15: =C15/(D15+E15*1000) -> 0.5156 | H15: 0 | J15: 0 | L15: 2 | M15: 0 | N15: 2 | O15: 5156 | P15: T6 | AD15: Cimetière | AE15: 140 | AG15: 1 | AH15: 1 | AI15: 1 | AJ15: 1 | AK15: 1 | AL15: 1 | AM15: 1 | AN15: 1 | AO15: 1
A16: T6+ | B16: Apparition | C16: 3365 | D16: 2500 | E16: 4 | F16: =C16/(D16+E16*1000) -> 0.5176923077 | H16: 0 | J16: 0 | L16: 2 | M16: 0 | N16: 2 | O16: 6730 | P16: T6+ | AD16: Marché | AE16: 170 | AG16: 1 | AH16: 1 | AI16: 1 | AJ16: 1 | AK16: 1 | AL16: 1 | AM16: 1 | AN16: 1 | AO16: 1
A17: T7 | B17: Dragon squelette | C17: 5866 | E17: 10 | F17: =C17/(D17+E17*1000) -> 0.5866 | H17: 0 | J17: 0 | L17: 1 | M17: 0 | N17: =L17+M17*R17 -> 1 | O17: 5866 | P17: T7 | AD17: Silo à ressources niveau 1 | AE17: 100 | AG17: 0 | AH17: 1 | AI17: 1 | AJ17: 1 | AK17: 1 | AL17: 1 | AM17: 1 | AN17: 1 | AO17: 1
A18: T7+ | B18: Dragon spectral | C18: 8213 | E18: 14 | F18: =C18/(D18+E18*1000) -> 0.5866428571 | H18: 0 | J18: 0 | L18: 1 | M18: 0 | N18: =L18+M18*R21 -> 1 | O18: 8213 | P18: T7+ | AD18: Conseil du village | AE18: 2000 | AG18: 0 | AH18: 0 | AI18: 1 | AJ18: 1 | AK18: 1 | AL18: 1 | AM18: 1 | AN18: 1 | AO18: 1
B19: sous-total 1 | H19: =SUM(H5:H18) -> 21585 | J19: =SUM(J5:J18) -> 11363 | K19: =SUM(K5:K18) -> 16511 | AD19: Mairie | AE19: 3000 | AG19: 0 | AH19: 0 | AI19: 0 | AJ19: 0 | AK19: 0 | AL19: 1 | AM19: 1 | AN19: 1 | AO19: 1
V20: =5*C16 -> 16825 | AD20: Crypte | AE20: 800 | AG20: 0 | AH20: 0 | AI20: 0 | AJ20: 1 | AK20: 1 | AL20: 1 | AM20: 1 | AN20: 1 | AO20: 1
B21: Bâtiments | Q21: Chef charismatique | AD21: Tour en ruine | AE21: 3700 | AG21: 0 | AH21: 0 | AI21: 0 | AJ21: 0 | AK21: 1 | AL21: 1 | AM21: 1 | AN21: 1 | AO21: 1
B22: Nom | C22: Or | D22: Bois | E22: Pierre | F22: Mercure | G22: Domination | L22: Domination créée par jour | O22: =O5+O7+O11+O9 -> 8521 | Q22: 0
B23: Conseil du village | C23: 0 | G23: 2000 | W23: Production des troupes (domination/Jour) avec chef chari | AE23: Total bâtiments | AG23: =$AE14*AG14+$AE15*AG15+$AE16*AG16+$AE17*AG17+$AE18*AG18+$AE19*AG19+$AE20*AG20+$AE21*AG21 -> 410 | AH23: 510 | AI23: 2510 | AJ23: 3310 | AK23: 7010 | AL23: 10010 | AM23: 10010 | AN23: 10010 | AO23: 10010
B24: Mairie | C24: 4500 | D24: 10 | E24: 6 | G24: 3000 | O24: =O5+O7+O9 -> 4766 | AA24: MAX Hab. + champs | AC24: Cout | AF24: Total quêtes | AG24: 804 | AH24: 1742 | AI24: 2954 | AJ24: 4427 | AK24: 6248 | AL24: 8264 | AM24: 10517 | AN24: 13172 | AO24: 16229 | AP24: 19694 | AQ24: 25414 | AR24: 32564
B25: Cimetière | C25: 630 | G25: 140 | W25: T1 | X25: 1566 | Y25: 1740 | Z25: 1827 | AA25: =3+6+15+3*5*1.8 -> 51 | AB25: =AA25*C5 -> 4437 | AC25: =AA25*(D5+E5*2000) -> 10659 | AF25: Total général | AG25: =AG11+AG23+AG24 -> 2519 | AH25: 4862 | AI25: 9379 | AJ25: 14297 | AK25: 24584 | AL25: 34366 | AM25: 41385 | AN25: 48806 | AO25: 56629
B26: Ossuaire | C26: 900 | D26: 4 | E26: 4 | G26: 340 | Q26: Ratio | R26: GG/ | W26: T1+ | X26: 1260 | Y26: 1400 | Z26: 1470 | AA26: =3+6+15+3*5*1.8 -> 51 | AB26: =AA26*C6 -> 3570 | AC26: =AA26*(D6+E6*2000) -> 10455
B27: Crypte | C27: 3600 | D27: 11 | E27: 8 | F27: 3 | G27: 800 | M27: 3816 | N27: Seigneur des abimes | O27: 2700 | P27: T | Q27: =O27/M27 -> 0.7075471698 | R27: 3 | W27: T2 | X27: 1340 | Y27: 1608 | Z27: 1742 | AA27: =10+3+2*5*1.8 -> 31 | AB27: =AA27*C7 -> 4154 | AC27: 11191
B28: Silo à ressources niveau 1 | C28: 500 | D28: 3 | E28: 2 | G28: 100 | M28: 4508 | N28: Paladins | O28: 2900 | P28: C | Q28: =O28/M28 -> 0.6433007986 | R28: 1 | W28: T2+ | X28: 1600 | Y28: 1920 | Z28: 2080 | AA28: =10+3+2*5*1.8 -> 31 | AB28: =AA28*C8 -> 4960 | AC28: 13423
B29: Marché | C29: 765 | D29: 5 | E29: 4 | G29: 170 | M29: 3434 | N29: Tréant séculaire | O29: 2700 | P29: F | Q29: =O29/M29 -> 0.7862550961 | R29: 4 | W29: T3 | X29: 2121 | Y29: 2727 | Z29: 3030 | AA29: =7+3+1*5*1.8 -> 19 | AB29: =AA29*C9 -> 5757 | AC29: 14440
B30: Taverne | C30: 450 | D30: 4 | E30: 3 | G30: 100 | M30: 3365 | N30: Apparition | O30: 2500 | P30: F | Q30: =O30/M30 -> 0.7429420505 | R30: 2 | W30: T3+ | X30: 2548 | Y30: 3276 | Z30: 3640 | AA30: =7+3+1*5*1.8 -> 19 | AB30: =AA30*C10 -> 6916 | AC30: 17328
B31: sous-total 2 | G31: =SUM(G23:G30) -> 6650 | M31: 2950 | N31: Raja Rakshasa | O31: 2300 | P31: F | Q31: =O31/M31 -> 0.7796610169 | R31: 1 | W31: T4 | X31: 3755 | Y31: 5257 | Z31: 6008 | AA31: 8 | AB31: 6008 | AC31: 13376
W32: T4+ | X32: 4510 | Y32: 6314 | Z32: 7216 | AA32: 8 | AB32: 7216 | AC32: 16048
B33: sous-total 3 (?) | G33: 4859 | H33: Il y a un delta de domination inconnu ! | W33: T5 | X33: 4290 | Y33: 7150 | Z33: 8580 | AA33: 6 | AB33: 8580 | AC33: 30000
W34: T5+ | X34: 6432 | Y34: 10720 | Z34: 12864 | AA34: 6 | AB34: 12864 | AC34: 45000
W35: T6 | X35: 5156 | Y35: 10312 | Z35: 12890 | AA35: 5 | AB35: 12890 | AC35: 40000
B36: TOTAL DOMINATION | G36: =H19+G31+G33 -> 33094 | H36: 23844 | I36: =J19 -> 11363 | J36: 12:28:00 | W36: T6+ | X36: 6730 | Y36: 13460 | Z36: 16825 | AA36: 5 | AB36: 16825 | AC36: 52500
W37: T7 | X37: 5866 | Y37: 5866 | Z37: 5866 | AA37: 1 | AB37: 5866 | AC37: 20000
B38: TOTAL DOMINATION POSSIBLE | G38: =G36+I36 -> 44457 | W38: T7+ | X38: 8213 | Y38: 8213 | Z38: 8213 | AA38: 1 | AB38: 8213 | AC38: 28000

Sheet Stratégie
B1: Richesse | F1: =EXP(0.7741) -> 2.168639473 | J1: PALIER 2
D2: 2^x | E2: 2^x | F2: e0,7741x | K2: La grosse erreur c'est de ne pas avoir su jouer et anticiper l'ordre des quêtes | S2: erreur: d'abord sur l'or avec le héros principal qui monte le plus vite
C3: Niveaux | D3: Domination | E3: Richesse | F3: Honneur | K3: Il faut se débrouiller pour associer chaque du secteur proche de la cité avec une quête de la section combat, y compris les mines. Cela est assez simple à faire si vous vous organisez un minimum. | S3: erreur: d'abord sur ressources communes
C4: 1 | D4: 34000 | E4: 320000 | F4: 15000 | K4: Ne pas oublier de réserver une case extérieur pour la quête victoire écrasante qui se fera beaucoup plus tard mais dont la récompense est extrêmement intéressante. | S4: Mine des nains
C5: 2 | D5: 68000 | E5: 640000 | F5: 30000 | K5: Ne pas trop attendre pour faire la guilde des mages
C6: 3 | D6: 136000 | E6: 1280000 | F6: 80000 | H6: 1 | I6: 5 | K6: Viser l'invocation | S6: La recherche des points de ressource via les combats est essentielle
C7: 4 | D7: 272000 | E7: 2560000 | F7: 160000 | H7: 2 | I7: 2 | K7: Prendre une faction ayant des Troupes fortes + Magie de l'invocation | S7: cela accélère la production
C8: 5 | D8: 544000 | E8: 5120000 | F8: 320000 | H8: 3 | I8: 4 | S8: Hotel de ville avant mine perf niv 8.
C9: 6 | D9: 1088000 | E9: 10240000 | F9: 640000 | H9: 4 | I9: 8 | K9: Le pallier 2 d'honneur est atteint en premier, en moins d'une semaine, en particulier par un inferno
C10: 7 | D10: 2176000 | E10: 20480000 | F10: =6899.8*EXP(0.7741*Tableau253[[#This Row],[Niveaux]]) -> 1556496.009 | L10: Chance ? | Q10: DANS CET ORDRE: | S10: http://pacte-enroth.forumactif.net/aide-de-jeu-f8/liens-utiles-t8.htm
C11: 8 | D11: 4352000 | E11: 40960000 | F11: =6899.8*EXP(0.7741*Tableau253[[#This Row],[Niveaux]]) -> 3375478.684 | L11: Ensuite la domination est plus facile
C12: 9 | D12: 8704000 | E12: 81920000 | F12: 7680000 | K12: Ne pas trop attendre pour faire la guilde des mages | P12: Heros 1 | Q12: Or, Communes | S12: donc, changement de stratégie: rester sur l'amélioration des mines en attendant l'hotel de ville
C13: 10 | D13: ?? | E13: 163840000 | F13: ?? | L13: Retard de 3 jours sur le niveau 2 | P13: Heros 2 | Q13: Marché, Rares | S13: la mine d'or perf ne rapporte pas assez en attendant le passage
P14: Heros 3 | Q14: Recrutement
B18: Date | C18: 2010-09-22T22:37:36.870 | D18: 2010-09-22T22:37:36.870 | E18: 2010-09-22T22:58:42.200 | F18: 2010-09-23T00:49:50.570 | G18: 2010-09-23T01:18:40.910 | H18: 2010-09-23T08:10:14.890 | I18: 2010-09-24T00:16:10.350 | J18: 2010-09-24T19:37:42.970 | K18: 2010-09-25T00:25:04.710 | L18: 2010-09-25T21:22:20.940 | M18: 2010-09-26T22:29:58.860 | N18: 2010-09-29T02:03:40.250 | O18: 2010-09-29T21:26:19.440
B19: T0+x Heures | D19: =(D18-$C18)*24 -> 0 | E19: 0.3514805555 | F19: 2.203805556 | G19: 2.684455556 | H19: 9.543894445 | I19: 25.64263333 | J19: 45.00169444 | K19: 49.79106667 | L19: =(L18-$C18)*24 -> 70.745575 | M19: 95.872775 | N19: 147.4342722 | O19: 166.811825
B21: Eriyn
B22: ES_Triben
B25: Kazimohdõ | D25: 769567 | E25: 770689 | F25: 787357 | G25: 789753 | H25: 828983 | I25: 932931 | J25: 1051455 | K25: 1094396 | L25: 1227877 | M25: 1429598 | N25: 1909644 | O25: 2106888
B36: Richesse / heure | V36: =V25-V29 -> 0 | W36: 0 | X36: 0 | Y36: 0 | Z36: 0 | AA36: 0 | AB36: 0 | AC36: 0 | AD36: 0 | AE36: 0 | AF36: 0 | AG36: 0 | AH36: 0 | AI36: 0 | AJ36: 0 | AK36: 0
B37: Palier | K37: progression/heure | L37: =(L25-J25)/(L19-J19) -> 6852.968402 | M37: =(O25-N25)/(O19-N19) -> 10178.99434
B38: Temps restant | K38: palier à atteindre | L38: 1280000 | M38: 2560000
B39: Rang 3 | K39: Nb heures | L39: =(L38-MAX(C25:CE25))/L37 -> -120.6612889 | M39: =(M38-MAX(D25:CF25))/M37 -> 44.51441714 | AQ39: 2010-09-12T12:27:02.810 | AR39: 2010-09-12T22:27:30.250 | AS39: 2010-09-13T02:09:49.560
C40: Palier | D40: Richesse (M1) | E40: Richesse (M2) | L40: =L18+L39/24 -> 2010-09-20T20:42:40.300 | M40: =O18+M39/24 -> 2010-10-01T17:57:11.342 | P40: Lois de régression
C41: 1 | M41: a | N41: b | O41: c | P41: h)eures | Q41: f(h) | AP41: kaz | AQ41: y = 18,054x2 + 163,46x + 423184 | AR41: y = 17,284x2 + 476,34x + 393472 | AS41: y = 17,284x2 + 476,34x + 393472
C42: 2 | I42: Approximation de la richesse | L42: Expo. | M42: 335393.7702 | N42: 1.006263319 | P42: 547.544657 | Q42: =M42*N42^P42 -> 10240000 | AP42: Jeb | AQ42: y = 9,4774x2 + 2542,8x + 277030 | AR42: y = 9,6161x2 + 2507,5x + 278458 | AS42: y = 9,5543x2 + 2523,4x + 277800
C43: 3 | D43: =L40 -> 2010-09-20T20:42:40.300 | I43: Temps de passage des paliers | L43: Poly | M43: 18.12 | N43: 97.509 | O43: 432002 | P43: 3000.32595 | Q43: =M43*P43^2+N43*P43+O43 -> 163840000 | AP43: Palladyn | AQ43: y = 12,877x2 + 528,05x + 459270 | AR43: y = 14,064x2 - 19,586x + 520008 | AS43: y = 14,204x2 - 84,602x + 527249
C44: 4 | D44: =M40 -> 2010-10-01T17:57:11.342 | E44: =Villes!E5 -> 2010-10-01T18:44:42.300 | I44: Ville | J44: Palier | K44: Exp. | L44: Delta (h) | M44: Delta (j) | N44: Poly | O44: Delta (h)2 | P44: Delta (j)3 | Q44: Total Jours | AK44: =NOW() -> 2010-09-29T23:41:22.700 | AP44: Trib | AQ44: y = 15,408x2 - 1251,1x + 667672 | AR44: y = 16,611x2 - 1841,4x + 738291 | AS44: y = 17,975x2 - 2515x + 819298
C45: 5 | I45: 1 | J45: 320000 | AK45: =AK44+1+10/24 -> 2010-10-01T09:41:22.700
C46: 6 | I46: 2 | J46: 640000 | K46: 103.48 | N46: 104.4828487
C47: 7 | I47: 3 | J47: 1280000 | K47: 214.5028829 | L47: =K47-K46 -> 111.0228829 | M47: =L47/24 -> 4.625953456 | N47: 213.6568669 | O47: =N47-N46 -> 109.1740182 | P47: =O47/24 -> 4.548917425 | Q47: =P46+Tableau7[[#This Row],[Delta (j)3]] -> 4.548917425
C48: 8 | I48: 4 | J48: 2560000 | K48: 325.5168076 | L48: =K48-K47 -> 111.0139247 | M48: =L48/24 -> 4.625580196 | N48: 340.013925 | O48: 126.3570582 | P48: =O48/24 -> 5.264877423 | Q48: =P47+Tableau7[[#This Row],[Delta (j)3]] -> 9.813794848
C49: 9 | I49: 5 | J49: 5120000 | K49: 436.5307323 | L49: =K49-K48 -> 111.0139247 | M49: 4.625580195 | N49: 505.9612746 | O49: 165.9473495 | P49: 6.914472898 | Q49: =P48+Tableau7[[#This Row],[Delta (j)3]] -> 12.17935032
C50: 10 | I50: 6 | J50: 10240000 | K50: 547.544657 | L50: =K50-K49 -> 111.0139247 | M50: 4.625580195 | N50: 733.0317764 | O50: 227.0705018 | P50: 9.46127091 | Q50: =P49+Tableau7[[#This Row],[Delta (j)3]] -> 16.37574381
I51: 7 | J51: 20480000 | K51: =K50+L50 -> 658.5585817 | L51: =L50 -> 111.0139247 | M51: 4.625580195 | N51: 1049.169086 | O51: 316.1373096 | P51: 13.1723879 | Q51: =P50+Tableau7[[#This Row],[Delta (j)3]] -> 22.63365881
I52: 8 | J52: 40960000 | K52: =K51+L51 -> 769.5725063 | L52: =L51 -> 111.0139247 | M52: 4.625580195 | N52: 1492.853309 | O52: 443.6842231 | P52: 18.48684263 | Q52: =P51+Tableau7[[#This Row],[Delta (j)3]] -> 31.65923053
I53: 9 | J53: 81920000 | K53: =K52+L52 -> 880.586431 | L53: =L52 -> 111.0139247 | M53: 4.625580195 | N53: 2117.954863 | O53: 625.1015535 | P53: 26.04589806 | Q53: =P52+Tableau7[[#This Row],[Delta (j)3]] -> 44.53274069
I54: 10 | J54: 163840000 | K54: =K53+L53 -> 991.6003557 | L54: =L53 -> 111.0139247 | M54: 4.625580195 | N54: 3000.32595 | O54: 882.3710874 | P54: 36.76546198 | Q54: =P53+Tableau7[[#This Row],[Delta (j)3]] -> 62.81136004
M56: =SUM(M47:M54) -> 37.00501482 | P56: =SUM(P47:P54) -> 120.6601292
J129: 12,033x2 + 911,44x + 417248 | P129: =908-314 -> 594
J130: 18,33x2 - 2664,1x + 834652 | P130: =P129/24 -> 24.75
I132: =12.033-18.33 -> -6.297 | J132: =911.44+2664.1 -> 3575.54 | K132: =417248-834652 -> -417404 | M132: 1944299

Sheet Mines
M1: EN x2
C2: AMELIORATION
E3: Cout passer au niv. | J3: Cout1 | K3: Revenus1 | L3: Revenus1
B4: niv | C4: Heures | D4: T max | E4: T med | F4: T min | G4: Heures | J4: Cumul | K4: (ressource) | L4: (or)
B5: 1 | E5: 0 | J5: 0 | K5: 2 | L5: 2000 | P5: Fin construction mine | S5: Début construction mine
B6: 2 | C6: =0.4*B6^2-2*B6+137/30 -> 2.166666667 | D6: =7/5*E6 -> 1400 | E6: 1000 | F6: =0.8*E6 -> 800 | G6: =0.8*B6^2-4*B6+257/30 -> 3.766666667 | J6: =J5+E6 -> 1000 | K6: 4 | L6: 4000
B7: 3 | C7: 2.166666667 | D7: 2800 | E7: 2000 | F7: =0.8*E7 -> 1600 | G7: =0.8*B7^2-4*B7+257/30 -> 3.766666667 | J7: 3000 | K7: 6 | L7: 6000
B8: 4 | C8: 2.966666667 | D8: 4200 | E8: 3000 | F8: 2400 | G8: 5.366666667 | J8: 6000 | K8: 8 | L8: 8000 | P8: 2010-09-01T05:34:00
B9: 5 | C9: 4.566666667 | D9: 7000 | E9: 5000 | F9: 4000 | G9: 8.566666667 | J9: 11000 | K9: 10 | L9: 10000 | N9: =SUM(G6:G10) -> 34.83333333 | P9: =P8-G25/24 -> 2010-08-31T09:48:00
B10: 6 | C10: 6.966666667 | D10: =7/5*E10 -> 11200 | E10: 8000 | F10: 6400 | G10: 13.36666667 | J10: 19000 | K10: 12 | L10: 12000
B11: 7 | C11: 10.16666667 | D11: 18200 | E11: 13000 | F11: 10400 | G11: 19.76666667 | J11: 32000 | K11: 14 | L11: 14000
B12: 8 | C12: 14.16666667 | D12: =7/5*E12 -> 29400 | E12: 21000 | F12: 16800 | G12: 27.76666667 | J12: 53000 | K12: 16 | L12: 16000 | N12: 10h de plus!
B13: 9 | C13: 18.96666667 | D13: 47600 | E13: 34000 | F13: =0.8*E13 -> 27200 | G13: 37.36666667 | J13: 87000 | K13: 18 | L13: 18000 | P13: 2010-09-01T13:09:05 | Q13: 19.76666667 | R13: =Q13-Q13*27% -> 14.42966667 | S13: =P13-R13/24 -> 2010-08-31T22:43:18.200
B14: 10 | C14: 24.56666667 | D14: 77000 | E14: 55000 | F14: 44000 | G14: 48.56666667 | J14: 142000 | K14: 20 | L14: 20000
C16: PERFECTIONNEMENT
E17: Cout passer au niv. | J17: Cout2 | K17: Revenus2 | L17: Revenus2
C18: Heures | D18: T max | E18: T med | F18: T min | G18: Heures | I18: xp | J18: Cumul | K18: (ressource) | L18: (or)
B19: 1 | E19: =1000*B5^2-1000*B5 -> 0 | I19: =80*B19^2-80*B19 -> 0 | J19: 0 | K19: 2 | L19: =H19*L5+L5 -> 2000
B20: 2 | C20: =0.4*B20^2-2*B20+137/30 -> 2.166666667 | D20: =1400*B20^2-1400*B20 -> 2800 | E20: 2000 | F20: =800*B20^2-800*B20 -> 1600 | G20: =0.8*B20^2-4*B20+257/30 -> 3.766666667 | H20: 0.05 | I20: =80*B20^2-80*B20 -> 160 | J20: =J19+E20 -> 2000 | K20: =H20*K6+K6 -> 4.2 | L20: 4200
B21: 3 | C21: 2.166666667 | D21: 8400 | E21: 6000 | F21: 4800 | G21: =0.8*B21^2-4*B21+257/30 -> 3.766666667 | H21: 0.1 | I21: 480 | J21: 8000 | K21: 6.6 | L21: 6600
B22: 4 | C22: 2.966666667 | D22: 16800 | E22: 12000 | F22: 9600 | G22: 5.366666667 | H22: 0.15 | I22: 960 | J22: 20000 | K22: 9.2 | L22: 9200
B23: 5 | C23: 4.566666667 | D23: 28000 | E23: 20000 | F23: 16000 | G23: 8.566666667 | H23: 0.2 | I23: 1600 | J23: 40000 | K23: 12 | L23: 12000
B24: 6 | C24: 6.966666667 | D24: 42000 | E24: 30000 | F24: 24000 | G24: 13.36666667 | H24: 0.25 | I24: 2400 | J24: 70000 | K24: 15 | L24: 15000
B25: 7 | C25: 10.16666667 | D25: 58800 | E25: 42000 | F25: 33600 | G25: 19.76666667 | H25: 0.3 | I25: 3360 | J25: 112000 | K25: 18.2 | L25: 18200
B26: 8 | C26: 14.16666667 | D26: 78400 | E26: 56000 | F26: 44800 | G26: =0.8*B26^2-4*B26+257/30 -> 27.76666667 | H26: 0.35 | I26: 4480 | J26: 168000 | K26: 21.6 | L26: 21600
B27: 9 | C27: 18.96666667 | D27: 100800 | E27: 72000 | F27: =800*B27^2-800*B27 -> 57600 | G27: 37.36666667 | H27: 0.4 | I27: 5760 | J27: 240000 | K27: 25.2 | L27: 25200 | O27: =SUM(G25:G27)/24 -> 3.5375
B28: 10 | C28: 24.56666667 | D28: 126000 | E28: 90000 | F28: =800*B28^2-800*B28 -> 72000 | G28: 48.56666667 | H28: 0.45 | I28: 7200 | J28: 330000 | K28: 29 | L28: 29000
O29: En termes de couts :
N30: Une mine améliorée niveau 9 = mine perfectionnée niveau 7 ! | S30: Sauf qu'une mine en cours de perf ne rapporte rien !
L31: =J5-J19 -> 0 | O31: Sauf que
O32: niveau 9 amel = 27+37 heures en plus
O33: niveau 7 perf. = interruption de production pendant 28 heures
O34: Jusqu'à 18 ressources par jour : monter classique
O35: Plus de 18 ressources par jour : monter avec amélioration
R36: Encore que … discutable compte tenu du temps passé à améliorer…
O37: l'amélioration bloques le progrès des héros un seul h devient actif
P39: XP rapportés
P41: A | Q41: 7 | R41: 1040 | S41: 1040 | T41: 24.76190476
P42: A | Q42: 6 | R42: 796.8 | S42: 796.8 | T42: 26.56

Sheet Bâtiments
Z1: Coloniser : première ville
Z2: Cout des colonies
Y3: 2ème | Z3: 20000 | AA3: 20 | AB3: 20
Y5: 3ième
Z6: 210000 | AA6: 50 | AB6: 50 | AC6: (1 case)
N7: MIN | Z7: 130000 | AA7: 50 | AB7: 50
B8: 210 bâtiments | C8: http://mmhk.jactari.info/b%C3%A2timents | Z8: 60000 | AA8: 50 | AB8: 50
B9: Nom | C9: Faction | D9: Catégorie | E9: or | F9: bois | G9: minerai | H9: mercure | I9: cristal | J9: soufre | K9: gemme | L9: Or2 | M9: bois3 | N9: minerai4 | O9: mercure5 | P9: cristal6 | Q9: soufre7 | R9: gemme8 | S9: Acquis | T9: Colonne1
B10: Conseil du village | C10: Académie | D10: administration | E10: 0 | L10: 0 | T10: =Q10*S10 -> 0
B11: Conseil du village | C11: Havre | D11: administration | E11: 0 | L11: 0 | T11: 0
B12: Conseil du village | C12: Inferno | D12: administration | E12: 0 | L12: 0 | T12: 0
B13: Conseil du village | C13: Nécropole | D13: administration | E13: 0 | T13: 0
B14: Conseil du village | C14: Sylvan | D14: administration | E14: 0 | L14: 0 | T14: 0
B15: Guilde des mages niveau 5 | C15: Académie | D15: magie | E15: 108000 | F15: 36 | G15: 50 | H15: 18 | I15: 18 | J15: 18 | K15: 18 | L15: 108000 | T15: 0
B16: Mairie | C16: Nécropole | D16: administration | E16: 4500 | F16: 10 | G16: 6 | T16: 0
B17: Cimetière | C17: Nécropole | D17: recrutement | E17: 630 | T17: 0
B18: Arbre des fées | C18: Sylvan | D18: recrutement | E18: 630 | L18: 630 | T18: 0
B19: Mairie | C19: Académie | D19: administration | E19: 6000 | F19: 8 | G19: 10 | L19: 6000 | T19: 0
B20: Silo à ressources niveau 2 | C20: Académie | D20: autre | E20: 1000 | L20: 1000 | T20: 0
B21: Silo à ressources niveau 3 | C21: Académie | D21: autre | E21: 1500 | L21: 1500 | T21: 0
B22: Silo à ressources niveau 4 | C22: Académie | D22: autre | E22: 2000 | L22: 2000 | T22: 0
B23: Silo à ressources niveau 5 | C23: Académie | D23: autre | E23: 2500 | L23: 2500 | T23: 0
B24: Silo à ressources niveau 6 | C24: Académie | D24: autre | E24: 3000 | L24: 3000 | T24: 0
B25: Silo à ressources niveau 7 | C25: Académie | D25: autre | E25: 3500 | L25: 3500 | T25: 0
B26: Silo à ressources niveau 8 | C26: Académie | D26: autre | E26: 4000 | L26: 4000 | T26: 0
B27: Silo à ressources niveau 9 | C27: Académie | D27: autre | E27: 4500 | L27: 4500 | T27: 0
B28: Silo à ressources niveau 10 | C28: Académie | D28: autre | E28: 5000 | L28: 5000 | T28: 0
B29: Atelier des gremlins | C29: Académie | D29: recrutement | E29: 700 | L29: 700 | T29: 0
B30: Silo à ressources niveau 2 | C30: Havre | D30: autre | E30: 1000 | L30: 1000 | T30: 0
B31: Silo à ressources niveau 3 | C31: Havre | D31: autre | E31: 1500 | L31: 1500 | T31: 0
B32: Silo à ressources niveau 4 | C32: Havre | D32: autre | E32: 2000 | L32: 2000 | T32: 0
B33: Silo à ressources niveau 5 | C33: Havre | D33: autre | E33: 2500 | L33: 2500 | T33: 0
B34: Silo à ressources niveau 6 | C34: Havre | D34: autre | E34: 3000 | L34: 3000 | T34: 0
B35: Silo à ressources niveau 7 | C35: Havre | D35: autre | E35: 3500 | L35: 3500 | T35: 0
B36: Silo à ressources niveau 8 | C36: Havre | D36: autre | E36: 4000 | L36: 4000 | T36: 0
B37: Silo à ressources niveau 9 | C37: Havre | D37: autre | E37: 4500 | L37: 4500 | T37: 0
B38: Silo à ressources niveau 10 | C38: Havre | D38: autre | E38: 5000 | L38: 5000 | T38: 0
B39: Huttes de paysans | C39: Havre | D39: recrutement | E39: 700 | L39: 700 | T39: 0
B40: Silo à ressources niveau 2 | C40: Inferno | D40: autre | E40: 1000 | L40: 1000 | T40: 0
B41: Silo à ressources niveau 3 | C41: Inferno | D41: autre | E41: 1500 | L41: 1500 | T41: 0
B42: Silo à ressources niveau 4 | C42: Inferno | D42: autre | E42: 2000 | L42: 2000 | T42: 0
B43: Silo à ressources niveau 5 | C43: Inferno | D43: autre | E43: 2500 | L43: 2500 | T43: 0
B44: Silo à ressources niveau 6 | C44: Inferno | D44: autre | E44: 3000 | L44: 3000 | T44: 0
B45: Silo à ressources niveau 7 | C45: Inferno | D45: autre | E45: 3500 | L45: 3500 | T45: 0
B46: Silo à ressources niveau 8 | C46: Inferno | D46: autre | E46: 4000 | L46: 4000 | T46: 0
B47: Silo à ressources niveau 9 | C47: Inferno | D47: autre | E47: 4500 | L47: 4500 | T47: 0
B48: Silo à ressources niveau 10 | C48: Inferno | D48: autre | E48: 5000 | L48: 5000 | T48: 0
B49: Silo à ressources niveau 2 | C49: Nécropole | D49: autre | E49: 1000 | T49: 0
B50: Silo à ressources niveau 3 | C50: Nécropole | D50: autre | E50: 1500 | T50: 0
B51: Silo à ressources niveau 4 | C51: Nécropole | D51: autre | E51: 2000 | T51: 0
B52: Silo à ressources niveau 5 | C52: Nécropole | D52: autre | E52: 2500 | T52: 0
B53: Silo à ressources niveau 6 | C53: Nécropole | D53: autre | E53: 3000 | T53: 0
B54: Silo à ressources niveau 7 | C54: Nécropole | D54: autre | E54: 3500 | T54: 0
B55: Silo à ressources niveau 8 | C55: Nécropole | D55: autre | E55: 4000 | T55: 0
B56: Silo à ressources niveau 9 | C56: Nécropole | D56: autre | E56: 4500 | T56: 0
B57: Silo à ressources niveau 10 | C57: Nécropole | D57: autre | E57: 5000 | T57: 0
B58: Silo à ressources niveau 2 | C58: Sylvan | D58: autre | E58: 1000 | L58: 1000 | T58: 0
B59: Silo à ressources niveau 3 | C59: Sylvan | D59: autre | E59: 1500 | L59: 1500 | T59: 0
B60: Silo à ressources niveau 4 | C60: Sylvan | D60: autre | E60: 2000 | L60: 2000 | T60: 0
B61: Silo à ressources niveau 5 | C61: Sylvan | D61: autre | E61: 2500 | L61: 2500 | T61: 0
B62: Silo à ressources niveau 6 | C62: Sylvan | D62: autre | E62: 3000 | L62: 3000 | T62: 0
B63: Silo à ressources niveau 7 | C63: Sylvan | D63: autre | E63: 3500 | L63: 3500 | T63: 0
B64: Silo à ressources niveau 8 | C64: Sylvan | D64: autre | E64: 4000 | L64: 4000 | T64: 0
B65: Silo à ressources niveau 9 | C65: Sylvan | D65: autre | E65: 4500 | L65: 4500 | T65: 0
B66: Silo à ressources niveau 10 | C66: Sylvan | D66: autre | E66: 5000 | L66: 5000 | T66: 0
B67: Colisée des tempêtes | C67: Académie | D67: recrutement | E67: 160000 | F67: 78 | G67: 105 | J67: 30 | K67: 50 | L67: 160000 | T67: 0
B68: Sépulcre des dragons | C68: Nécropole | D68: recrutement | E68: 171000 | F68: 73 | G68: 52 | H68: 50 | I68: 48 | T68: 0
B69: Autel des cieux | C69: Havre | D69: recrutement | E69: 190000 | F69: 99 | G69: 110 | I69: 40 | L69: 190000 | T69: 0
B70: Guilde des mages niveau 4 | C70: Académie | D70: magie | E70: 39000 | F70: 38 | G70: 34 | H70: 9 | I70: 9 | J70: 9 | K70: 9 | L70: 39000 | T70: 0
B71: Mairie | C71: Havre | D71: administration | E71: 5000 | F71: 10 | G71: 12 | L71: 5000 | T71: 0
B72: Sanctuaire des dragons | C72: Sylvan | D72: recrutement | E72: 190000 | F72: 136 | G72: 81 | H72: 19 | K72: 27 | L72: 190000 | T72: 0
B73: Palais des tortures | C73: Inferno | D73: recrutement | E73: 218000 | F73: 69 | G73: 100 | H73: 15 | J73: 30 | L73: 218000 | T73: 0
B74: Mairie | C74: Inferno | D74: administration | E74: 6000 | F74: 11 | G74: 10 | L74: 6000 | T74: =Q74*S74 -> 0
B75: Mairie | C75: Sylvan | D75: administration | E75: 4500 | F75: 13 | G75: 11 | L75: 4500 | T75: 0
B76: Château | C76: Académie | D76: défense | E76: 65000 | F76: 62 | G76: 68 | L76: 65000 | T76: 0
B77: Guilde des mages niveau 5 | C77: Nécropole | D77: magie | E77: 144000 | F77: 72 | G77: 106 | H77: 24 | I77: 24 | J77: 24 | K77: 24 | T77: 0
B78: Creuset de diablotins | C78: Inferno | D78: recrutement | E78: 840 | L78: 840 | T78: 0
B79: Capitole | C79: Nécropole | D79: administration | E79: 108000 | F79: 105 | G79: 61 | T79: 0
B80: Château | C80: Nécropole | D80: défense | E80: 64800 | F80: 70 | G80: 51 | H80: 20 | T80: 0
B81: Forge de guerre | C81: Nécropole | D81: recrutement | E81: 4500 | F81: 9 | G81: 6 | T81: 0
B82: Capitole | C82: Académie | D82: administration | E82: 120000 | F82: 83 | G82: 85 | L82: 120000 | T82: 0
B83: Cathédrale des lamentations | C83: Nécropole | D83: recrutement | E83: 63000 | F83: 56 | G83: 58 | H83: 30 | I83: 21 | T83: 0
B84: Alcôve de tréant | C84: Sylvan | D84: recrutement | E84: 63000 | F84: 76 | G84: 79 | H84: 12 | K84: 21 | L84: 63000 | T84: 0
B85: Château | C85: Sylvan | D85: défense | E85: 64800 | F85: 110 | G85: 78 | L85: 64800 | T85: 0
B86: Capitole | C86: Sylvan | D86: administration | E86: 108000 | F86: 137 | G86: 77 | L86: 108000 | T86: 0
B87: Château de vampire | C87: Nécropole | D87: recrutement | E87: 21600 | F87: 47 | G87: 16 | H87: 12 | T87: 0
B88: Château | C88: Havre | D88: défense | E88: 72000 | F88: 95 | G88: 92 | L88: 72000 | T88: 0
B89: Guilde des mages niveau 3 | C89: Académie | D89: magie | E89: 15000 | F89: 23 | G89: 21 | H89: 5 | I89: 5 | J89: 5 | K89: 5 | L89: 15000 | T89: 0
B90: Forge de guerre | C90: Inferno | D90: recrutement | E90: 6000 | F90: 6 | G90: 8 | L90: 6000 | T90: 0
B91: Ordre des paladins | C91: Havre | D91: recrutement | E91: 70000 | F91: 84 | G91: 97 | I91: 24 | L91: 70000 | T91: 0
B92: Guilde des mages niveau 4 | C92: Nécropole | D92: magie | E92: 52000 | F92: 42 | G92: 64 | H92: 12 | I92: 12 | J92: 12 | K92: 12 | T92: 0
B93: Pavillon d'or | C93: Académie | D93: recrutement | E93: 70000 | F93: 44 | G93: 93 | J93: 15 | K93: 33 | L93: 70000 | T93: 0
B94: Cœur des abimes | C94: Inferno | D94: recrutement | E94: 84000 | F94: 70 | G94: 75 | H94: 10 | J94: 25 | L94: 84000 | T94: 0
B95: Capitole | C95: Inferno | D95: administration | E95: 144000 | F95: 97 | G95: 96 | L95: 144000 | T95: 0
B96: Guilde des mages niveau 2 | C96: Académie | D96: magie | E96: 6000 | F96: 10 | G96: 9 | H96: 2 | I96: 2 | J96: 2 | K96: 2 | L96: 6000 | T96: 0
B97: Château | C97: Inferno | D97: défense | E97: 95000 | F97: 77 | G97: 69 | J97: 22 | L97: 95000 | T97: 0
B98: Parapet d'obsidienne | C98: Académie | D98: recrutement | E98: 6600 | F98: 7 | G98: 11 | L98: 6600 | T98: 0
B99: Écuries de cauchemar | C99: Inferno | D99: recrutement | E99: 32400 | F99: 39 | G99: 31 | H99: 8 | J99: 7 | L99: 32400 | T99: 0
B100: Capitole | C100: Havre | D100: administration | E100: 120000 | F100: 133 | G100: 132 | L100: 120000 | T100: 0
B101: Citadelle | C101: Académie | D101: défense | E101: 32000 | F101: 33 | G101: 50 | L101: 32000 | T101: 0
B102: Citadelle | C102: Sylvan | D102: défense | E102: 28800 | F102: 52 | G102: 38 | L102: 28800 | T102: 0
B103: Guilde des mages niveau 5 | C103: Inferno | D103: magie | E103: 216000 | F103: 117 | G103: 118 | H103: 36 | I103: 36 | J103: 36 | K103: 36 | L103: 216000 | T103: 0
B104: Forge de guerre | C104: Académie | D104: recrutement | E104: 6000 | F104: 8 | G104: 11 | L104: 6000 | T104: 0
B105: Cromlech | C105: Sylvan | D105: recrutement | E105: 21600 | F105: 49 | G105: 55 | K105: 8 | L105: 21600 | T105: 0
B106: Tour des arbalétriers | C106: Havre | D106: recrutement | E106: 5500 | F106: 11 | G106: 12 | L106: 5500 | T106: 0
B107: Tour des archimages | C107: Académie | D107: recrutement | E107: 24000 | F107: 39 | G107: 44 | J107: 7 | K107: 10 | L107: 24000 | T107: 0
B108: Hall des péchés | C108: Inferno | D108: recrutement | E108: 28800 | F108: 42 | G108: 38 | H108: 5 | J108: 10 | L108: 28800 | T108: 0
B109: Guilde des mages niveau 1 | C109: Académie | D109: magie | E109: 3240 | F109: 5 | G109: 5 | L109: 3240 | T109: 0
B110: Forge de guerre | C110: Sylvan | D110: recrutement | E110: 4500 | F110: 13 | G110: 11 | L110: 4500 | T110: 0
B111: Jardin des licornes | C111: Sylvan | D111: recrutement | E111: 24300 | F111: 56 | G111: 38 | H111: 6 | K111: 15 | L111: 24300 | T111: 0
B112: Guilde des mages niveau 5 | C112: Sylvan | D112: magie | E112: 234000 | F112: 131 | G112: 124 | H112: 42 | I112: 42 | J112: 42 | K112: 42 | L112: 234000 | T112: 0
B113: Citadelle | C113: Nécropole | D113: défense | E113: 28800 | F113: 45 | G113: 34 | H113: 14 | T113: 0
B114: Forge de guerre | C114: Havre | D114: recrutement | E114: 5000 | F114: 11 | G114: 13 | L114: 5000 | T114: 0
B115: Bastion des griffons | C115: Havre | D115: recrutement | E115: 24000 | F115: 64 | G115: 63 | L115: 24000 | T115: 0
B116: Citadelle | C116: Inferno | D116: défense | E116: 38400 | F116: 41 | G116: 37 | J116: 8 | L116: 38400 | T116: 0
B117: Crypte putride | C117: Nécropole | D117: recrutement | E117: 4950 | F117: 10 | G117: 7 | H117: 5 | T117: 0
B118: Citadelle | C118: Havre | D118: défense | E118: 32000 | F118: 56 | G118: 52 | L118: 32000 | T118: 0
B119: Guilde des mages niveau 5 | C119: Havre | D119: magie | E119: 252000 | F119: 126 | G119: 148 | H119: 42 | I119: 42 | J119: 42 | K119: 42 | L119: 252000 | T119: 0
B120: Hôtel de ville | C120: Académie | D120: administration | E120: 27500 | F120: 25 | G120: 48 | L120: 27500 | T120: 0
B121: Guilde des mages niveau 3 | C121: Nécropole | D121: magie | E121: 22000 | F121: 32 | G121: 25 | H121: 7 | I121: 7 | J121: 7 | K121: 7 | T121: 0
B122: Autel des dragons | C122: Sylvan | D122: recrutement | E122: 117000 | F122: 115 | G122: 100 | H122: 13 | K122: 22 | L122: 117000 | T122: 0
B123: Colisée des nuages | C123: Académie | D123: recrutement | E123: 120000 | F123: 70 | G123: 100 | J123: 23 | K123: 37 | L123: 120000 | T123: 0
B124: Cimetière des dragons | C124: Nécropole | D124: recrutement | E124: 117000 | F124: 90 | G124: 63 | H124: 45 | I124: 33 | T124: 0
B125: Hôtel de ville | C125: Inferno | D125: administration | E125: 33000 | F125: 39 | G125: 31 | L125: 33000 | T125: 0
B126: Hôtel de ville | C126: Nécropole | D126: administration | E126: 24750 | F126: 49 | G126: 38 | T126: 0
B127: Pavillon de chasse | C127: Sylvan | D127: recrutement | E127: 9450 | F127: 29 | G127: 21 | K127: 5 | L127: 9450 | T127: 0
B128: Tour hantée | C128: Nécropole | D128: recrutement | E128: 9450 | F128: 20 | G128: 17 | H128: 12 | T128: 0
B129: Autel de la lumière | C129: Havre | D129: recrutement | E129: 140000 | F129: 115 | G129: 115 | I129: 26 | L129: 140000 | T129: 0
B130: Fonderie de golems | C130: Académie | D130: recrutement | E130: 10500 | F130: 18 | G130: 29 | K130: 6 | L130: 10500 | T130: 0
B131: Tombes profanées | C131: Nécropole | D131: autre | E131: 18000 | F131: 26 | G131: 26 | T131: 0
B132: Arène de la lame dansante | C132: Sylvan | D132: recrutement | E132: 4950 | F132: 15 | G132: 11 | K132: 3 | L132: 4950 | T132: 0
B133: Cathédrale | C133: Havre | D133: recrutement | E133: 27000 | F133: 49 | G133: 54 | H133: 6 | I133: 14 | J133: 6 | K133: 6 | L133: 27000 | T133: 0
B134: Guilde des mages niveau 4 | C134: Inferno | D134: magie | E134: 78000 | F134: 77 | G134: 85 | H134: 18 | I134: 18 | J134: 18 | K134: 18 | L134: 78000 | T134: 0
B135: Mausolée | C135: Nécropole | D135: recrutement | E135: 24300 | F135: 41 | G135: 26 | H135: 20 | I135: 15 | J135: 9 | K135: 9 | T135: 0
B136: Pinacle des vœux | C136: Académie | D136: recrutement | E136: 27000 | F136: 25 | G136: 53 | J136: 23 | K136: 22 | L136: 27000 | T136: 0 | W136: Max1 | X136: Max2 | AB136: 1 | AC136: 2 | AG136: Min1 | AH136: Min2
B137: Garnison | C137: Havre | D137: recrutement | E137: 10500 | F137: 33 | G137: 29 | L137: 10500 | T137: 0
B138: Palais des tourments | C138: Inferno | D138: recrutement | E138: 180000 | F138: 85 | G138: 85 | H138: 10 | J138: 24 | L138: 180000 | T138: =Q138*S138 -> 0 | W138: 19 | X138: 16 | AB138: 13 | AC138: 11 | AG138: 11 | AH138: 9
B139: Hôtel de ville | C139: Sylvan | D139: administration | E139: 24750 | F139: 60 | G139: 40 | L139: 24750 | T139: 0 | V139: =1.4*AA139 -> 5600 | W139: 13 | X139: 12 | AA139: 4000 | AB139: 9 | AC139: 8 | AF139: =AA139/1.25 -> 3200 | AG139: 8 | AH139: 7 | AK139: Tour des archers | AM139: =AA139/AF139 -> 1.25 | AN139: 1.125 | AO139: 1.142857143
B140: Guilde des mages niveau 4 | C140: Sylvan | D140: magie | E140: 84500 | F140: 71 | G140: 73 | H140: 21 | I140: 21 | J140: 21 | K140: 21 | L140: 84500 | T140: 0 | V140: =1.4*AA140 -> 5600 | W140: 19 | X140: 19 | AA140: 4000 | AB140: 13 | AC140: 13 | AF140: =AA140/1.25 -> 3200 | AG140: 11 | AH140: 11 | AK140: Forge | AM140: 1.25 | AN140: 1.181818182 | AO140: 1.181818182
B141: Guilde des mages niveau 2 | C141: Nécropole | D141: magie | E141: 8000 | F141: 22 | G141: 16 | H141: 2 | I141: 2 | J141: 2 | K141: 2 | T141: 0 | AA141: 19800 | AB141: 40 | AC141: 28 | AG141: 34 | AH141: 24 | AK141: Vampires
B142: Bastion des cornus | C142: Inferno | D142: recrutement | E142: 6600 | F142: 9 | G142: 8 | H142: 2 | J142: 6 | L142: 6600 | T142: 0 | AA142: 3600 | AB142: 8 | AC142: 9 | AF142: 2880 | AG142: 7 | AH142: 8 | AK142: guilde magie | AM142: =AA142/AF142 -> 1.25 | AN142: 1.142857143 | AO142: 1.125
B143: Hall des horreurs | C143: Inferno | D143: autre | E143: 24000 | F143: 25 | G143: 25 | L143: 24000 | T143: 0 | V143: 10080 | W143: 34 | X143: 27 | Y143: 9 | Z143: 11h12m46s | AA143: 7200 | AB143: 24 | AC143: 19 | AD143: 6 | AE143: 14h58s | AF143: 5760 | AG143: 20 | AH143: 16 | AI143: 5 | AJ143: 22h25m23s | AK143: Tour en ruines | AM143: 1.25 | AN143: 1.2 | AO143: 1.1875
B144: Hôtel de ville | C144: Havre | D144: administration | E144: 27500 | F144: 53 | G144: 53 | L144: 27500 | T144: 0 | AA144: 24750 | AB144: 49 | AC144: 38 | AE144: 1d 2h 24min | AF144: =AA144/1.25 -> 19800 | AG144: =CEILING(AB144/1.25,1) -> 40 | AH144: =CEILING(AC144/1.25,1) -> 31 | AJ144: 39,75h
B145: Caverne au trésor | C145: Académie | D145: autre | E145: 20000 | F145: 30 | G145: 30 | L145: 20000 | T145: 0
B146: Fermes | C146: Havre | D146: autre | E146: 20000 | F146: 30 | G146: 30 | L146: 20000 | T146: 0
B147: Hall des lamentations | C147: Nécropole | D147: recrutement | E147: 51300 | F147: 72 | G147: 50 | H147: 22 | I147: 12 | T147: 0
B148: Pousses de tréant | C148: Sylvan | D148: autre | E148: 22000 | F148: 30 | G148: 30 | L148: 22000 | T148: 0
B149: Guilde des mages niveau 1 | C149: Nécropole | D149: magie | E149: 3600 | F149: 8 | G149: 9 | T149: 0
B150: Antichambre des abimes | C150: Inferno | D150: recrutement | E150: 68400 | F150: 63 | G150: 65 | H150: 7 | J150: 14 | L150: 68400 | T150: 0
B151: Chenils corrompus | C151: Inferno | D151: recrutement | E151: 12600 | F151: 23 | G151: 26 | H151: 5 | J151: 8 | L151: 12600 | T151: 0
B152: Guilde des mages niveau 4 | C152: Havre | D152: magie | E152: 91000 | F152: 108 | G152: 109 | H152: 21 | I152: 21 | J152: 21 | K152: 21 | L152: 91000 | T152: 0
B153: Tour des griffons | C153: Havre | D153: recrutement | E153: 22000 | F153: 38 | G153: 38 | L153: 22000 | T153: 0
B154: Forge | C154: Nécropole | D154: recrutement | E154: 3600 | F154: 8 | G154: 7 | T154: 0
B155: Fortin | C155: Académie | D155: défense | E155: 12000 | F155: 18 | G155: 25 | L155: 12000 | T155: 0
B156: Pavillon d'argent | C156: Académie | D156: recrutement | E156: 57000 | F156: 56 | G156: 80 | J156: 10 | K156: 25 | L156: 57000 | T156: 0
B157: Manoir de vampires | C157: Nécropole | D157: recrutement | E157: 19800 | F157: 40 | G157: 28 | H157: 8 | T157: 0
B158: Arche de tréant | C158: Sylvan | D158: recrutement | E158: 51300 | F158: 92 | G158: 80 | H158: 8 | K158: 17 | L158: 51300 | T158: 0
B159: Ossuaire | C159: Nécropole | D159: recrutement | E159: 900 | F159: 4 | G159: 4 | T159: 0
B160: Manufacture des gremlins | C160: Académie | D160: recrutement | E160: 1000 | F160: 4 | G160: 4 | L160: 1000 | T160: 0
B161: Fortin | C161: Nécropole | D161: défense | E161: 10800 | F161: 23 | G161: 15 | H161: 6 | T161: 0
B162: Tour des archers | C162: Havre | D162: recrutement | E162: 4000 | F162: 9 | G162: 8 | L162: 4000 | T162: 0
B163: Guilde des mages niveau 3 | C163: Inferno | D163: magie | E163: 30000 | F163: 56 | G163: 43 | H163: 11 | I163: 11 | J163: 11 | K163: 11 | L163: 30000 | T163: 0
B164: Fortin | C164: Sylvan | D164: défense | E164: 10800 | F164: 29 | G164: 25 | L164: 10800 | T164: 0
B165: Écuries infernales | C165: Inferno | D165: recrutement | E165: 27600 | F165: 33 | G165: 35 | H165: 6 | J165: 5 | L165: 27600 | T165: 0
B166: Hall des tentations | C166: Inferno | D166: recrutement | E166: 26400 | F166: 32 | G166: 33 | H166: 3 | J166: 8 | L166: 26400 | T166: 0
B167: Lice | C167: Havre | D167: recrutement | E167: 80000 | F167: 92 | G167: 92 | I167: 15 | L167: 80000 | T167: 0
B168: Fortin | C168: Inferno | D168: défense | E168: 14400 | F168: 21 | G168: 21 | J168: 4 | L168: 14400 | T168: 0
B169: Tour des mages | C169: Académie | D169: recrutement | E169: 22000 | F169: 32 | G169: 45 | J169: 5 | K169: 7 | L169: 22000 | T169: 0
B170: Cercle des pierres | C170: Sylvan | D170: recrutement | E170: 19800 | F170: 52 | G170: 45 | K170: 5 | L170: 19800 | T170: 0
B171: Caveau | C171: Nécropole | D171: recrutement | E171: 20700 | F171: 37 | G171: 25 | H171: 14 | I171: 6 | J171: 3 | K171: 3 | T171: 0
B172: Fortin | C172: Havre | D172: défense | E172: 12000 | F172: 29 | G172: 29 | L172: 12000 | T172: 0
B173: Guilde des mages niveau 3 | C173: Sylvan | D173: magie | E173: 32500 | F173: 54 | G173: 49 | H173: 13 | I173: 13 | J173: 13 | K173: 13 | L173: 32500 | T173: 0
B174: Forge | C174: Inferno | D174: recrutement | E174: 4800 | F174: 9 | G174: 9 | L174: 4800 | T174: 0
B175: Forge | C175: Académie | D175: recrutement | E175: 4000 | F175: 8 | G175: 12 | L175: 4000 | T175: 0
B176: Parapet de pierre | C176: Académie | D176: recrutement | E176: 4800 | F176: 8 | G176: 11 | L176: 4800 | T176: 0
B177: Guilde des mages niveau 1 | C177: Inferno | D177: magie | E177: 5400 | F177: 12 | G177: 11 | L177: 5400 | T177: 0
B178: Bois des fées | C178: Sylvan | D178: recrutement | E178: 900 | F178: 6 | G178: 5 | L178: 900 | T178: 0
B179: Clairière des licornes | C179: Sylvan | D179: recrutement | E179: 20700 | F179: 59 | G179: 50 | H179: 3 | K179: 9 | L179: 20700 | T179: 0
B180: Guilde des mages niveau 2 | C180: Inferno | D180: magie | E180: 12000 | F180: 27 | G180: 27 | H180: 4 | I180: 4 | J180: 4 | K180: 4 | L180: 12000 | T180: 0
B181: Tour des cornus | C181: Inferno | D181: recrutement | E181: 4800 | F181: 7 | G181: 6 | H181: 1 | J181: 3 | L181: 4800 | T181: 0
B182: Forge | C182: Sylvan | D182: recrutement | E182: 3600 | F182: 13 | G182: 11 | L182: 3600 | T182: 0
B183: Terrasse de la lame dansante | C183: Sylvan | D183: recrutement | E183: 3600 | F183: 14 | G183: 10 | L183: 3600 | T183: 0
B184: Autel des vœux | C184: Académie | D184: recrutement | E184: 23000 | F184: 34 | G184: 44 | J184: 15 | K184: 14 | L184: 23000 | T184: 0
B185: Guilde des mages niveau 2 | C185: Sylvan | D185: magie | E185: 13000 | F185: 32 | G185: 25 | H185: 4 | I185: 4 | J185: 4 | K185: 4 | L185: 13000 | T185: 0
B186: Guilde des mages niveau 3 | C186: Havre | D186: magie | E186: 35000 | F186: 76 | G186: 64 | H186: 13 | I186: 13 | J186: 13 | K186: 13 | L186: 35000 | T186: 0
B187: Forge de golems | C187: Académie | D187: recrutement | E187: 8000 | F187: 20 | G187: 20 | K187: 4 | L187: 8000 | T187: 0
B188: Crypte | C188: Nécropole | D188: recrutement | E188: 3600 | F188: 11 | G188: 8 | H188: 3 | T188: 0
B189: Chaumières de paysans | C189: Havre | D189: recrutement | E189: 1000 | F189: 6 | G189: 6 | L189: 1000 | T189: 0
B190: Monastère | C190: Havre | D190: recrutement | E190: 31000 | F190: 45 | G190: 41 | H190: 4 | I190: 10 | J190: 4 | K190: 4 | L190: 31000 | T190: 0
B191: Guilde des mages niveau 1 | C191: Sylvan | D191: magie | E191: 5850 | F191: 13 | G191: 13 | L191: 5850 | T191: 0
B192: Creuset de familiers | C192: Inferno | D192: recrutement | E192: 1200 | F192: 5 | G192: 5 | J192: 1 | L192: 1200 | T192: 0
B193: Forge | C193: Havre | D193: recrutement | E193: 4000 | F193: 13 | G193: 13 | L193: 4000 | T193: 0
B194: Tour en ruines | C194: Nécropole | D194: recrutement | E194: 7200 | F194: 24 | G194: 19 | H194: 6 | L194: 5760 | M194: 20 | N194: 16 | O194: 5 | S194: 14h58 | T194: 22h25
B195: Chenils | C195: Inferno | D195: recrutement | E195: 9600 | F195: 20 | G195: 19 | H195: 2 | J195: 6 | L195: 9600 | T195: 0
B196: Loge de chasse | C196: Sylvan | D196: recrutement | E196: 7200 | F196: 28 | G196: 26 | K196: 3 | L196: 7200 | T196: 0
B197: Caserne | C197: Havre | D197: recrutement | E197: 8000 | F197: 32 | G197: 31 | L197: 8000 | T197: 0
B198: Guilde des mages niveau 1 | C198: Havre | D198: magie | E198: 6300 | F198: 16 | G198: 18 | L198: 6300 | T198: 0
B199: Guilde des mages niveau 2 | C199: Havre | D199: magie | E199: 14000 | F199: 47 | G199: 48 | H199: 4 | I199: 4 | J199: 4 | K199: 4 | L199: 14000 | T199: 0
B200: Marché | C200: Inferno | D200: autre | E200: 1020 | F200: 4 | G200: 4 | L200: 1020 | T200: 0
B201: Silo à ressources niveau 1 | C201: Nécropole | D201: autre | E201: 500 | F201: 3 | G201: 2 | T201: 0
... 20 more rows

Sheet Quêtes
C1: 2010-09-06T22:14:00 | D1: Protection débutant | F1: en jaune : ajustements | I1: EVOLUTION DU STOCK | O1: démarrage le lundi 23
E2: Heure | F2: Temps (h) | O2: 87 | P2: 134 | Q2: 303 | R2: 751 | S2: 1430
C3: Quête | O3: T1 | P3: T2 | Q3: T3 | R3: T4 | S3: T5 | T3: Domination
B5: 1 | C5: Construire un nouveau bâtiment | G5: 800 | W5: Il faut vous construire un autre bâtiment après la taverne pour compléter cette quête
B6: 2 | C6: Les bâtiments principaux | G6: 1500 | W6: Les trois bâtiments principaux sont la taverne, le marché et l'habitation T1
B7: 3 | C7: Échanger des ressources | G7: 6000 | W7: Il faut échanger un total de 5 000 PO de ressources par l'intermédiaire du marché pour valider la quête
B9: 1 | C9: Recruter un héros | W9: Il faut recruter un Héros pour compléter cette quête
B10: 2 | C10: Faire progresser un héros | G10: 12000 | W10: Faire progresser un héros jusqu'au niveau 10
B11: 3 | C11: Victoire écrasante | G11: 15000 | W11: Remporter un combat avec une victoire écrasante
B13: 1 | C13: Libérez les mines | G13: 5000 | W13: libérer les 4 mines des PNJ qui l'occupent pour compléter cette quête.
B14: 2 | C14: Conquérir les zones environnantes | G14: 4000 | W14: Libérer les cases voisines de votre cité
B15: 3 | C15: Libérer votre région | G15: 20000 | U15: cumul | W15: Libérer toute les cases de votre région
B16: 4 | C16: Améliorer vos mines | G16: 7000 | W16: Améliorer vos mines jusqu'au niveau 5 (en amélioration ou perfectionnement)
V17: Nécropole / Inferno / Havre / Académie / Sylve
B18: 1 | C18: Bonus de Troupe | P18: 6 | T18: =O18*$O$2+P18*$P$2+Q18*$Q$2+R18*$R$2+S18*$S$2 -> 804 | U18: =T18+U17 -> 804 | V18: 6 T2 / 4 T2 / 7 T2 / 6 T2 | W18: Gagner un combat avec le bonus de roue pour tous ses pelotons
B19: 2 | C19: Déroulement du combat | P19: 7 | T19: =O19*$O$2+P19*$P$2+Q19*$Q$2+R19*$R$2+S19*$S$2 -> 938 | U19: =T19+U18 -> 1742 | V19: 7 T2 / 5 T2 / 8 T2 / 6 T2 | W19: Organisez votre armée qu'elle comporte au moins 3 pelotons puis engagez le combat.
B20: 3 | C20: Connaitre vos unités | Q20: 4 | T20: 1212 | U20: 2954 | V20: 4 T3 / 3 T3 / 4 T3 / 3 T3 | W20: Organisez votre armée afin que l'un de vos pelotons gagne un round avec une puissance tout juste suffisante. (10% du pack doit survivre)
B21: 4 | C21: Balayer ses ennemis | O21: 4 | Q21: 3 | T21: 1257 | U21: 4211 | V21: 3 T1 - 4 T3 / 3 T1 - 3 T3 / 4 T1 - 4 T3 / 3 T1 - 3 T3 | W21: Organisez votre armée afin qu'au moins un de vos pelotons massacre au moins un peloton ennemi. Soyez victorieux.
B22: 5 | C22: Influence des héros | O22: 7 | Q22: 4 | T22: 1821 | U22: 6032 | V22: 7 T1 - 4 T3 / 8 T1 - 4 T3 / 7 T1 - 3 T3 | W22: Sélectionnez un héros possédant au moins 6 en attaque, une armée, et gagnez le combat.
B23: 6 | C23: Les pertes suite au combat | P23: 6 | Q23: 4 | T23: 2016 | U23: 8048 | V23: 6 T2 - 4 T3 / 4 T2 - 3 T3 / 7 T2 - 4 T3 / 5 T2 - 3 T3 | W23: Organisez votre armée afin qu'au moins un de vos pelotons soit mis en déroute et gagnez le combat.
B24: 7 | C24: Maximisez vos gains en expérience | R24: 3 | T24: 2253 | U24: 10301 | V24: 3 T4 / 3 T4 / 4 T4 / 3 T4 | W24: Sélectionnez une case à libérer et obtenez une victoire avec un modificateur d'honneur supérieur ou égal à 30%.
B25: 8 | C25: Caractéristiques des créatures | P25: 3 | R25: 3 | T25: 2655 | U25: 12956 | V25: 3 T2 - 3 T4 / 3 T2 - 4 T4 / 2 T2 - 3 T4 | W25: Organisez votre armée et tentez d'obtenir une victoire majeure en maximisant votre expérience et en minimisant vos pertes.
B26: 9 | C26: Utilisez la puissance de la magie | P26: 6 | R26: 3 | T26: 3057 | U26: 16013 | V26: 6 T2 - 3 T4 / 7 T2 - 4 T4 / 5 T2 - 3 T4 | W26: Sélectionnez un héros avec une caractéristique magie et une carrière magique, garnissez son livre de sorts et faites-lui lancer au moins un sort lors d'un combat victorieux.
B27: 10 | C27: Massacre héroïque | Q27: 4 | R27: 3 | T27: 3465 | U27: 19478 | V27: 4 T3 - 3 T4 / 4 T3 - 4 T4 / 3 T3 - 3 T4 | W27: Sélectionnez un héros possédant une haute valeur d'attaque, et gagnez le combat en réussissant à massacrer un peloton ennemi au moyen d'un peloton du même type.
B28: 11 | C28: Gagner un combat en utilisant un objet magique | S28: 4 | T28: 5720 | U28: 25198 | V28: 4 T5 / 5 T5 / 4 T5 | W28: Équipez l'un de vos héros avec un objet offrant un bonus à l'attaque ou aux sorts, sélectionnez une case à libérer et gagnez le combat.
U29: 32564
B30: 1 | C30: Contacter vos voisins | G30: 8000
B31: 2 | C31: Créer une nouvelle cité | G31: 15000 | H31: 5 | I31: 5 | W31: 1. Une case = une quête
B33: 1 | C33: Palier 2 de domination | S33: 5 | T33: =O33*$O$2+P33*$P$2+Q33*$Q$2+R33*$R$2+S33*$S$2 -> 7150 | W33: Il faut se débrouiller pour associer chaque du secteur proche de la cité avec une quête de la section combat, y compris les mines. Cela est assez simple à faire si vous vous organisez un minimum.
W34: Ne pas oublier de réserver une case extérieur pour la quête victoire écrasante qui se fera beaucoup plus tard mais dont la récompense est extrêmement intéressante.
W36: http://forums-mightandmagicheroeskingdoms.ubi.com/fr/read.php?61,773251,page=1
T39: =SUM(T18:T33) -> 32348
C41: =53+30+33 -> 116
C42: =C41*70 -> 8120
C43: =26+12 -> 38 | S43: =T43*U43 -> 4270 | T43: 70 | U43: 61
C44: =C43*303 -> 11514 | S44: =T44*U44 -> 1474 | T44: 134 | U44: 11
C45: =16+41+8 -> 65
C46: =C45*134 -> 8710 | S46: 5600
S49: 62349

Sheet Créatures
A34: 75 créatures
A35: Nom | B35: Aspect | C35: Arme | D35: Rang | E35: Faction | F35: Puissance | G35: Cout | H35: Amélioration | I35: Rentabilité | J35: Expérience
A36: Élémentaire d'air | D36: 6+ | E36: neutre | F36: 4 200 | J36: 210
A37: Élémentaire d'eau | D37: 6+ | E37: neutre | F37: 3 900 | J37: 195
A38: Élémentaire de terre | D38: 6+ | E38: neutre | F38: 3 600 | J38: 180
A39: Élémentaire de feu | D39: 6+ | E39: neutre | F39: 3 300 | J39: 165
A40: Chevalier de la mort | D40: 9+ | E40: neutre | F40: 60 000 | J40: 3 000,00
A41: Gremlin | D41: 1 | E41: Académie | F41: 71 | G41: 189 | H41: 56 | I41: 0.38 | J41: 4.73
A42: Ingénieur gremlin | D42: 1+ | E42: Académie | F42: 86 | G42: 226 | I42: 0.38 | J42: 5.73
A43: Gargouille de pierre | D43: 2 | E43: Académie | F43: 120 | G43: 342 | H43: 102 | I43: 0.35 | J43: 8
A44: Gargouille d'obsidienne | D44: 2+ | E44: Académie | F44: 144 | G44: 410 | I44: 0.35 | J44: 9.6
A45: Golem de fer | D45: 3 | E45: Académie | F45: 272 | G45: 720 | H45: 216 | I45: 0.38 | J45: 18.13
A46: Golem d'acier | D46: 3+ | E46: Académie | F46: 327 | G46: 864 | I46: 0.38 | J46: 21.8
A47: Mage | D47: 4 | E47: Académie | F47: 674 | G47: 1 584 | H47: 474 | I47: 0.43 | J47: 56.17
A48: Archimage | D48: 4+ | E48: Académie | F48: 809 | G48: 1 900 | I48: 0.43 | J48: 67.42
A49: Djinn | D49: 5 | E49: Académie | F49: 1 317 | G49: 900 2 | H49: 750 2 | I49: 0.45 | J49: 109.75
A50: Sultan djinn | D50: 5+ | E50: Académie | F50: 1 994 | G50: 1 400 3 | I50: 0.45 | J50: 166.17
A51: Rani Rakshasa | D51: 6 | E51: Académie | F51: 2 242 | G51: 1 800 3 | H51: 750 2 | I51: 0.47 | J51: 186.83
A52: Raja Rakshasa | D52: 6+ | E52: Académie | F52: 2 950 | G52: 2 300 4 | I52: 0.47 | J52: 245.83
A53: Géant | D53: 7 | E53: Académie | F53: 5 850 | G53: 10 | H53: 6 | I53: 0.59 | J53: 585
A54: Titan | D54: 7+ | E54: Académie | F54: 8 190 | G54: 14 | I54: 0.59 | J54: 819
A55: Paysan | D55: 1 | E55: Havre | F55: 97 | G55: 220 | H55: 86 | I55: 0.44 | J55: 6.47
A56: Conscrit | D56: 1+ | E56: Havre | F56: 128 | G56: 277 | I56: 0.46 | J56: 8.53
A57: Archer | D57: 2 | E57: Havre | F57: 198 | G57: 440 | H57: 171 | I57: 0.45 | J57: 13.2
A58: Arbalétrier | D58: 2+ | E58: Havre | F58: 263 | G58: 554 | I58: 0.47 | J58: 17.53
A59: Fantassin | D59: 3 | E59: Havre | F59: 407 | G59: 880 | H59: 264 | I59: 0.46 | J59: 27.13
A60: Champion | D60: 3+ | E60: Havre | F60: 488 | G60: 1 056 | I60: 0.46 | J60: 32.53
A61: Griffon | D61: 4 | E61: Havre | F61: 751 | G61: 1 672 | H61: 501 | I61: 0.45 | J61: 62.58
A62: Griffon impérial | D62: 4+ | E62: Havre | F62: 902 | G62: 2 006 | I62: 0.45 | J62: 75.17
A63: Prêtre | D63: 5 | E63: Havre | F63: 1 747 | G63: 1 200 2 | H63: 750 2 | I63: 0.55 | J63: 145.58
A64: Inquisiteur | D64: 5+ | E64: Havre | F64: 2 575 | G64: 1 700 3 | I64: 0.55 | J64: 214.58
A65: Cavalier | D65: 6 | E65: Havre | F65: 3 188 | G65: 2 400 3 | H65: 750 2 | I65: 0.59 | J65: 265.67
A66: Paladin | D66: 6+ | E66: Havre | F66: 4 508 | G66: 2 900 4 | I66: 0.65 | J66: 375.67
A67: Ange | D67: 7 | E67: Havre | F67: 7 150 | G67: 10 | H67: 6 | I67: 0.72 | J67: 715
A68: Archange | D68: 7+ | E68: Havre | F68: 10 010 | G68: 14 | I68: 0.72 | J68: 1 001,00
A69: Diablotin | D69: 1 | E69: Inferno | F69: 71 | G69: 189 | H69: 56 | I69: 0.38 | J69: 4.73
A70: Familier | D70: 1+ | E70: Inferno | F70: 86 | G70: 226 | I70: 0.38 | J70: 5.73
A71: Démon cornu | D71: 2 | E71: Inferno | F71: 163 | G71: 399 | H71: 119 | I71: 0.41 | J71: 10.87
A72: Démon gardien | D72: 2+ | E72: Inferno | F72: 196 | G72: 478 | I72: 0.41 | J72: 13.07
A73: Chien des enfers | D73: 3 | E73: Inferno | F73: 370 | G73: 840 | H73: 252 | I73: 0.44 | J73: 24.67
A74: Cerbère | D74: 3+ | E74: Inferno | F74: 445 | G74: 1 008 | I74: 0.44 | J74: 29.67
A75: Succube | D75: 4 | E75: Inferno | F75: 918 | G75: 1 848 | H75: 554 | I75: 0.5 | J75: 76.5
A76: Maitresse succube | D76: 4+ | E76: Inferno | F76: 1 101 | G76: 2 217 | I76: 0.5 | J76: 91.75
A77: Cheval infernal | D77: 5 | E77: Inferno | F77: 1 795 | G77: 1 100 2 | H77: 900 2 | I77: 0.58 | J77: 149.58
A78: Destrier de cauchemar | D78: 5+ | E78: Inferno | F78: 2 668 | G78: 1 700 3 | I78: 0.57 | J78: 222.33
A79: Fiélon des abimes | D79: 6 | E79: Inferno | F79: 2 946 | G79: 2 200 3 | H79: 750 2 | I79: 0.57 | J79: 245.5
A80: Seigneur des abimes | D80: 6+ | E80: Inferno | F80: 3 816 | G80: 2 700 4 | I80: 0.57 | J80: 318
A81: Diable | D81: 7 | E81: Inferno | F81: 6 825 | G81: 10 | H81: 6 | I81: 0.68 | J81: 682.5
A82: Archidiable | D82: 7+ | E82: Inferno | F82: 9 555 | G82: 14 | I82: 0.68 | J82: 955.5
A83: Squelette | D83: 1 | E83: Nécropole | F83: 87 | G83: 209 | H83: 0 | I83: 0.42 | J83: 5.8
A84: Archer squelette | D84: 1+ | E84: Nécropole | F84: 70 | G84: 205 | I84: 0.34 | J84: 4.67
A85: Zombie | D85: 2 | E85: Nécropole | F85: 134 | G85: 361 | H85: 108 | I85: 0.37 | J85: 8.93
A86: Zombie pestilentiel | D86: 2+ | E86: Nécropole | F86: 160 | G86: 433 | I86: 0.37 | J86: 10.67
A87: Fantôme | D87: 3 | E87: Nécropole | F87: 303 | G87: 760 | H87: 228 | I87: 0.4 | J87: 20.2
A88: Spectre | D88: 3+ | E88: Nécropole | F88: 364 | G88: 912 | I88: 0.4 | J88: 24.27
A89: Vampire | D89: 4 | E89: Nécropole | F89: 751 | G89: 1 672 | H89: 501 | I89: 0.45 | J89: 62.58
A90: Seigneur vampire | D90: 4+ | E90: Nécropole | F90: 902 | G90: 2 006 | I90: 0.45 | J90: 75.17
A91: Liche | D91: 5 | E91: Nécropole | F91: 1 430 | G91: 1 000 2 | H91: 750 2 | I91: 0.48 | J91: 119.17
A92: Archiliche | D92: 5+ | E92: Nécropole | F92: 2 144 | G92: 1 500 3 | I92: 0.48 | J92: 178.67
A93: Revenant | D93: 6 | E93: Nécropole | F93: 2 578 | G93: 2 000 3 | H93: 750 2 | I93: 0.52 | J93: 214.83
A94: Apparition | D94: 6+ | E94: Nécropole | F94: 3 365 | G94: 2 500 4 | I94: 0.52 | J94: 280.42
A95: Dragon squelette | D95: 7 | E95: Nécropole | F95: 5 866 | G95: 10 | H95: 6 | I95: 0.59 | J95: 586.6
A96: Dragon spectral | D96: 7+ | E96: Nécropole | F96: 8 213 | G96: 14 | I96: 0.59 | J96: 821.3
A97: Nymphe | D97: 1 | E97: Sylvan | F97: 88 | G97: 210 | H97: 63 | I97: 0.42 | J97: 5.87
A98: Dryade | D98: 1+ | E98: Sylvan | F98: 106 | G98: 252 | I98: 0.42 | J98: 7.07
A99: Fine-lame | D99: 2 | E99: Sylvan | F99: 163 | G99: 399 | H99: 120 | I99: 0.41 | J99: 10.87
A100: Lame-de-guerre | D100: 2+ | E100: Sylvan | F100: 196 | G100: 479 | I100: 0.41 | J100: 13.07
A101: Chasseur | D101: 3 | E101: Sylvan | F101: 448 | G101: 924 | H101: 278 | I101: 0.48 | J101: 29.87
A102: Maitre chasseur | D102: 3+ | E102: Sylvan | F102: 538 | G102: 1 109 | I102: 0.49 | J102: 35.87
A103: Druide | D103: 4 | E103: Sylvan | F103: 918 | G103: 1 848 | H103: 555 | I103: 0.5 | J103: 76.5
A104: Druide séculaire | D104: 4+ | E104: Sylvan | F104: 1 101 | G104: 2 218 | I104: 0.5 | J104: 91.75
A105: Licorne | D105: 5 | E105: Sylvan | F105: 1 709 | G105: 1 100 2 | H105: 750 2 | I105: 0.55 | J105: 142.42
A106: Licorne d'argent | D106: 5+ | E106: Sylvan | F106: 2 541 | G106: 1 600 3 | I106: 0.55 | J106: 211.75
A107: Tréant | D107: 6 | E107: Sylvan | F107: 2 652 | G107: 2 200 3 | H107: 750 2 | I107: 0.51 | J107: 221
A108: Tréant séculaire | D108: 6+ | E108: Sylvan | F108: 3 434 | G108: 2 700 4 | I108: 0.51 | J108: 286.17
A109: Dragon vert | D109: 7 | E109: Sylvan | F109: 6 143 | G109: 10 | H109: 6 | I109: 0.61 | J109: 614.3
A110: Dragon d'émeraude | D110: 7+ | E110: Sylvan | F110: 9 077 | G110: 14 | I110: 0.65 | J110: 907.7

Sheet Villes
J1: 5 villes = DOM !
D2: Date actuelle | E2: 2010-09-29T21:30:11.420 | L2: 2010-10-01T18:21:10.562 | U2: Le ratio est plus intéressant pour les Ateliers niv.1 dès que le niv 6 de mine est atteint
D3: Richesse actuelle | E3: 2107251 | G3: marchand | H3: 0.18 | K3: UP | L3: 2010-10-01T18:12:14.936
D4: Palier | E4: 2560000 | G4: Tréso des nains | H4: 1 | T4: Rapporte | U4: Cout total | V4: Ratio | X4: Temps passé
D5: Passage de palier | E5: =((E4-E3)/E10)+E2 -> 2010-10-01T18:44:42.300 | L5: =(L2-L3)*24*60 -> 8.927095472 | V5: gain/cout
O6: gain T/palier (mn)
D9: Production totale | E9: =E15+E35+E56 -> 100044 | F9: 53.461 | G9: 53.314 | H9: 9.328 | I9: 0 | J9: 7.35 | K9: 0 | N9: 1 niveau com/rare v1 | O9: 24 | P9: 34000 | U9: =P9+Q9*500+R9*500+S9*1000 -> 34000 | V9: =O9/U9*10000 -> 7.058823529
D10: Richesse quotidienne | E10: =E9+F9*1000+G9*1000+H9*2000+I9*2000+J9*2000+K9*2000+H10 -> 240175 | G10: Combats | N10: 1 niveau or v1 | O10: 25 | P10: 34000 | U10: 34000 | V10: =O10/U10*10000 -> 7.352941176
D11: Revenus quotidiens | E11: =E9+((F9+G9)*500+(H9+I9+J9+K9)*1000)*(1+H3) -> 182721.29 | N11: 1 niveau or v2 | O11: 28.24 | P11: 34000 | U11: 34000 | V11: =O11/U11*10000 -> 8.305882353
N12: Conseil du village | O12: N/A | T12: 2000 | U12: 0
B13: Ville 1 | C13: Kazimodhal | N13: Mairie | O13: N/A | T13: 4000 | U13: 0
N14: Hôtel de ville | O14: 39.43732002 | P14: 19800 | Q14: 40 | R14: 31 | T14: 7000 | U14: =P14+Q14*500+R14*500+S14*1000 -> 55300 | V14: =O14/U14*10000 -> 7.131522607
E15: =(E19+E23+E16)*(1+E30*E31)*(1+0.05*$H$4) -> 24990 | F15: =F19*(1+F30*F31+F28) -> 18.312 | G15: =G19*(1+F30*F31+G28) -> 18.312 | H15: =H19*(1+H30*H31+H28) -> 0 | I15: =I19*(1+H30*H31+I28) -> 0 | J15: =J19*(1+H30*H31+J28) -> 7.35 | K15: =K19*(1+H30*H31+K28) -> 0 | N15: Capitole | O15: N/A | P15: 108000 | Q15: 105 | R15: 61 | T15: 13000 | U15: =P15+Q15*500+R15*500+S15*1000 -> 191000
D16: Hotel de ville | E16: 7000 | N16: Atelier minerai niv 1 v1 | O16: 9.083624821 | P16: 3000 | R16: 2 | U16: 4000 | V16: =O16/U16*10000 -> 22.70906205
D17: Mine niveau | E17: 8 | F17: 8 | G17: 8 | J17: 7 | N17: Atelier rare niv 1 v1 | O17: 8.927095472 | P17: 3000 | S17: 1 | U17: 4000 | V17: =O17/U17*10000 -> 22.31773868
D18: Perfectionnée de | E18: 0.05 | F18: 0.05 | G18: 0.05 | J18: 0.05 | N18: Atelier bois niv 1 v1 | O18: 9.083624821 | P18: 3000 | Q18: 2 | U18: 4000 | V18: =O18/U18*10000 -> 22.70906205
D19: Production brute | E19: =E17*2000*(E18+1) -> 16800 | F19: =F17*2*(F18+1) -> 16.8 | G19: =G17*2*(G18+1) -> 16.8 | H19: =H17*(H18+1) -> 0 | I19: =I17*(I18+1) -> 0 | J19: =J17*(J18+1) -> 7.35 | K19: =K17*(K18+1) -> 0 | N19: Atelier minerai niv 1 v2 | P19: 3000 | R19: 2 | U19: 4000 | V19: =O19/U19*10000 -> 0
D20: Total mine | E20: =E19*(1+E30*E31+$H$4) -> 33600 | F20: =F19*(1+F30*F31+$H$4) -> 35.112 | G20: =G19*(1+F30*F31+$H$4) -> 35.112 | H20: =H19*(1+H30*H31+$H$4) -> 0 | I20: =I19*(1+H30*H31+$H$4) -> 0 | J20: =J19*(1+H30*H31+$H$4) -> 14.7 | K20: =K19*(1+H30*H31+$H$4) -> 0
D21: Mine niveau | N21: 3% chercheur or v2 | O21: 16.20176497
D22: Perfectionnée de | N22: 3% chercheur or v1 | O22: 8.5 | W22: Kaztor | Y22: 1 X Atelier
D23: Production brute | E23: =E21*2000*(E22+1) -> 0 | F23: =F21*2*(F22+1) -> 0 | G23: =G21*2*(G22+1) -> 0 | H23: =H21*(H22+1) -> 0 | I23: =I21*(I22+1) -> 0 | J23: =J21*(J22+1) -> 0 | K23: =K21*(K22+1) -> 0 | N23: 3% d'intendant v1 | O23: 9.5
D24: Total mine | E24: =E23*(1+E34*E35+$H$4) -> 0 | F24: =F23*(1+F34*F35+$H$4) -> 0 | G24: =G23*(1+F34*F35+$H$4) -> 0 | H24: =H23*(1+H34*H35+$H$4) -> 0 | I24: =I23*(1+H34*H35+$H$4) -> 0 | J24: =J23*(1+H34*H35+$H$4) -> 0 | K24: =K23*(1+H34*H35+$H$4) -> 0 | W24: Kazimodho >> | X24: Kazimodal | Y24: 3 x Atelier
M25: Cout des villes | W25: Patrifia Kaz >> Mine L9
D26: Atelier niveau | F26: 0 | G26: 0 | I26: 0 | J26: 0 | M26: v2 = 20k or 20/20 mine bois | U26: ou équivalent avec prise de territoire | W26: Kazablanca >> | Y26: Guilde mages
D27: Bonus de mine proche | F27: 0.2 | G27: 0.2 | J27: 0.2 | M27: v3 = 50k or 50/50 mine bois
D28: Bonus brut | F28: =4*F26%*(1+F27) -> 0 | G28: =4*G26%*(1+G27) -> 0 | H28: =4*H26%*(1+H27) -> 0 | I28: 0 | J28: 0 | K28: 0 | M28: v4 = 90k or 90/90 mine bois | S28: 53.15 | T28: 76,20 | W28: Kazinière >> Kazablanca >> Combats | Y28: Combat E2
E29: Chercheur d'or | F29: Intendant | H29: Alchimiste | T29: 61.32 | W29: Kaztor >> Troupes >> Combat | Y29: Combat B4
D30: Héros bâtisseur | E30: 0 | F30: 0.09 | H30: 0 | M30: v5 =140k or 140/140 mine bois | R30: 4.2 | S30: 4 | T30: 4 | Y30: Combat D5
D31: Héros présent / absent | E31: 0 | F31: 1 | H31: 0 | M31: v6 = 200 k or et 200 / 200 minerai / bois ? | R31: 1xOr | S31: 2xOr | T31: 1xOr | W31: Kaztor >> Ateliers
M32: v7 = 270 k or et 270 / 270 minerai / bois ? | R32: 2xBois | S32: 1xBois | T32: 1xBois | W32: Azcran >> Kazablanca >> Mine L9
B33: Ville 2 | C33: Kazbaaah | M33: v8 = 350k or et 350 / 350 minerai / bois | R33: 1xMine | S33: 1xMine | T33: 1xMine
M34: v9 = 440 k or et 440 / 440 minerai / bois ? | T34: 1xMerc
E35: =(E39+E43+E36)*(1+E50*E51)*(1+0.05*$H$4) -> 49417.2 | F35: =F39*(1+F50*F51+F48) -> 17.6 | G35: =G39*(1+F50*F51+G48) -> 17.6 | H35: =H39*(1+H50*H51+H48) -> 0 | I35: =I39*(1+H50*H51+I48) -> 0 | J35: =J39*(1+H50*H51+J48) -> 0 | K35: =K39*(1+H50*H51+K48) -> 0 | Q35: Cout de l'installation ?
D36: Hotel de ville | E36: 7000 | M36: [(n×(n+1)/2)-1] × (10 000 or + 10 bois + 10 minerai)
D37: Mine niveau | E37: 9 | F37: 8 | G37: 8 | M37: Avec n = nombre de cités après fondation
D38: Perfectionnée de | E38: 0.1 | F38: 0.1 | G38: 0.1 | P38: Meilleure prochaine ville ?
D39: Production brute | E39: =E37*2000*(E38+1) -> 19800 | F39: =F37*2*(F38+1) -> 17.6 | G39: =G37*2*(G38+1) -> 17.6 | H39: =H37*(H38+1) -> 0 | I39: =I37*(I38+1) -> 0 | J39: =J37*(J38+1) -> 0 | K39: =K37*(K38+1) -> 0
D40: Total mine | E40: =E39*(1+E50*E51+$H$4) -> 40788 | F40: =F39*(1+F50*F51+$H$4) -> 35.2 | G40: =G39*(1+F50*F51+$H$4) -> 35.2 | H40: =H39*(1+H50*H51+$H$4) -> 0 | I40: =I39*(1+H50*H51+$H$4) -> 0 | J40: =J39*(1+H50*H51+$H$4) -> 0 | K40: =K39*(1+H50*H51+$H$4) -> 0
D41: Mine niveau | E41: 8 | M41: Or1 | N41: Or2 | O41: Bois1 | P41: Bois2 | Q41: Mine1 | R41: Merc | S41: N | T41: o1 | U41: o2 | V41: b1 | W41: b2 | X41: m1 | Y41: me1 | Z41: total
D42: Perfectionnée de | E42: 0.1 | M42: 1 | N42: 1 | O42: 1 | P42: 1 | Q42: 1 | R42: 1 | S42: 6 | T42: 1 | U42: 0.8 | V42: 1.2 | W42: 1 | X42: 1 | Y42: 0.5 | Z42: 5.5
D43: Production brute | E43: =E41*2000*(E42+1) -> 17600 | F43: =F41*2*(F42+1) -> 0 | G43: =G41*2*(G42+1) -> 0 | H43: =H41*(H42+1) -> 0 | I43: =I41*(I42+1) -> 0 | J43: =J41*(J42+1) -> 0 | K43: =K41*(K42+1) -> 0 | M43: 1 | N43: 1 | O43: 1 | P43: 1 | Q43: 1 | R43: 0 | S43: 5 | T43: 1 | U43: 0.8 | V43: 1.2 | W43: 1 | X43: 1 | Y43: 0 | Z43: 5
D44: Total mine | E44: =E43*(1+E50*E51+$H$4) -> 36256 | F44: =F43*(1+F50*F51+$H$4) -> 0 | G44: =G43*(1+F50*F51+$H$4) -> 0 | H44: =H43*(1+H50*H51+$H$4) -> 0 | I44: =I43*(1+H50*H51+$H$4) -> 0 | J44: =J43*(1+H50*H51+$H$4) -> 0 | K44: =K43*(1+H50*H51+$H$4) -> 0
M45: 1 | N45: 0 | O45: 1 | P45: 1 | Q45: 1 | R45: 1 | S45: 5 | T45: 1 | U45: 0 | V45: 1.2 | W45: 1 | X45: 1 | Y45: 0.5 | Z45: 4.7
D46: Atelier niveau | F46: 0 | M46: 0 | N46: 1 | O46: 1 | P46: 1 | Q46: 1 | R46: 1 | S46: 5 | T46: 0 | U46: 1 | V46: 1.2 | W46: 1 | X46: 1 | Y46: 0.5 | Z46: 4.7
D47: Bonus de mine proche | F47: 0 | M47: 1 | N47: 1 | O47: 1 | P47: 0 | Q47: 1 | R47: 1 | S47: 5 | T47: 1 | U47: 0.8 | V47: 1.2 | W47: 0 | X47: 1 | Y47: 0.5 | Z47: 4.5
D48: Bonus brut | F48: =4*F46%*(1+F47) -> 0 | G48: =4*G46%*(1+G47) -> 0 | H48: =4*H46%*(1+H47) -> 0 | I48: 0 | J48: 0 | K48: 0 | M48: 1 | N48: 1 | O48: 1 | P48: 1 | Q48: 0 | R48: 1 | S48: 5 | T48: 1 | U48: 0.8 | V48: 1.2 | W48: 1 | X48: 0 | Y48: 0.5 | Z48: 4.5
E49: Chercheur d'or | F49: Intendant | H49: Alchimiste | M49: 1 | N49: 1 | O49: 0 | P49: 1 | Q49: 1 | R49: 1 | S49: 5 | T49: 1 | U49: 0.8 | V49: 0 | W49: 1.2 | X49: 1 | Y49: 0.5 | Z49: 4.5
D50: Héros bâtisseur | E50: 0.06 | F50: 0.09 | H50: 0 | M50: 1 | N50: 0 | O50: 1 | P50: 1 | Q50: 1 | R50: 0 | S50: 4 | T50: 1 | U50: 0 | V50: 1.2 | W50: 1 | X50: 1 | Y50: 0 | Z50: 4.2
D51: Héros présent / absent | E51: 1 | F51: 0 | H51: 0 | M51: 0 | N51: 1 | O51: 1 | P51: 1 | Q51: 1 | R51: 0 | S51: 4 | T51: 0 | U51: 1 | V51: 1.2 | W51: 1 | X51: 1 | Y51: 0 | Z51: 4.2
M52: 1 | N52: 1 | O52: 1 | P52: 0 | Q52: 1 | R52: 0 | S52: 4 | T52: 1 | U52: 0.8 | V52: 1.2 | W52: 0 | X52: 1 | Y52: 0 | Z52: 4
M53: 1 | N53: 1 | O53: 1 | P53: 1 | Q53: 0 | R53: 0 | S53: 4 | T53: 1 | U53: 0.8 | V53: 1.2 | W53: 1 | X53: 0 | Y53: 0 | Z53: 4
B54: Ville 3 | C54: Kazablanca | M54: 1 | N54: 1 | O54: 0 | P54: 1 | Q54: 1 | R54: 0 | S54: 4 | T54: 1 | U54: 0.8 | V54: 0 | W54: 1.2 | X54: 1 | Y54: 0 | Z54: 4
M55: 1 | N55: 0 | O55: 1 | P55: 0 | Q55: 1 | R55: 1 | S55: 4 | T55: 1 | U55: 0 | V55: 1.2 | W55: 0 | X55: 1 | Y55: 0.5 | Z55: 3.7
E56: =(E60+E64+E57)*(1+E70*E71)*(1+0.05*$H$4) -> 25636.8 | F56: =F60*(1+F70*F71+F68) -> 17.549 | G56: =G60*(1+F70*F71+G68) -> 17.402 | H56: =H60*(1+H70*H71+H68) -> 9.328 | I56: =I60*(1+H70*H71+I68) -> 0 | J56: =J60*(1+H70*H71+J68) -> 0 | K56: =K60*(1+H70*H71+K68) -> 0 | M56: 0 | N56: 0 | O56: 1 | P56: 1 | Q56: 1 | R56: 1 | S56: 4 | T56: 0 | U56: 0 | V56: 1.2 | W56: 1 | X56: 1 | Y56: 0.5 | Z56: 3.7
D57: Mairie | E57: 4000 | M57: 1 | N57: 0 | O57: 1 | P57: 1 | Q57: 0 | R57: 1 | S57: 4 | T57: 1 | U57: 0 | V57: 1.2 | W57: 1 | X57: 0 | Y57: 0.5 | Z57: 3.7
D58: Mine niveau | E58: 8 | F58: 7 | G58: 7 | H58: 8 | M58: 1 | N58: 0 | O58: 0 | P58: 1 | Q58: 1 | R58: 1 | S58: 4 | T58: 1 | U58: 0 | V58: 0 | W58: 1.2 | X58: 1 | Y58: 0.5 | Z58: 3.7
D59: Perfectionnée de | E59: 0.15 | F59: 0.15 | G59: 0.1 | H59: 0.1 | M59: 0 | N59: 1 | O59: 1 | P59: 0 | Q59: 1 | R59: 1 | S59: 4 | T59: 0 | U59: 1 | V59: 1.2 | W59: 0 | X59: 1 | Y59: 0.5 | Z59: 3.7
D60: Production brute | E60: =E58*2000*(E59+1) -> 18400 | F60: =F58*2*(F59+1) -> 16.1 | G60: =G58*2*(G59+1) -> 15.4 | H60: =H58*(H59+1) -> 8.8 | I60: =I58*(I59+1) -> 0 | J60: =J58*(J59+1) -> 0 | K60: =K58*(K59+1) -> 0 | M60: 0 | N60: 1 | O60: 1 | P60: 1 | Q60: 0 | R60: 1 | S60: 4 | T60: 0 | U60: 1 | V60: 1.2 | W60: 1 | X60: 0 | Y60: 0.5 | Z60: 3.7
D61: Total mine | E61: =E60*(1+E70*E71+$H$4) -> 38456 | F61: =F60*(1+F70*F71+$H$4) -> 33.649 | G61: =G60*(1+F70*F71+$H$4) -> 32.186 | H61: =H60*(1+H70*H71+$H$4) -> 18.128 | I61: =I60*(1+H70*H71+$H$4) -> 0 | J61: =J60*(1+H70*H71+$H$4) -> 0 | K61: =K60*(1+H70*H71+$H$4) -> 0
D62: Mine niveau | M62: 0 | N62: 1 | O62: 0 | P62: 1 | Q62: 1 | R62: 1 | S62: 4 | T62: 0 | U62: 1 | V62: 0 | W62: 1.2 | X62: 1 | Y62: 0.5 | Z62: 3.7
D63: Perfectionnée de | M63: 1 | N63: 1 | O63: 1 | P63: 0 | Q63: 0 | R63: 1 | S63: 4 | T63: 1 | U63: 0.8 | V63: 1.2 | W63: 0 | X63: 0 | Y63: 0.5 | Z63: 3.5
D64: Production brute | E64: =E62*2000*(E63+1) -> 0 | F64: =F62*2*(F63+1) -> 0 | G64: =G62*2*(G63+1) -> 0 | H64: =H62*(H63+1) -> 0 | I64: =I62*(I63+1) -> 0 | J64: =J62*(J63+1) -> 0 | K64: =K62*(K63+1) -> 0 | M64: 1 | N64: 1 | O64: 0 | P64: 1 | Q64: 0 | R64: 1 | S64: 4 | T64: 1 | U64: 0.8 | V64: 0 | W64: 1.2 | X64: 0 | Y64: 0.5 | Z64: 3.5
D65: Total mine | E65: =E64*(1+E71*E72+$H$4) -> 0 | F65: =F64*(1+F71*F72+$H$4) -> 0 | G65: =G64*(1+F71*F72+$H$4) -> 0 | H65: =H64*(1+H71*H72+$H$4) -> 0 | I65: =I64*(1+H71*H72+$H$4) -> 0 | J65: =J64*(1+H71*H72+$H$4) -> 0 | K65: =K64*(1+H71*H72+$H$4) -> 0 | M65: 1 | N65: 1 | O65: 0 | P65: 0 | Q65: 1 | R65: 1 | S65: 4 | T65: 1 | U65: 0.8 | V65: 0 | W65: 0 | X65: 1 | Y65: 0.5 | Z65: 3.3
D66: Atelier niveau | F66: 0 | G66: 1 | M66: 1 | N66: 0 | O66: 1 | P66: 0 | Q66: 1 | R66: 0 | S66: 3 | T66: 1 | U66: 0 | V66: 1.2 | W66: 0 | X66: 1 | Y66: 0 | Z66: 3.2
D67: Bonus de mine proche | F67: 0.2 | G67: 0 | M67: 0 | N67: 0 | O67: 1 | P67: 1 | Q67: 1 | R67: 0 | S67: 3 | T67: 0 | U67: 0 | V67: 1.2 | W67: 1 | X67: 1 | Y67: 0 | Z67: 3.2
D68: Bonus brut | F68: =4*F66%*(1+F67) -> 0 | G68: =4*G66%*(1+G67) -> 0.04 | H68: =4*H66%*(1+H67) -> 0 | I68: 0 | J68: 0 | K68: 0 | M68: 1 | N68: 0 | O68: 1 | P68: 1 | Q68: 0 | R68: 0 | S68: 3 | T68: 1 | U68: 0 | V68: 1.2 | W68: 1 | X68: 0 | Y68: 0 | Z68: 3.2
E69: Chercheur d'or | F69: Intendant | H69: Alchimiste | M69: 1 | N69: 0 | O69: 0 | P69: 1 | Q69: 1 | R69: 0 | S69: 3 | T69: 1 | U69: 0 | V69: 0 | W69: 1.2 | X69: 1 | Y69: 0 | Z69: 3.2
D70: Héros bâtisseur | E70: 0.09 | F70: 0.09 | H70: 0.06 | M70: 0 | N70: 1 | O70: 1 | P70: 0 | Q70: 1 | R70: 0 | S70: 3 | T70: 0 | U70: 1 | V70: 1.2 | W70: 0 | X70: 1 | Y70: 0 | Z70: 3.2
D71: Héros présent / absent | E71: 1 | F71: 1 | H71: 1 | M71: 0 | N71: 1 | O71: 1 | P71: 1 | Q71: 0 | R71: 0 | S71: 3 | T71: 0 | U71: 1 | V71: 1.2 | W71: 1 | X71: 0 | Y71: 0 | Z71: 3.2
M72: 0 | N72: 1 | O72: 0 | P72: 1 | Q72: 1 | R72: 0 | S72: 3 | T72: 0 | U72: 1 | V72: 0 | W72: 1.2 | X72: 1 | Y72: 0 | Z72: 3.2
B73: Ville 4 | M73: 1 | N73: 1 | O73: 1 | P73: 0 | Q73: 0 | R73: 0 | S73: 3 | T73: 1 | U73: 0.8 | V73: 1.2 | W73: 0 | X73: 0 | Y73: 0 | Z73: 3
M74: 1 | N74: 1 | O74: 0 | P74: 1 | Q74: 0 | R74: 0 | S74: 3 | T74: 1 | U74: 0.8 | V74: 0 | W74: 1.2 | X74: 0 | Y74: 0 | Z74: 3
D75: Production totale | E75: =(E79+E83+E76)*(1+E89*E90)*(1+0.05*$H$4) -> 0 | F75: =F79*(1+F89*F90+F87) -> 0 | G75: =G79*(1+F89*F90+G87) -> 0 | H75: =H79*(1+H89*H90+H87) -> 0 | I75: =I79*(1+H89*H90+I87) -> 0 | J75: =J79*(1+H89*H90+J87) -> 0 | K75: =K79*(1+H89*H90+K87) -> 0 | M75: 1 | N75: 1 | O75: 0 | P75: 0 | Q75: 1 | R75: 0 | S75: 3 | T75: 1 | U75: 0.8 | V75: 0 | W75: 0 | X75: 1 | Y75: 0 | Z75: 2.8
D76: Mairie | E76: 0 | G76: Richesse quotidienne | H76: =E94+F94*1000+G94*1000+H94*2000+I94*2000+J94*2000+K94*2000 -> 0 | J76: Revenus quotidiens | K76: =E94+((F94+G94)*500+(H94+I94+J94+K94)*1000)*(1+H88) ->  | M76: 0 | N76: 0 | O76: 1 | P76: 0 | Q76: 1 | R76: 1 | S76: 3 | T76: 0 | U76: 0 | V76: 1.2 | W76: 0 | X76: 1 | Y76: 0.5 | Z76: 2.7
D77: Mine niveau | E77: 0 | F77: 0 | G77: 0 | H77: 0 | M77: 1 | N77: 0 | O77: 1 | P77: 0 | Q77: 0 | R77: 1 | S77: 3 | T77: 1 | U77: 0 | V77: 1.2 | W77: 0 | X77: 0 | Y77: 0.5 | Z77: 2.7
D78: Perfectionnée de | E78: 0.15 | F78: 0.15 | G78: 0.1 | H78: 0.1 | M78: 0 | N78: 0 | O78: 1 | P78: 1 | Q78: 0 | R78: 1 | S78: 3 | T78: 0 | U78: 0 | V78: 1.2 | W78: 1 | X78: 0 | Y78: 0.5 | Z78: 2.7
D79: Production brute | E79: =E77*2000*(E78+1) -> 0 | F79: =F77*2*(F78+1) -> 0 | G79: =G77*2*(G78+1) -> 0 | H79: =H77*(H78+1) -> 0 | I79: =I77*(I78+1) -> 0 | J79: =J77*(J78+1) -> 0 | K79: =K77*(K78+1) -> 0 | M79: 0 | N79: 0 | O79: 0 | P79: 1 | Q79: 1 | R79: 1 | S79: 3 | T79: 0 | U79: 0 | V79: 0 | W79: 1.2 | X79: 1 | Y79: 0.5 | Z79: 2.7
D80: Total mine | E80: =E79*(1+E89*E90+$H$4) -> 0 | F80: =F79*(1+F89*F90+$H$4) -> 0 | G80: =G79*(1+F89*F90+$H$4) -> 0 | H80: =H79*(1+H89*H90+$H$4) -> 0 | I80: =I79*(1+H89*H90+$H$4) -> 0 | J80: =J79*(1+H89*H90+$H$4) -> 0 | K80: =K79*(1+H89*H90+$H$4) -> 0 | M80: 1 | N80: 0 | O80: 0 | P80: 1 | Q80: 0 | R80: 1 | S80: 3 | T80: 1 | U80: 0 | V80: 0 | W80: 1.2 | X80: 0 | Y80: 0.5 | Z80: 2.7
D81: Mine niveau | M81: 0 | N81: 1 | O81: 1 | P81: 0 | Q81: 0 | R81: 1 | S81: 3 | T81: 0 | U81: 1 | V81: 1.2 | W81: 0 | X81: 0 | Y81: 0.5 | Z81: 2.7
D82: Perfectionnée de | M82: 0 | N82: 1 | O82: 0 | P82: 1 | Q82: 0 | R82: 1 | S82: 3 | T82: 0 | U82: 1 | V82: 0 | W82: 1.2 | X82: 0 | Y82: 0.5 | Z82: 2.7
D83: Production brute | E83: =E81*2000*(E82+1) -> 0 | F83: =F81*2*(F82+1) -> 0 | G83: =G81*2*(G82+1) -> 0 | H83: =H81*(H82+1) -> 0 | I83: =I81*(I82+1) -> 0 | J83: =J81*(J82+1) -> 0 | K83: =K81*(K82+1) -> 0 | M83: 1 | N83: 0 | O83: 0 | P83: 0 | Q83: 1 | R83: 1 | S83: 3 | T83: 1 | U83: 0 | V83: 0 | W83: 0 | X83: 1 | Y83: 0.5 | Z83: 2.5
D84: Total mine | E84: =E83*(1+E94*H76+$H$4) -> 0 | F84: =F83*(1+F94*F95+$H$4) -> 0 | G84: =G83*(1+F94*F95+$H$4) -> 0 | H84: =H83*(1+H94*H95+$H$4) -> 0 | I84: =I83*(1+H94*H95+$H$4) -> 0 | J84: =J83*(1+H94*H95+$H$4) -> 0 | K84: =K83*(1+H94*H95+$H$4) -> 0 | M84: 0 | N84: 1 | O84: 0 | P84: 0 | Q84: 1 | R84: 1 | S84: 3 | T84: 0 | U84: 1 | V84: 0 | W84: 0 | X84: 1 | Y84: 0.5 | Z84: 2.5
D85: Atelier niveau | M85: 1 | N85: 1 | O85: 0 | P85: 0 | Q85: 0 | R85: 1 | S85: 3 | T85: 1 | U85: 0.8 | V85: 0 | W85: 0 | X85: 0 | Y85: 0.5 | Z85: 2.3
D86: Bonus de mine proche | M86: 0 | N86: 0 | O86: 1 | P86: 0 | Q86: 1 | R86: 0 | S86: 2 | T86: 0 | U86: 0 | V86: 1.2 | W86: 0 | X86: 1 | Y86: 0 | Z86: 2.2
D87: Bonus brut | M87: 1 | N87: 0 | O87: 1 | P87: 0 | Q87: 0 | R87: 0 | S87: 2 | T87: 1 | U87: 0 | V87: 1.2 | W87: 0 | X87: 0 | Y87: 0 | Z87: 2.2
E88: Chercheur d'or | F88: Intendant | H88: Alchimiste | M88: 0 | N88: 0 | O88: 1 | P88: 1 | Q88: 0 | R88: 0 | S88: 2 | T88: 0 | U88: 0 | V88: 1.2 | W88: 1 | X88: 0 | Y88: 0 | Z88: 2.2
D89: Héros bâtisseur | E89: 0.09 | F89: 0.09 | H89: 0.03 | M89: 0 | N89: 0 | O89: 0 | P89: 1 | Q89: 1 | R89: 0 | S89: 2 | T89: 0 | U89: 0 | V89: 0 | W89: 1.2 | X89: 1 | Y89: 0 | Z89: 2.2
D90: Héros présent / absent | E90: 1 | F90: 1 | H90: 1 | M90: 1 | N90: 0 | O90: 0 | P90: 1 | Q90: 0 | R90: 0 | S90: 2 | T90: 1 | U90: 0 | V90: 0 | W90: 1.2 | X90: 0 | Y90: 0 | Z90: 2.2
M91: 0 | N91: 1 | O91: 1 | P91: 0 | Q91: 0 | R91: 0 | S91: 2 | T91: 0 | U91: 1 | V91: 1.2 | W91: 0 | X91: 0 | Y91: 0 | Z91: 2.2
M92: 0 | N92: 1 | O92: 0 | P92: 1 | Q92: 0 | R92: 0 | S92: 2 | T92: 0 | U92: 1 | V92: 0 | W92: 1.2 | X92: 0 | Y92: 0 | Z92: 2.2
M93: 1 | N93: 0 | O93: 0 | P93: 0 | Q93: 1 | R93: 0 | S93: 2 | T93: 1 | U93: 0 | V93: 0 | W93: 0 | X93: 1 | Y93: 0 | Z93: 2
D94: Production totale | E94: =E100+E120+E141 -> 0 | M94: 0 | N94: 1 | O94: 0 | P94: 0 | Q94: 1 | R94: 0 | S94: 2 | T94: 0 | U94: 1 | V94: 0 | W94: 0 | X94: 1 | Y94: 0 | Z94: 2
M95: 1 | N95: 1 | O95: 0 | P95: 0 | Q95: 0 | R95: 0 | S95: 2 | T95: 1 | U95: 0.8 | V95: 0 | W95: 0 | X95: 0 | Y95: 0 | Z95: 1.8
M96: 0 | N96: 0 | O96: 1 | P96: 0 | Q96: 0 | R96: 1 | S96: 2 | T96: 0 | U96: 0 | V96: 1.2 | W96: 0 | X96: 0 | Y96: 0.5 | Z96: 1.7
M97: 0 | N97: 0 | O97: 0 | P97: 1 | Q97: 0 | R97: 1 | S97: 2 | T97: 0 | U97: 0 | V97: 0 | W97: 1.2 | X97: 0 | Y97: 0.5 | Z97: 1.7
M98: 0 | N98: 0 | O98: 0 | P98: 0 | Q98: 1 | R98: 1 | S98: 2 | T98: 0 | U98: 0 | V98: 0 | W98: 0 | X98: 1 | Y98: 0.5 | Z98: 1.5
M99: 1 | N99: 0 | O99: 0 | P99: 0 | Q99: 0 | R99: 1 | S99: 2 | T99: 1 | U99: 0 | V99: 0 | W99: 0 | X99: 0 | Y99: 0.5 | Z99: 1.5
M100: 0 | N100: 1 | O100: 0 | P100: 0 | Q100: 0 | R100: 1 | S100: 2 | T100: 0 | U100: 1 | V100: 0 | W100: 0 | X100: 0 | Y100: 0.5 | Z100: 1.5
M101: 0 | N101: 0 | O101: 1 | P101: 0 | Q101: 0 | R101: 0 | S101: 1 | T101: 0 | U101: 0 | V101: 1.2 | W101: 0 | X101: 0 | Y101: 0 | Z101: 1.2
M102: 0 | N102: 0 | O102: 0 | P102: 1 | Q102: 0 | R102: 0 | S102: 1 | T102: 0 | U102: 0 | V102: 0 | W102: 1.2 | X102: 0 | Y102: 0 | Z102: 1.2
M103: 0 | N103: 0 | O103: 0 | P103: 0 | Q103: 1 | R103: 0 | S103: 1 | T103: 0 | U103: 0 | V103: 0 | W103: 0 | X103: 1 | Y103: 0 | Z103: 1
M104: 1 | N104: 0 | O104: 0 | P104: 0 | Q104: 0 | R104: 0 | S104: 1 | T104: 1 | U104: 0 | V104: 0 | W104: 0 | X104: 0 | Y104: 0 | Z104: 1
M105: 0 | N105: 1 | O105: 0 | P105: 0 | Q105: 0 | R105: 0 | S105: 1 | T105: 0 | U105: 1 | V105: 0 | W105: 0 | X105: 0 | Y105: 0 | Z105: 1
M106: 0 | N106: 0 | O106: 0 | P106: 0 | Q106: 0 | R106: 1 | S106: 1 | T106: 0 | U106: 0 | V106: 0 | W106: 0 | X106: 0 | Y106: 0.5 | Z106: 0.5
M107: 0 | N107: 0 | O107: 0 | P107: 0 | Q107: 0 | R107: 0 | S107: 0 | T107: 0 | U107: 0 | V107: 0 | W107: 0 | X107: 0 | Y107: 0 | Z107: 0

Sheet récompenses
H5: 1 1 000 1 1 918
H6: 2 1 000 1 1 918
H7: 3 1 500 2 2 1 377
H8: 4 2 000 2 2 1 836
H9: 5 2 500 3 3 2 295
H10: 6 3 000 3 3 2 754
H11: 7 3 500 4 4 3 213
H12: 8 4 000 4 4 3 672
H13: 9 4 500 5 5 4 131
H14: 10 5 000 5 5 4 590
H15: 11 5 500 6 6 5 049
H16: 12 6 000 6 6 5 508
H17: 13 6 500 7 7 5 967
H18: 14 7 000 7 7 6 426
H19: 15 7 500 8 8 6 885
H20: 16 8 000 8 8 7 344
H21: 17 8 500 9 9 7 803
H22: 18 9 000 9 9 8 262
H23: 19 9 500 10 10 8 721
H24: 20 10 000 10 10 9 180
H25: 21 10 500 11 11 9 639
H26: 22 11 000 11 11 10 098
H27: 23 11 500 12 12 10 557
H28: 24 12 000 12 12 11 016
H29: 25 12 500 13 13 11 475
H30: 26 13 000 13 13 11 934
H31: 27 13 500 14 14 12 393
H32: 28 14 000 14 14 12 852
H33: 29 14 500 15 15 13 311
H34: 30 15 000 15 15 13 770

Sheet Carte
A2: 4 | E2: 1. Vent du nord | F2: =R4 -> 215 | G2: =S4 -> 108 | O2: =150-O14 -> 125 | P2: =150-P14 -> 115
A3: 3 | E3: 2. Freelancer | F3: =R5 -> 179 | G3: 257 | N3: X0 | O3: X1 | P3: Y0 | R3: X2 | S3: Y2
E4: 3. Les Exilés | F4: 176 | G4: 149 | M4: 1. Vent du nord | N4: 40 | O4: =300-N4 -> 260 | P4: 77 | R4: =300-IF(O4+O$2>300,O4+O$2-300,O4+O$2) -> 215 | S4: =300-IF(P4+P$2>300,P4+P$2-300,P4+P$2) -> 108 | V4: 40 | W4: 77
E5: 4. La Garde de glace | F5: 223 | G5: 218 | M5: 2. Freelancer | N5: 4 | O5: 296 | P5: 228 | R5: 179 | S5: 257 | V5: 4 | W5: 228
E6: 5. Antre des Héros | F6: 142 | G6: 126 | M6: 3. Exilés | N6: 1 | O6: 299 | P6: 36 | R6: 176 | S6: 149 | V6: 1 | W6: 36
E7: 6. La garde d'argent | F7: 211 | G7: 223 | M7: 4. La Garde de glace | N7: 48 | O7: 252 | P7: 267 | R7: 223 | S7: 218 | V7: 48 | W7: 267
E8: 7. Le Chant des Justes | F8: 222 | G8: 213 | M8: 5. Antre des Héros | N8: 267 | O8: 33 | P8: 59 | R8: 142 | S8: 126 | V8: 267 | W8: 59
E9: 8. Origine online | F9: 261 | G9: 25 | M9: 6. La garde d'argent | N9: 36 | O9: 264 | P9: 262 | R9: 211 | S9: 223 | V9: 36 | W9: 262
E10: 9. Les Lames d Urgash | F10: 106 | G10: 249 | M10: 7. Le Chant des Justes | N10: 47 | O10: 253 | P10: 272 | R10: 222 | S10: 213 | V10: 47 | W10: 272
E11: 10. Hypérion | F11: 141 | G11: 213 | M11: 8. Origine online | N11: 86 | O11: 214 | P11: 160 | R11: 261 | S11: 25 | V11: 86 | W11: 160
E12: 11. Djinns Tonic | F12: 150 | G12: 150 | M12: 9. Les Lames d Urgash | N12: 231 | O12: 69 | P12: 236 | R12: 106 | S12: 249 | V12: 231 | W12: 236
E13: 12. Millenium | F13: 200 | G13: 32 | M13: 10. Hypérion | N13: 266 | O13: 34 | P13: 272 | R13: 141 | S13: 213 | V13: 266 | W13: 272
E14: 13. Eternel Espoir | F14: 66 | G14: 215 | M14: 11. Djinns Tonic | N14: 275 | O14: 25 | P14: 35 | R14: =300-IF(O14+O$2>300,O14+O$2-300,O14+O$2) -> 150 | S14: =300-IF(P14+P$2>300,P14+P$2-300,P14+P$2) -> 150 | V14: 275 | W14: 35
E15: 14. Pacte d Enroth | F15: 21 | G15: 86 | M15: 12. Millenium | N15: 25 | O15: 275 | P15: 153 | R15: =300-IF(O15+O$2>300,O15+O$2-300,O15+O$2) -> 200 | S15: =300-IF(P15+P$2>300,P15+P$2-300,P15+P$2) -> 32 | V15: 25 | W15: 153
E16: 15. Chevaliers d Enroth | F16: 36 | G16: 101 | M16: 13. Eternel Espoir | N16: 191 | O16: 109 | P16: 270 | R16: 66 | S16: 215 | V16: 191 | W16: 270
E17: 16. Heritage du dragon | F17: 57 | G17: 5 | M17: 14. Pacte d Enroth | N17: 146 | O17: 154 | P17: 99 | R17: 21 | S17: 86 | V17: 146 | W17: 99
E18: 17. RoXXe | F18: 83 | G18: 253 | M18: 15. Chevaliers d Enroth | N18: 161 | O18: 139 | P18: 84 | R18: 36 | S18: 101 | V18: 161 | W18: 84
E19: 18. Origine | F19: 277 | G19: 39 | M19: 16. Heritage du dragon | N19: 182 | O19: 118 | P19: 180 | R19: 57 | S19: 5 | V19: 182 | W19: 180
E20: La Garde d'Argent | F20: 211 | G20: 223 | M20: 17. RoXXe | N20: 208 | O20: 92 | P20: 232 | R20: 83 | S20: 253 | V20: 208 | W20: 232
E21: La Confrérie | F21: 107 | G21: 17 | M21: 18. Origine | N21: 102 | O21: 198 | P21: 146 | R21: 277 | S21: 39 | V21: 102 | W21: 146
M22: La Garde d'Argent | N22: 36 | O22: 264 | P22: 262 | R22: 211 | S22: 223
M23: La Confrérie | N23: 232 | O23: 68 | P23: 168 | R23: 107 | S23: 17
M24: Le chant des anges | N24: 251 | O24: 49 | P24: 22 | R24: 126 | S24: 163
E25: Le Chant Des Anges | M25: Heritage du dragon | N25: 182 | O25: 118 | P25: 180 | R25: 57 | S25: 5

Sheet Honneur-début
G2: Dom | H2: Rich | I2: Honneur | J2: cités
G3: 11 | H3: 6 | I3: 1 | J3: 2 | L3: inferno
B4: Hylian, tybz, Vigne, Valouf et Tharkùn. | G4: 99 | H4: 5 | I4: 2 | J4: 2 | L4: inferno
G5: 79 | H5: 15 | I5: 3 | J5: 2 | L5: elfe
B6: Kaz' | G6: 20 | H6: 8 | I6: 4 | J6: 2 | L6: mage
G7: 124 | H7: 4 | I7: 5 | J7: 2 | L7: necro | S7: ils fe combattent entre eux ?
G8: 105 | H8: 11 | I8: 6 | J8: 2 | L8: necro | S8: Voir le profil à BenderZ 22:13 pas possible encore ;-)
G9: 7 | H9: 22 | I9: 7 | J9: 2 | L9: inferno | S9: Voir le profil à BenderZ 22:14 pour la dom ça peut s'expliquer simplement par recrutement quotidien
G10: 119 | H10: 71 | I10: 8 | J10: 1 | L10: inferno | S10: Voir le profil à BenderZ 22:14 + une politique exclusive de recrutement
G11: 75 | H11: 2 | I11: 10 | J11: 2 | L11: havre | S11: Voir le profil à BenderZ 22:14 pour l'honneur...de la chance et des sacrifices
S12: Voir le profil à BenderZ 22:15 tout dépend des pnj
S13: Voir le profil à BenderZ 22:17 en plus y a pas mal de no life dans les toplist
B14: Tharkùn | S14: Voir le profil à BenderZ 22:19 par exemple gnous est 24h devant l'écran ou presque...il est presque toujours toptop dans le classemnt dom et honneur
M15: La richesse y'a pas de secrets non plus hein ! | S15: Voir le profil à BenderZ 22:22 c'est des joueurs qui vivent pour gagner (certains sont pro d'ailleurs comme sladdug)
B16: Il n'y a pas de mystère : | S16: Voir le profil à BenderZ 22:24 à kaz : regarde sa 2eme cité à gnous...toujours la même configuration sur tous les serveurs bois/min/rare/rare
M17: Y'a 2 compétences d'hérédité (contribution populaire et richesse perosnelle) qui l'aide beaucoup (CP en milieu/fin de jeu, RP surtout en début de partie). | S17: Voir le profil à BenderZ 22:26 d'ici 3 semaines il aura une armée de + ou - 100 t5 + déjà
B18: - Un héros att/mag (ou déf/magie si on a la compétence d'hérédité permettant de lui donner qqes points d'attaque) en héros de départ | S18: Voir le profil à BenderZ 22:27 leur méthode? multiplier les combats en overun
M19: Après comme le disent de nombreux tutos, moins on envoie de troupes combattre les PNJ, moins on a de pertes, plus la récompense est bonne, plus la richesse monte. | S19: Voir le profil à BenderZ 22:28 ils arrivent rapidement à cours de pn par contre et ont besoin du jcj pour avancer en honneur
B20: - Recruter un 2e et 3e héros pour avoir des troupes (si possible en ayant mis la compétence "enroleur charismatique" sur le héros de départ)
M21: Puis après y'a les trucs genre un héros batisseur - chercheur d'or et avoir la chance ou non de choper un harnais (+4% de prod d'or) sur les PNJ.
B22: - Se lancer dans les quêtes en les enchainant le + possible (pour cela, au début (pour genre 4 quêtes) faire 2 combats à la fois, en connaissant l'ordre des quetes et leurs objectifs) | M22: Puis comme le disent certains tutos, perf jusuq'au niveau 3 et ensuite simplement améliorer les mines est un bon compromis pour un départ rapide en richesse, qu'après chacun à sa façon de prolonger (ou pas^^)
B24: - Faire la guilde de magie niveau 1 rapidement en espérant avoir le meilleur des 2 sorts (genre fleche des arcanes (que j'aurais voulu mais n'ai pas eu!) pour destruction, essaim pour invocation)
B26: - Avoir un peu de chances sur les cases à libérer : des stacks de PnJ qui correspondent bien à nos troupes
B28: - Puis avoir certaines compétences d'hérédité qui aide le départ rapie, tu ne m'en voudras pas, je ne préfère pas dévoiler les miennes.
M29: Vigne
B30: Voilà, j'espère que ça pourra t'aider un peu.
M31: Salut,
B32: Sinon il y a des bons tutoriels complets à cette adresse :
B33: http://pacte-enroth.forumactif.net/aide-de-jeu-f8/ | M33: En saison 2 pour faire un bon départ il faut prendre Héro Talentueux lvl 5 sur ton 1er Héro (Hérédité).
M34: Avec cela tu peux prendre Tavernier avec +135% d'unités en plus pour chaque Héro recruté.
M35: Ensuite tu recrutes rapidement 3 puis 4 Héros.
M36: Tu as bcp d'unité, tu peux donc normalement enchainer les combats avec 2 Héros tout en validant les quetes.
M37: Perso j'ai aussi Contribution Populaire et Tir de barrage pour enchainer encore mieux les combats.
B38: Valouf
M39: Bon jeu,
B40: Ce n'est pas si compliqué que ça en fait. :)
M41: Vigne
B42: Le truc, c'est de gérer ses pertes d'armées et donc son "pool". Les questions à se poser sont : | M42: ---------------------------
B43: As-tu fait toutes les quêtes de combat permettant ainsi d'avoir plus d'armée? Essayer d'atteindre le rang 1 domi avant de faire les combats à bcp de pertes ?
B44: As-tu choisi un ordre de combat préférentiel de pertes d'armées et de puissances ? (Exemple : je perds 22 T1 sur celui-ci, 10 sur ce combat et 35 sur lui, autant faire le combat avec le plus de pertes (ici 35) d'abord pour enchainer les combats sans devoir attendre d'avoir les troupes nécessaires)
B46: Bref, je pense que tu as compris le principe, et bien sûr sous réserve que tes combats jactari soit optimisé comme il se doit. :)
B48: Si jamais tu as un doute, tu peux transférer tes rapports de combats (enfin 2-3 hein), cela ne me dérange pas de t'aider.
B51: La plupart des serveurs, j'ai ma V2 en 5-6 jours (bon ici 4 grâce à l'hérédité) quel que soit la race et sa magie. Je prépare un bâtiment de guilde de mage à un moment, mais seulement pour réaliser la quête, ça n'a pas tant d'influence que ça.
B53: Et je combat avec qu'un seul héros aussi. Il m'arrive d'en avoir un autre au combat, mais c'est juste pour lui faire gagner de l'xp et sans préparer la future quête de combat (de toute façon, je n'étais pas co sur les fin de combats pour essayer d'optimiser l'enchainement).
B55: Donc ça se joue vraiment sur sa gestion de l'armée et des quêtes en essayant de faire un maximum d'honneur.
B56: Sur le jactari, je me met d'abord en condition max xp, et après je fais que quelques petit changement voire pas.
B58: Par contre, je me pose une question aux niveaux des quêtes, as tu réalisé les quêtes une par une dès le début ? Car, sur les petits pack, tu ne perds pas grand chose et ton armée, avant d'attaquer les gros pack, est + grosse et te permet donc + de souplesse et + de faciliter à clean les monstres.
B59: D'où l'intérêt de nettoyer avec qu'un seul héros aussi pour éviter de tuer un pack "sans récompense de quête"
B62: Montre moi plutôt un de tes combats et je pourrais te dire si je vois une ptite astuce ou pas. :)
B67: tybz
B68: je t'avoue que je ne fais rien de spécial... jactari est mon dieu vivant et je suis à la lettre ses préceptes.
B69: J'essaie juste de faire correspondre une quête à chaque combat, et quand je n'ai plus de sous pour payer du développement, mes gestionnaires vont aussi au combat.
B70: quand je vois que je n'obtiens que des victroires moyennes sur mon simuilateur, je fais une pause kitkat en dépensant quelque spoints de talent.
B71: Ah! et comme c'est pas du pvp, on peut jouer à toute heure du jour et de la nuit! donc un combat toutes les 3h30!
B73: En plus j'ai pas eu de veine, j'ai quand même mangé deux défaites: fais bien attention d'activer la case "saison 2" en haut du simulateur, sinon tu ramasses tes dents
B74: bonne nuit!
B77: Hylian.
B78: Bonsoir,
B80: Avant toute chose il me faut souligner que ce que je vais dire n'a rien de "nouveau", je n'ai fait qu'appliquer les conseils et info diverses des forums :)
B82: Je parle uniquement d'une perspective S2. Ce n'est pas exhaustif, d'après les chroniques d'aujourd'hui les prochaines contiendront des infos à ce sujet.
B84: Donc, dans les grandes lignes, déjà en hérédité ce que j'ai :
B86: - Héros Talentueux 3 (voir plus mais 3mini)
B87: - Tir de Barrage (Pas indispensable mais aide bien sur les gros packs)
B88: - Bouclier Honneur (Pareil, pas indispensable mais comme le dit Palladyn permets de palier à un éventuel manque de chance pour la quête artefact).
B90: Je commence avec un magicien dérangé, et la première chose avec dés qu'il est disponible c'est lui apprendre Enrôleur charismatique (+135% Troupes sur les héros recrutés), là encore ça vient des forums et notamment Enroth. Il faut savoir que un héros recruté avec c'est environ 11 000 d'armée. Pour le simple prix du héros bien sûr.
B92: J'ai recruté deux héros, avec mes 3 héros je fais des combats optimisés autant que possible avec le génialissime simulateur de Jactari. Pour les premières cases seulement, ensuite je laisse les deux héros recrutés amél/perf les mines et le magicien dérangé s'occupe de tout nettoyer. Le plus important à ce point c'est enchaîner autant que possible et surtout, et je pense que c'est ce qui aide le plus, faire aussi vite que possible les quêtes. Les grosses récompenses d'or et d'unités aide énormément. Une quête par combat si possible c'est parfait.
B94: Et c'est tout, j'insiste encore, rien d'extraordinaire : Hérédité adéquate, optimisation via simulateur de Jactari, valider les quêtes le plus vite possible.
B96: Voilà, j'espère que ça t'aidera et bonne chance sur le serveur !
B98: Hylian.
B101: Bonjour,
B103: "Je t'avoue, que ce qui me chagrine le plus, c'est le choix de mes combats: de manière générale, dois-je privilégier la sauvegarde des troupes ou bien les points d'expérience. Je suppose que tu me répondras le second point :-)"
B105: Je dois avouer que je n'ai pas de "règle" précise, au départ je donne clairement la priorité à l'expérience, exception faite des T3 & T4 que j'essaie de sauvegarder au maximum. Je m'adapte à l'état de mes stocks et je me cale sur les rentrées d'unités que je sais sûre, si je peux me le permettre je favorise l'xp au maximum, sinon j'essaie de sauvegarder des troupes quitte à prendre moins d'xp. J'adapte vraiment en fonction de ma situation.
B107: Mais il faut savoir que je prévois toujours 1 à 3 combats à l'avance via simulateur, de façon à voir si je devrais faire tel ou tel combat avant. Par exemple si je sais qu'un combat va me couter 9 des mes 63 T2 et que j'en ai besoin de 59 pour un autre combat ou je vais en perdre 3 (ce genre de chiffres est totalement inexact, c'est vraiment pour l'exemple) je vais privilégier le second.
B109: Je me sers d'une base de 1-3 combats à l'avance sur simulateur que j'adapte à ma situation et mets à jour constamment en essayant de voir comment optimiser au mieux, dans quel ordre etc.
B111: Voilà j'espère que ceci t'aidera, bonne chance,
B113: Hylian.

Sheet Conditions de victoire
D7: Majeure | G7: Moyenne | I7: Mineure | J7: Mineure | K7: Moyenne
C8: Pertes (nb) | D8: 3002 | G8: 3608 | I8: 3608 | J8: 3978 | K8: 3978
C9: Pertes %
C10: Modif. % | D10: 0.2458 | G10: -0.1477 | I10: -0.0771 | J10: 0.1949 | K10: 0.2278
C11: XP | D11: 2154 | G11: 978 | I11: 1059 | J11: 1371 | K11: 1409 | N11: Mettre des troupes qui ne servent à rien permettent de réduire le ratio de pertes
N12: et parfois de passer sur une victoire supérieure (!)
C13: Ratio | D13: =D11/D8 -> 0.7175216522 | G13: =G11/G8 -> 0.2710643016 | I13: =I11/I8 -> 0.2935144124 | K13: =K11/K8 -> 0.3541980895
Q17: TYPE DE VICTOIRE
M19: -20 | N19: =IF(N$32<10,2,IF(N$32>=20,0,1))+IF($M19<20,IF($M19<0,0,1),IF($M19>=80,3,2)) -> 2 | O19: 1 | P19: 0
K20: Honneur (%) | L20: (ratio troupes engagées) | M20: -10 | N20: 2 | O20: 1 | P20: 0
M21: 0 | N21: =IF(N$32<10,2,IF(N$32>=20,0,1))+IF($M21<20,IF($M21<0,0,1),IF($M21>=80,3,2)) -> 3 | O21: 2 | P21: 1 | AA21: Victoire
M22: 10 | N22: =IF(N$32<10,2,IF(N$32>=20,0,1))+IF($M22<20,IF($M22<0,0,1),IF($M22>=80,3,2)) -> 3 | O22: 2 | P22: 1 | Z22: 0 | AA22: limitée
I23: -20-0 | J23: 0 | M23: 20 | N23: 4 | O23: 3 | P23: 2 | Z23: 1 | AA23: mineure
I24: 0-20 | J24: 1 | M24: 30 | N24: 4 | O24: 3 | P24: 2 | Z24: 2 | AA24: moyenne
I25: 20-80 | J25: 2 | M25: 40 | N25: 4 | O25: 3 | P25: 2 | Z25: 3 | AA25: majeure
I26: 80-100 | J26: 3 | M26: 50 | N26: 4 | O26: 3 | P26: 2 | Z26: 4 | AA26: écrasante
M27: 60 | N27: 4 | O27: 3 | P27: 2 | Z27: 5 | AA27: légendaire
M28: 70 | N28: 4 | O28: 3 | P28: 2
M29: 80 | N29: 5 | O29: 4 | P29: 3
M30: 90 | N30: 5 | O30: 4 | P30: 3
M31: 100 | N31: 5 | O31: 4 | P31: 3
N32: 0 | O32: 10 | P32: 20 | Q32: 30 | R32: 40 | S32: 50 | T32: 60 | U32: 70 | V32: 80 | W32: 90 | X32: 100
T34: Pertes (%)
T35: (ratio de domination perdue)
S36: 0-10 | T36: 2
S37: 10-20 | T37: 1
S38: 20-30 | T38: 0
K40: 2139
L43: Pertes définitives
L44: Attaquant | T44: Défenseur
L45: Unité | M45: Effectif | O45: Puissance | Q45: Cout en or | R45: Cout en rares | S45: Peloton | T45: Unité | U45: Effectif | W45: Puissance | Y45: Cout en or | Z45: Cout en rares
M46: Initial | N46: Perdu | O46: Initiale | P46: Perdue | Q46: des pertes | R46: des pertes | U46: Initial | V46: Perdu | W46: Initiale | X46: Perdue | Y46: des pertes | Z46: des pertes
L47: Chien des enfersChien des enf. | M47: 13 | N47: 3 | O47: 4 810 | P47: 1 110 | Q47: 2 520 | R47: — | S47: 1 | T47: GremlinGremlin | U47: 113 | V47: 113 | W47: 8 023 | X47: 8 023 | Y47: 21 357 | Z47: —
L48: SuccubeSuccube | M48: 2 | N48: 1 | O48: 1 836 | P48: 918 | Q48: 1 848 | R48: — | S48: 2 | T48: Golem d'acierGolem d'acier | U48: 9 | V48: 9 | W48: 2 943 | X48: 2 943 | Y48: 7 776 | Z48: —
L49: Démon cornuDémon cornu | M49: 28 | N49: 1 | O49: 4 564 | P49: 163 | Q49: 399 | R49: — | S49: 3 | T49: DjinnDjinn | U49: 2 | V49: 2 | W49: 2 634 | X49: 2 634 | Y49: 1 800 | Z49: gemme 4
M50: 43 | N50: 5 | O50: 11 210 | P50: 2 191 | Q50: 4 767 | R50: — | S50: Total | U50: 124 | V50: 124 | W50: 13 600 | X50: 13 600 | Y50: 30 933 | Z50: 4
L51: Expérience
L52: Attaquant | N52: Défenseur
L53: 0.2132 | M53: Honneur | N53: /
L54: 951 | M54: Expérience de base | N54: /
L55: 0.2132 | M55: Modificateur total | N55: /
L56: 1 153 | M56: Expérience totale | N56: /
L58: Pertes définitives
L59: Attaquant | T59: Défenseur
L60: Unité | M60: Effectif | O60: Puissance | Q60: Cout en or | R60: Cout en rares | S60: Peloton | T60: Unité | U60: Effectif | W60: Puissance | Y60: Cout en or | Z60: Cout en rares
M61: Initial | N61: Perdu | O61: Initiale | P61: Perdue | Q61: des pertes | R61: des pertes | U61: Initial | V61: Perdu | W61: Initiale | X61: Perdue | Y61: des pertes | Z61: des pertes
L62: FamilierFamilier | M62: 62 | N62: 18 | O62: 5 332 | P62: 1 548 | Q62: 4 068 | R62: — | S62: 1 | T62: VampireVampire | U62: 11 | V62: 11 | W62: 8 261 | X62: 8 261 | Y62: 18 392 | Z62: —
L63: Démon cornuDémon cornu | M63: 27 | N63: 8 | O63: 4 401 | P63: 1 304 | Q63: 3 192 | R63: — | S63: 2 | T63: Dragon squeletteDragon squel. | U63: 1 | V63: 1 | W63: 5 866 | X63: 5 866 | Y63: — | Z63: mercure 10
L64: SuccubeSuccube | M64: 3 | N64: 1 | O64: 2 754 | P64: 918 | Q64: 1 848 | R64: — | S64: 3 | T64: ApparitionApparition | U64: 1 | V64: 1 | W64: 3 365 | X64: 3 365 | Y64: 2 500 | Z64: cristal 4
M65: 92 | N65: 27 | O65: 12 487 | P65: 3 770 | Q65: 9 108 | R65: — | S65: Total | U65: 13 | V65: 13 | W65: 17 492 | X65: 17 492 | Y65: 20 892 | Z65: 14
L66: Expérience
L67: Attaquant | N67: Défenseur
L68: 0.4008 | M68: Honneur | N68: /
L69: 1 555 | M69: Expérience de base | N69: /
L70: 0.4008 | M70: Modificateur total | N70: /
L71: 2 179 | M71: Expérience totale | N71: /

Sheet Combats
A1: Mlinimiser les pertes
C2: 2 | D2: Pertes définitives
D3: Attaquant | L3: Défenseur
D4: Unité | E4: Effectif | G4: Puissance | I4: Cout en or | J4: Cout en rares | K4: Peloton | L4: Unité | M4: Effectif | O4: Puissance | Q4: Cout en or | R4: Cout en rares
E5: Initial | F5: Perdu | G5: Initiale | H5: Perdue | I5: des pertes | J5: des pertes | M5: Initial | N5: Perdu | O5: Initiale | P5: Perdue | Q5: des pertes | R5: des pertes
D6: Démon cornu | E6: 43 | F6: 12 | G6: 7009 | H6: 1956 | I6: 4788 | J6: — | K6: 1 | L6: Gargouille de pierre | M6: 65 | N6: 65 | O6: 7800 | P6: 7800 | Q6: 22230 | R6: —
D7: Chien des enfers | E7: 18 | F7: 5 | G7: 6660 | H7: 1850 | I7: 4200 | J7: — | K7: 2 | L7: Archimage | M7: 9 | N7: 9 | O7: 7281 | P7: 7281 | Q7: 17100 | R7: —
D8: Familier | E8: 84 | F8: — | G8: 7224 | H8: — | I8: — | J8: — | K8: 3 | L8: Gargouille d'obsidienne | M8: 26 | N8: 26 | O8: 3744 | P8: 3744 | Q8: 10660 | R8: —
K9: 4 | L9: Raja Rakshasa | M9: 1 | N9: 1 | O9: 2950 | P9: 2950 | Q9: 2300 | R9: 4
E10: 145 | F10: 17 | G10: 20893 | H10: 3806 | I10: 8988 | J10: — | K10: Total | M10: 101 | N10: 101 | O10: 21775 | P10: 21775 | Q10: 52290 | R10: 4
D11: Expérience
D12: Attaquant | F12: Défenseur
D13: 0.0422 | E13: Honneur | F13: /
D14: 1622 | E14: Expérience de base | F14: /
D15: 0.0422 | E15: Modificateur total | F15: /
B16: =D16/H10 -> 0.4442984761 | D16: 1691 | E16: Expérience totale | F16: /
D18: Pertes définitives
D19: Attaquant | L19: Défenseur
D20: Unité | E20: Effectif | G20: Puissance | I20: Cout en or | J20: Cout en rares | K20: Peloton | L20: Unité | M20: Effectif | O20: Puissance | Q20: Cout en or | R20: Cout en rares
E21: Initial | F21: Perdu | G21: Initiale | H21: Perdue | I21: des pertes | J21: des pertes | M21: Initial | N21: Perdu | O21: Initiale | P21: Perdue | Q21: des pertes | R21: des pertes
D22: Démon cornu | E22: 36 | F22: 10 | G22: 5868 | H22: 1630 | I22: 3990 | J22: — | K22: 1 | L22: Dragon d'émeraude | M22: 1 | N22: 1 | O22: 9077 | P22: 9077 | Q22: — | R22: 14
D23: Familier | E23: 24 | F23: 7 | G23: 2064 | H23: 602 | I23: 1582 | J23: — | K23: 2 | L23: Maitre chasseur | M23: 14 | N23: 14 | O23: 7532 | P23: 7532 | Q23: 15526 | R23: —
D24: Chien des enfers | E24: 18 | F24: 5 | G24: 6660 | H24: 1850 | I24: 4200 | J24: — | K24: 3 | L24: Licorne | M24: 3 | N24: 3 | O24: 5127 | P24: 5127 | Q24: 3300 | R24: 6
E25: 78 | F25: 22 | G25: 14592 | H25: 4082 | I25: 9772 | J25: — | K25: Total | M25: 18 | N25: 18 | O25: 21736 | P25: 21736 | Q25: 18826 | R25: 20
D26: Expérience
D27: Attaquant | F27: Défenseur
D28: 0.4896 | E28: Honneur | F28: /
D29: 1837 | E29: Expérience de base | F29: /
D30: 0.4896 | E30: Modificateur total | F30: /
B31: =D31/H25 -> 0.6702596766 | D31: 2736 | E31: Expérience totale | F31: /
D33: Pertes définitives
D34: Attaquant | L34: Défenseur
D35: Unité | E35: Effectif | G35: Puissance | I35: Cout en or | J35: Cout en rares | K35: Peloton | L35: Unité | M35: Effectif | O35: Puissance | Q35: Cout en or | R35: Cout en rares
E36: Initial | F36: Perdu | G36: Initiale | H36: Perdue | I36: des pertes | J36: des pertes | M36: Initial | N36: Perdu | O36: Initiale | P36: Perdue | Q36: des pertes | R36: des pertes
D37: Démon cornu | E37: 36 | F37: 10 | G37: 5868 | H37: 1630 | I37: 3990 | J37: — | K37: 1 | L37: Dragon d'émeraude | M37: 1 | N37: 1 | O37: 9077 | P37: 9077 | Q37: — | R37: 14
D38: Chien des enfers | E38: 15 | F38: 3 | G38: 5550 | H38: 1110 | I38: 2520 | J38: — | K38: 2 | L38: Druide séculaire | M38: 4 | N38: 4 | O38: 4404 | P38: 4404 | Q38: 8872 | R38: —
K39: 3 | L39: Fine-lame | M39: 17 | N39: 17 | O39: 2771 | P39: 2771 | Q39: 6783 | R39: —
E40: 51 | F40: 13 | G40: 11418 | H40: 2740 | I40: 6510 | J40: — | K40: Total | M40: 22 | N40: 22 | O40: 16252 | P40: 16252 | Q40: 15655 | R40: 14
D41: Expérience
D42: Attaquant | F42: Défenseur
D43: 0.4234 | E43: Honneur | F43: /
D44: 1459 | E44: Expérience de base | F44: /
D45: 0.4234 | E45: Modificateur total | F45: /
B46: =D46/H40 -> 0.7580291971 | D46: 2077 | E46: Expérience totale | F46: /
D48: Pertes définitives
D49: Attaquant | L49: Défenseur
D50: Unité | E50: Effectif | G50: Puissance | I50: Cout en or | J50: Cout en rares | K50: Peloton | L50: Unité | M50: Effectif | O50: Puissance | Q50: Cout en or | R50: Cout en rares
E51: Initial | F51: Perdu | G51: Initiale | H51: Perdue | I51: des pertes | J51: des pertes | M51: Initial | N51: Perdu | O51: Initiale | P51: Perdue | Q51: des pertes | R51: des pertes
D52: Succube | E52: 6 | F52: 1 | G52: 5508 | H52: 918 | I52: 1848 | J52: — | K52: 1 | L52: Démon gardien | M52: 23 | N52: 23 | O52: 4508 | P52: 4508 | Q52: 10994 | R52: —
K53: 2 | L53: Cheval infernal | M53: 1 | N53: 1 | O53: 1795 | P53: 1795 | Q53: 1100 | R53: 2
K54: 3 | L54: Maitresse succube | M54: 1 | N54: 1 | O54: 1101 | P54: 1101 | Q54: 2217 | R54: —
K55: 4 | L55: Succube | M55: 1 | N55: 1 | O55: 918 | P55: 918 | Q55: 1848 | R55: —
E56: 6 | F56: 1 | G56: 5508 | H56: 918 | I56: 1848 | J56: — | K56: Total | M56: 26 | N56: 26 | O56: 8322 | P56: 8322 | Q56: 16159 | R56: 2
D57: Expérience
D58: Attaquant | F58: Défenseur
D59: 0.5109 | E59: Honneur | F59: /
D60: 618 | E60: Expérience de base | F60: /
D61: 0.5109 | E61: Modificateur total | F61: /
B62: =D62/H56 -> 1.017429194 | D62: 934 | E62: Expérience totale | F62: /
D64: Pertes définitives
D65: Attaquant | L65: Défenseur
D66: Unité | E66: Effectif | G66: Puissance | I66: Cout en or | J66: Cout en rares | K66: Peloton | L66: Unité | M66: Effectif | O66: Puissance | Q66: Cout en or | R66: Cout en rares
E67: Initial | F67: Perdu | G67: Initiale | H67: Perdue | I67: des pertes | J67: des pertes | M67: Initial | N67: Perdu | O67: Initiale | P67: Perdue | Q67: des pertes | R67: des pertes
D68: Chien des enfers | E68: 18 | F68: 5 | G68: 6660 | H68: 1850 | I68: 4200 | J68: — | K68: 1 | L68: Inquisiteur | M68: 4 | N68: 4 | O68: 10300 | P68: 10300 | Q68: 6800 | R68: 12
D69: Succube | E69: 6 | F69: 1 | G69: 5508 | H69: 918 | I69: 1848 | J69: — | K69: 2 | L69: Ange | M69: 1 | N69: 1 | O69: 7150 | P69: 7150 | Q69: — | R69: 10
E70: 24 | F70: 6 | G70: 12168 | H70: 2768 | I70: 6048 | J70: — | K70: Total | M70: 5 | N70: 5 | O70: 17450 | P70: 17450 | Q70: 6800 | R70: 22
D71: Expérience
D72: Attaquant | F72: Défenseur
D73: 0.4341 | E73: Honneur | F73: /
D74: 1573 | E74: Expérience de base | F74: /
D75: 0.4341 | E75: Modificateur total | F75: /
B76: =D76/H70 -> 0.8150289017 | D76: 2256 | E76: Expérience totale | F76: /
D78: Pertes définitives | T78: COMBAT 1
D79: Attaquant | L79: Défenseur | U79: zombies | V79: achers squelette | X79: gain : mercure
D80: Unité | E80: Effectif | G80: Puissance | I80: Cout en or | J80: Cout en rares | K80: Peloton | L80: Unité | M80: Effectif | O80: Puissance | Q80: Cout en or | R80: Cout en rares | T80: actuel | U80: 28 | V80: 62
E81: Initial | F81: Perdu | G81: Initiale | H81: Perdue | I81: des pertes | J81: des pertes | M81: Initial | N81: Perdu | O81: Initiale | P81: Perdue | Q81: des pertes | R81: des pertes | T81: réserves | U81: 36 | V81: 31
D82: Démon cornu | E82: 33 | F82: 9 | G82: 5379 | H82: 1467 | I82: 3591 | J82: — | K82: 1 | L82: Dragon spectral | M82: 1 | N82: 1 | O82: 8213 | P82: 8213 | Q82: — | R82: 14 | T82: manque | U82: =E83-(U80+U81) -> -46 | V82: =E82-(V80+V81) -> -60 | X82: 32 zombies dispersent 6 cerbères
D83: Chien des enfers | E83: 18 | F83: 5 | G83: 6660 | H83: 1850 | I83: 4200 | J83: — | K83: 2 | L83: Archer squelette | M83: 105 | N83: 105 | O83: 7350 | P83: 7350 | Q83: 21525 | R83: — | T83: prod / J | U83: 8 | Y83: 3 squelettes
D84: Démon cornu | E84: 10 | F84: 3 | G84: 1630 | H84: 489 | I84: 1197 | J84: — | K84: 3 | L84: Fantôme | M84: 19 | N84: 19 | O84: 5757 | P84: 5757 | Q84: 14440 | R84: — | T84: dispo dans | U84: =U82/U83*24 -> -138 | Y84: 4 fantomes
D85: Familier | E85: 84 | F85: 13 | G85: 7224 | H85: 1118 | I85: 2938 | J85: — | K85: 4 | L85: Liche | M85: 3 | N85: 3 | O85: 4290 | P85: 4290 | Q85: 3000 | R85: 6
E86: 145 | F86: 30 | G86: 20893 | H86: 4924 | I86: 11926 | J86: — | K86: Total | M86: 128 | N86: 128 | O86: 25610 | P86: 25610 | Q86: 38965 | R86: 20 | T86: acheter | U86: =E83-U80 -> -10 | V86: =E82-V80 -> -29
D87: Expérience | T87: cout or | U87: =U86*Domination!D7 -> -3610 | V87: =V86*Domination!D6 -> -5945 | X87: durée du combat : 3h53
D88: Attaquant | F88: Défenseur | X88: temps pour accumuler 8000 or ?
D89: 0.2258 | E89: Honneur | F89: / | X89: Fin dans 11 heures
D90: 2053 | E90: Expérience de base | F90: / | X90: anticiper l'achat des squelettes (long)
D91: 0.2258 | E91: Modificateur total | F91: /
B92: =D92/H86 -> 0.5109666937 | D92: 2516 | E92: Expérience totale | F92: /
C94: 1 | D94: Pertes définitives | T94: COMBAT 2 | X94: gain : bois
D95: Attaquant | L95: Défenseur | X95: gain : 15 k or
D96: Unité | E96: Effectif | G96: Puissance | I96: Cout en or | J96: Cout en rares | K96: Peloton | L96: Unité | M96: Effectif | O96: Puissance | Q96: Cout en or | R96: Cout en rares
E97: Initial | F97: Perdu | G97: Initiale | H97: Perdue | I97: des pertes | J97: des pertes | M97: Initial | N97: Perdu | O97: Initiale | P97: Perdue | Q97: des pertes | R97: des pertes | U97: fantomes
D98: Démon cornu | E98: 24 | F98: 7 | G98: 3912 | H98: 1141 | I98: 2793 | J98: — | K98: 1 | L98: Nymphe | M98: 74 | N98: 74 | O98: 6512 | P98: 6512 | Q98: 15540 | R98: — | T98: actuel | U98: 13 | V98: (13 avec combat 1)
D99: Chien des enfers | E99: 18 | F99: 4 | G99: 6660 | H99: 1480 | I99: 3360 | J99: — | K99: 2 | L99: Maitre chasseur | M99: 10 | N99: 10 | O99: 5380 | P99: 5380 | Q99: 11090 | R99: — | T99: réserves | U99: 7
K100: 3 | L100: Chasseur | M100: 7 | N100: 7 | O100: 3136 | P100: 3136 | Q100: 6468 | R100: — | T100: manque | U100: =E101-(U98+U99) -> -20
K101: 4 | L101: Licorne d'argent | M101: 1 | N101: 1 | O101: 2541 | P101: 2541 | Q101: 1600 | R101: 3 | T101: prod / J | U101: 8
K102: 5 | L102: Licorne | M102: 1 | N102: 1 | O102: 1709 | P102: 1709 | Q102: 1100 | R102: 2 | T102: dispo dans | U102: =U100/U101*24 -> -60 | V102: heures
E103: 42 | F103: 11 | G103: 10572 | H103: 2621 | I103: 6153 | J103: — | K103: Total | M103: 93 | N103: 93 | O103: 19278 | P103: 19278 | Q103: 35798 | R103: 5 | X103: restera 10 h d'attente après combat 1
D104: Expérience | T104: cout or | U104: =7*Domination!D9 -> 5320 | X104: anticiper l'achat des fantomes (long)
D105: Attaquant | F105: Défenseur
D106: 0.8235 | E106: Honneur | F106: /
D107: 1356 | E107: Expérience de base | F107: /
D108: 0.8235 | E108: Modificateur total | F108: /
B109: =D109/H103 -> 0.9435330027 | D109: 2473 | E109: Expérience totale | F109: /
D111: Pertes définitives | U111: achers squelette
D112: Attaquant | L112: Défenseur | T112: actuel | U112: 62 | Y112: 93 archers squelette
D113: Unité | E113: Effectif | G113: Puissance | I113: Cout en or | J113: Cout en rares | K113: Peloton | L113: Unité | M113: Effectif | O113: Puissance | Q113: Cout en or | R113: Cout en rares | T113: réserves | U113: 31 | Y113: 33 zombies
E114: Initial | F114: Perdu | G114: Initiale | H114: Perdue | I114: des pertes | J114: des pertes | M114: Initial | N114: Perdu | O114: Initiale | P114: Perdue | Q114: des pertes | R114: des pertes | T114: manque | U114: =E113-(U112+U113) -> 
D115: Chien des enfers | E115: 18 | F115: 5 | G115: 6660 | H115: 1850 | I115: 4200 | J115: — | K115: 1 | L115: Titan | M115: 1 | N115: 1 | O115: 8190 | P115: 8190 | Q115: — | R115: 14 | T115: prod / J | U115: 19 | W115: balayer les cerbère
D116: Démon cornu | E116: 43 | F116: 12 | G116: 7009 | H116: 1956 | I116: 4788 | J116: — | K116: 2 | L116: Ingénieur gremlin | M116: 83 | N116: 83 | O116: 7138 | P116: 7138 | Q116: 18758 | R116: — | T116: dispo dans | U116: =U114/U115*24 ->  | V116: heures
D117: Familier | E117: 22 | F117: 6 | G117: 1892 | H117: 516 | I117: 1356 | J117: — | K117: 3 | L117: Djinn | M117: 3 | N117: 3 | O117: 3951 | P117: 3951 | Q117: 2700 | R117: 6
E118: 83 | F118: 23 | G118: 15561 | H118: 4322 | I118: 10344 | J118: — | K118: Total | M118: 87 | N118: 87 | O118: 19279 | P118: 19279 | Q118: 21458 | R118: 20
D119: Expérience
D120: Attaquant | F120: Défenseur
D121: 0.2389 | E121: Honneur | F121: /
D122: 1624 | E122: Expérience de base | F122: /
D123: 0.2389 | E123: Modificateur total | F123: /
B124: =D124/H118 -> 0.4655252198 | D124: 2012 | E124: Expérience totale | F124: /
D126: Pertes définitives
D127: Attaquant | L127: Défenseur
D128: Unité | E128: Effectif | G128: Puissance | I128: Cout en or | J128: Cout en rares | K128: Peloton | L128: Unité | M128: Effectif | O128: Puissance | Q128: Cout en or | R128: Cout en rares
E129: Initial | F129: Perdu | G129: Initiale | H129: Perdue | I129: des pertes | J129: des pertes | M129: Initial | N129: Perdu | O129: Initiale | P129: Perdue | Q129: des pertes | R129: des pertes
D130: Succube | E130: 6 | F130: 1 | G130: 5508 | H130: 918 | I130: 1848 | J130: — | K130: 1 | L130: Conscrit | M130: 67 | N130: 67 | O130: 8576 | P130: 8576 | Q130: 18559 | R130: —
D131: Familier | E131: 50 | F131: 2 | G131: 4300 | H131: 172 | I131: 452 | J131: — | K131: 2 | L131: Paysan | M131: 32 | N131: 32 | O131: 3104 | P131: 3104 | Q131: 7040 | R131: —
E132: 56 | F132: 3 | G132: 9808 | H132: 1090 | I132: 2300 | J132: — | K132: Total | M132: 99 | N132: 99 | O132: 11680 | P132: 11680 | Q132: 25599 | R132: —
D133: Expérience
D134: Attaquant | F134: Défenseur
D135: 0.1909 | E135: Honneur | F135: /
D136: 779 | E136: Expérience de base | F136: /
D137: 0.1909 | E137: Modificateur total | F137: /
B138: =D138/H132 -> 0.8504587156 | D138: 927 | E138: Expérience totale | F138: /
U141: COMBAT 3
U142: achers squelette | V142: zombies | W142: fantomes
T143: nécessite | W143: 42
T144: actuel | U144: 67 | V144: 32 | W144: 21
T145: réserves | U145: 22 | V145: 45 | W145: 3
T147: manque | W147: =W143-(W144+W145) -> 18
T148: prod / J | W148: 8
T149: dispo dans x heures | W149: =W147/W148*24 -> 54
T151: acheter | W151: =W143-W144 -> 21
T152: cout or | U152: =U151*Domination!$D$6 -> 0 | V152: =V151*Domination!$C$7 -> 0 | W152: =IF(W151*Domination!$D$9>0,W151*Domination!$D$9,0) -> 15960
U171: COMBAT 3 | W171: tout juste compensé par les troupes gagnées
U172: achers squelette | V172: zombies | W172: fantomes
T173: nécessite | V173: 77 | W173: 15
T174: actuel | U174: 67 | V174: 32 | W174: 21
T175: réserves | U175: 22 | V175: 45 | W175: 3
T177: manque | V177: =V173-(V174+V175) -> 0 | W177: =W173-(W174+W175) -> -9
T178: prod / J | V178: 8 | W178: 8
T179: dispo dans x heures | V179: =V177/V178*24 -> 0 | W179: =W177/W178*24 -> -27
T181: acheter | V181: =V173-V174 -> 45 | W181: =W173-W174 -> -6
T182: cout or | U182: =IF(U181*Domination!$D$6>0,U181*Domination!$D$6,0) -> 0 | V182: =IF(V181*Domination!$D$7>0,V181*Domination!$D$7,0) -> 16245 | W182: =IF(W181*Domination!$D$9>0,W181*Domination!$D$9,0) -> 0
U183: Passer en zombies pestinentiels (11 et 83)
U185: COMBAT 3b | W185: tout juste compensé par les troupes gagnées
U186: achers squelette | V186: zombies | W186: fantomes
T187: nécessite | V187: 87
T188: actuel | U188: 67 | V188: 32 | W188: 21
T189: réserves | U189: 22 | V189: 48 | W189: 3
T191: manque | V191: =V187-(V188+V189) -> 7 | W191: =W187-(W188+W189) -> -24
T192: prod / J | V192: 8 | W192: 8
T193: dispo dans x heures | V193: =V191/V192*24 -> 21 | W193: =W191/W192*24 -> -72
T195: acheter | V195: =V187-V188 -> 55 | W195: =W187-W188 -> -21
T196: cout or | U196: =IF(U195*Domination!$D$6>0,U195*Domination!$D$6,0) -> 0 | V196: =IF(V195*Domination!$D$7>0,V195*Domination!$D$7,0) -> 19855 | W196: =IF(W195*Domination!$D$9>0,W195*Domination!$D$9,0) -> 0
U197: Passer en zombies pestinentiels (11 et 83)
S199: combat 1 | U199: Mage de guerre | V199: L9 | W199: Reste | X199: 2816
U200: 22 | V200: fantomes | W200: =U200-6+13+2+4 -> 35
U201: 104 | V201: archers squelettes | W201: =U201-31+4 -> 77
U202: 10 | V202: squelettes | W202: =U202-3 -> 7
U203: 25 | V203: zombies | W203: =U203-6+41+2+6 -> 68
V204: vampires | W204: 5

Sheet HD2.1
F1: Niv. 7 Magicien dérangé | AC1: LANCER LES COMBATS EN // | AJ1: OPTIMISER LES XP | BO1: 17 | BP1: 17 | BQ1: 12 | BS1: 9 | BW1: Accroissement
AH2: ENGAGES/BESOINS | AP2: PERTES/GAINS | AX2: ACHATS/BESOINS SUP. | BF2: TOTAL DISPONIBLES | BQ2: RESERVES
C3: Pertes définitives | AG3: Famillier | AH3: Démon cornu | AJ3: Chien des enfers | AL3: Succube | AO3: Famillier | AP3: Démon cornu | AR3: Chien des enfers | AT3: Succube | AW3: Famillier | AX3: Démon cornu | AZ3: Chien des enfers | BB3: Succube | BE3: Famillier | BF3: Démon cornu | BH3: Chien des enfers | BJ3: Succube | BN3: Fin | BP3: Famillier | BQ3: Démon cornu | BS3: Chien des enfers | BU3: Succube
C4: Attaquant | K4: Défenseur | AC4: Qx | AD4: Pos | AE4: Manque | AF4: T1 | AG4: T1+ | AH4: T2 | AI4: T2+ | AJ4: T3 | AK4: T3+ | AL4: T4 | AM4: T4+ | AN4: T1 | AO4: T1+ | AP4: T2 | AQ4: T2+ | AR4: T3 | AS4: T3+ | AT4: T4 | AU4: T4+ | AV4: T1 | AW4: T1+ | AX4: T2 | AY4: T2+ | AZ4: T3 | BA4: T3+ | BB4: T4 | BC4: T4+ | BD4: T1 | BE4: T1+ | BF4: T2 | BG4: T2+ | BH4: T3 | BI4: T3+ | BJ4: T4 | BK4: T4+ | BL4: XP | BM4: Total XP | BN4: Date Heure | BO4: T1 | BP4: T1+ | BQ4: T2 | BR4: T2+ | BS4: T3 | BT4: T3+ | BU4: T4 | BV4: T4+ | BW4: Maintenant
C5: Unité | D5: Effectif | F5: Puissance | H5: Cout en or | I5: Cout en rares | J5: Peloton | K5: Unité | L5: Effectif | N5: Puissance | P5: Cout en or | Q5: Cout en rares | BE5: 97 | BF5: 42 | BH5: 20 | BJ5: 9 | BK5: 4 | BM5: =12317+1759 -> 14076 | BN5: 2010-09-18T12:39:00 | BO5: 19 | BP5: 19 | BQ5: 13 | BS5: 5 | BW5: =NOW() -> 2010-09-29T23:41:22.700
D6: Initial | E6: Perdu | F6: Initiale | G6: Perdue | H6: des pertes | I6: des pertes | L6: Initial | M6: Perdu | N6: Initiale | O6: Perdue | P6: des pertes | Q6: des pertes | S6: A | T6: B | U6: C | V6: D | W6: E | AC6: Q9 | AD6: E3 | AE6: =IF(AF6<=BD5+AV6,0,AF6-(BD5+AV6))+IF(AG6<=BE5+AW6,0,AG6-(BE5+AW6))+IF(AH6<=BF5+AX6,0,AH6-(BF5+AX6))+IF(AI6<=BG5+AY6,0,AI6-(BG5+AY6))+IF(AJ6<=BH5+AZ6,0,AJ6-(BH5+AZ6))+IF(AK6<=BI5+BA6,0,AK6-(BI5+BA6))+IF(AL6<=BJ5+BB6,0,AL6-(BJ5+BB6))+IF(AM6<=BK5+BC6,0,AM6-(BK5+BC6)) -> 0 | AH6: 39 | AJ6: 14 | AP6: -6 | AR6: -3 | AT6: 3 | BD6: =BD5+AN6+AV6 -> 0 | BE6: =BE5+AO6+AW6 -> 97 | BF6: 36 | BG6: 0 | BH6: 17 | BI6: 0 | BJ6: 12 | BK6: 4 | BL6: 2266 | BM6: =BM5+BL6 -> 16342 | BN6: 2010-09-18T13:39:00
C7: Démon cornu | D7: 39 | E7: 11 | F7: 6 357 | G7: 1 793 | H7: 4 389 | I7: — | J7: 1 | K7: NympheNymphe | L7: 74 | M7: 74 | N7: 6 512 | O7: 6 512 | P7: 15 540 | Q7: — | X7: 1 | AD7: E4 | AE7: 0 | AH7: 41 | AJ7: 18 | AP7: -12 | AR7: -5 | AX7: 9 | AZ7: 3 | BD7: =BD6+AN7+AV7 -> 0 | BE7: =BE6+AO7+AW7 -> 97 | BF7: =BF6+AP7+AX7 -> 33 | BG7: =BG6+AQ7+AY7 -> 0 | BH7: =BH6+AR7+AZ7 -> 15 | BI7: =BI6+AS7+BA7 -> 0 | BJ7: =BJ6+AT7+BB7 -> 12 | BK7: =BK6+AU7+BC7 -> 4 | BL7: 2347 | BM7: =BM6+BL7 -> 18689
C8: Chien des enfers | D8: 14 | E8: 3 | F8: 5 180 | G8: 1 110 | H8: 2 520 | I8: — | J8: 2 | K8: Maitre chasseurMaitre chasseur | L8: 10 | M8: 10 | N8: 5 380 | O8: 5 380 | P8: 11 090 | Q8: — | X8: 2 | AD8: D1 | AE8: 0 | AL8: 6 | AT8: -1 | BD8: 0 | BE8: 97 | BF8: 33 | BG8: 0 | BH8: 15 | BI8: 0 | BJ8: 11 | BK8: 4 | BL8: 934 | BM8: 19623
J9: 3 | K9: ChasseurChasseur | L9: 7 | M9: 7 | N9: 3 136 | O9: 3 136 | P9: 6 468 | Q9: — | W9: O | X9: 3 | AD9: D5 | AE9: 0 | AH9: 36 | AJ9: 14 | AP9: -10 | AR9: -3 | AX9: 3 | BD9: 0 | BE9: 97 | BF9: 26 | BG9: 0 | BH9: 12 | BI9: 0 | BJ9: 11 | BK9: 4 | BL9: 2147 | BM9: 21770 | BN9: 2010-09-18T20:52:00
J10: 4 | K10: Licorne d'argentLicorne d'argent | L10: 1 | M10: 1 | N10: 2 541 | O10: 2 541 | P10: 1 600 | Q10: gemme 3 | X10: 4 | AD10: E5 | AE10: 0 | AG10: 50 | AL10: 3 | AO10: -14 | AT10: -1 | BD10: 0 | BE10: 83 | BF10: 26 | BG10: 0 | BH10: 12 | BI10: 0 | BJ10: 10 | BK10: 4 | BL10: 1289 | BM10: 23059 | BN10: 2010-09-18T21:01:00
J11: 5 | K11: LicorneLicorne | L11: 1 | M11: 1 | N11: 1 709 | O11: 1 709 | P11: 1 100 | Q11: gemme 2 | X11: 5 | AD11: C5 | AE11: 0 | AL11: 10 | AT11: -2 | BD11: =BD10+AN11+AV11 -> 0 | BE11: =BE10+AO11+AW11 -> 83 | BF11: =BF10+AP11+AX11 -> 26 | BG11: =BG10+AQ11+AY11 -> 0 | BH11: =BH10+AR11+AZ11 -> 12 | BI11: =BI10+AS11+BA11 -> 0 | BJ11: =BJ10+AT11+BB11 -> 8 | BK11: =BK10+AU11+BC11 -> 4 | BL11: 1660 | BM11: 24719 | BN11: =BN10+3.75/24 -> 2010-09-19T00:46:00
D12: 53 | E12: 14 | F12: 11 537 | G12: 2 903 | H12: 6 909 | I12: — | J12: Total | L12: 93 | M12: 93 | N12: 19 278 | O12: 19 278 | P12: 35 798 | Q12: 5 | AD12: A4 | AE12: 0 | AG12: 24 | AH12: 36 | AJ12: 18 | AO12: -10 | AP12: -7 | AR12: -5 | AX12: 17 | AZ12: 6 | BD12: 0 | BE12: 73 | BF12: 36 | BG12: 0 | BH12: 13 | BI12: 0 | BJ12: 8 | BK12: 4 | BL12: 2736 | BM12: =BM11+BL16 -> 27270 | BN12: =BN9+3.75/24 -> 2010-09-19T00:37:00
C13: Expérience | W13: 2h53 | AC13: flèche arcane pour compenser | AD13: A1 | AE13: 0 | AG13: 40 | AH13: 7 | AJ13: 13 | AO13: -12 | AP13: -1 | AR13: -3 | BD13: 0 | BE13: 61 | BF13: 35 | BG13: 0 | BH13: 10 | BI13: 0 | BJ13: 8 | BK13: 4 | BL13: 2021 | BM13: =BM12+BL12 -> 30006 | BN13: =BN12+3.75/24 -> 2010-09-19T04:22:00 | BO13: =BO1*($BN13-$BW$5)+BO5 -> -164.6871053 | BP13: =BP1*($BN13-$BW$5)+BP5 -> -164.6871053 | BQ13: -116.6614861 | BR13: 0 | BS13: -92.24611458 | BT13: 0 | BU13: 0 | BV13: 0
C14: Attaquant | E14: Défenseur | AD14: C1 | AE14: 7 | AJ14: 17 | AL14: 7 | AR14: -5 | AT14: -1 | BD14: 0 | BE14: 61 | BF14: 35 | BG14: 0 | BH14: 5 | BI14: 0 | BJ14: 7 | BK14: 4 | BL14: 2159 | BM14: =BM13+BL13 -> 32027
C15: 0.671 | D15: Honneur | E15: / | H15: Avec flèche des arcanes | AD15: E1 | AE15: 44 | AG15: 84 | AH15: 43 | AJ15: 18 | AP15: -12 | AR15: -5 | BD15: 0 | BE15: 61 | BF15: 23 | BG15: 0 | BH15: 0 | BI15: 0 | BJ15: 7 | BK15: 4 | BL15: 2516 | BM15: =BM14+BL14 -> 34186
C16: 1 356 | D16: Expérience de base | E16: / | AD16: A5 | AE16: 15 | AG16: 30 | AH16: 26 | AJ16: 19 | AO16: -6 | AP16: -7 | AR16: -5 | AZ16: 7 | BD16: 0 | BE16: 55 | BF16: 16 | BG16: 0 | BH16: 2 | BI16: 0 | BJ16: 7 | BK16: 4 | BL16: 2551 | BM16: =BM15+BL15 -> 36702
C17: 0.671 | D17: Modificateur total | E17: /
C18: 2 266 | D18: Expérience totale | E18: /
C20: Pertes définitives | BG20: Heureusement que j'avais la baraque à rang 3
C21: Attaquant | K21: Défenseur | BG21: Mais,… je n'avais pas la magie :(
C22: Unité | D22: Effectif | F22: Puissance | H22: Cout en or | I22: Cout en rares | J22: Peloton | K22: Unité | L22: Effectif | N22: Puissance | P22: Cout en or | Q22: Cout en rares
D23: Initial | E23: Perdu | F23: Initiale | G23: Perdue | H23: des pertes | I23: des pertes | L23: Initial | M23: Perdu | N23: Initiale | O23: Perdue | P23: des pertes | Q23: des pertes
C24: Chien des enfers | D24: 18 | E24: 5 | F24: 6 660 | G24: 1 850 | H24: 4 200 | I24: — | J24: 1 | K24: Titan | L24: 1 | M24: 1 | N24: 8 190 | O24: 8 190 | P24: — | Q24: 14
C25: Démon cornu | D25: 41 | E25: 12 | F25: 6 683 | G25: 1 956 | H25: 4 788 | I25: — | J25: 2 | K25: Ingénieur gremlin | L25: 83 | M25: 83 | N25: 7 138 | O25: 7 138 | P25: 18 758 | Q25: — | S25: A | T25: B | U25: C | V25: D | W25: E
J26: 3 | K26: Djinn | L26: 3 | M26: 3 | N26: 3 951 | O26: 3 951 | P26: 2 700 | Q26: 6
D27: 59 | E27: 17 | F27: 13 343 | G27: 3 806 | H27: 8 988 | I27: — | J27: Total | L27: 87 | M27: 87 | N27: 19 279 | O27: 19 279 | P27: 21 458 | Q27: 20
C28: Expérience
C29: Attaquant | E29: Défenseur | W29: O
C30: 0.4449 | D30: Honneur | E30: /
C31: 1 624 | D31: Expérience de base | E31: /
C32: 0.4449 | D32: Modificateur total | E32: /
C33: 2 347 | D33: Expérience totale | E33: /
C36: Pertes définitives
C37: Attaquant | K37: Défenseur
C38: Unité | D38: Effectif | F38: Puissance | H38: Cout en or | I38: Cout en rares | J38: Peloton | K38: Unité | L38: Effectif | N38: Puissance | P38: Cout en or | Q38: Cout en rares | S38: A | T38: B | U38: C | V38: D | W38: E
D39: Initial | E39: Perdu | F39: Initiale | G39: Perdue | H39: des pertes | I39: des pertes | L39: Initial | M39: Perdu | N39: Initiale | O39: Perdue | P39: des pertes | Q39: des pertes | X39: 1
C40: Succube | D40: 3 | E40: 1 | F40: 2 754 | G40: 918 | H40: 1 848 | I40: — | J40: 1 | K40: Conscrit | L40: 67 | M40: 67 | N40: 8 576 | O40: 8 576 | P40: 18 559 | Q40: — | X40: 2
C41: Familier | D41: 50 | E41: 14 | F41: 4 300 | G41: 1 204 | H41: 3 164 | I41: — | J41: 2 | K41: Paysan | L41: 32 | M41: 32 | N41: 3 104 | O41: 3 104 | P41: 7 040 | Q41: — | X41: 3
D42: 53 | E42: 15 | F42: 7 054 | G42: 2 122 | H42: 5 012 | I42: — | J42: Total | L42: 99 | M42: 99 | N42: 11 680 | O42: 11 680 | P42: 25 599 | Q42: — | X42: 4
C43: Expérience | X43: 5
C44: Attaquant | E44: Défenseur
C45: 0.6558 | D45: Honneur | E45: /
C46: 779 | D46: Expérience de base | E46: /
C47: 0.6558 | D47: Modificateur total | E47: /
C48: 1 289 | D48: Expérience totale | E48: /
C51: Pertes définitives | S51: Avec sortilège +200XP | AE51: =360/3 -> 120
C52: Attaquant | K52: Défenseur
C53: Unité | D53: Effectif | F53: Puissance | H53: Cout en or | I53: Cout en rares | J53: Peloton | K53: Unité | L53: Effectif | N53: Puissance | P53: Cout en or | Q53: Cout en rares | S53: A | T53: B | U53: C | V53: D | W53: E
D54: Initial | E54: Perdu | F54: Initiale | G54: Perdue | H54: des pertes | I54: des pertes | L54: Initial | M54: Perdu | N54: Initiale | O54: Perdue | P54: des pertes | Q54: des pertes | V54: O | X54: 1
C55: SuccubeSuccube | D55: 6 | E55: 1 | F55: 5 508 | G55: 918 | H55: 1 848 | I55: — | J55: 1 | K55: Démon gardien | L55: 23 | M55: 23 | N55: 4 508 | O55: 4 508 | P55: 10 994 | Q55: — | X55: 2
J56: 2 | K56: Cheval infernal | L56: 1 | M56: 1 | N56: 1 795 | O56: 1 795 | P56: 1 100 | Q56: soufre 2 | X56: 3
J57: 3 | K57: Maitresse succube | L57: 1 | M57: 1 | N57: 1 101 | O57: 1 101 | P57: 2 217 | Q57: — | X57: 4
J58: 4 | K58: Succube | L58: 1 | M58: 1 | N58: 918 | O58: 918 | P58: 1 848 | Q58: — | X58: 5
D59: 6 | E59: 1 | F59: 5 508 | G59: 918 | H59: 1 848 | I59: — | J59: Total | L59: 26 | M59: 26 | N59: 8 322 | O59: 8 322 | P59: 16 159 | Q59: 2
C60: Expérience
C61: Attaquant | E61: Défenseur
C62: 0.5109 | D62: Honneur | E62: /
C63: 618 | D63: Expérience de base | E63: /
C64: 0.5109 | D64: Modificateur total | E64: /
C65: 934 | D65: Expérience totale | E65: /
C68: Pertes définitives
C69: Attaquant | K69: Défenseur
C70: Unité | D70: Effectif | F70: Puissance | H70: Cout en or | I70: Cout en rares | J70: Peloton | K70: Unité | L70: Effectif | N70: Puissance | P70: Cout en or | Q70: Cout en rares | U70: A5
D71: Initial | E71: Perdu | F71: Initiale | G71: Perdue | H71: des pertes | I71: des pertes | L71: Initial | M71: Perdu | N71: Initiale | O71: Perdue | P71: des pertes | Q71: des pertes
C72: Démon cornu | D72: 26 | E72: 7 | F72: 4 238 | G72: 1 141 | H72: 2 793 | I72: — | J72: 1 | K72: Gargouille de pierre | L72: 65 | M72: 65 | N72: 7 800 | O72: 7 800 | P72: 22 230 | Q72: — | S72: A | T72: B | U72: C | V72: D | W72: E
C73: Chien des enfers | D73: 19 | E73: 5 | F73: 7 030 | G73: 1 850 | H73: 4 200 | I73: — | J73: 2 | K73: Archimage | L73: 9 | M73: 9 | N73: 7 281 | O73: 7 281 | P73: 17 100 | Q73: — | X73: 1
C74: Familier | D74: 30 | E74: 6 | F74: 2 580 | G74: 516 | H74: 1 356 | I74: — | J74: 3 | K74: Gargouille d'obsidienne | L74: 26 | M74: 26 | N74: 3 744 | O74: 3 744 | P74: 10 660 | Q74: — | X74: 2
J75: 4 | K75: Raja Rakshasa | L75: 1 | M75: 1 | N75: 2 950 | O75: 2 950 | P75: 2 300 | Q75: 4 | X75: 3
D76: 75 | E76: 18 | F76: 13 848 | G76: 3 507 | H76: 8 349 | I76: — | J76: Total | L76: 101 | M76: 101 | N76: 21 775 | O76: 21 775 | P76: 52 290 | Q76: 4 | X76: 4
C77: Expérience | X77: 5
C78: Attaquant | E78: Défenseur
C79: 0.5724 | D79: Honneur | E79: /
C80: 1 622 | D80: Expérience de base | E80: / | I80: Héros Niveau 9
C81: 0.5724 | D81: Modificateur total | E81: /
C82: 2 551 | D82: Expérience totale | E82: /
C84: Pertes définitives
C85: Attaquant | K85: Défenseur | U85: D5 | W85: 3h36mn14
C86: Unité | D86: Effectif | F86: Puissance | H86: Cout en or | I86: Cout en rares | J86: Peloton | K86: Unité | L86: Effectif | N86: Puissance | P86: Cout en or | Q86: Cout en rares
D87: Initial | E87: Perdu | F87: Initiale | G87: Perdue | H87: des pertes | I87: des pertes | L87: Initial | M87: Perdu | N87: Initiale | O87: Perdue | P87: des pertes | Q87: des pertes | S87: A | T87: B | U87: C | V87: D | W87: E
C88: Démon cornu | D88: 36 | E88: 10 | F88: 5 868 | G88: 1 630 | H88: 3 990 | I88: — | J88: 1 | K88: Dragon d'émeraude | L88: 1 | M88: 1 | N88: 9 077 | O88: 9 077 | P88: — | Q88: 14 | X88: 1
C89: Chien des enfers | D89: 14 | E89: 3 | F89: 5 180 | G89: 1 110 | H89: 2 520 | I89: — | J89: 2 | K89: Druide séculaire | L89: 4 | M89: 4 | N89: 4 404 | O89: 4 404 | P89: 8 872 | Q89: — | X89: 2
J90: 3 | K90: Fine-lame | L90: 17 | M90: 17 | N90: 2 771 | O90: 2 771 | P90: 6 783 | Q90: — | X90: 3
D91: 50 | E91: 13 | F91: 11 048 | G91: 2 740 | H91: 6 510 | I91: — | J91: Total | L91: 22 | M91: 22 | N91: 16 252 | O91: 16 252 | P91: 15 655 | Q91: 14 | X91: 4
C92: Expérience | X92: 5
C93: Attaquant | E93: Défenseur
C94: 0.471 | D94: Honneur | E94: /
C95: 1 459 | D95: Expérience de base | E95: /
C96: 0.471 | D96: Modificateur total | E96: /
C97: 2 147 | D97: Expérience totale | E97: /
C100: Pertes définitives | T100: 3h20mn5s
C101: Attaquant | K101: Défenseur | U101: C5
C102: Unité | D102: Effectif | F102: Puissance | H102: Cout en or | I102: Cout en rares | J102: Peloton | K102: Unité | L102: Effectif | N102: Puissance | P102: Cout en or | Q102: Cout en rares
D103: Initial | E103: Perdu | F103: Initiale | G103: Perdue | H103: des pertes | I103: des pertes | L103: Initial | M103: Perdu | N103: Initiale | O103: Perdue | P103: des pertes | Q103: des pertes | S103: A | T103: B | U103: C | V103: D | W103: E
C104: Succube | D104: 10 | E104: 2 | F104: 9 180 | G104: 1 836 | H104: 3 696 | I104: — | J104: 1 | K104: Fine-lame | L104: 70 | M104: 70 | N104: 11 410 | O104: 11 410 | P104: 27 930 | Q104: — | X104: 1
J105: 2 | K105: Druide séculaire | L105: 3 | M105: 3 | N105: 3 303 | O105: 3 303 | P105: 6 654 | Q105: — | X105: 2
D106: 10 | E106: 2 | F106: 9 180 | G106: 1 836 | H106: 3 696 | I106: — | J106: Total | L106: 73 | M106: 73 | N106: 14 713 | O106: 14 713 | P106: 34 584 | Q106: — | X106: 3
C107: Expérience | X107: 4
C108: Attaquant | E108: Défenseur | X108: 5
C109: 0.6027 | D109: Honneur | E109: /
C110: 1 036 | D110: Expérience de base | E110: /
C111: 0.6027 | D111: Modificateur total | E111: /
C112: 1 660 | D112: Expérience totale | E112: /
C114: Pertes définitives
C115: Attaquant | K115: Défenseur | U115: A4
C116: Unité | D116: Effectif | F116: Puissance | H116: Cout en or | I116: Cout en rares | J116: Peloton | K116: Unité | L116: Effectif | N116: Puissance | P116: Cout en or | Q116: Cout en rares
D117: Initial | E117: Perdu | F117: Initiale | G117: Perdue | H117: des pertes | I117: des pertes | L117: Initial | M117: Perdu | N117: Initiale | O117: Perdue | P117: des pertes | Q117: des pertes | S117: A | T117: B | U117: C | V117: D | W117: E
C118: Démon cornu | D118: 36 | E118: 10 | F118: 5 868 | G118: 1 630 | H118: 3 990 | I118: — | J118: 1 | K118: Dragon d'émeraude | L118: 1 | M118: 1 | N118: 9 077 | O118: 9 077 | P118: — | Q118: 14 | X118: 1
C119: Familier | D119: 24 | E119: 7 | F119: 2 064 | G119: 602 | H119: 1 582 | I119: — | J119: 2 | K119: Maitre chasseur | L119: 14 | M119: 14 | N119: 7 532 | O119: 7 532 | P119: 15 526 | Q119: — | X119: 2
C120: Chien des enfers | D120: 18 | E120: 5 | F120: 6 660 | G120: 1 850 | H120: 4 200 | I120: — | J120: 3 | K120: Licorne | L120: 3 | M120: 3 | N120: 5 127 | O120: 5 127 | P120: 3 300 | Q120: 6 | X120: 3
D121: 78 | E121: 22 | F121: 14 592 | G121: 4 082 | H121: 9 772 | I121: — | J121: Total | L121: 18 | M121: 18 | N121: 21 736 | O121: 21 736 | P121: 18 826 | Q121: 20 | X121: 4
C122: Expérience | X122: 5
C123: Attaquant | E123: Défenseur
C124: 0.4896 | D124: Honneur | E124: /
C125: 1 837 | D125: Expérience de base | E125: /
C126: 0.4896 | D126: Modificateur total | E126: /
C127: 2 736 | D127: Expérience totale | E127: /
C129: Pertes définitives
C130: Attaquant | K130: Défenseur | U130: A1
C131: Unité | D131: Effectif | F131: Puissance | H131: Cout en or | I131: Cout en rares | J131: Peloton | K131: Unité | L131: Effectif | N131: Puissance | P131: Cout en or | Q131: Cout en rares
D132: Initial | E132: Perdu | F132: Initiale | G132: Perdue | H132: des pertes | I132: des pertes | L132: Initial | M132: Perdu | N132: Initiale | O132: Perdue | P132: des pertes | Q132: des pertes | S132: A | T132: B | U132: C | V132: D | W132: E
C133: Chien des enfers | D133: 13 | E133: 3 | F133: 4 810 | G133: 1 110 | H133: 2 520 | I133: — | J133: 1 | K133: Druide | L133: 10 | M133: 10 | N133: 9 180 | O133: 9 180 | P133: 18 480 | Q133: — | X133: 1
C134: Familier | D134: 40 | E134: 12 | F134: 3 440 | G134: 1 032 | H134: 2 712 | I134: — | J134: 2 | K134: Tréant | L134: 1 | M134: 1 | N134: 2 652 | O134: 2 652 | P134: 2 200 | Q134: 3 | X134: 2
C135: Démon cornu | D135: 7 | E135: 1 | F135: 1 141 | G135: 163 | H135: 399 | I135: — | J135: 3 | K135: Druide séculaire | L135: 2 | M135: 2 | N135: 2 202 | O135: 2 202 | P135: 4 436 | Q135: — | X135: 3
J136: 4 | K136: Licorne | L136: 1 | M136: 1 | N136: 1 709 | O136: 1 709 | P136: 1 100 | Q136: 2 | X136: 4
D137: 60 | E137: 16 | F137: 9 391 | G137: 2 305 | H137: 5 631 | I137: — | J137: Total | L137: 14 | M137: 14 | N137: 15 743 | O137: 15 743 | P137: 26 216 | Q137: 5 | X137: 5
C138: Expérience
C139: Attaquant | E139: Défenseur | I139: Magicien dérangé niveau 11
C140: 0.6764 | D140: Honneur | E140: / | I140: Flèche des arcanes Tour 1
C141: 1 312 | D141: Expérience de base | E141: /
C142: 0.6764 | D142: Modificateur total | E142: /
C143: 2 199 | D143: Expérience totale | E143: /
C145: Pertes définitives
C146: Attaquant | K146: Défenseur | U146: C1
C147: Unité | D147: Effectif | F147: Puissance | H147: Cout en or | I147: Cout en rares | J147: Peloton | K147: Unité | L147: Effectif | N147: Puissance | P147: Cout en or | Q147: Cout en rares
D148: Initial | E148: Perdu | F148: Initiale | G148: Perdue | H148: des pertes | I148: des pertes | L148: Initial | M148: Perdu | N148: Initiale | O148: Perdue | P148: des pertes | Q148: des pertes | S148: A | T148: B | U148: C | V148: D | W148: E
C149: Chien des enfers | D149: 17 | E149: 5 | F149: 6 290 | G149: 1 850 | H149: 4 200 | I149: — | J149: 1 | K149: Inquisiteur | L149: 4 | M149: 4 | N149: 10 300 | O149: 10 300 | P149: 6 800 | Q149: 12 | X149: 1
C150: Succube | D150: 7 | E150: 1 | F150: 6 426 | G150: 918 | H150: 1 848 | I150: — | J150: 2 | K150: Ange | L150: 1 | M150: 1 | N150: 7 150 | O150: 7 150 | P150: — | Q150: 10 | X150: 2
D151: 24 | E151: 6 | F151: 12 716 | G151: 2 768 | H151: 6 048 | I151: — | J151: Total | L151: 5 | M151: 5 | N151: 17 450 | O151: 17 450 | P151: 6 800 | Q151: 22 | X151: 3
C152: Expérience | X152: 4
C153: Attaquant | E153: Défenseur | X153: 5
C154: 0.3723 | D154: Honneur | E154: /
C155: 1 573 | D155: Expérience de base | E155: /
C156: 0.3723 | D156: Modificateur total | E156: /
C157: 2 159 | D157: Expérience totale | E157: /
C160: Pertes définitives
C161: Attaquant | K161: Défenseur | U161: E1
C162: Unité | D162: Effectif | F162: Puissance | H162: Cout en or | I162: Cout en rares | J162: Peloton | K162: Unité | L162: Effectif | N162: Puissance | P162: Cout en or | Q162: Cout en rares
D163: Initial | E163: Perdu | F163: Initiale | G163: Perdue | H163: des pertes | I163: des pertes | L163: Initial | M163: Perdu | N163: Initiale | O163: Perdue | P163: des pertes | Q163: des pertes | S163: A | T163: B | U163: C | V163: D | W163: E
C164: Démon cornu | D164: 33 | E164: 9 | F164: 5379 | G164: 1467 | H164: 3591 | I164: — | J164: 1 | K164: Dragon spectral | L164: 1 | M164: 1 | N164: 8213 | O164: 8213 | P164: — | Q164: 14 | X164: 1
C165: Chien des enfers | D165: 18 | E165: 5 | F165: 6660 | G165: 1850 | H165: 4200 | I165: — | J165: 2 | K165: Archer squelette | L165: 105 | M165: 105 | N165: 7350 | O165: 7350 | P165: 21525 | Q165: — | X165: 2
C166: Démon cornu | D166: 10 | E166: 3 | F166: 1630 | G166: 489 | H166: 1197 | I166: — | J166: 3 | K166: Fantôme | L166: 19 | M166: 19 | N166: 5757 | O166: 5757 | P166: 14440 | Q166: — | X166: 3
C167: Familier | D167: 84 | E167: 13 | F167: 7224 | G167: 1118 | H167: 2938 | I167: — | J167: 4 | K167: Liche | L167: 3 | M167: 3 | N167: 4290 | O167: 4290 | P167: 3000 | Q167: 6 | X167: 4
D168: 145 | E168: 30 | F168: 20893 | G168: 4924 | H168: 11926 | I168: — | J168: Total | L168: 128 | M168: 128 | N168: 25610 | O168: 25610 | P168: 38965 | Q168: 20 | X168: 5
C169: Expérience
C170: Attaquant | E170: Défenseur
C171: 0.2258 | D171: Honneur | E171: /
C172: 2053 | D172: Expérience de base | E172: /
C173: 0.2258 | D173: Modificateur total | E173: /
C174: 2516 | D174: Expérience totale | E174: /
C183: Pertes définitives
C184: Attaquant | K184: Défenseur
C185: Unité | D185: Effectif | F185: Puissance | H185: Cout en or | I185: Cout en rares | J185: Peloton | K185: Unité | L185: Effectif | N185: Puissance | P185: Cout en or | Q185: Cout en rares
D186: Initial | E186: Perdu | F186: Initiale | G186: Perdue | H186: des pertes | I186: des pertes | L186: Initial | M186: Perdu | N186: Initiale | O186: Perdue | P186: des pertes | Q186: des pertes
C187: Démon cornu | D187: 34 | E187: 10 | F187: 5 542 | G187: 1 630 | H187: 3 990 | I187: — | J187: 1 | K187: Dragon spectral | L187: 1 | M187: 1 | N187: 8 213 | O187: 8 213 | P187: — | Q187: 14
C188: Chien des enfers | D188: 13 | E188: 3 | F188: 4 810 | G188: 1 110 | H188: 2 520 | I188: — | J188: 2 | K188: Archer squelette | L188: 105 | M188: 105 | N188: 7 350 | O188: 7 350 | P188: 21 525 | Q188: —
C189: Démon cornu | D189: 24 | E189: 7 | F189: 3 912 | G189: 1 141 | H189: 2 793 | I189: — | J189: 3 | K189: Fantôme | L189: 19 | M189: 19 | N189: 5 757 | O189: 5 757 | P189: 14 440 | Q189: —
C190: Chien des enfers | D190: 8 | E190: 2 | F190: 2 960 | G190: 740 | H190: 1 680 | I190: — | J190: 4 | K190: Liche | L190: 3 | M190: 3 | N190: 4 290 | O190: 4 290 | P190: 3 000 | Q190: 6
D191: 79 | E191: 22 | F191: 17 224 | G191: 4 621 | H191: 10 983 | I191: — | J191: Total | L191: 128 | M191: 128 | N191: 25 610 | O191: 25 610 | P191: 38 965 | Q191: 20
C192: Expérience
C193: Attaquant | E193: Défenseur
C194: 0.4869 | D194: Honneur | E194: /
C195: 2 053 | D195: Expérience de base | E195: /
C196: 0.4869 | D196: Modificateur total | E196: /
C197: 3 052 | D197: Expérience totale | E197: /

Sheet TR2
AA1: LANCER LES COMBATS EN // | AI1: OPTIMISER LES XP | BV1: Accroissement
C3: Pertes définitives | AG3: ENGAGES/BESOINS | AO3: PERTES/GAINS | AW3: ACHATS/BESOINS SUP. | BE3: TOTAL DISPONIBLES | BP3: RESERVES | BV3: Maintenant
C4: Attaquant | K4: Défenseur | U4: A1 | AF4: Famillier | AG4: Démon cornu | AI4: Chien des enfers | AK4: Succube | AN4: Famillier | AO4: Démon cornu | AQ4: Chien des enfers | AS4: Succube | AV4: Famillier | AW4: Démon cornu | AY4: Chien des enfers | BA4: Succube | BD4: Famillier | BE4: Démon cornu | BG4: Chien des enfers | BI4: Succube | BM4: Fin | BO4: Famillier | BP4: Démon cornu | BR4: Chien des enfers | BT4: Succube | BV4: =NOW() -> 2010-09-29T23:41:22.700
C5: Unité | D5: Effectif | F5: Puissance | H5: Cout en or | I5: Cout en rares | J5: Peloton | K5: Unité | L5: Effectif | N5: Puissance | P5: Cout en or | Q5: Cout en rares | AA5: Qx | AB5: Héros | AC5: Pos | AD5: Manque | AE5: T1 | AF5: T1+ | AG5: T2 | AH5: T2+ | AI5: T3 | AJ5: T3+ | AK5: T4 | AL5: T4+ | AM5: T1 | AN5: T1+ | AO5: T2 | AP5: T2+ | AQ5: T3 | AR5: T3+ | AS5: T4 | AT5: T4+ | AU5: T1 | AV5: T1+ | AW5: T2 | AX5: T2+ | AY5: T3 | AZ5: T3+ | BA5: T4 | BB5: T4+ | BC5: T1 | BD5: T1+ | BE5: T2 | BF5: T2+ | BG5: T3 | BH5: T3+ | BI5: T4 | BJ5: T4+ | BK5: XP | BL5: Total XP | BM5: Date Heure | BN5: T1 | BO5: T1+ | BP5: T2 | BQ5: T2+ | BR5: T3 | BS5: T3+ | BT5: T4 | BU5: T4+
D6: Initial | E6: Perdu | F6: Initiale | G6: Perdue | H6: des pertes | I6: des pertes | L6: Initial | M6: Perdu | N6: Initiale | O6: Perdue | P6: des pertes | Q6: des pertes | S6: A | T6: B | U6: C | V6: D | W6: E | BD6: 64 | BE6: 37 | BG6: 16 | BI6: 6 | BL6: 9838 | BN6: 17 | BO6: 17 | BP6: 12 | BR6: 9
C7: Chien des enfers | D7: 13 | E7: 3 | F7: 4 810 | G7: 1 110 | H7: 2 520 | I7: — | J7: 1 | K7: Gremlin | L7: 113 | M7: 113 | N7: 8 023 | O7: 8 023 | P7: 21 357 | Q7: — | X7: 1 | Z7: =ABS(BK7/SUM(AM7:AT7)) -> 68.06060606 | AB7: exp. 6 | AC7: E4 | AD7: =IF(AE7<=BC6+AU7,0,AE7-(BC6+AU7))+IF(AF7<=BD6+AV7,0,AF7-(BD6+AV7))+IF(AG7<=BE6+AW7,0,AG7-(BE6+AW7))+IF(AH7<=BF6+AX7,0,AH7-(BF6+AX7))+IF(AI7<=BG6+AY7,0,AI7-(BG6+AY7))+IF(AJ7<=BH6+AZ7,0,AJ7-(BH6+AZ7))+IF(AK7<=BI6+BA7,0,AK7-(BI6+BA7))+IF(AL7<=BJ6+BB7,0,AL7-(BJ6+BB7)) -> 42 | AF7: 72 | AH7: 42 | AN7: -21 | AO7: -12 | AV7: 8 | AW7: 5 | BC7: =BC6+AM7+AU7 -> 0 | BD7: =BD6+AN7+AV7 -> 51 | BE7: =BE6+AO7+AW7 -> 30 | BF7: =BF6+AP7+AX7 -> 0 | BG7: =BG6+AQ7+AY7 -> 16 | BH7: =BH6+AR7+AZ7 -> 0 | BI7: =BI6+AS7+BA7 -> 6 | BJ7: =BJ6+AT7+BB7 -> 0 | BK7: 2246 | BL7: =BL6+BK7 -> 12084
C8: Familier | D8: 22 | E8: 6 | F8: 1 892 | G8: 516 | H8: 1 356 | I8: — | J8: 2 | K8: Golem d'acier | L8: 9 | M8: 9 | N8: 2 943 | O8: 2 943 | P8: 7 776 | Q8: — | X8: 2 | Z8: =ABS(BK8/SUM(AM8:AT8)) -> 115.90625 | AB8: exp. 6 | AC8: E1 | AD8: =IF(AE8<=BC7+AU8,0,AE8-(BC7+AU8))+IF(AF8<=BD7+AV8,0,AF8-(BD7+AV8))+IF(AG8<=BE7+AW8,0,AG8-(BE7+AW8))+IF(AH8<=BF7+AX8,0,AH8-(BF7+AX8))+IF(AI8<=BG7+AY8,0,AI8-(BG7+AY8))+IF(AJ8<=BH7+AZ8,0,AJ8-(BH7+AZ8))+IF(AK8<=BI7+BA8,0,AK8-(BI7+BA8))+IF(AL8<=BJ7+BB8,0,AL8-(BJ7+BB8)) -> 33 | AF8: 72 | AH8: 33 | AI8: 6 | AK8: 6 | AN8: -21 | AO8: -9 | AQ8: -1 | AS8: -1 | AV8: 21 | BC8: 0 | BD8: 51 | BE8: 21 | BF8: 0 | BG8: 15 | BH8: 0 | BI8: 5 | BJ8: 0 | BK8: 3709 | BL8: =BL7+BK8 -> 15793
C9: Démon cornu | D9: 11 | E9: 3 | F9: 1 793 | G9: 489 | H9: 1 197 | I9: — | J9: 3 | K9: Djinn | L9: 2 | M9: 2 | N9: 2 634 | O9: 2 634 | P9: 1 800 | Q9: 4 | X9: 3 | Z9: 84.84615385 | AB9: exp. 6 | AC9: D1 | AD9: =IF(AE9<=BC8+AU9,0,AE9-(BC8+AU9))+IF(AF9<=BD8+AV9,0,AF9-(BD8+AV9))+IF(AG9<=BE8+AW9,0,AG9-(BE8+AW9))+IF(AH9<=BF8+AX9,0,AH9-(BF8+AX9))+IF(AI9<=BG8+AY9,0,AI9-(BG8+AY9))+IF(AJ9<=BH8+AZ9,0,AJ9-(BH8+AZ9))+IF(AK9<=BI8+BA9,0,AK9-(BI8+BA9))+IF(AL9<=BJ8+BB9,0,AL9-(BJ8+BB9)) -> 39 | AF9: 61 | AH9: 29 | AK9: 2 | AN9: -18 | AO9: -8 | BC9: 0 | BD9: 33 | BE9: 13 | BF9: 0 | BG9: 15 | BH9: 0 | BI9: 5 | BJ9: 0 | BK9: 2206 | BL9: 17999
D10: 46 | E10: 12 | F10: 8 495 | G10: 2 115 | H10: 5 073 | I10: — | J10: Total | L10: 124 | M10: 124 | N10: 13 600 | O10: 13 600 | P10: 30 933 | Q10: 4 | X10: 4 | Z10: 260.1818182 | AB10: exp. 6 | AC10: A4 | AD10: =IF(AE10<=BC9+AU10,0,AE10-(BC9+AU10))+IF(AF10<=BD9+AV10,0,AF10-(BD9+AV10))+IF(AG10<=BE9+AW10,0,AG10-(BE9+AW10))+IF(AH10<=BF9+AX10,0,AH10-(BF9+AX10))+IF(AI10<=BG9+AY10,0,AI10-(BG9+AY10))+IF(AJ10<=BH9+AZ10,0,AJ10-(BH9+AZ10))+IF(AK10<=BI9+BA10,0,AK10-(BI9+BA10))+IF(AL10<=BJ9+BB10,0,AL10-(BJ9+BB10)) -> 37 | AH10: 35 | AK10: 7 | AQ10: -10 | AS10: -1 | BC10: 0 | BD10: 33 | BE10: 13 | BF10: 0 | BG10: 5 | BH10: 0 | BI10: 4 | BJ10: 0 | BK10: 2862 | BL10: 20861
C11: Expérience | X11: 5 | Z11: 67.75862069 | AB11: ga. 4 | AC11: C5 | AD11: 63 | AF11: 63 | AH11: 31 | AI11: 7 | AN11: -18 | AO11: -9 | AQ11: -2 | BC11: 0 | BD11: 15 | BE11: 4 | BF11: 0 | BG11: 3 | BH11: 0 | BI11: 4 | BJ11: 0 | BK11: 1965 | BL11: 22826
C12: Attaquant | E12: Défenseur | Z12: 76.25 | AB12: exp. 6 | AC12: B5 | AD12: 67 | AF12: 59 | AH12: 21 | AI12: 5 | AN12: -17 | AO12: -6 | AQ12: -1 | BC12: 0 | BD12: -2 | BE12: -2 | BF12: 0 | BG12: 2 | BH12: 0 | BI12: 4 | BJ12: 0 | BK12: 1830 | BL12: 24656
C13: 0.6009 | D13: Honneur | E13: / | I13: Niv. 6 Explorateur | Z13: 380.5 | AA13: Q9 | AB13: exp. 6 | AC13: A1 | AD13: 48 | AF13: 22 | AH13: 11 | AI13: 13 | AN13: -6 | AO13: =-3+5 -> 2 | AQ13: -3 | AS13: 3 | BC13: 0 | BD13: -8 | BE13: 0 | BF13: 0 | BG13: -1 | BH13: 0 | BI13: 7 | BJ13: 0 | BK13: 1522 | BL13: =BL12+BK17 -> 26849
C14: 951 | D14: Expérience de base | E14: / | I14: Fleche des arcanes Tour 1 | Z14: 679.7142857 | AB14: exp. 6 | AC14: B1 | AD14: 37 | AI14: 28 | AQ14: -7 | BC14: 0 | BD14: -8 | BE14: 0 | BF14: 0 | BG14: -8 | BH14: 0 | BI14: 7 | BJ14: 0 | BK14: 4758 | BL14: =BL13+BK13 -> 28371 | BN14: =BN6*($BM14-$BV$4)+#REF! ->  | BO14: =BO6*($BM14-$BV$4)+#REF! ->  | BP14: =BP6*($BM14-$BV$4)+#REF! ->  | BQ14: =BQ6*($BM14-$BV$4)+#REF! ->  | BR14: =BR6*($BM14-$BV$4)+#REF! ->  | BS14: =BS1*($BM14-$BV$4)+#REF! ->  | BT14: =BT1*($BM14-$BV$4)+#REF! ->  | BU14: =BU1*($BM14-$BV$4)+#REF! -> 
C15: 0.6009 | D15: Modificateur total | E15: / | Z15: 124.9375 | AB15: exp. 6 | AC15: A2 | AD15: =IF(AE15<=BC14+AU15,0,AE15-(BC14+AU15))+IF(AF15<=BD14+AV15,0,AF15-(BD14+AV15))+IF(AG15<=BE14+AW15,0,AG15-(BE14+AW15))+IF(AH15<=BF14+AX15,0,AH15-(BF14+AX15))+IF(AI15<=BG14+AY15,0,AI15-(BG14+AY15))+IF(AJ15<=BH14+AZ15,0,AJ15-(BH14+AZ15))+IF(AK15<=BI14+BA15,0,AK15-(BI14+BA15))+IF(AL15<=BJ14+BB15,0,AL15-(BJ14+BB15)) -> 67 | AH15: 37 | AI15: 14 | AK15: 3 | AO15: -11 | AQ15: -4 | AS15: -1 | BC15: 0 | BD15: -8 | BE15: -11 | BF15: 0 | BG15: -12 | BH15: 0 | BI15: 6 | BJ15: 0 | BK15: 1999 | BL15: =BL14+BK14 -> 33129
C16: 1 522 | D16: Expérience totale | E16: / | Z16: 179.1875 | AB16: exp. 6 | AC16: E2 | AD16: =IF(AE16<=BC15+AU16,0,AE16-(BC15+AU16))+IF(AF16<=BD15+AV16,0,AF16-(BD15+AV16))+IF(AG16<=BE15+AW16,0,AG16-(BE15+AW16))+IF(AH16<=BF15+AX16,0,AH16-(BF15+AX16))+IF(AI16<=BG15+AY16,0,AI16-(BG15+AY16))+IF(AJ16<=BH15+AZ16,0,AJ16-(BH15+AZ16))+IF(AK16<=BI15+BA16,0,AK16-(BI15+BA16))+IF(AL16<=BJ15+BB16,0,AL16-(BJ15+BB16)) -> 90 | AH16: 59 | AO16: -16 | BC16: 0 | BD16: -8 | BE16: -27 | BF16: 0 | BG16: -12 | BH16: 0 | BI16: 6 | BJ16: 0 | BK16: 2867 | BL16: =BL15+BK15 -> 35128
Z17: 365.5 | AB17: exp. 6 | AC17: E3 | AD17: 65 | AI17: 18 | AK17: 6 | AQ17: -5 | AS17: -1 | BC17: 0 | BD17: -8 | BE17: -27 | BF17: 0 | BG17: -17 | BH17: 0 | BI17: 5 | BJ17: 0 | BK17: 2193 | BL17: =BL16+BK16 -> 37995
C18: Pertes définitives
C19: Attaquant | K19: Défenseur | AD19: Plus gros combats d'abord ? | AS19: Il est possible d'économiser les succubes assez facilement
C20: Unité | D20: Effectif | F20: Puissance | H20: Cout en or | I20: Cout en rares | J20: Peloton | K20: Unité | L20: Effectif | N20: Puissance | P20: Cout en or | Q20: Cout en rares | AD20: s | BF20: Heureusement que j'avais la baraque à rang 3
D21: Initial | E21: Perdu | F21: Initiale | G21: Perdue | H21: des pertes | I21: des pertes | L21: Initial | M21: Perdu | N21: Initiale | O21: Perdue | P21: des pertes | Q21: des pertes | U21: B1 | BF21: Mais,… je n'avais pas la magie :(
C22: Chien des enfers | D22: 28 | E22: 7 | F22: 10 360 | G22: 2 590 | H22: 5 880 | I22: — | J22: 1 | K22: Ingénieur gremlin | L22: 101 | M22: 101 | N22: 8 686 | O22: 8 686 | P22: 22 826 | Q22: — | AD22: Pas à fond. Economiser 3/4 créatures / max | AP22: CONSTRUIRE LE CHENIL ASAP
J23: 2 | K23: Titan | L23: 1 | M23: 1 | N23: 8 190 | O23: 8 190 | P23: — | Q23: 14 | S23: A | T23: B | U23: C | V23: D | W23: E
J24: 3 | K24: Mage | L24: 5 | M24: 5 | N24: 3 370 | O24: 3 370 | P24: 7 920 | Q24: — | X24: 1
J25: 4 | K25: Gremlin | L25: 44 | M25: 44 | N25: 3 124 | O25: 3 124 | P25: 8 316 | Q25: — | X25: 2 | AH25: 9 | AI25: Utilisez la puissance de la magie
J26: 5 | K26: Djinn | L26: 1 | M26: 1 | N26: 1 317 | O26: 1 317 | P26: 900 | Q26: 2 | X26: 3 | AH26: 10 | AI26: Massacre héroïque
D27: 28 | E27: 7 | F27: 10 360 | G27: 2 590 | H27: 5 880 | I27: — | J27: Total | L27: 152 | M27: 152 | N27: 24 687 | O27: 24 687 | P27: 39 962 | Q27: 16 | X27: 4 | AH27: 11 | AI27: Gagner un combat en utilisant un objet magique
C28: Expérience | X28: 5
C29: Attaquant | E29: Défenseur
C30: 1.3829 | D30: Honneur | E30: /
C31: 1 997 | D31: Expérience de base | E31: /
C32: 1.3829 | D32: Modificateur total | E32: /
C33: 4 758 | D33: Expérience totale | E33: /
C36: Pertes définitives | U36: D1
C37: Attaquant | K37: Défenseur
C38: Unité | D38: Effectif | F38: Puissance | H38: Cout en or | I38: Cout en rares | J38: Peloton | K38: Unité | L38: Effectif | N38: Puissance | P38: Cout en or | Q38: Cout en rares | S38: A | T38: B | U38: C | V38: D | W38: E
D39: Initial | E39: Perdu | F39: Initiale | G39: Perdue | H39: des pertes | I39: des pertes | L39: Initial | M39: Perdu | N39: Initiale | O39: Perdue | P39: des pertes | Q39: des pertes | X39: 1
C40: Familier | D40: 64 | E40: 19 | F40: 5 504 | G40: 1 634 | H40: 4 294 | I40: — | J40: 1 | K40: Vampire | L40: 11 | M40: 11 | N40: 8 261 | O40: 8 261 | P40: 18 392 | Q40: — | X40: 2
C41: Démon cornu | D41: 25 | E41: 7 | F41: 4 075 | G41: 1 141 | H41: 2 793 | I41: — | J41: 2 | K41: Dragon squelette | L41: 1 | M41: 1 | N41: 5 866 | O41: 5 866 | P41: — | Q41: 10 | X41: 3
C42: Succube | D42: 3 | E42: 1 | F42: 2 754 | G42: 918 | H42: 1 848 | I42: — | J42: 3 | K42: Apparition | L42: 1 | M42: 1 | N42: 3 365 | O42: 3 365 | P42: 2 500 | Q42: 4 | X42: 4
D43: 92 | E43: 27 | F43: 12 333 | G43: 3 693 | H43: 8 935 | I43: — | J43: Total | L43: 13 | M43: 13 | N43: 17 492 | O43: 17 492 | P43: 20 892 | Q43: 14 | X43: 5
C44: Expérience
C45: Attaquant | E45: Défenseur
C46: 0.4183 | D46: Honneur | E46: /
C47: 1 555 | D47: Expérience de base | E47: /
C48: 0.4183 | D48: Modificateur total | E48: /
C49: 2 206 | D49: Expérience totale | E49: /
C51: Pertes définitives | U51: E1
C52: Attaquant | K52: Défenseur
C53: Unité | D53: Effectif | F53: Puissance | H53: Cout en or | I53: Cout en rares | J53: Peloton | K53: Unité | L53: Effectif | N53: Puissance | P53: Cout en or | Q53: Cout en rares | S53: A | T53: B | U53: C | V53: D | W53: E
D54: Initial | E54: Perdu | F54: Initiale | G54: Perdue | H54: des pertes | I54: des pertes | L54: Initial | M54: Perdu | N54: Initiale | O54: Perdue | P54: des pertes | Q54: des pertes | X54: 1
C55: Familier | D55: 72 | E55: 21 | F55: 6 192 | G55: 1 806 | H55: 4 746 | I55: — | J55: 1 | K55: Archidiable | L55: 1 | M55: 1 | N55: 9 555 | O55: 9 555 | P55: — | Q55: 14 | X55: 2
C56: Succube | D56: 6 | E56: 1 | F56: 5 508 | G56: 918 | H56: 1 848 | I56: — | J56: 2 | K56: Diablotin | L56: 120 | M56: 120 | N56: 8 520 | O56: 8 520 | P56: 22 680 | Q56: — | X56: 3
C57: Démon cornu | D57: 30 | E57: 9 | F57: 4 890 | G57: 1 467 | H57: 3 591 | I57: — | J57: 3 | K57: Chien des enfers | L57: 14 | M57: 14 | N57: 5 180 | O57: 5 180 | P57: 11 760 | Q57: — | X57: 4
C58: Chien des enfers | D58: 6 | E58: 1 | F58: 2 220 | G58: 370 | H58: 840 | I58: — | J58: 4 | K58: Démon gardien | L58: 18 | M58: 18 | N58: 3 528 | O58: 3 528 | P58: 8 604 | Q58: — | X58: 5
J59: 5 | K59: Maitresse succube | L59: 3 | M59: 3 | N59: 3 303 | O59: 3 303 | P59: 6 651 | Q59: —
D60: 114 | E60: 32 | F60: 18 810 | G60: 4 561 | H60: 11 025 | I60: — | J60: Total | L60: 156 | M60: 156 | N60: 30 086 | O60: 30 086 | P60: 49 695 | Q60: 14
C61: Expérience
C62: Attaquant | E62: Défenseur
C63: 0.5995 | D63: Honneur | E63: /
C64: 2 379 | D64: Expérience de base | E64: / | H64: Flèche des arcanes Tour 6
C65: 0.5995 | D65: Modificateur total | E65: /
C66: 3 806 | D66: Expérience totale | E66: /
C68: Pertes définitives
C69: Attaquant | K69: Défenseur
C70: Unité | D70: Effectif | F70: Puissance | H70: Cout en or | I70: Cout en rares | J70: Peloton | K70: Unité | L70: Effectif | N70: Puissance | P70: Cout en or | Q70: Cout en rares | U70: A2
D71: Initial | E71: Perdu | F71: Initiale | G71: Perdue | H71: des pertes | I71: des pertes | L71: Initial | M71: Perdu | N71: Initiale | O71: Perdue | P71: des pertes | Q71: des pertes
C72: Démon cornu | D72: 37 | E72: 11 | F72: 6 031 | G72: 1 793 | H72: 4 389 | I72: — | J72: 1 | K72: Dragon spectral | L72: 1 | M72: 1 | N72: 8 213 | O72: 8 213 | P72: — | Q72: 14 | S72: A | T72: B | U72: C | V72: D | W72: E
C73: Chien des enfers | D73: 14 | E73: 4 | F73: 5 180 | G73: 1 480 | H73: 3 360 | I73: — | J73: 2 | K73: Fantôme | L73: 15 | M73: 15 | N73: 4 545 | O73: 4 545 | P73: 11 400 | Q73: — | X73: 1
C74: Succube | D74: 3 | E74: 1 | F74: 2 754 | G74: 918 | H74: 1 848 | I74: — | J74: 3 | K74: Zombie | L74: 31 | M74: 31 | N74: 4 154 | O74: 4 154 | P74: 11 191 | Q74: — | X74: 2
J75: 4 | K75: Zombie pestilentiel | L75: 10 | M75: 10 | N75: 1 600 | O75: 1 600 | P75: 4 330 | Q75: — | X75: 3
D76: 54 | E76: 16 | F76: 13 965 | G76: 4 191 | H76: 9 597 | I76: — | J76: Total | L76: 57 | M76: 57 | N76: 18 512 | O76: 18 512 | P76: 26 921 | Q76: 14 | X76: 4
C77: Expérience | X77: 5
C78: Attaquant | E78: Défenseur
C79: 0.3256 | D79: Honneur | E79: /
C80: 1 508 | D80: Expérience de base | E80: /
C81: 0.3256 | D81: Modificateur total | E81: /
C82: 1 999 | D82: Expérience totale | E82: /
C84: Pertes définitives
C85: Attaquant | K85: Défenseur | U85: E2
C86: Unité | D86: Effectif | F86: Puissance | H86: Cout en or | I86: Cout en rares | J86: Peloton | K86: Unité | L86: Effectif | N86: Puissance | P86: Cout en or | Q86: Cout en rares
D87: Initial | E87: Perdu | F87: Initiale | G87: Perdue | H87: des pertes | I87: des pertes | L87: Initial | M87: Perdu | N87: Initiale | O87: Perdue | P87: des pertes | Q87: des pertes | S87: A | T87: B | U87: C | V87: D | W87: E
C88: Démon cornu | D88: 59 | E88: 16 | F88: 9 617 | G88: 2 608 | H88: 6 384 | I88: — | J88: 1 | K88: Dryade | L88: 86 | M88: 86 | N88: 9 116 | O88: 9 116 | P88: 21 672 | Q88: — | X88: 1
J89: 2 | K89: Dragon d'émeraude | L89: 1 | M89: 1 | N89: 9 077 | O89: 9 077 | P89: — | Q89: 14 | X89: 2
D90: 59 | E90: 16 | F90: 9 617 | G90: 2 608 | H90: 6 384 | I90: — | J90: Total | L90: 87 | M90: 87 | N90: 18 193 | O90: 18 193 | P90: 21 672 | Q90: 14 | X90: 3
C91: Expérience | X91: 4
C92: Attaquant | E92: Défenseur | X92: 5
C93: 0.8918 | D93: Honneur | E93: /
C94: 1 515 | D94: Expérience de base | E94: /
C95: 0.8918 | D95: Modificateur total | E95: /
C96: 2 867 | D96: Expérience totale | E96: /
C98: Pertes définitives
C99: Attaquant | K99: Défenseur | U99: E3
C100: Unité | D100: Effectif | F100: Puissance | H100: Cout en or | I100: Cout en rares | J100: Peloton | K100: Unité | L100: Effectif | N100: Puissance | P100: Cout en or | Q100: Cout en rares
D101: Initial | E101: Perdu | F101: Initiale | G101: Perdue | H101: des pertes | I101: des pertes | L101: Initial | M101: Perdu | N101: Initiale | O101: Perdue | P101: des pertes | Q101: des pertes | S101: A | T101: B | U101: C | V101: D | W101: E
C102: Chien des enfers | D102: 17 | E102: 5 | F102: 6 290 | G102: 1 850 | H102: 4 200 | I102: — | J102: 1 | K102: Titan | L102: 1 | M102: 1 | N102: 8 190 | O102: 8 190 | P102: — | Q102: 14 | X102: 1
C103: Succube | D103: 6 | E103: 1 | F103: 5 508 | G103: 918 | H103: 1 848 | I103: — | J103: 2 | K103: Gremlin | L103: 73 | M103: 73 | N103: 5 183 | O103: 5 183 | P103: 13 797 | Q103: — | X103: 2
J104: 3 | K104: Ingénieur gremlin | L104: 34 | M104: 34 | N104: 2 924 | O104: 2 924 | P104: 7 684 | Q104: — | X104: 3
J105: 4 | K105: Djinn | L105: 1 | M105: 1 | N105: 1 317 | O105: 1 317 | P105: 900 | Q105: 2 | X105: 4
D106: 23 | E106: 6 | F106: 11 798 | G106: 2 768 | H106: 6 048 | I106: — | J106: Total | L106: 109 | M106: 109 | N106: 17 614 | O106: 17 614 | P106: 22 381 | Q106: 16 | X106: 5
C107: Expérience
C108: Attaquant | E108: Défenseur
C109: 0.493 | D109: Honneur | E109: /
C110: 1 469 | D110: Expérience de base | E110: / | H110: Flèche des arcanes Tour 2
C111: 0.493 | D111: Modificateur total | E111: /
C112: 2 193 | D112: Expérience totale | E112: /
C114: Pertes définitives | U114: A4
C115: Attaquant | K115: Défenseur
C116: Unité | D116: Effectif | F116: Puissance | H116: Cout en or | I116: Cout en rares | J116: Peloton | K116: Unité | L116: Effectif | N116: Puissance | P116: Cout en or | Q116: Cout en rares | S116: A | T116: B | U116: C | V116: D | W116: E
D117: Initial | E117: Perdu | F117: Initiale | G117: Perdue | H117: des pertes | I117: des pertes | L117: Initial | M117: Perdu | N117: Initiale | O117: Perdue | P117: des pertes | Q117: des pertes | X117: 1
C118: Démon gardien | D118: 35 | E118: 10 | F118: 6 860 | G118: 1 960 | H118: 4 780 | I118: — | J118: 1 | K118: Destrier de cauchemar | L118: 4 | M118: 4 | N118: 10 672 | O118: 10 672 | P118: 6 800 | Q118: 12 | X118: 2
C119: Succube | D119: 7 | E119: 1 | F119: 6 426 | G119: 918 | H119: 1 848 | I119: — | J119: 2 | K119: Archidiable | L119: 1 | M119: 1 | N119: 9 555 | O119: 9 555 | P119: — | Q119: 14 | X119: 3
D120: 42 | E120: 11 | F120: 13 286 | G120: 2 878 | H120: 6 628 | I120: — | J120: Total | L120: 5 | M120: 5 | N120: 20 227 | O120: 20 227 | P120: 6 800 | Q120: 26 | X120: 4
C121: Expérience | X121: 5
C122: Attaquant | E122: Défenseur
C123: 0.5224 | D123: Honneur | E123: /
C124: 1 845 | D124: Expérience de base | E124: /
C125: 0.5224 | D125: Modificateur total | E125: /
C126: 2 809 | D126: Expérience totale | E126: /
C128: Pertes définitives
C129: Attaquant | K129: Défenseur | U129: E4
C130: Unité | D130: Effectif | F130: Puissance | H130: Cout en or | I130: Cout en rares | J130: Peloton | K130: Unité | L130: Effectif | N130: Puissance | P130: Cout en or | Q130: Cout en rares
D131: Initial | E131: Perdu | F131: Initiale | G131: Perdue | H131: des pertes | I131: des pertes | L131: Initial | M131: Perdu | N131: Initiale | O131: Perdue | P131: des pertes | Q131: des pertes | S131: A | T131: B | U131: C | V131: D | W131: E
C132: Familier | D132: 64 | E132: 19 | F132: 5 504 | G132: 1 634 | H132: 4 294 | I132: — | J132: 1 | K132: Conscrit | L132: 95 | M132: 95 | N132: 12 160 | O132: 12 160 | P132: 26 315 | Q132: — | X132: 1
C133: Démon cornu | D133: 45 | E133: 13 | F133: 7 335 | G133: 2 119 | H133: 5 187 | I133: — | J133: 2 | K133: Paladin | L133: 1 | M133: 1 | N133: 4 508 | O133: 4 508 | P133: 2 900 | Q133: 4 | X133: 2
J134: 3 | K134: Cavalier | L134: 1 | M134: 1 | N134: 3 188 | O134: 3 188 | P134: 2 400 | Q134: 3 | X134: 3
D135: 109 | E135: 32 | F135: 12 839 | G135: 3 753 | H135: 9 481 | I135: — | J135: Total | L135: 97 | M135: 97 | N135: 19 856 | O135: 19 856 | P135: 31 615 | Q135: 7 | X135: 4
C136: Expérience | X136: 5
C137: Attaquant | E137: Défenseur
C138: 0.5465 | D138: Honneur | E138: /
C139: 1 452 | D139: Expérience de base | E139: /
C140: 0.5465 | D140: Modificateur total | E140: /
C141: 2 246 | D141: Expérience totale | E141: /
C143: Pertes définitives
C144: Attaquant | K144: Défenseur | U144: B5
C145: Unité | D145: Effectif | F145: Puissance | H145: Cout en or | I145: Cout en rares | J145: Peloton | K145: Unité | L145: Effectif | N145: Puissance | P145: Cout en or | Q145: Cout en rares
D146: Initial | E146: Perdu | F146: Initiale | G146: Perdue | H146: des pertes | I146: des pertes | L146: Initial | M146: Perdu | N146: Initiale | O146: Perdue | P146: des pertes | Q146: des pertes | S146: A | T146: B | U146: C | V146: D | W146: E
C147: Familier | D147: 59 | E147: 17 | F147: 5 074 | G147: 1 462 | H147: 3 842 | I147: — | J147: 1 | K147: Squelette | L147: 94 | M147: 94 | N147: 8 178 | O147: 8 178 | P147: 19 646 | Q147: — | X147: 1
C148: Démon cornu | D148: 21 | E148: 6 | F148: 3 423 | G148: 978 | H148: 2 394 | I148: — | J148: 2 | K148: Spectre | L148: 15 | M148: 15 | N148: 5 460 | O148: 5 460 | P148: 13 680 | Q148: — | X148: 2
C149: Chien des enfers | D149: 5 | E149: 1 | F149: 1 850 | G149: 370 | H149: 840 | I149: — | J149: 3 | K149: Liche | L149: 2 | M149: 2 | N149: 2 860 | O149: 2 860 | P149: 2 000 | Q149: 4 | X149: 3
D150: 85 | E150: 24 | F150: 10 347 | G150: 2 810 | H150: 7 076 | I150: — | J150: Total | L150: 111 | M150: 111 | N150: 16 498 | O150: 16 498 | P150: 35 326 | Q150: 4 | X150: 4
C151: Expérience | X151: 5
C152: Attaquant | E152: Défenseur
C153: 0.5945 | D153: Honneur | E153: /
C154: 1 148 | D154: Expérience de base | E154: /
C155: 0.5945 | D155: Modificateur total | E155: /
C156: 1 830 | D156: Expérience totale | E156: /
C158: Pertes définitives
C159: Attaquant | K159: Défenseur | U159: C5
C160: Unité | D160: Effectif | F160: Puissance | H160: Cout en or | I160: Cout en rares | J160: Peloton | K160: Unité | L160: Effectif | N160: Puissance | P160: Cout en or | Q160: Cout en rares
D161: Initial | E161: Perdu | F161: Initiale | G161: Perdue | H161: des pertes | I161: des pertes | L161: Initial | M161: Perdu | N161: Initiale | O161: Perdue | P161: des pertes | Q161: des pertes | S161: A | T161: B | U161: C | V161: D | W161: E
C162: Démon cornu | D162: 36 | E162: 10 | F162: 5 868 | G162: 1 630 | H162: 3 990 | I162: — | J162: 1 | K162: Dragon d'émeraude | L162: 1 | M162: 1 | N162: 9 077 | O162: 9 077 | P162: — | Q162: 14 | X162: 1
C163: Chien des enfers | D163: 7 | E163: 2 | F163: 2 590 | G163: 740 | H163: 1 680 | I163: — | J163: 2 | K163: Druide | L163: 4 | M163: 4 | N163: 3 672 | O163: 3 672 | P163: 7 392 | Q163: — | X163: 2
C164: Familier | D164: 62 | E164: 18 | F164: 5 332 | G164: 1 548 | H164: 4 068 | I164: — | J164: 3 | K164: Dryade | L164: 31 | M164: 31 | N164: 3 286 | O164: 3 286 | P164: 7 812 | Q164: — | X164: 3
J165: 4 | K165: Fine-lame | L165: 11 | M165: 11 | N165: 1 793 | O165: 1 793 | P165: 4 389 | Q165: — | X165: 4
D166: 105 | E166: 30 | F166: 13 790 | G166: 3 918 | H166: 9 738 | I166: — | J166: Total | L166: 47 | M166: 47 | N166: 17 828 | O166: 17 828 | P166: 19 593 | Q166: 14 | X166: 5
C167: Expérience
C168: Attaquant | E168: Défenseur
C169: 0.2928 | D169: Honneur | E169: /
C170: 1 552 | D170: Expérience de base | E170: /
C171: 0.2928 | D171: Modificateur total | E171: /
C172: 2 007 | D172: Expérience totale | E172: /

Sheet HD2.2
F1: Niv. 7 Magicien dérangé | AC1: LANCER LES COMBATS EN // | AJ1: OPTIMISER LES XP | BO1: 17 | BP1: 17 | BQ1: 12 | BS1: 9 | BW1: Accroissement
AH2: ENGAGES/BESOINS | AP2: PERTES/GAINS | AX2: ACHATS/BESOINS SUP. | BF2: TOTAL DISPONIBLES | BQ2: RESERVES
C3: Pertes définitives | AG3: Famillier | AH3: Démon cornu | AJ3: Chien des enfers | AL3: Succube | AO3: Famillier | AP3: Démon cornu | AR3: Chien des enfers | AT3: Succube | AW3: Famillier | AX3: Démon cornu | AZ3: Chien des enfers | BB3: Succube | BE3: Famillier | BF3: Démon cornu | BH3: Chien des enfers | BJ3: Succube | BN3: Fin | BP3: Famillier | BQ3: Démon cornu | BS3: Chien des enfers | BU3: Succube
C4: Attaquant | K4: Défenseur | U4: C4 | AC4: Qx | AD4: Pos | AE4: Manque | AF4: T1 | AG4: T1+ | AH4: T2 | AI4: T2+ | AJ4: T3 | AK4: T3+ | AL4: T4 | AM4: T4+ | AN4: T1 | AO4: T1+ | AP4: T2 | AQ4: T2+ | AR4: T3 | AS4: T3+ | AT4: T4 | AU4: T4+ | AV4: T1 | AW4: T1+ | AX4: T2 | AY4: T2+ | AZ4: T3 | BA4: T3+ | BB4: T4 | BC4: T4+ | BD4: T1 | BE4: T1+ | BF4: T2 | BG4: T2+ | BH4: T3 | BI4: T3+ | BJ4: T4 | BK4: T4+ | BL4: XP | BM4: Total XP | BN4: Date Heure | BO4: T1 | BP4: T1+ | BQ4: T2 | BR4: T2+ | BS4: T3 | BT4: T3+ | BU4: T4 | BV4: T4+ | BW4: Maintenant
C5: Unité | D5: Effectif | F5: Puissance | H5: Cout en or | I5: Cout en rares | J5: Peloton | K5: Unité | L5: Effectif | N5: Puissance | P5: Cout en or | Q5: Cout en rares | BE5: 85 | BF5: 26 | BH5: 13 | BJ5: 7 | BK5: 2 | BM5: 49942 | BN5: 2010-09-18T12:39:00 | BO5: 70 | BP5: 70 | BQ5: 40 | BS5: 15 | BW5: =NOW() -> 2010-09-29T23:41:22.700
D6: Initial | E6: Perdu | F6: Initiale | G6: Perdue | H6: des pertes | I6: des pertes | L6: Initial | M6: Perdu | N6: Initiale | O6: Perdue | P6: des pertes | Q6: des pertes | S6: A | T6: B | U6: C | V6: D | W6: E | AC6: Q9 | AD6: C4 | AE6: =IF(AF6<=BD5+AV6,0,AF6-(BD5+AV6))+IF(AG6<=BE5+AW6,0,AG6-(BE5+AW6))+IF(AH6<=BF5+AX6,0,AH6-(BF5+AX6))+IF(AI6<=BG5+AY6,0,AI6-(BG5+AY6))+IF(AJ6<=BH5+AZ6,0,AJ6-(BH5+AZ6))+IF(AK6<=BI5+BA6,0,AK6-(BI5+BA6))+IF(AL6<=BJ5+BB6,0,AL6-(BJ5+BB6))+IF(AM6<=BK5+BC6,0,AM6-(BK5+BC6)) -> 0 | BD6: =BD5+AN6+AV6 -> 0 | BE6: =BE5+AO6+AW6 -> 85 | BF6: 26 | BG6: 0 | BH6: 13 | BI6: 0 | BJ6: 7 | BK6: 2 | BM6: =BM5+BL6 -> 49942 | BN6: 2010-09-18T13:39:00
C7: Succube | D7: 6 | E7: 1 | F7: 5508 | G7: 918 | H7: 1848 | I7: — | J7: 1 | K7: Fantassin | L7: 34 | M7: 34 | N7: 13838 | O7: 13838 | P7: 29920 | Q7: — | X7: 1 | AD7: A1 | AE7: 0 | BD7: =BD6+AN7+AV7 -> 0 | BE7: =BE6+AO7+AW7 -> 85 | BF7: =BF6+AP7+AX7 -> 26 | BG7: =BG6+AQ7+AY7 -> 0 | BH7: =BH6+AR7+AZ7 -> 13 | BI7: =BI6+AS7+BA7 -> 0 | BJ7: =BJ6+AT7+BB7 -> 7 | BK7: =BK6+AU7+BC7 -> 2 | BM7: =BM6+BL7 -> 49942 | BN7: 2010-09-19T13:38:59.995
C8: Maitresse succube | D8: 3 | E8: 1 | F8: 3303 | G8: 1101 | H8: 2217 | I8: — | J8: 2 | K8: Conscrit | L8: 63 | M8: 63 | N8: 8064 | O8: 8064 | P8: 17451 | Q8: — | X8: 2 | AD8: B1 | AE8: 0 | BD8: 0 | BE8: 85 | BF8: 26 | BG8: 0 | BH8: 13 | BI8: 0 | BJ8: 7 | BK8: 2 | BM8: 49942 | BN8: 2010-09-20T13:38:59.995
C9: Familier | D9: 80 | E9: 12 | F9: 6880 | G9: 1032 | H9: 2712 | I9: — | J9: 3 | K9: Paysan | L9: 77 | M9: 77 | N9: 7469 | O9: 7469 | P9: 16940 | Q9: — | X9: 3 | AD9: C1 | AE9: 0 | BD9: 0 | BE9: 85 | BF9: 26 | BG9: 0 | BH9: 13 | BI9: 0 | BJ9: 7 | BK9: 2 | BM9: 49942 | BN9: 2010-09-21T13:38:59.995
D10: 89 | E10: 14 | F10: 15691 | G10: 3051 | H10: 6777 | I10: — | J10: Total | L10: 174 | M10: 174 | N10: 29371 | O10: 29371 | P10: 64311 | Q10: — | X10: 4 | AD10: D1 | AE10: 0 | BD10: 0 | BE10: 85 | BF10: 26 | BG10: 0 | BH10: 13 | BI10: 0 | BJ10: 7 | BK10: 2 | BM10: 49942 | BN10: 2010-09-22T13:38:59.995
C11: Expérience | X11: 5 | AD11: E1 | AE11: 0 | BD11: 0 | BE11: 85 | BF11: 26 | BG11: 0 | BH11: 13 | BI11: 0 | BJ11: 7 | BK11: 2 | BM11: 49942 | BN11: 2010-09-23T13:38:59.995
C12: Attaquant | E12: Défenseur | AD12: A2 | AE12: 0 | BD12: 0 | BE12: 85 | BF12: 26 | BG12: 0 | BH12: 13 | BI12: 0 | BJ12: 7 | BK12: 2 | BM12: 49942 | BN12: 2010-09-24T13:38:59.995
C13: 0.8718 | D13: Honneur | E13: / | AD13: B2 | AE13: 0 | BD13: 0 | BE13: 85 | BF13: 26 | BG13: 0 | BH13: 13 | BI13: 0 | BJ13: 7 | BK13: 2 | BM13: 49942 | BN13: 2010-09-25T13:38:59.995
C14: 1958 | D14: Expérience de base | E14: / | H14: Victoire écrasante | AD14: E2 | AE14: 0 | BD14: 0 | BE14: 85 | BF14: 26 | BG14: 0 | BH14: 13 | BI14: 0 | BJ14: 7 | BK14: 2 | BM14: 49942 | BN14: 2010-09-26T13:38:59.995
C15: 0.8718 | D15: Modificateur total | E15: / | H15: Flèche des arcanes au tour 1 | AD15: A3 | AE15: 0 | BD15: 0 | BE15: 85 | BF15: 26 | BG15: 0 | BH15: 13 | BI15: 0 | BJ15: 7 | BK15: 2 | BM15: 49942 | BN15: 2010-09-27T13:38:59.995
A16: =C16/G10 -> 1.201245493 | C16: 3665 | D16: Expérience totale | E16: / | AD16: B3 | AE16: 0 | BD16: 0 | BE16: 85 | BF16: 26 | BG16: 0 | BH16: 13 | BI16: 0 | BJ16: 7 | BK16: 2 | BM16: 49942 | BN16: 2010-09-28T13:38:59.995
AD17: E3 | AE17: 0 | BD17: 0 | BE17: 85 | BF17: 26 | BG17: 0 | BH17: 13 | BI17: 0 | BJ17: 7 | BK17: 2 | BM17: 49942 | BN17: 2010-09-29T13:38:59.995
AD18: A4 | AE18: 0 | BD18: 0 | BE18: 85 | BF18: 26 | BG18: 0 | BH18: 13 | BI18: 0 | BJ18: 7 | BK18: 2 | BM18: 49942 | BN18: 2010-09-30T13:38:59.995
AD19: D4 | AE19: 0 | BD19: 0 | BE19: 85 | BF19: 26 | BG19: 0 | BH19: 13 | BI19: 0 | BJ19: 7 | BK19: 2 | BM19: 49942 | BN19: 2010-10-01T13:38:59.995
C20: Pertes définitives | AD20: E4 | AE20: 0 | BD20: 0 | BE20: 85 | BF20: 26 | BG20: 0 | BH20: 13 | BI20: 0 | BJ20: 7 | BK20: 2 | BM20: 49942 | BN20: 2010-10-02T13:38:59.995
C21: Attaquant | K21: Défenseur | AD21: A5 | AE21: 0 | BD21: 0 | BE21: 85 | BF21: 26 | BG21: 0 | BH21: 13 | BI21: 0 | BJ21: 7 | BK21: 2 | BM21: 49942 | BN21: 2010-10-03T13:38:59.995
C22: Unité | D22: Effectif | F22: Puissance | H22: Cout en or | I22: Cout en rares | J22: Peloton | K22: Unité | L22: Effectif | N22: Puissance | P22: Cout en or | Q22: Cout en rares | AD22: B5 | AE22: 0 | BD22: 0 | BE22: 85 | BF22: 26 | BG22: 0 | BH22: 13 | BI22: 0 | BJ22: 7 | BK22: 2 | BM22: 49942 | BN22: 2010-10-04T13:38:59.995
D23: Initial | E23: Perdu | F23: Initiale | G23: Perdue | H23: des pertes | I23: des pertes | L23: Initial | M23: Perdu | N23: Initiale | O23: Perdue | P23: des pertes | Q23: des pertes | U23: E3 | AD23: C5 | AE23: 0 | BD23: 0 | BE23: 85 | BF23: 26 | BG23: 0 | BH23: 13 | BI23: 0 | BJ23: 7 | BK23: 2 | BM23: 49942 | BN23: 2010-10-05T13:38:59.995
C24: Familier | D24: 127 | E24: 38 | F24: 10922 | G24: 3268 | H24: 8588 | I24: — | J24: 1 | K24: Rani Rakshasa | L24: 7 | M24: 7 | N24: 15694 | O24: 15694 | P24: 12600 | Q24: 21 | AD24: D5 | AE24: 0 | BD24: 0 | BE24: 85 | BF24: 26 | BG24: 0 | BH24: 13 | BI24: 0 | BJ24: 7 | BK24: 2 | BM24: 49942 | BN24: 2010-10-06T13:38:59.995
C25: Démon cornu | D25: 104 | E25: 9 | F25: 16952 | G25: 1467 | H25: 3591 | I25: — | J25: 2 | K25: Sultan djinn | L25: 7 | M25: 7 | N25: 13958 | O25: 13958 | P25: 9800 | Q25: 21 | S25: A | T25: B | U25: C | V25: D | W25: E | AD25: E5 | AE25: 0 | BD25: 0 | BE25: 85 | BF25: 26 | BG25: 0 | BH25: 13 | BI25: 0 | BJ25: 7 | BK25: 2 | BM25: 49942 | BN25: 2010-10-07T13:38:59.995
D26: 231 | E26: 47 | F26: 27874 | G26: 4735 | H26: 12179 | I26: — | J26: Total | L26: 14 | M26: 14 | N26: 29652 | O26: 29652 | P26: 22400 | Q26: 42 | X26: 1
C27: Expérience | X27: 2
C28: Attaquant | E28: Défenseur | X28: 3
C29: 0.0638 | D29: Honneur | E29: / | X29: 4
C30: 2471 | D30: Expérience de base | E30: / | H30: Mage de guerre niveau 1 | X30: 5
C31: 0.0638 | D31: Modificateur total | E31: / | H31: Victoire moyenne
A32: =C32/G26 -> 0.5552270327 | C32: 2629 | D32: Expérience totale | E32: /
C36: Pertes définitives | U36: B1
C37: Attaquant | K37: Défenseur
C38: Unité | D38: Effectif | F38: Puissance | H38: Cout en or | I38: Cout en rares | J38: Peloton | K38: Unité | L38: Effectif | N38: Puissance | P38: Cout en or | Q38: Cout en rares | S38: A | T38: B | U38: C | V38: D | W38: E
D39: Initial | E39: Perdu | F39: Initiale | G39: Perdue | H39: des pertes | I39: des pertes | L39: Initial | M39: Perdu | N39: Initiale | O39: Perdue | P39: des pertes | Q39: des pertes | X39: 1
C40: Familier | D40: 237 | E40: 71 | F40: 20382 | G40: 6106 | H40: 16046 | I40: — | J40: 1 | K40: Zombie | L40: 296 | M40: 296 | N40: 39664 | O40: 39664 | P40: 106856 | Q40: — | X40: 2
C41: Succube | D41: 14 | E41: 3 | F41: 12852 | G41: 2754 | H41: 5544 | I41: — | J41: 2 | K41: Squelette | L41: 171 | M41: 171 | N41: 14877 | O41: 14877 | P41: 35739 | Q41: — | X41: 3
D42: 251 | E42: 74 | F42: 33234 | G42: 8860 | H42: 21590 | I42: — | J42: Total | L42: 467 | M42: 467 | N42: 54541 | O42: 54541 | P42: 142595 | Q42: — | X42: 4
C43: Expérience | X43: 5
C44: Attaquant | E44: Défenseur
C45: 0.6411 | D45: Honneur | E45: /
C46: 3636 | D46: Expérience de base | E46: /
C47: 0.6411 | D47: Modificateur total | E47: /
A48: =C48/G42 -> 0.673476298 | C48: 5967 | D48: Expérience totale | E48: /
U51: C1
S53: A | T53: B | U53: C | V53: D | W53: E
X54: 1
X55: 2
X56: 3
X57: 4
X58: 5
U70: A5
S72: A | T72: B | U72: C | V72: D | W72: E
X73: 1
X74: 2
X75: 3
X76: 4
X77: 5
U85: D5 | W85: 3h36mn14
S87: A | T87: B | U87: C | V87: D | W87: E
X88: 1
X89: 2
X90: 3
X91: 4
X92: 5
T100: 3h20mn5s
U101: C5
S103: A | T103: B | U103: C | V103: D | W103: E
X104: 1
X105: 2
X106: 3
X107: 4
X108: 5
U115: A4
S117: A | T117: B | U117: C | V117: D | W117: E
X118: 1
X119: 2
X120: 3
X121: 4
X122: 5
U130: A1
S132: A | T132: B | U132: C | V132: D | W132: E
X133: 1
X134: 2
X135: 3
X136: 4
X137: 5
U146: C1
S148: A | T148: B | U148: C | V148: D | W148: E
X149: 1
X150: 2
X151: 3
X152: 4
X153: 5
U161: E1
S163: A | T163: B | U163: C | V163: D | W163: E
X164: 1
X165: 2
X166: 3
X167: 4
X168: 5

Sheet HD2.3
AC1: LANCER LES COMBATS EN // | AJ1: OPTIMISER LES XP | BO1: 17 | BP1: 17 | BQ1: 12 | BS1: 9 | BW1: Accroissement
AH2: ENGAGES/BESOINS | AP2: PERTES/GAINS | AX2: ACHATS/BESOINS SUP. | BF2: TOTAL DISPONIBLES | BQ2: RESERVES
C3: Pertes définitives | AG3: Famillier | AH3: Démon cornu | AJ3: Chien des enfers | AL3: Succube | AO3: Famillier | AP3: Démon cornu | AR3: Chien des enfers | AT3: Succube | AW3: Famillier | AX3: Démon cornu | AZ3: Chien des enfers | BB3: Succube | BE3: Famillier | BF3: Démon cornu | BH3: Chien des enfers | BJ3: Succube | BN3: Fin | BP3: Famillier | BQ3: Démon cornu | BS3: Chien des enfers | BU3: Succube
C4: Attaquant | K4: Défenseur | U4: D2 | AC4: Qx | AD4: Pos | AE4: Manque | AF4: T1 | AG4: T1+ | AH4: T2 | AI4: T2+ | AJ4: T3 | AK4: T3+ | AL4: T4 | AM4: T4+ | AN4: T1 | AO4: T1+ | AP4: T2 | AQ4: T2+ | AR4: T3 | AS4: T3+ | AT4: T4 | AU4: T4+ | AV4: T1 | AW4: T1+ | AX4: T2 | AY4: T2+ | AZ4: T3 | BA4: T3+ | BB4: T4 | BC4: T4+ | BD4: T1 | BE4: T1+ | BF4: T2 | BG4: T2+ | BH4: T3 | BI4: T3+ | BJ4: T4 | BK4: T4+ | BL4: XP | BM4: Total XP | BN4: Date Heure | BO4: T1 | BP4: T1+ | BQ4: T2 | BR4: T2+ | BS4: T3 | BT4: T3+ | BU4: T4 | BV4: T4+ | BW4: Maintenant
C5: Unité | D5: Effectif | F5: Puissance | H5: Cout en or | I5: Cout en rares | J5: Peloton | K5: Unité | L5: Effectif | N5: Puissance | P5: Cout en or | Q5: Cout en rares | BE5: 85 | BF5: 26 | BH5: 13 | BJ5: 7 | BK5: 2 | BM5: 49942 | BN5: 2010-09-18T12:39:00 | BO5: 70 | BP5: 70 | BQ5: 40 | BS5: 15 | BW5: =NOW() -> 2010-09-29T23:41:22.700
D6: Initial | E6: Perdu | F6: Initiale | G6: Perdue | H6: des pertes | I6: des pertes | L6: Initial | M6: Perdu | N6: Initiale | O6: Perdue | P6: des pertes | Q6: des pertes | S6: A | T6: B | U6: C | V6: D | W6: E | AC6: Q9 | AD6: C4 | AE6: =IF(AF6<=BD5+AV6,0,AF6-(BD5+AV6))+IF(AG6<=BE5+AW6,0,AG6-(BE5+AW6))+IF(AH6<=BF5+AX6,0,AH6-(BF5+AX6))+IF(AI6<=BG5+AY6,0,AI6-(BG5+AY6))+IF(AJ6<=BH5+AZ6,0,AJ6-(BH5+AZ6))+IF(AK6<=BI5+BA6,0,AK6-(BI5+BA6))+IF(AL6<=BJ5+BB6,0,AL6-(BJ5+BB6))+IF(AM6<=BK5+BC6,0,AM6-(BK5+BC6)) -> 0 | BD6: =BD5+AN6+AV6 -> 0 | BE6: =BE5+AO6+AW6 -> 85 | BF6: 26 | BG6: 0 | BH6: 13 | BI6: 0 | BJ6: 7 | BK6: 2 | BM6: =BM5+BL6 -> 49942 | BN6: 2010-09-18T13:39:00
C7: Chien des enfers | D7: 20 | E7: 6 | F7: 7 400 | G7: 2 220 | H7: 5 040 | I7: — | J7: 1 | K7: Archer | L7: 55 | M7: 55 | N7: 10 890 | O7: 10 890 | P7: 24 200 | Q7: — | X7: 1 | AD7: A1 | AE7: 0 | BD7: =BD6+AN7+AV7 -> 0 | BE7: 85 | BF7: 26 | BG7: 0 | BH7: 13 | BI7: 0 | BJ7: 7 | BK7: 2 | BM7: =BM6+BL7 -> 49942 | BN7: 2010-09-19T13:38:59.995
C8: Familier | D8: 130 | E8: 15 | F8: 11 180 | G8: 1 290 | H8: 3 390 | I8: — | J8: 2 | K8: Champion | L8: 19 | M8: 19 | N8: 9 272 | O8: 9 272 | P8: 20 064 | Q8: — | X8: 2 | AD8: B1 | AE8: 0 | BD8: 0 | BE8: 85 | BF8: 26 | BG8: 0 | BH8: 13 | BI8: 0 | BJ8: 7 | BK8: 2 | BM8: 49942 | BN8: 2010-09-20T13:38:59.995
J9: 3 | K9: Conscrit | L9: 43 | M9: 43 | N9: 5 504 | O9: 5 504 | P9: 11 911 | Q9: — | X9: 3 | AD9: C1 | AE9: 0 | BD9: 0 | BE9: 85 | BF9: 26 | BG9: 0 | BH9: 13 | BI9: 0 | BJ9: 7 | BK9: 2 | BM9: 49942 | BN9: 2010-09-21T13:38:59.995
J10: 4 | K10: Fantassin | L10: 8 | M10: 8 | N10: 3 256 | O10: 3 256 | P10: 7 040 | Q10: — | X10: 4 | AD10: D1 | AE10: 0 | BD10: 0 | BE10: 85 | BF10: 26 | BG10: 0 | BH10: 13 | BI10: 0 | BJ10: 7 | BK10: 2 | BM10: 49942 | BN10: 2010-09-22T13:38:59.995
D11: 150 | E11: 21 | F11: 18 580 | G11: 3 510 | H11: 8 430 | I11: — | J11: Total | L11: 125 | M11: 125 | N11: 28 922 | O11: 28 922 | P11: 63 215 | Q11: — | X11: 5 | AD11: E1 | AE11: 0 | BD11: 0 | BE11: 85 | BF11: 26 | BG11: 0 | BH11: 13 | BI11: 0 | BJ11: 7 | BK11: 2 | BM11: 49942 | BN11: 2010-09-23T13:38:59.995
C12: Expérience | AD12: A2 | AE12: 0 | BD12: 0 | BE12: 85 | BF12: 26 | BG12: 0 | BH12: 13 | BI12: 0 | BJ12: 7 | BK12: 2 | BM12: 49942 | BN12: 2010-09-24T13:38:59.995
C13: Attaquant | E13: Défenseur | AD13: B2 | AE13: 0 | BD13: 0 | BE13: 85 | BF13: 26 | BG13: 0 | BH13: 13 | BI13: 0 | BJ13: 7 | BK13: 2 | BM13: 49942 | BN13: 2010-09-25T13:38:59.995
C14: 0.5566 | D14: Honneur | E14: / | AD14: E2 | AE14: 0 | BD14: 0 | BE14: 85 | BF14: 26 | BG14: 0 | BH14: 13 | BI14: 0 | BJ14: 7 | BK14: 2 | BM14: 49942 | BN14: 2010-09-26T13:38:59.995
C15: 1 928 | D15: Expérience de base | E15: / | AD15: A3 | AE15: 0 | BD15: 0 | BE15: 85 | BF15: 26 | BG15: 0 | BH15: 13 | BI15: 0 | BJ15: 7 | BK15: 2 | BM15: 49942 | BN15: 2010-09-27T13:38:59.995
A16: =C16/G10 ->  | C16: 0.5566 | D16: Modificateur total | E16: / | AD16: B3 | AE16: 0 | BD16: 0 | BE16: 85 | BF16: 26 | BG16: 0 | BH16: 13 | BI16: 0 | BJ16: 7 | BK16: 2 | BM16: 49942 | BN16: 2010-09-28T13:38:59.995
C17: 3 001 | D17: Expérience totale | E17: / | AD17: E3 | AE17: 0 | BD17: 0 | BE17: 85 | BF17: 26 | BG17: 0 | BH17: 13 | BI17: 0 | BJ17: 7 | BK17: 2 | BM17: 49942 | BN17: 2010-09-29T13:38:59.995
AD18: A4 | AE18: 0 | BD18: 0 | BE18: 85 | BF18: 26 | BG18: 0 | BH18: 13 | BI18: 0 | BJ18: 7 | BK18: 2 | BM18: 49942 | BN18: 2010-09-30T13:38:59.995
AD19: D4 | AE19: 0 | BD19: 0 | BE19: 85 | BF19: 26 | BG19: 0 | BH19: 13 | BI19: 0 | BJ19: 7 | BK19: 2 | BM19: 49942 | BN19: 2010-10-01T13:38:59.995
C20: Pertes définitives | AD20: E4 | AE20: 0 | BD20: 0 | BE20: 85 | BF20: 26 | BG20: 0 | BH20: 13 | BI20: 0 | BJ20: 7 | BK20: 2 | BM20: 49942 | BN20: 2010-10-02T13:38:59.995
C21: Attaquant | K21: Défenseur | AD21: A5 | AE21: 0 | BD21: 0 | BE21: 85 | BF21: 26 | BG21: 0 | BH21: 13 | BI21: 0 | BJ21: 7 | BK21: 2 | BM21: 49942 | BN21: 2010-10-03T13:38:59.995
C22: Unité | D22: Effectif | F22: Puissance | H22: Cout en or | I22: Cout en rares | J22: Peloton | K22: Unité | L22: Effectif | N22: Puissance | P22: Cout en or | Q22: Cout en rares | AD22: B5 | AE22: 0 | BD22: 0 | BE22: 85 | BF22: 26 | BG22: 0 | BH22: 13 | BI22: 0 | BJ22: 7 | BK22: 2 | BM22: 49942 | BN22: 2010-10-04T13:38:59.995
D23: Initial | E23: Perdu | F23: Initiale | G23: Perdue | H23: des pertes | I23: des pertes | L23: Initial | M23: Perdu | N23: Initiale | O23: Perdue | P23: des pertes | Q23: des pertes | U23: D5 | AD23: C5 | AE23: 0 | BD23: =BD22+AN23+AV23 -> 0 | BE23: 85 | BF23: 26 | BG23: 0 | BH23: 13 | BI23: 0 | BJ23: 7 | BK23: 2 | BM23: 49942 | BN23: 2010-10-05T13:38:59.995
C24: Chien des enfers | D24: 20 | E24: 6 | F24: 7 400 | G24: 2 220 | H24: 5 040 | I24: — | J24: 1 | K24: Archer squelette | L24: 229 | M24: 229 | N24: 16 030 | O24: 16 030 | P24: 46 945 | Q24: — | AD24: D5 | AE24: 0 | BD24: 0 | BE24: 85 | BF24: 26 | BG24: 0 | BH24: 13 | BI24: 0 | BJ24: 7 | BK24: 2 | BM24: 49942 | BN24: 2010-10-06T13:38:59.995
C25: Familier | D25: 128 | E25: 30 | F25: 11 008 | G25: 2 580 | H25: 6 780 | I25: — | J25: 2 | K25: Seigneur vampire | L25: 9 | M25: 9 | N25: 8 118 | O25: 8 118 | P25: 18 054 | Q25: — | S25: A | T25: B | U25: C | V25: D | W25: E | AD25: E5 | AE25: 0 | BD25: 0 | BE25: 85 | BF25: 26 | BG25: 0 | BH25: 13 | BI25: 0 | BJ25: 7 | BK25: 2 | BM25: 49942 | BN25: 2010-10-07T13:38:59.995
D26: 148 | E26: 36 | F26: 18 408 | G26: 4 800 | H26: 11 820 | I26: — | J26: Total | L26: 238 | M26: 238 | N26: 24 148 | O26: 24 148 | P26: 64 999 | Q26: — | X26: 1
C27: Expérience | X27: 2
C28: Attaquant | E28: Défenseur | X28: 3
C29: 0.3118 | D29: Honneur | E29: / | X29: 4
C30: 1 745 | D30: Expérience de base | E30: / | X30: 5
C31: 0.3118 | D31: Modificateur total | E31: /
A32: =C32/G26 ->  | C32: 2 289 | D32: Expérience totale | E32: /
C36: Pertes définitives | U36: C5
C37: Attaquant | K37: Défenseur
C38: Unité | D38: Effectif | F38: Puissance | H38: Cout en or | I38: Cout en rares | J38: Peloton | K38: Unité | L38: Effectif | N38: Puissance | P38: Cout en or | Q38: Cout en rares | S38: A | T38: B | U38: C | V38: D | W38: E
D39: Initial | E39: Perdu | F39: Initiale | G39: Perdue | H39: des pertes | I39: des pertes | L39: Initial | M39: Perdu | N39: Initiale | O39: Perdue | P39: des pertes | Q39: des pertes | X39: 1
C40: Chien des enfers | D40: 38 | E40: 11 | F40: 14 060 | G40: 4 070 | H40: 9 240 | I40: — | J40: 1 | K40: Nymphe | L40: 167 | M40: 167 | N40: 14 696 | O40: 14 696 | P40: 35 070 | Q40: — | X40: 2
C41: Familier | D41: 120 | E41: 36 | F41: 10 320 | G41: 3 096 | H41: 8 136 | I41: — | J41: 2 | K41: Fine-lame | L41: 66 | M41: 66 | N41: 10 758 | O41: 10 758 | P41: 26 334 | Q41: — | X41: 3
C42: Chien des enfers | D42: 20 | E42: 4 | F42: 7 400 | G42: 1 480 | H42: 3 360 | I42: — | J42: 3 | K42: Lame-de-guerre | L42: 40 | M42: 40 | N42: 7 840 | O42: 7 840 | P42: 19 160 | Q42: — | X42: 4
J43: 4 | K43: Dryade | L43: 60 | M43: 60 | N43: 6 360 | O43: 6 360 | P43: 15 120 | Q43: — | X43: 5
D44: 178 | E44: 51 | F44: 31 780 | G44: 8 646 | H44: 20 736 | I44: — | J44: Total | L44: 333 | M44: 333 | N44: 39 654 | O44: 39 654 | P44: 95 684 | Q44: —
C45: Expérience
C46: Attaquant | E46: Défenseur
C47: 0.2478 | D47: Honneur | E47: /
A48: =C48/G42 ->  | C48: 2 644 | D48: Expérience de base | E48: /
C49: 0.2478 | D49: Modificateur total | E49: /
C50: 3 299 | D50: Expérience totale | E50: /
U51: C1
S53: A | T53: B | U53: C | V53: D | W53: E
D54: =MAX(D56:D59)+F56 -> 67 | X54: 1
X55: 2
C56: Chien des enfers | D56: 38 | E56: 11 | F56: =SUM(E56:E59) -> 27 | X56: 3
C57: Chien des enfers | D57: 20 | E57: 4 | X57: 4
C58: Chien des enfers | D58: 40 | E58: 6 | X58: 5
C59: Chien des enfers | D59: 20 | E59: 6
C60: Familier | D60: 120 | E60: 36
C61: Familier | D61: 130 | E61: 15
C62: Familier | D62: 128 | E62: 30 | F62: =SUM(E60:E62) -> 81
D64: =MAX(D60:D62)+F62 -> 211
U70: A5
S72: A | T72: B | U72: C | V72: D | W72: E
X73: 1
X74: 2
X75: 3
X76: 4
X77: 5
U85: D5 | W85: 3h36mn14
S87: A | T87: B | U87: C | V87: D | W87: E
X88: 1
X89: 2
X90: 3
X91: 4
X92: 5
T100: 3h20mn5s
U101: C5
S103: A | T103: B | U103: C | V103: D | W103: E
X104: 1
X105: 2
X106: 3
X107: 4
X108: 5
U115: A4
S117: A | T117: B | U117: C | V117: D | W117: E
X118: 1
X119: 2
X120: 3
X121: 4
X122: 5
U130: A1
S132: A | T132: B | U132: C | V132: D | W132: E
X133: 1
X134: 2
X135: 3
X136: 4
X137: 5
U146: C1
S148: A | T148: B | U148: C | V148: D | W148: E
X149: 1
X150: 2
X151: 3
X152: 4
X153: 5
U161: E1
S163: A | T163: B | U163: C | V163: D | W163: E
X164: 1
X165: 2
X166: 3
X167: 4
X168: 5

Sheet HD2.2a
B2: Pertes définitives
B3: Attaquant | J3: Défenseur
B4: Unité | C4: Effectif | E4: Puissance | G4: Cout en or | H4: Cout en rares | I4: Peloton | J4: Unité | K4: Effectif | M4: Puissance | O4: Cout en or | P4: Cout en rares
C5: Initial | D5: Perdu | E5: Initiale | F5: Perdue | G5: des pertes | H5: des pertes | K5: Initial | L5: Perdu | M5: Initiale | N5: Perdue | O5: des pertes | P5: des pertes
B6: Succube | C6: 6 | D6: 1 | E6: 5 508 | F6: 918 | G6: 1 848 | H6: — | I6: 1 | J6: Fantassin | K6: 34 | L6: 34 | M6: 13 838 | N6: 13 838 | O6: 29 920 | P6: —
B7: Maitresse succube | C7: 3 | D7: 1 | E7: 3 303 | F7: 1 101 | G7: 2 217 | H7: — | I7: 2 | J7: Conscrit | K7: 63 | L7: 63 | M7: 8 064 | N7: 8 064 | O7: 17 451 | P7: —
B8: Familier | C8: 80 | D8: 12 | E8: 6 880 | F8: 1 032 | G8: 2 712 | H8: — | I8: 3 | J8: Paysan | K8: 77 | L8: 77 | M8: 7 469 | N8: 7 469 | O8: 16 940 | P8: —
C9: 89 | D9: 14 | E9: 15 691 | F9: 3 051 | G9: 6 777 | H9: — | I9: Total | K9: 174 | L9: 174 | M9: 29 371 | N9: 29 371 | O9: 64 311 | P9: —
B10: Expérience
B11: Attaquant | D11: Défenseur
B12: 0.8718 | C12: Honneur | D12: /
B13: 1 958 | C13: Expérience de base | D13: / | G13: Victoire écrasante
B14: 0.8718 | C14: Modificateur total | D14: / | G14: Flèche des arcanes au tour 1
B15: 3 665 | C15: Expérience totale | D15: /

Sheet Feuil1

Sheet Feuil2
